Workbook

Sheet Init

Sheet Recapitulatif_Dossier_client
C1: Année | D1: 2018
A3: Numero client | B3: Montant versé au cours de l'année | C3: Montant versé cumulé | D3: Somme des intérêts de l'année | E3: Frais de Gestion de l'année
A4: Cynthia ABENHAÏM
A5: Jean ABSCHEN
A6: Stéphane ADAMO
A7: Marion AGAPOF
A8: Olivier ALEMBERT
A9: Henri AMELLAL
A10: Marc AMELLAL
A11: Viviane AMELLAL
A12: Jean-Pierre ANGONIN
A13: Marie-France AZOURA
A14: Maryse AZRIA
A15: Sylvie BACH
... 18 more rows

Sheet Pres-base
B1: Versement Annuel | W1: Cumule | AR1: Intérêt | BM1: Frais de Gestion
A2: Numero client | B2: Versement_2018 | C2: Versement_2019 | D2: Versement_2020 | E2: Versement_2021 | F2: Versement_2022 | G2: Versement_2023 | H2: Versement_2024 | I2: Versement_2025 | J2: Versement_2026 | K2: Versement_2027 | L2: Versement_2028 | M2: Versement_2029 | N2: Versement_2030 | O2: Versement_2031 | P2: Versement_2032 | Q2: Versement_2033 | R2: Versement_2034 | S2: Versement_2035 | T2: Versement_2036 | U2: Versement_2037 | V2: Versement_2038 | W2: Cumule_2018 | X2: Cumule_2019 | Y2: Cumule_2020 | Z2: Cumule_2021 | AA2: Cumule_2022 | AB2: Cumule_2023 | AC2: Cumule_2024 | AD2: Cumule_2025 | AE2: Cumule_2026 | AF2: Cumule_2027 | AG2: Cumule_2028 | AH2: Cumule_2029 | AI2: Cumule_2030 | AJ2: Cumule_2031 | AK2: Cumule_2032 | AL2: Cumule_2033 | AM2: Cumule_2034 | AN2: Cumule_2035 | AO2: Cumule_2036 | AP2: Cumule_2037 | AQ2: Cumule_2038 | AR2: Intérêt_2018 | AS2: Intérêt_2019 | AT2: Intérêt_2020 | AU2: Intérêt_2021 | AV2: Intérêt_2022 | AW2: Intérêt_2023 | AX2: Intérêt_2024 | AY2: Intérêt_2025 | AZ2: Intérêt_2026 | BA2: Intérêt_2027 | BB2: Intérêt_2028 | BC2: Intérêt_2029 | BD2: Intérêt_2030 | BE2: Intérêt_2031 | BF2: Intérêt_2032 | BG2: Intérêt_2033 | BH2: Intérêt_2034 | BI2: Intérêt_2035 | BJ2: Intérêt_2036 | BK2: Intérêt_2037 | BL2: Intérêt_2038 | BM2: Frais_de_gestion_2018 | BN2: Frais_de_gestion_2019 | BO2: Frais_de_gestion_2020 | BP2: Frais_de_gestion_2021 | BQ2: Frais_de_gestion_2022 | BR2: Frais_de_gestion_2023 | BS2: Frais_de_gestion_2024 | BT2: Frais_de_gestion_2025 | BU2: Frais_de_gestion_2026 | BV2: Frais_de_gestion_2027 | BW2: Frais_de_gestion_2028 | BX2: Frais_de_gestion_2029 | BY2: Frais_de_gestion_2030 | BZ2: Frais_de_gestion_2031 | CA2: Frais_de_gestion_2032 | CB2: Frais_de_gestion_2033 | CC2: Frais_de_gestion_2034 | CD2: Frais_de_gestion_2035 | CE2: Frais_de_gestion_2036 | CF2: Frais_de_gestion_2037 | CG2: Frais_de_gestion_2038
A3: Cynthia ABENHAÏM | B3: ='Base de données cumulée'!Z2 -> 27218.5178 | C3: =SUM('Base de donnée'!AA2:AX2) -> 0 | D3: =SUM('Base de donnée'!AZ2:BW2) -> 0 | E3: =SUM('Base de donnée'!BY2:CV2) -> 0 | F3: =SUM('Base de donnée'!CX2:DV2) -> 0 | G3: =SUM('Base de donnée'!DW2:EU2) -> 0 | H3: =SUM('Base de donnée'!EV2:FS2) -> 0 | I3: =SUM('Base de donnée'!FV2:GR2) -> 0 | J3: =SUM('Base de donnée'!GT2:HR2) -> 0 | K3: =SUM('Base de donnée'!HS2:IQ2) -> 0 | L3: =SUM('Base de donnée'!IR2:JO2) -> 0 | M3: =SUM('Base de donnée'!JQ2:KN2) -> 0 | N3: =SUM('Base de donnée'!KP2:LN2) -> 0 | O3: =SUM('Base de donnée'!LO2:ML2) -> 0 | P3: =SUM('Base de donnée'!MN2:NL2) -> 0 | Q3: =SUM('Base de donnée'!NM2:OL2) -> 0 | R3: =SUM('Base de donnée'!OL2:PJ2) -> 0 | S3: =SUM('Base de donnée'!PK2:QI2) -> 0 | T3: =SUM('Base de donnée'!QJ2:RH2) -> 0 | U3: =SUM('Base de donnée'!RI2:SE2) -> 0 | V3: =SUM('Base de donnée'!SH2:TE2) -> 0 | W3: ='Base de données cumulée'!Y2 -> 27186.11301 | X3: ='Base de données cumulée'!AX2 -> 28665.44428 | Y3: ='Base de données cumulée'!BW2 -> 30254.62754 | Z3: ='Base de données cumulée'!CV2 -> 31911.02311 | AA3: ='Base de données cumulée'!DV2 -> 33676.58844 | AB3: ='Base de données cumulée'!EU2 -> 35491.14336 | AC3: ='Base de données cumulée'!FS2 -> 37368.71023 | AD3: ='Base de données cumulée'!GR2 -> 39408.01742 | AE3: ='Base de données cumulée'!HR2 -> 41625.41056 | AF3: ='Base de données cumulée'!IQ2 -> 43935.51271 | AG3: ='Base de données cumulée'!JO2 -> 46337.87393 | AH3: ='Base de données cumulée'!KN2 -> 48947.76495 | AI3: ='Base de données cumulée'!LN2 -> 51785.56911 | AJ3: ='Base de données cumulée'!ML2 -> 54676.20306 | AK3: ='Base de données cumulée'!NL2 -> 57886.55231 | AL3: ='Base de données cumulée'!OL2 -> 62916.58802 | AM3: ='Base de données cumulée'!PJ2 -> 64788.46866 | AN3: ='Base de données cumulée'!QI2 -> 68572.11582 | AO3: ='Base de données cumulée'!RH2 -> 72596.46412 | AP3: ='Base de données cumulée'!SF2 -> 76781.5337 | AQ3: ='Base de données cumulée'!TE2 -> 81328.13371 | AR3: =Intérêt!AA2 -> 718.5177969 | AS3: =Intérêt!AZ2 -> 794.4592495 | AT3: =Intérêt!BY2 -> 829.8587824 | AU3: =Intérêt!CX2 -> 863.0654755 | AV3: =Intérêt!DW2 -> 902.4998529 | AW3: =Intérêt!EV2 -> 950.2437105 | AX3: =Intérêt!FU2 -> 1010.249969 | AY3: =Intérêt!GT2 -> 1074.518202 | AZ3: =Intérêt!HS2 -> 1142.874933 | BA3: =Intérêt!IR2 -> 1215.580257 | BB3: =Intérêt!JO2 -> 54.62795296 | BC3: =Intérêt!KP2 -> 1375.160848 | BD3: =Intérêt!LO2 -> 1462.643312 | BE3: =Intérêt!MN2 -> 1555.691076 | BF3: =Intérêt!NM2 -> 1654.658182 | BG3: =Intérêt!OL2 -> 1759.921195 | BH3: =Intérêt!PK2 -> 1871.880639 | BI3: =Intérêt!QJ2 -> 1990.962513 | BJ3: =Intérêt!RI2 -> 2117.61992 | BK3: =Intérêt!SH2 -> 2252.334786 | BL3: =Intérêt!TG2 -> 2395.619695 | BM3: =Frais_de_gestion!Z2 -> 102.998333 | BN3: =Frais_de_gestion!AY2 -> 12.91459053 | BO3: =Frais_de_gestion!BX2 -> 13.63039304 | BP3: =Frais_de_gestion!CW2 -> 14.37639831 | BQ3: =Frais_de_gestion!DV2 -> 15.1544648 | BR3: =Frais_de_gestion!EU2 -> 15.97101451 | BS3: =Frais_de_gestion!FT2 -> 16.83515346 | BT3: =Frais_de_gestion!GS2 -> 17.75406528 | BU3: =Frais_de_gestion!HR2 -> 18.73143475 | BV3: =Frais_de_gestion!IQ2 -> 19.77098072 | BW3: =Frais_de_gestion!JP2 -> 20.87665862 | BX3: =Frais_de_gestion!KO2 -> 22.05267552 | BY3: =Frais_de_gestion!LN2 -> 23.3035061 | BZ3: =Frais_de_gestion!MM2 -> 24.63390973 | CA3: =Frais_de_gestion!NL2 -> 26.04894854 | CB3: =Frais_de_gestion!OK2 -> 27.5540067 | CC3: =Frais_de_gestion!PJ2 -> 29.1548109 | CD3: =Frais_de_gestion!QI2 -> 30.85745212 | CE3: =Frais_de_gestion!RH2 -> 32.66840885 | CF3: =Frais_de_gestion!SG2 -> 34.59457172 | CG3: =Frais_de_gestion!TF2 -> 36.64326968
A4: Jean ABSCHEN | B4: ='Base de données cumulée'!Z3 -> 2728.024104 | C4: =SUM('Base de donnée'!AA3:AX3) -> 0 | D4: =SUM('Base de donnée'!AZ3:BW3) -> 0 | E4: =SUM('Base de donnée'!BY3:CV3) -> 0 | F4: =SUM('Base de donnée'!CX3:DV3) -> 0 | G4: =SUM('Base de donnée'!DW3:EU3) -> 0 | H4: =SUM('Base de donnée'!EV3:FS3) -> 0 | I4: =SUM('Base de donnée'!FV3:GR3) -> 0 | J4: =SUM('Base de donnée'!GT3:HR3) -> 0 | K4: =SUM('Base de donnée'!HS3:IQ3) -> 0 | L4: =SUM('Base de donnée'!IR3:JO3) -> 0 | M4: =SUM('Base de donnée'!JQ3:KN3) -> 0 | N4: =SUM('Base de donnée'!KP3:LN3) -> 0 | O4: =SUM('Base de donnée'!LO3:ML3) -> 0 | P4: =SUM('Base de donnée'!MN3:NL3) -> 0 | Q4: =SUM('Base de donnée'!NM3:OL3) -> 0 | R4: =SUM('Base de donnée'!OL3:PJ3) -> 0 | S4: =SUM('Base de donnée'!PK3:QI3) -> 0 | T4: =SUM('Base de donnée'!QJ3:RH3) -> 0 | U4: =SUM('Base de donnée'!RI3:SE3) -> 0 | V4: =SUM('Base de donnée'!SH3:TE3) -> 0 | W4: ='Base de données cumulée'!Y3 -> 2726.847015 | X4: ='Base de données cumulée'!AX3 -> 2765.40665 | Y4: ='Base de données cumulée'!BW3 -> 2785.759374 | Z4: ='Base de données cumulée'!CV3 -> 2803.406843 | AA4: ='Base de données cumulée'!DV3 -> 2818.780929 | AB4: ='Base de données cumulée'!EU3 -> 2832.23707 | AC4: ='Base de données cumulée'!FS3 -> 2845.120876 | AD4: ='Base de données cumulée'!GR3 -> 2858.765655 | AE4: ='Base de données cumulée'!HR3 -> 2873.260689 | AF4: ='Base de données cumulée'!IQ3 -> 2888.018011 | AG4: ='Base de données cumulée'!JO3 -> 2903.022929 | AH4: ='Base de données cumulée'!KN3 -> 2918.956938 | AI4: ='Base de données cumulée'!LN3 -> 2935.883851 | AJ4: ='Base de données cumulée'!ML3 -> 2952.739774 | AK4: ='Base de données cumulée'!NL3 -> 2971.031599 | AL4: ='Base de données cumulée'!OL3 -> 2998.938518 | AM4: ='Base de données cumulée'!PJ3 -> 3009.013505 | AN4: ='Base de données cumulée'!QI3 -> 3029.137982 | AO4: ='Base de données cumulée'!RH3 -> 3050.058104 | AP4: ='Base de données cumulée'!SF3 -> 3071.329222 | AQ4: ='Base de données cumulée'!TE3 -> 3093.917428 | AR4: =Intérêt!AA3 -> 28.02410367 | AS4: =Intérêt!AZ3 -> 10.99867645 | AT4: =Intérêt!BY3 -> 9.765129858 | AU4: =Intérêt!CX3 -> 8.228625621 | AV4: =Intérêt!DW3 -> 7.145459652 | AW4: =Intérêt!EV3 -> 6.611313359 | AX4: =Intérêt!FU3 -> 6.836726228 | AY4: =Intérêt!GT3 -> 7.107024632 | AZ4: =Intérêt!HS3 -> 7.388009616 | BA4: =Intérêt!IR3 -> 7.680103689 | BB4: =Intérêt!JO3 -> 0.335572797 | BC4: =Intérêt!KP3 -> 8.299393308 | BD4: =Intérêt!LO3 -> 8.627520059 | BE4: =Intérêt!MN3 -> 8.968619706 | BF4: =Intérêt!NM3 -> 9.323205147 | BG4: =Intérêt!OL3 -> 9.691809562 | BH4: =Intérêt!PK3 -> 10.07498721 | BI4: =Intérêt!QJ3 -> 10.47331425 | BJ4: =Intérêt!RI3 -> 10.88738965 | BK4: =Intérêt!SH3 -> 11.31783603 | BL4: =Intérêt!TG3 -> 11.76530063 | BM4: =Frais_de_gestion!Z3 -> 16.07761085 | BN4: =Frais_de_gestion!AY3 -> 1.244641408 | BO4: =Frais_de_gestion!BX3 -> 1.253776705 | BP4: =Frais_de_gestion!CW3 -> 1.261688908 | BQ4: =Frais_de_gestion!DV3 -> 1.268451418 | BR4: =Frais_de_gestion!EU3 -> 1.274506682 | BS4: =Frais_de_gestion!FT3 -> 1.280433814 | BT4: =Frais_de_gestion!GS3 -> 1.286579082 | BU4: =Frais_de_gestion!HR3 -> 1.29296731 | BV4: =Frais_de_gestion!IQ3 -> 1.299608105 | BW4: =Frais_de_gestion!JP3 -> 1.306511452 | BX4: =Frais_de_gestion!KO3 -> 1.313687731 | BY4: =Frais_de_gestion!LN3 -> 1.321147733 | BZ4: =Frais_de_gestion!MM3 -> 1.328902676 | CA4: =Frais_de_gestion!NL3 -> 1.336964219 | CB4: =Frais_de_gestion!OK3 -> 1.345344486 | CC4: =Frais_de_gestion!PJ3 -> 1.354056077 | CD4: =Frais_de_gestion!QI3 -> 1.363112092 | CE4: =Frais_de_gestion!RH3 -> 1.372526147 | CF4: =Frais_de_gestion!SG3 -> 1.382312398 | CG4: =Frais_de_gestion!TF3 -> 1.392485562
A5: Stéphane ADAMO | B5: ='Base de données cumulée'!Z4 -> 2526.02898 | C5: =SUM('Base de donnée'!AA4:AX4) -> 0 | D5: =SUM('Base de donnée'!AZ4:BW4) -> 0 | E5: =SUM('Base de donnée'!BY4:CV4) -> 0 | F5: =SUM('Base de donnée'!CX4:DV4) -> 0 | G5: =SUM('Base de donnée'!DW4:EU4) -> 0 | H5: =SUM('Base de donnée'!EV4:FS4) -> 0 | I5: =SUM('Base de donnée'!FV4:GR4) -> 0 | J5: =SUM('Base de donnée'!GT4:HR4) -> 0 | K5: =SUM('Base de donnée'!HS4:IQ4) -> 0 | L5: =SUM('Base de donnée'!IR4:JO4) -> 0 | M5: =SUM('Base de donnée'!JQ4:KN4) -> 0 | N5: =SUM('Base de donnée'!KP4:LN4) -> 0 | O5: =SUM('Base de donnée'!LO4:ML4) -> 0 | P5: =SUM('Base de donnée'!MN4:NL4) -> 0 | Q5: =SUM('Base de donnée'!NM4:OL4) -> 0 | R5: =SUM('Base de donnée'!OL4:PJ4) -> 0 | S5: =SUM('Base de donnée'!PK4:QI4) -> 0 | T5: =SUM('Base de donnée'!QJ4:RH4) -> 0 | U5: =SUM('Base de donnée'!RI4:SE4) -> 0 | V5: =SUM('Base de donnée'!SH4:TE4) -> 0 | W5: ='Base de données cumulée'!Y4 -> 2524.939048 | X5: ='Base de données cumulée'!AX4 -> 2557.141035 | Y5: ='Base de données cumulée'!BW4 -> 2568.513079 | Z5: ='Base de données cumulée'!CV4 -> 2577.074671 | AA5: ='Base de données cumulée'!DV4 -> 2583.052571 | AB5: ='Base de données cumulée'!EU4 -> 2587.08525 | AC5: ='Base de données cumulée'!FS4 -> 2590.452895 | AD5: ='Base de données cumulée'!GR4 -> 2594.029062 | AE5: ='Base de données cumulée'!HR4 -> 2597.828073 | AF5: ='Base de données cumulée'!IQ4 -> 2601.695826 | AG5: ='Base de données cumulée'!JO4 -> 2605.628472 | AH5: ='Base de données cumulée'!KN4 -> 2609.804624 | AI5: ='Base de données cumulée'!LN4 -> 2614.241007 | AJ5: ='Base de données cumulée'!ML4 -> 2618.658784 | AK5: ='Base de données cumulée'!NL4 -> 2623.452897 | AL5: ='Base de données cumulée'!OL4 -> 2630.767035 | AM5: ='Base de données cumulée'!PJ4 -> 2633.407593 | AN5: ='Base de données cumulée'!QI4 -> 2638.682027 | AO5: ='Base de données cumulée'!RH4 -> 2644.164992 | AP5: ='Base de données cumulée'!SF4 -> 2649.739949 | AQ5: ='Base de données cumulée'!TE4 -> 2655.660103 | AR5: =Intérêt!AA4 -> 26.02897984 | AS5: =Intérêt!AZ4 -> 6.444374943 | AT5: =Intérêt!BY4 -> 5.144224503 | AU5: =Intérêt!CX4 -> 3.567499644 | AV5: =Intérêt!DW4 -> 2.410399634 | AW5: =Intérêt!EV4 -> 1.723692536 | AX5: =Intérêt!FU4 -> 1.791840846 | AY5: =Intérêt!GT4 -> 1.862683484 | AZ5: =Intérêt!HS4 -> 1.936326973 | BA5: =Intérêt!IR4 -> 2.012882048 | BB5: =Intérêt!JO4 -> 0.08795043484 | BC5: =Intérêt!KP4 -> 2.175191961 | BD5: =Intérêt!LO4 -> 2.261190858 | BE5: =Intérêt!MN4 -> 2.350589827 | BF5: =Intérêt!NM4 -> 2.443523295 | BG5: =Intérêt!OL4 -> 2.540131003 | BH5: =Intérêt!PK4 -> 2.640558215 | BI5: =Intérêt!QJ4 -> 2.744955941 | BJ5: =Intérêt!RI4 -> 2.853481159 | BK5: =Intérêt!SH4 -> 2.966297057 | BL5: =Intérêt!TG4 -> 3.083573269 | BM5: =Frais_de_gestion!Z4 -> 14.88671304 | BN5: =Frais_de_gestion!AY4 -> 1.150835581 | BO5: =Frais_de_gestion!BX4 -> 1.155928336 | BP5: =Frais_de_gestion!CW4 -> 1.159751161 | BQ5: =Frais_de_gestion!DV4 -> 1.162373657 | BR5: =Frais_de_gestion!EU4 -> 1.164188362 | BS5: =Frais_de_gestion!FT4 -> 1.165737723 | BT5: =Frais_de_gestion!GS4 -> 1.167348339 | BU5: =Frais_de_gestion!HR4 -> 1.169022633 | BV5: =Frais_de_gestion!IQ4 -> 1.170763122 | BW5: =Frais_de_gestion!JP4 -> 1.172572423 | BX5: =Frais_de_gestion!KO4 -> 1.174453258 | BY5: =Frais_de_gestion!LN4 -> 1.176408453 | BZ5: =Frais_de_gestion!MM4 -> 1.17844095 | CA5: =Frais_de_gestion!NL4 -> 1.180553804 | CB5: =Frais_de_gestion!OK4 -> 1.182750192 | CC5: =Frais_de_gestion!PJ4 -> 1.185033417 | CD5: =Frais_de_gestion!QI4 -> 1.187406912 | CE5: =Frais_de_gestion!RH4 -> 1.189874246 | CF5: =Frais_de_gestion!SG4 -> 1.19243913 | CG5: =Frais_de_gestion!TF4 -> 1.195105419
A6: Marion AGAPOF | B6: ='Base de données cumulée'!Z5 -> 2526.02898 | C6: =SUM('Base de donnée'!AA5:AX5) -> 0 | D6: =SUM('Base de donnée'!AZ5:BW5) -> 0 | E6: =SUM('Base de donnée'!BY5:CV5) -> 0 | F6: =SUM('Base de donnée'!CX5:DV5) -> 0 | G6: =SUM('Base de donnée'!DW5:EU5) -> 0 | H6: =SUM('Base de donnée'!EV5:FS5) -> 0 | I6: =SUM('Base de donnée'!FV5:GR5) -> 0 | J6: =SUM('Base de donnée'!GT5:HR5) -> 0 | K6: =SUM('Base de donnée'!HS5:IQ5) -> 0 | L6: =SUM('Base de donnée'!IR5:JO5) -> 0 | M6: =SUM('Base de donnée'!JQ5:KN5) -> 0 | N6: =SUM('Base de donnée'!KP5:LN5) -> 0 | O6: =SUM('Base de donnée'!LO5:ML5) -> 0 | P6: =SUM('Base de donnée'!MN5:NL5) -> 0 | Q6: =SUM('Base de donnée'!NM5:OL5) -> 0 | R6: =SUM('Base de donnée'!OL5:PJ5) -> 0 | S6: =SUM('Base de donnée'!PK5:QI5) -> 0 | T6: =SUM('Base de donnée'!QJ5:RH5) -> 0 | U6: =SUM('Base de donnée'!RI5:SE5) -> 0 | V6: =SUM('Base de donnée'!SH5:TE5) -> 0 | W6: ='Base de données cumulée'!Y5 -> 2524.939048 | X6: ='Base de données cumulée'!AX5 -> 2557.141035 | Y6: ='Base de données cumulée'!BW5 -> 2568.513079 | Z6: ='Base de données cumulée'!CV5 -> 2577.074671 | AA6: ='Base de données cumulée'!DV5 -> 2583.052571 | AB6: ='Base de données cumulée'!EU5 -> 2587.08525 | AC6: ='Base de données cumulée'!FS5 -> 2590.452895 | AD6: ='Base de données cumulée'!GR5 -> 2594.029062 | AE6: ='Base de données cumulée'!HR5 -> 2597.828073 | AF6: ='Base de données cumulée'!IQ5 -> 2601.695826 | AG6: ='Base de données cumulée'!JO5 -> 2605.628472 | AH6: ='Base de données cumulée'!KN5 -> 2609.804624 | AI6: ='Base de données cumulée'!LN5 -> 2614.241007 | AJ6: ='Base de données cumulée'!ML5 -> 2618.658784 | AK6: ='Base de données cumulée'!NL5 -> 2623.452897 | AL6: ='Base de données cumulée'!OL5 -> 2630.767035 | AM6: ='Base de données cumulée'!PJ5 -> 2633.407593 | AN6: ='Base de données cumulée'!QI5 -> 2638.682027 | AO6: ='Base de données cumulée'!RH5 -> 2644.164992 | AP6: ='Base de données cumulée'!SF5 -> 2649.739949 | AQ6: ='Base de données cumulée'!TE5 -> 2655.660103 | AR6: =Intérêt!AA5 -> 26.02897984 | AS6: =Intérêt!AZ5 -> 6.444374943 | AT6: =Intérêt!BY5 -> 5.144224503 | AU6: =Intérêt!CX5 -> 3.567499644 | AV6: =Intérêt!DW5 -> 2.410399634 | AW6: =Intérêt!EV5 -> 1.723692536 | AX6: =Intérêt!FU5 -> 1.791840846 | AY6: =Intérêt!GT5 -> 1.862683484 | AZ6: =Intérêt!HS5 -> 1.936326973 | BA6: =Intérêt!IR5 -> 2.012882048 | BB6: =Intérêt!JO5 -> 0.08795043484 | BC6: =Intérêt!KP5 -> 2.175191961 | BD6: =Intérêt!LO5 -> 2.261190858 | BE6: =Intérêt!MN5 -> 2.350589827 | BF6: =Intérêt!NM5 -> 2.443523295 | BG6: =Intérêt!OL5 -> 2.540131003 | BH6: =Intérêt!PK5 -> 2.640558215 | BI6: =Intérêt!QJ5 -> 2.744955941 | BJ6: =Intérêt!RI5 -> 2.853481159 | BK6: =Intérêt!SH5 -> 2.966297057 | BL6: =Intérêt!TG5 -> 3.083573269 | BM6: =Frais_de_gestion!Z5 -> 14.88671304 | BN6: =Frais_de_gestion!AY5 -> 1.150835581 | BO6: =Frais_de_gestion!BX5 -> 1.155928336 | BP6: =Frais_de_gestion!CW5 -> 1.159751161 | BQ6: =Frais_de_gestion!DV5 -> 1.162373657 | BR6: =Frais_de_gestion!EU5 -> 1.164188362 | BS6: =Frais_de_gestion!FT5 -> 1.165737723 | BT6: =Frais_de_gestion!GS5 -> 1.167348339 | BU6: =Frais_de_gestion!HR5 -> 1.169022633 | BV6: =Frais_de_gestion!IQ5 -> 1.170763122 | BW6: =Frais_de_gestion!JP5 -> 1.172572423 | BX6: =Frais_de_gestion!KO5 -> 1.174453258 | BY6: =Frais_de_gestion!LN5 -> 1.176408453 | BZ6: =Frais_de_gestion!MM5 -> 1.17844095 | CA6: =Frais_de_gestion!NL5 -> 1.180553804 | CB6: =Frais_de_gestion!OK5 -> 1.182750192 | CC6: =Frais_de_gestion!PJ5 -> 1.185033417 | CD6: =Frais_de_gestion!QI5 -> 1.187406912 | CE6: =Frais_de_gestion!RH5 -> 1.189874246 | CF6: =Frais_de_gestion!SG5 -> 1.19243913 | CG6: =Frais_de_gestion!TF5 -> 1.195105419
A7: Olivier ALEMBERT | B7: ='Base de données cumulée'!Z6 -> 2526.02898 | C7: =SUM('Base de donnée'!AA6:AX6) -> 0 | D7: =SUM('Base de donnée'!AZ6:BW6) -> 0 | E7: =SUM('Base de donnée'!BY6:CV6) -> 0 | F7: =SUM('Base de donnée'!CX6:DV6) -> 0 | G7: =SUM('Base de donnée'!DW6:EU6) -> 0 | H7: =SUM('Base de donnée'!EV6:FS6) -> 0 | I7: =SUM('Base de donnée'!FV6:GR6) -> 0 | J7: =SUM('Base de donnée'!GT6:HR6) -> 0 | K7: =SUM('Base de donnée'!HS6:IQ6) -> 0 | L7: =SUM('Base de donnée'!IR6:JO6) -> 0 | M7: =SUM('Base de donnée'!JQ6:KN6) -> 0 | N7: =SUM('Base de donnée'!KP6:LN6) -> 0 | O7: =SUM('Base de donnée'!LO6:ML6) -> 0 | P7: =SUM('Base de donnée'!MN6:NL6) -> 0 | Q7: =SUM('Base de donnée'!NM6:OL6) -> 0 | R7: =SUM('Base de donnée'!OL6:PJ6) -> 0 | S7: =SUM('Base de donnée'!PK6:QI6) -> 0 | T7: =SUM('Base de donnée'!QJ6:RH6) -> 0 | U7: =SUM('Base de donnée'!RI6:SE6) -> 0 | V7: =SUM('Base de donnée'!SH6:TE6) -> 0 | W7: ='Base de données cumulée'!Y6 -> 2524.939048 | X7: ='Base de données cumulée'!AX6 -> 2557.141035 | Y7: ='Base de données cumulée'!BW6 -> 2568.513079 | Z7: ='Base de données cumulée'!CV6 -> 2577.074671 | AA7: ='Base de données cumulée'!DV6 -> 2583.052571 | AB7: ='Base de données cumulée'!EU6 -> 2587.08525 | AC7: ='Base de données cumulée'!FS6 -> 2590.452895 | AD7: ='Base de données cumulée'!GR6 -> 2594.029062 | AE7: ='Base de données cumulée'!HR6 -> 2597.828073 | AF7: ='Base de données cumulée'!IQ6 -> 2601.695826 | AG7: ='Base de données cumulée'!JO6 -> 2605.628472 | AH7: ='Base de données cumulée'!KN6 -> 2609.804624 | AI7: ='Base de données cumulée'!LN6 -> 2614.241007 | AJ7: ='Base de données cumulée'!ML6 -> 2618.658784 | AK7: ='Base de données cumulée'!NL6 -> 2623.452897 | AL7: ='Base de données cumulée'!OL6 -> 2630.767035 | AM7: ='Base de données cumulée'!PJ6 -> 2633.407593 | AN7: ='Base de données cumulée'!QI6 -> 2638.682027 | AO7: ='Base de données cumulée'!RH6 -> 2644.164992 | AP7: ='Base de données cumulée'!SF6 -> 2649.739949 | AQ7: ='Base de données cumulée'!TE6 -> 2655.660103 | AR7: =Intérêt!AA6 -> 26.02897984 | AS7: =Intérêt!AZ6 -> 6.444374943 | AT7: =Intérêt!BY6 -> 5.144224503 | AU7: =Intérêt!CX6 -> 3.567499644 | AV7: =Intérêt!DW6 -> 2.410399634 | AW7: =Intérêt!EV6 -> 1.723692536 | AX7: =Intérêt!FU6 -> 1.791840846 | AY7: =Intérêt!GT6 -> 1.862683484 | AZ7: =Intérêt!HS6 -> 1.936326973 | BA7: =Intérêt!IR6 -> 2.012882048 | BB7: =Intérêt!JO6 -> 0.08795043484 | BC7: =Intérêt!KP6 -> 2.175191961 | BD7: =Intérêt!LO6 -> 2.261190858 | BE7: =Intérêt!MN6 -> 2.350589827 | BF7: =Intérêt!NM6 -> 2.443523295 | BG7: =Intérêt!OL6 -> 2.540131003 | BH7: =Intérêt!PK6 -> 2.640558215 | BI7: =Intérêt!QJ6 -> 2.744955941 | BJ7: =Intérêt!RI6 -> 2.853481159 | BK7: =Intérêt!SH6 -> 2.966297057 | BL7: =Intérêt!TG6 -> 3.083573269 | BM7: =Frais_de_gestion!Z6 -> 14.88671304 | BN7: =Frais_de_gestion!AY6 -> 1.150835581 | BO7: =Frais_de_gestion!BX6 -> 1.155928336 | BP7: =Frais_de_gestion!CW6 -> 1.159751161 | BQ7: =Frais_de_gestion!DV6 -> 1.162373657 | BR7: =Frais_de_gestion!EU6 -> 1.164188362 | BS7: =Frais_de_gestion!FT6 -> 1.165737723 | BT7: =Frais_de_gestion!GS6 -> 1.167348339 | BU7: =Frais_de_gestion!HR6 -> 1.169022633 | BV7: =Frais_de_gestion!IQ6 -> 1.170763122 | BW7: =Frais_de_gestion!JP6 -> 1.172572423 | BX7: =Frais_de_gestion!KO6 -> 1.174453258 | BY7: =Frais_de_gestion!LN6 -> 1.176408453 | BZ7: =Frais_de_gestion!MM6 -> 1.17844095 | CA7: =Frais_de_gestion!NL6 -> 1.180553804 | CB7: =Frais_de_gestion!OK6 -> 1.182750192 | CC7: =Frais_de_gestion!PJ6 -> 1.185033417 | CD7: =Frais_de_gestion!QI6 -> 1.187406912 | CE7: =Frais_de_gestion!RH6 -> 1.189874246 | CF7: =Frais_de_gestion!SG6 -> 1.19243913 | CG7: =Frais_de_gestion!TF6 -> 1.195105419
A8: Henri AMELLAL | B8: ='Base de données cumulée'!Z7 -> 2526.02898 | C8: =SUM('Base de donnée'!AA7:AX7) -> 0 | D8: =SUM('Base de donnée'!AZ7:BW7) -> 0 | E8: =SUM('Base de donnée'!BY7:CV7) -> 0 | F8: =SUM('Base de donnée'!CX7:DV7) -> 0 | G8: =SUM('Base de donnée'!DW7:EU7) -> 0 | H8: =SUM('Base de donnée'!EV7:FS7) -> 0 | I8: =SUM('Base de donnée'!FV7:GR7) -> 0 | J8: =SUM('Base de donnée'!GT7:HR7) -> 0 | K8: =SUM('Base de donnée'!HS7:IQ7) -> 0 | L8: =SUM('Base de donnée'!IR7:JO7) -> 0 | M8: =SUM('Base de donnée'!JQ7:KN7) -> 0 | N8: =SUM('Base de donnée'!KP7:LN7) -> 0 | O8: =SUM('Base de donnée'!LO7:ML7) -> 0 | P8: =SUM('Base de donnée'!MN7:NL7) -> 0 | Q8: =SUM('Base de donnée'!NM7:OL7) -> 0 | R8: =SUM('Base de donnée'!OL7:PJ7) -> 0 | S8: =SUM('Base de donnée'!PK7:QI7) -> 0 | T8: =SUM('Base de donnée'!QJ7:RH7) -> 0 | U8: =SUM('Base de donnée'!RI7:SE7) -> 0 | V8: =SUM('Base de donnée'!SH7:TE7) -> 0 | W8: ='Base de données cumulée'!Y7 -> 2524.939048 | X8: ='Base de données cumulée'!AX7 -> 2557.141035 | Y8: ='Base de données cumulée'!BW7 -> 2568.513079 | Z8: ='Base de données cumulée'!CV7 -> 2577.074671 | AA8: ='Base de données cumulée'!DV7 -> 2583.052571 | AB8: ='Base de données cumulée'!EU7 -> 2587.08525 | AC8: ='Base de données cumulée'!FS7 -> 2590.452895 | AD8: ='Base de données cumulée'!GR7 -> 2594.029062 | AE8: ='Base de données cumulée'!HR7 -> 2597.828073 | AF8: ='Base de données cumulée'!IQ7 -> 2601.695826 | AG8: ='Base de données cumulée'!JO7 -> 2605.628472 | AH8: ='Base de données cumulée'!KN7 -> 2609.804624 | AI8: ='Base de données cumulée'!LN7 -> 2614.241007 | AJ8: ='Base de données cumulée'!ML7 -> 2618.658784 | AK8: ='Base de données cumulée'!NL7 -> 2623.452897 | AL8: ='Base de données cumulée'!OL7 -> 2630.767035 | AM8: ='Base de données cumulée'!PJ7 -> 2633.407593 | AN8: ='Base de données cumulée'!QI7 -> 2638.682027 | AO8: ='Base de données cumulée'!RH7 -> 2644.164992 | AP8: ='Base de données cumulée'!SF7 -> 2649.739949 | AQ8: ='Base de données cumulée'!TE7 -> 2655.660103 | AR8: =Intérêt!AA7 -> 26.02897984 | AS8: =Intérêt!AZ7 -> 6.444374943 | AT8: =Intérêt!BY7 -> 5.144224503 | AU8: =Intérêt!CX7 -> 3.567499644 | AV8: =Intérêt!DW7 -> 2.410399634 | AW8: =Intérêt!EV7 -> 1.723692536 | AX8: =Intérêt!FU7 -> 1.791840846 | AY8: =Intérêt!GT7 -> 1.862683484 | AZ8: =Intérêt!HS7 -> 1.936326973 | BA8: =Intérêt!IR7 -> 2.012882048 | BB8: =Intérêt!JO7 -> 0.08795043484 | BC8: =Intérêt!KP7 -> 2.175191961 | BD8: =Intérêt!LO7 -> 2.261190858 | BE8: =Intérêt!MN7 -> 2.350589827 | BF8: =Intérêt!NM7 -> 2.443523295 | BG8: =Intérêt!OL7 -> 2.540131003 | BH8: =Intérêt!PK7 -> 2.640558215 | BI8: =Intérêt!QJ7 -> 2.744955941 | BJ8: =Intérêt!RI7 -> 2.853481159 | BK8: =Intérêt!SH7 -> 2.966297057 | BL8: =Intérêt!TG7 -> 3.083573269 | BM8: =Frais_de_gestion!Z7 -> 14.88671304 | BN8: =Frais_de_gestion!AY7 -> 1.150835581 | BO8: =Frais_de_gestion!BX7 -> 1.155928336 | BP8: =Frais_de_gestion!CW7 -> 1.159751161 | BQ8: =Frais_de_gestion!DV7 -> 1.162373657 | BR8: =Frais_de_gestion!EU7 -> 1.164188362 | BS8: =Frais_de_gestion!FT7 -> 1.165737723 | BT8: =Frais_de_gestion!GS7 -> 1.167348339 | BU8: =Frais_de_gestion!HR7 -> 1.169022633 | BV8: =Frais_de_gestion!IQ7 -> 1.170763122 | BW8: =Frais_de_gestion!JP7 -> 1.172572423 | BX8: =Frais_de_gestion!KO7 -> 1.174453258 | BY8: =Frais_de_gestion!LN7 -> 1.176408453 | BZ8: =Frais_de_gestion!MM7 -> 1.17844095 | CA8: =Frais_de_gestion!NL7 -> 1.180553804 | CB8: =Frais_de_gestion!OK7 -> 1.182750192 | CC8: =Frais_de_gestion!PJ7 -> 1.185033417 | CD8: =Frais_de_gestion!QI7 -> 1.187406912 | CE8: =Frais_de_gestion!RH7 -> 1.189874246 | CF8: =Frais_de_gestion!SG7 -> 1.19243913 | CG8: =Frais_de_gestion!TF7 -> 1.195105419
A9: Marc AMELLAL | B9: ='Base de données cumulée'!Z8 -> 2526.02898 | C9: =SUM('Base de donnée'!AA8:AX8) -> 0 | D9: =SUM('Base de donnée'!AZ8:BW8) -> 0 | E9: =SUM('Base de donnée'!BY8:CV8) -> 0 | F9: =SUM('Base de donnée'!CX8:DV8) -> 0 | G9: =SUM('Base de donnée'!DW8:EU8) -> 0 | H9: =SUM('Base de donnée'!EV8:FS8) -> 0 | I9: =SUM('Base de donnée'!FV8:GR8) -> 0 | J9: =SUM('Base de donnée'!GT8:HR8) -> 0 | K9: =SUM('Base de donnée'!HS8:IQ8) -> 0 | L9: =SUM('Base de donnée'!IR8:JO8) -> 0 | M9: =SUM('Base de donnée'!JQ8:KN8) -> 0 | N9: =SUM('Base de donnée'!KP8:LN8) -> 0 | O9: =SUM('Base de donnée'!LO8:ML8) -> 0 | P9: =SUM('Base de donnée'!MN8:NL8) -> 0 | Q9: =SUM('Base de donnée'!NM8:OL8) -> 0 | R9: =SUM('Base de donnée'!OL8:PJ8) -> 0 | S9: =SUM('Base de donnée'!PK8:QI8) -> 0 | T9: =SUM('Base de donnée'!QJ8:RH8) -> 0 | U9: =SUM('Base de donnée'!RI8:SE8) -> 0 | V9: =SUM('Base de donnée'!SH8:TE8) -> 0 | W9: ='Base de données cumulée'!Y8 -> 2524.939048 | X9: ='Base de données cumulée'!AX8 -> 2557.141035 | Y9: ='Base de données cumulée'!BW8 -> 2568.513079 | Z9: ='Base de données cumulée'!CV8 -> 2577.074671 | AA9: ='Base de données cumulée'!DV8 -> 2583.052571 | AB9: ='Base de données cumulée'!EU8 -> 2587.08525 | AC9: ='Base de données cumulée'!FS8 -> 2590.452895 | AD9: ='Base de données cumulée'!GR8 -> 2594.029062 | AE9: ='Base de données cumulée'!HR8 -> 2597.828073 | AF9: ='Base de données cumulée'!IQ8 -> 2601.695826 | AG9: ='Base de données cumulée'!JO8 -> 2605.628472 | AH9: ='Base de données cumulée'!KN8 -> 2609.804624 | AI9: ='Base de données cumulée'!LN8 -> 2614.241007 | AJ9: ='Base de données cumulée'!ML8 -> 2618.658784 | AK9: ='Base de données cumulée'!NL8 -> 2623.452897 | AL9: ='Base de données cumulée'!OL8 -> 2630.767035 | AM9: ='Base de données cumulée'!PJ8 -> 2633.407593 | AN9: ='Base de données cumulée'!QI8 -> 2638.682027 | AO9: ='Base de données cumulée'!RH8 -> 2644.164992 | AP9: ='Base de données cumulée'!SF8 -> 2649.739949 | AQ9: ='Base de données cumulée'!TE8 -> 2655.660103 | AR9: =Intérêt!AA8 -> 26.02897984 | AS9: =Intérêt!AZ8 -> 6.444374943 | AT9: =Intérêt!BY8 -> 5.144224503 | AU9: =Intérêt!CX8 -> 3.567499644 | AV9: =Intérêt!DW8 -> 2.410399634 | AW9: =Intérêt!EV8 -> 1.723692536 | AX9: =Intérêt!FU8 -> 1.791840846 | AY9: =Intérêt!GT8 -> 1.862683484 | AZ9: =Intérêt!HS8 -> 1.936326973 | BA9: =Intérêt!IR8 -> 2.012882048 | BB9: =Intérêt!JO8 -> 0.08795043484 | BC9: =Intérêt!KP8 -> 2.175191961 | BD9: =Intérêt!LO8 -> 2.261190858 | BE9: =Intérêt!MN8 -> 2.350589827 | BF9: =Intérêt!NM8 -> 2.443523295 | BG9: =Intérêt!OL8 -> 2.540131003 | BH9: =Intérêt!PK8 -> 2.640558215 | BI9: =Intérêt!QJ8 -> 2.744955941 | BJ9: =Intérêt!RI8 -> 2.853481159 | BK9: =Intérêt!SH8 -> 2.966297057 | BL9: =Intérêt!TG8 -> 3.083573269 | BM9: =Frais_de_gestion!Z8 -> 14.88671304 | BN9: =Frais_de_gestion!AY8 -> 1.150835581 | BO9: =Frais_de_gestion!BX8 -> 1.155928336 | BP9: =Frais_de_gestion!CW8 -> 1.159751161 | BQ9: =Frais_de_gestion!DV8 -> 1.162373657 | BR9: =Frais_de_gestion!EU8 -> 1.164188362 | BS9: =Frais_de_gestion!FT8 -> 1.165737723 | BT9: =Frais_de_gestion!GS8 -> 1.167348339 | BU9: =Frais_de_gestion!HR8 -> 1.169022633 | BV9: =Frais_de_gestion!IQ8 -> 1.170763122 | BW9: =Frais_de_gestion!JP8 -> 1.172572423 | BX9: =Frais_de_gestion!KO8 -> 1.174453258 | BY9: =Frais_de_gestion!LN8 -> 1.176408453 | BZ9: =Frais_de_gestion!MM8 -> 1.17844095 | CA9: =Frais_de_gestion!NL8 -> 1.180553804 | CB9: =Frais_de_gestion!OK8 -> 1.182750192 | CC9: =Frais_de_gestion!PJ8 -> 1.185033417 | CD9: =Frais_de_gestion!QI8 -> 1.187406912 | CE9: =Frais_de_gestion!RH8 -> 1.189874246 | CF9: =Frais_de_gestion!SG8 -> 1.19243913 | CG9: =Frais_de_gestion!TF8 -> 1.195105419
A10: Viviane AMELLAL | B10: ='Base de données cumulée'!Z9 -> 2526.02898 | C10: =SUM('Base de donnée'!AA9:AX9) -> 0 | D10: =SUM('Base de donnée'!AZ9:BW9) -> 0 | E10: =SUM('Base de donnée'!BY9:CV9) -> 0 | F10: =SUM('Base de donnée'!CX9:DV9) -> 0 | G10: =SUM('Base de donnée'!DW9:EU9) -> 0 | H10: =SUM('Base de donnée'!EV9:FS9) -> 0 | I10: =SUM('Base de donnée'!FV9:GR9) -> 0 | J10: =SUM('Base de donnée'!GT9:HR9) -> 0 | K10: =SUM('Base de donnée'!HS9:IQ9) -> 0 | L10: =SUM('Base de donnée'!IR9:JO9) -> 0 | M10: =SUM('Base de donnée'!JQ9:KN9) -> 0 | N10: =SUM('Base de donnée'!KP9:LN9) -> 0 | O10: =SUM('Base de donnée'!LO9:ML9) -> 0 | P10: =SUM('Base de donnée'!MN9:NL9) -> 0 | Q10: =SUM('Base de donnée'!NM9:OL9) -> 0 | R10: =SUM('Base de donnée'!OL9:PJ9) -> 0 | S10: =SUM('Base de donnée'!PK9:QI9) -> 0 | T10: =SUM('Base de donnée'!QJ9:RH9) -> 0 | U10: =SUM('Base de donnée'!RI9:SE9) -> 0 | V10: =SUM('Base de donnée'!SH9:TE9) -> 0 | W10: ='Base de données cumulée'!Y9 -> 2524.939048 | X10: ='Base de données cumulée'!AX9 -> 2557.141035 | Y10: ='Base de données cumulée'!BW9 -> 2568.513079 | Z10: ='Base de données cumulée'!CV9 -> 2577.074671 | AA10: ='Base de données cumulée'!DV9 -> 2583.052571 | AB10: ='Base de données cumulée'!EU9 -> 2587.08525 | AC10: ='Base de données cumulée'!FS9 -> 2590.452895 | AD10: ='Base de données cumulée'!GR9 -> 2594.029062 | AE10: ='Base de données cumulée'!HR9 -> 2597.828073 | AF10: ='Base de données cumulée'!IQ9 -> 2601.695826 | AG10: ='Base de données cumulée'!JO9 -> 2605.628472 | AH10: ='Base de données cumulée'!KN9 -> 2609.804624 | AI10: ='Base de données cumulée'!LN9 -> 2614.241007 | AJ10: ='Base de données cumulée'!ML9 -> 2618.658784 | AK10: ='Base de données cumulée'!NL9 -> 2623.452897 | AL10: ='Base de données cumulée'!OL9 -> 2630.767035 | AM10: ='Base de données cumulée'!PJ9 -> 2633.407593 | AN10: ='Base de données cumulée'!QI9 -> 2638.682027 | AO10: ='Base de données cumulée'!RH9 -> 2644.164992 | AP10: ='Base de données cumulée'!SF9 -> 2649.739949 | AQ10: ='Base de données cumulée'!TE9 -> 2655.660103 | AR10: =Intérêt!AA9 -> 26.02897984 | AS10: =Intérêt!AZ9 -> 6.444374943 | AT10: =Intérêt!BY9 -> 5.144224503 | AU10: =Intérêt!CX9 -> 3.567499644 | AV10: =Intérêt!DW9 -> 2.410399634 | AW10: =Intérêt!EV9 -> 1.723692536 | AX10: =Intérêt!FU9 -> 1.791840846 | AY10: =Intérêt!GT9 -> 1.862683484 | AZ10: =Intérêt!HS9 -> 1.936326973 | BA10: =Intérêt!IR9 -> 2.012882048 | BB10: =Intérêt!JO9 -> 0.08795043484 | BC10: =Intérêt!KP9 -> 2.175191961 | BD10: =Intérêt!LO9 -> 2.261190858 | BE10: =Intérêt!MN9 -> 2.350589827 | BF10: =Intérêt!NM9 -> 2.443523295 | BG10: =Intérêt!OL9 -> 2.540131003 | BH10: =Intérêt!PK9 -> 2.640558215 | BI10: =Intérêt!QJ9 -> 2.744955941 | BJ10: =Intérêt!RI9 -> 2.853481159 | BK10: =Intérêt!SH9 -> 2.966297057 | BL10: =Intérêt!TG9 -> 3.083573269 | BM10: =Frais_de_gestion!Z9 -> 14.88671304 | BN10: =Frais_de_gestion!AY9 -> 1.150835581 | BO10: =Frais_de_gestion!BX9 -> 1.155928336 | BP10: =Frais_de_gestion!CW9 -> 1.159751161 | BQ10: =Frais_de_gestion!DV9 -> 1.162373657 | BR10: =Frais_de_gestion!EU9 -> 1.164188362 | BS10: =Frais_de_gestion!FT9 -> 1.165737723 | BT10: =Frais_de_gestion!GS9 -> 1.167348339 | BU10: =Frais_de_gestion!HR9 -> 1.169022633 | BV10: =Frais_de_gestion!IQ9 -> 1.170763122 | BW10: =Frais_de_gestion!JP9 -> 1.172572423 | BX10: =Frais_de_gestion!KO9 -> 1.174453258 | BY10: =Frais_de_gestion!LN9 -> 1.176408453 | BZ10: =Frais_de_gestion!MM9 -> 1.17844095 | CA10: =Frais_de_gestion!NL9 -> 1.180553804 | CB10: =Frais_de_gestion!OK9 -> 1.182750192 | CC10: =Frais_de_gestion!PJ9 -> 1.185033417 | CD10: =Frais_de_gestion!QI9 -> 1.187406912 | CE10: =Frais_de_gestion!RH9 -> 1.189874246 | CF10: =Frais_de_gestion!SG9 -> 1.19243913 | CG10: =Frais_de_gestion!TF9 -> 1.195105419
A11: Jean-Pierre ANGONIN | B11: ='Base de données cumulée'!Z10 -> 2526.02898 | C11: =SUM('Base de donnée'!AA10:AX10) -> 0 | D11: =SUM('Base de donnée'!AZ10:BW10) -> 0 | E11: =SUM('Base de donnée'!BY10:CV10) -> 0 | F11: =SUM('Base de donnée'!CX10:DV10) -> 0 | G11: =SUM('Base de donnée'!DW10:EU10) -> 0 | H11: =SUM('Base de donnée'!EV10:FS10) -> 0 | I11: =SUM('Base de donnée'!FV10:GR10) -> 0 | J11: =SUM('Base de donnée'!GT10:HR10) -> 0 | K11: =SUM('Base de donnée'!HS10:IQ10) -> 0 | L11: =SUM('Base de donnée'!IR10:JO10) -> 0 | M11: =SUM('Base de donnée'!JQ10:KN10) -> 0 | N11: =SUM('Base de donnée'!KP10:LN10) -> 0 | O11: =SUM('Base de donnée'!LO10:ML10) -> 0 | P11: =SUM('Base de donnée'!MN10:NL10) -> 0 | Q11: =SUM('Base de donnée'!NM10:OL10) -> 0 | R11: =SUM('Base de donnée'!OL10:PJ10) -> 0 | S11: =SUM('Base de donnée'!PK10:QI10) -> 0 | T11: =SUM('Base de donnée'!QJ10:RH10) -> 0 | U11: =SUM('Base de donnée'!RI10:SE10) -> 0 | V11: =SUM('Base de donnée'!SH10:TE10) -> 0 | W11: ='Base de données cumulée'!Y10 -> 2524.939048 | X11: ='Base de données cumulée'!AX10 -> 2557.141035 | Y11: ='Base de données cumulée'!BW10 -> 2568.513079 | Z11: ='Base de données cumulée'!CV10 -> 2577.074671 | AA11: ='Base de données cumulée'!DV10 -> 2583.052571 | AB11: ='Base de données cumulée'!EU10 -> 2587.08525 | AC11: ='Base de données cumulée'!FS10 -> 2590.452895 | AD11: ='Base de données cumulée'!GR10 -> 2594.029062 | AE11: ='Base de données cumulée'!HR10 -> 2597.828073 | AF11: ='Base de données cumulée'!IQ10 -> 2601.695826 | AG11: ='Base de données cumulée'!JO10 -> 2605.628472 | AH11: ='Base de données cumulée'!KN10 -> 2609.804624 | AI11: ='Base de données cumulée'!LN10 -> 2614.241007 | AJ11: ='Base de données cumulée'!ML10 -> 2618.658784 | AK11: ='Base de données cumulée'!NL10 -> 2623.452897 | AL11: ='Base de données cumulée'!OL10 -> 2630.767035 | AM11: ='Base de données cumulée'!PJ10 -> 2633.407593 | AN11: ='Base de données cumulée'!QI10 -> 2638.682027 | AO11: ='Base de données cumulée'!RH10 -> 2644.164992 | AP11: ='Base de données cumulée'!SF10 -> 2649.739949 | AQ11: ='Base de données cumulée'!TE10 -> 2655.660103 | AR11: =Intérêt!AA10 -> 26.02897984 | AS11: =Intérêt!AZ10 -> 6.444374943 | AT11: =Intérêt!BY10 -> 5.144224503 | AU11: =Intérêt!CX10 -> 3.567499644 | AV11: =Intérêt!DW10 -> 2.410399634 | AW11: =Intérêt!EV10 -> 1.723692536 | AX11: =Intérêt!FU10 -> 1.791840846 | AY11: =Intérêt!GT10 -> 1.862683484 | AZ11: =Intérêt!HS10 -> 1.936326973 | BA11: =Intérêt!IR10 -> 2.012882048 | BB11: =Intérêt!JO10 -> 0.08795043484 | BC11: =Intérêt!KP10 -> 2.175191961 | BD11: =Intérêt!LO10 -> 2.261190858 | BE11: =Intérêt!MN10 -> 2.350589827 | BF11: =Intérêt!NM10 -> 2.443523295 | BG11: =Intérêt!OL10 -> 2.540131003 | BH11: =Intérêt!PK10 -> 2.640558215 | BI11: =Intérêt!QJ10 -> 2.744955941 | BJ11: =Intérêt!RI10 -> 2.853481159 | BK11: =Intérêt!SH10 -> 2.966297057 | BL11: =Intérêt!TG10 -> 3.083573269 | BM11: =Frais_de_gestion!Z10 -> 14.88671304 | BN11: =Frais_de_gestion!AY10 -> 1.150835581 | BO11: =Frais_de_gestion!BX10 -> 1.155928336 | BP11: =Frais_de_gestion!CW10 -> 1.159751161 | BQ11: =Frais_de_gestion!DV10 -> 1.162373657 | BR11: =Frais_de_gestion!EU10 -> 1.164188362 | BS11: =Frais_de_gestion!FT10 -> 1.165737723 | BT11: =Frais_de_gestion!GS10 -> 1.167348339 | BU11: =Frais_de_gestion!HR10 -> 1.169022633 | BV11: =Frais_de_gestion!IQ10 -> 1.170763122 | BW11: =Frais_de_gestion!JP10 -> 1.172572423 | BX11: =Frais_de_gestion!KO10 -> 1.174453258 | BY11: =Frais_de_gestion!LN10 -> 1.176408453 | BZ11: =Frais_de_gestion!MM10 -> 1.17844095 | CA11: =Frais_de_gestion!NL10 -> 1.180553804 | CB11: =Frais_de_gestion!OK10 -> 1.182750192 | CC11: =Frais_de_gestion!PJ10 -> 1.185033417 | CD11: =Frais_de_gestion!QI10 -> 1.187406912 | CE11: =Frais_de_gestion!RH10 -> 1.189874246 | CF11: =Frais_de_gestion!SG10 -> 1.19243913 | CG11: =Frais_de_gestion!TF10 -> 1.195105419
A12: Marie-France AZOURA | B12: ='Base de données cumulée'!Z11 -> 7606.679881 | C12: =SUM('Base de donnée'!AA11:AX11) -> 0 | D12: =SUM('Base de donnée'!AZ11:BW11) -> 0 | E12: =SUM('Base de donnée'!BY11:CV11) -> 0 | F12: =SUM('Base de donnée'!CX11:DV11) -> 0 | G12: =SUM('Base de donnée'!DW11:EU11) -> 0 | H12: =SUM('Base de donnée'!EV11:FS11) -> 0 | I12: =SUM('Base de donnée'!FV11:GR11) -> 0 | J12: =SUM('Base de donnée'!GT11:HR11) -> 0 | K12: =SUM('Base de donnée'!HS11:IQ11) -> 0 | L12: =SUM('Base de donnée'!IR11:JO11) -> 0 | M12: =SUM('Base de donnée'!JQ11:KN11) -> 0 | N12: =SUM('Base de donnée'!KP11:LN11) -> 0 | O12: =SUM('Base de donnée'!LO11:ML11) -> 0 | P12: =SUM('Base de donnée'!MN11:NL11) -> 0 | Q12: =SUM('Base de donnée'!NM11:OL11) -> 0 | R12: =SUM('Base de donnée'!OL11:PJ11) -> 0 | S12: =SUM('Base de donnée'!PK11:QI11) -> 0 | T12: =SUM('Base de donnée'!QJ11:RH11) -> 0 | U12: =SUM('Base de donnée'!RI11:SE11) -> 0 | V12: =SUM('Base de donnée'!SH11:TE11) -> 0 | W12: ='Base de données cumulée'!Y11 -> 7601.293546 | X12: ='Base de données cumulée'!AX11 -> 7830.609789 | Y12: ='Base de données cumulée'!BW11 -> 8083.133217 | Z12: ='Base de données cumulée'!CV11 -> 8338.583843 | AA12: ='Base de données cumulée'!DV11 -> 8602.984905 | AB12: ='Base de données cumulée'!EU11 -> 8868.157715 | AC12: ='Base de données cumulée'!FS11 -> 9137.90443 | AD12: ='Base de données cumulée'!GR11 -> 9427.094644 | AE12: ='Base de données cumulée'!HR11 -> 9737.308924 | AF12: ='Base de données cumulée'!IQ11 -> 10056.19163 | AG12: ='Base de données cumulée'!JO11 -> 10383.49207 | AH12: ='Base de données cumulée'!KN11 -> 10734.38452 | AI12: ='Base de données cumulée'!LN11 -> 11110.78678 | AJ12: ='Base de données cumulée'!ML11 -> 11489.17658 | AK12: ='Base de données cumulée'!NL11 -> 11903.79389 | AL12: ='Base de données cumulée'!OL11 -> 12543.43736 | AM12: ='Base de données cumulée'!PJ11 -> 12778.41738 | AN12: ='Base de données cumulée'!QI11 -> 13253.38435 | AO12: ='Base de données cumulée'!RH11 -> 13758.56691 | AP12: ='Base de données cumulée'!SF11 -> 14283.92505 | AQ12: ='Base de données cumulée'!TE11 -> 14854.66665 | AR12: =Intérêt!AA11 -> 106.6798806 | AS12: =Intérêt!AZ11 -> 128.0409265 | AT12: =Intérêt!BY11 -> 129.9667592 | AU12: =Intérêt!CX11 -> 131.0103442 | AV12: =Intérêt!DW11 -> 133.3907185 | AW12: =Intérêt!EV11 -> 137.4076404 | AX12: =Intérêt!FU11 -> 144.2143543 | AY12: =Intérêt!GT11 -> 151.3582499 | AZ12: =Intérêt!HS11 -> 158.8560302 | BA12: =Intérêt!IR11 -> 166.7252254 | BB12: =Intérêt!JO11 -> 7.370959493 | BC12: =Intérêt!KP11 -> 183.6523664 | BD12: =Intérêt!LO11 -> 192.749889 | BE12: =Intérêt!MN11 -> 202.2980723 | BF12: =Intérêt!NM11 -> 212.3192406 | BG12: =Intérêt!OL11 -> 222.836824 | BH12: =Intérêt!PK11 -> 234.9800194 | BI12: =Intérêt!QJ11 -> 249.9285479 | BJ12: =Intérêt!RI11 -> 265.8280445 | BK12: =Intérêt!SH11 -> 282.7390062 | BL12: =Intérêt!TG11 -> 300.7257785 | BM12: =Frais_de_gestion!Z11 -> 44.67300595 | BN12: =Frais_de_gestion!AY11 -> 3.526206459 | BO12: =Frais_de_gestion!BX11 -> 3.639877864 | BP12: =Frais_de_gestion!CW11 -> 3.754849644 | BQ12: =Frais_de_gestion!DV11 -> 3.871343207 | BR12: =Frais_de_gestion!EU11 -> 3.990670972 | BS12: =Frais_de_gestion!FT11 -> 4.114793511 | BT12: =Frais_de_gestion!GS11 -> 4.245064665 | BU12: =Frais_de_gestion!HR11 -> 4.381789016 | BV12: =Frais_de_gestion!IQ11 -> 4.525286232 | BW12: =Frais_de_gestion!JP11 -> 4.67589182 | BX12: =Frais_de_gestion!KO11 -> 4.833957903 | BY12: =Frais_de_gestion!LN11 -> 4.99985405 | BZ12: =Frais_de_gestion!MM11 -> 5.173968136 | CA12: =Frais_de_gestion!NL11 -> 5.356707251 | CB12: =Frais_de_gestion!OK11 -> 5.548498648 | CC12: =Frais_de_gestion!PJ11 -> 5.750287821 | CD12: =Frais_de_gestion!QI11 -> 5.96402296 | CE12: =Frais_de_gestion!RH11 -> 6.191355109 | CF12: =Frais_de_gestion!SG11 -> 6.433149258 | CG12: =Frais_de_gestion!TF11 -> 6.690325425
A13: Maryse AZRIA | B13: ='Base de données cumulée'!Z12 -> 2526.02898 | C13: =SUM('Base de donnée'!AA12:AX12) -> 0 | D13: =SUM('Base de donnée'!AZ12:BW12) -> 0 | E13: =SUM('Base de donnée'!BY12:CV12) -> 0 | F13: =SUM('Base de donnée'!CX12:DV12) -> 0 | G13: =SUM('Base de donnée'!DW12:EU12) -> 0 | H13: =SUM('Base de donnée'!EV12:FS12) -> 0 | I13: =SUM('Base de donnée'!FV12:GR12) -> 0 | J13: =SUM('Base de donnée'!GT12:HR12) -> 0 | K13: =SUM('Base de donnée'!HS12:IQ12) -> 0 | L13: =SUM('Base de donnée'!IR12:JO12) -> 0 | M13: =SUM('Base de donnée'!JQ12:KN12) -> 0 | N13: =SUM('Base de donnée'!KP12:LN12) -> 0 | O13: =SUM('Base de donnée'!LO12:ML12) -> 0 | P13: =SUM('Base de donnée'!MN12:NL12) -> 0 | Q13: =SUM('Base de donnée'!NM12:OL12) -> 0 | R13: =SUM('Base de donnée'!OL12:PJ12) -> 0 | S13: =SUM('Base de donnée'!PK12:QI12) -> 0 | T13: =SUM('Base de donnée'!QJ12:RH12) -> 0 | U13: =SUM('Base de donnée'!RI12:SE12) -> 0 | V13: =SUM('Base de donnée'!SH12:TE12) -> 0 | W13: ='Base de données cumulée'!Y12 -> 2524.939048 | X13: ='Base de données cumulée'!AX12 -> 2557.141035 | Y13: ='Base de données cumulée'!BW12 -> 2568.513079 | Z13: ='Base de données cumulée'!CV12 -> 2577.074671 | AA13: ='Base de données cumulée'!DV12 -> 2583.052571 | AB13: ='Base de données cumulée'!EU12 -> 2587.08525 | AC13: ='Base de données cumulée'!FS12 -> 2590.452895 | AD13: ='Base de données cumulée'!GR12 -> 2594.029062 | AE13: ='Base de données cumulée'!HR12 -> 2597.828073 | AF13: ='Base de données cumulée'!IQ12 -> 2601.695826 | AG13: ='Base de données cumulée'!JO12 -> 2605.628472 | AH13: ='Base de données cumulée'!KN12 -> 2609.804624 | AI13: ='Base de données cumulée'!LN12 -> 2614.241007 | AJ13: ='Base de données cumulée'!ML12 -> 2618.658784 | AK13: ='Base de données cumulée'!NL12 -> 2623.452897 | AL13: ='Base de données cumulée'!OL12 -> 2630.767035 | AM13: ='Base de données cumulée'!PJ12 -> 2633.407593 | AN13: ='Base de données cumulée'!QI12 -> 2638.682027 | AO13: ='Base de données cumulée'!RH12 -> 2644.164992 | AP13: ='Base de données cumulée'!SF12 -> 2649.739949 | AQ13: ='Base de données cumulée'!TE12 -> 2655.660103 | AR13: =Intérêt!AA12 -> 26.02897984 | AS13: =Intérêt!AZ12 -> 6.444374943 | AT13: =Intérêt!BY12 -> 5.144224503 | AU13: =Intérêt!CX12 -> 3.567499644 | AV13: =Intérêt!DW12 -> 2.410399634 | AW13: =Intérêt!EV12 -> 1.723692536 | AX13: =Intérêt!FU12 -> 1.791840846 | AY13: =Intérêt!GT12 -> 1.862683484 | AZ13: =Intérêt!HS12 -> 1.936326973 | BA13: =Intérêt!IR12 -> 2.012882048 | BB13: =Intérêt!JO12 -> 0.08795043484 | BC13: =Intérêt!KP12 -> 2.175191961 | BD13: =Intérêt!LO12 -> 2.261190858 | BE13: =Intérêt!MN12 -> 2.350589827 | BF13: =Intérêt!NM12 -> 2.443523295 | BG13: =Intérêt!OL12 -> 2.540131003 | BH13: =Intérêt!PK12 -> 2.640558215 | BI13: =Intérêt!QJ12 -> 2.744955941 | BJ13: =Intérêt!RI12 -> 2.853481159 | BK13: =Intérêt!SH12 -> 2.966297057 | BL13: =Intérêt!TG12 -> 3.083573269 | BM13: =Frais_de_gestion!Z12 -> 14.88671304 | BN13: =Frais_de_gestion!AY12 -> 1.150835581 | BO13: =Frais_de_gestion!BX12 -> 1.155928336 | BP13: =Frais_de_gestion!CW12 -> 1.159751161 | BQ13: =Frais_de_gestion!DV12 -> 1.162373657 | BR13: =Frais_de_gestion!EU12 -> 1.164188362 | BS13: =Frais_de_gestion!FT12 -> 1.165737723 | BT13: =Frais_de_gestion!GS12 -> 1.167348339 | BU13: =Frais_de_gestion!HR12 -> 1.169022633 | BV13: =Frais_de_gestion!IQ12 -> 1.170763122 | BW13: =Frais_de_gestion!JP12 -> 1.172572423 | BX13: =Frais_de_gestion!KO12 -> 1.174453258 | BY13: =Frais_de_gestion!LN12 -> 1.176408453 | BZ13: =Frais_de_gestion!MM12 -> 1.17844095 | CA13: =Frais_de_gestion!NL12 -> 1.180553804 | CB13: =Frais_de_gestion!OK12 -> 1.182750192 | CC13: =Frais_de_gestion!PJ12 -> 1.185033417 | CD13: =Frais_de_gestion!QI12 -> 1.187406912 | CE13: =Frais_de_gestion!RH12 -> 1.189874246 | CF13: =Frais_de_gestion!SG12 -> 1.19243913 | CG13: =Frais_de_gestion!TF12 -> 1.195105419
A14: Sylvie BACH | B14: ='Base de données cumulée'!Z13 -> 3085.84018 | C14: =SUM('Base de donnée'!AA13:AX13) -> 0 | D14: =SUM('Base de donnée'!AZ13:BW13) -> 0 | E14: =SUM('Base de donnée'!BY13:CV13) -> 0 | F14: =SUM('Base de donnée'!CX13:DV13) -> 0 | G14: =SUM('Base de donnée'!DW13:EU13) -> 0 | H14: =SUM('Base de donnée'!EV13:FS13) -> 0 | I14: =SUM('Base de donnée'!FV13:GR13) -> 0 | J14: =SUM('Base de donnée'!GT13:HR13) -> 0 | K14: =SUM('Base de donnée'!HS13:IQ13) -> 0 | L14: =SUM('Base de donnée'!IR13:JO13) -> 0 | M14: =SUM('Base de donnée'!JQ13:KN13) -> 0 | N14: =SUM('Base de donnée'!KP13:LN13) -> 0 | O14: =SUM('Base de donnée'!LO13:ML13) -> 0 | P14: =SUM('Base de donnée'!MN13:NL13) -> 0 | Q14: =SUM('Base de donnée'!NM13:OL13) -> 0 | R14: =SUM('Base de donnée'!OL13:PJ13) -> 0 | S14: =SUM('Base de donnée'!PK13:QI13) -> 0 | T14: =SUM('Base de donnée'!QJ13:RH13) -> 0 | U14: =SUM('Base de donnée'!RI13:SE13) -> 0 | V14: =SUM('Base de donnée'!SH13:TE13) -> 0 | W14: ='Base de données cumulée'!Y13 -> 3084.5087 | X14: ='Base de données cumulée'!AX13 -> 3133.596863 | Y14: ='Base de données cumulée'!BW13 -> 3169.826423 | Z14: ='Base de données cumulée'!CV13 -> 3203.536702 | AA14: ='Base de données cumulée'!DV13 -> 3235.522189 | AB14: ='Base de données cumulée'!EU13 -> 3265.5383 | AC14: ='Base de données cumulée'!FS13 -> 3295.142182 | AD14: ='Base de données cumulée'!GR13 -> 3326.579109 | AE14: ='Base de données cumulée'!HR13 -> 3359.974983 | AF14: ='Base de données cumulée'!IQ13 -> 3393.975154 | AG14: ='Base de données cumulée'!JO13 -> 3428.545776 | AH14: ='Base de données cumulée'!KN13 -> 3465.256979 | AI14: ='Base de données cumulée'!LN13 -> 3504.255787 | AJ14: ='Base de données cumulée'!ML13 -> 3543.091036 | AK14: ='Base de données cumulée'!NL13 -> 3585.234536 | AL14: ='Base de données cumulée'!OL13 -> 3649.530758 | AM14: ='Base de données cumulée'!PJ13 -> 3672.743052 | AN14: ='Base de données cumulée'!QI13 -> 3719.108895 | AO14: ='Base de données cumulée'!RH13 -> 3767.307869 | AP14: ='Base de données cumulée'!SF13 -> 3816.315519 | AQ14: ='Base de données cumulée'!TE13 -> 3868.357677 | AR14: =Intérêt!AA13 -> 30.84017997 | AS14: =Intérêt!AZ13 -> 19.05016997 | AT14: =Intérêt!BY13 -> 17.9343715 | AU14: =Intérêt!CX13 -> 16.46897281 | AV14: =Intérêt!DW13 -> 15.51651392 | AW14: =Intérêt!EV13 -> 15.15242425 | AX14: =Intérêt!FU13 -> 15.75149403 | AY14: =Intérêt!GT13 -> 16.37424878 | AZ14: =Intérêt!HS13 -> 17.0216249 | BA14: =Intérêt!IR13 -> 17.69459583 | BB14: =Intérêt!JO13 -> 0.7731438605 | BC14: =Intérêt!KP13 -> 19.12140984 | BD14: =Intérêt!LO13 -> 19.87739836 | BE14: =Intérêt!MN13 -> 20.66327582 | BF14: =Intérêt!NM13 -> 21.48022392 | BG14: =Intérêt!OL13 -> 22.32947106 | BH14: =Intérêt!PK13 -> 23.21229424 | BI14: =Intérêt!QJ13 -> 24.13002092 | BJ14: =Intérêt!RI13 -> 25.08403106 | BK14: =Intérêt!SH13 -> 26.07575917 | BL14: =Intérêt!TG13 -> 27.10669647 | BM14: =Frais_de_gestion!Z13 -> 18.19112808 | BN14: =Frais_de_gestion!AY13 -> 1.410479573 | BO14: =Frais_de_gestion!BX13 -> 1.426761632 | BP14: =Frais_de_gestion!CW13 -> 1.441903395 | BQ14: =Frais_de_gestion!DV13 -> 1.455984985 | BR14: =Frais_de_gestion!EU13 -> 1.469492235 | BS14: =Frais_de_gestion!FT13 -> 1.48311216 | BT14: =Frais_de_gestion!GS13 -> 1.497270566 | BU14: =Frais_de_gestion!HR13 -> 1.511988742 | BV14: =Frais_de_gestion!IQ13 -> 1.527288819 | BW14: =Frais_de_gestion!JP13 -> 1.543193804 | BX14: =Frais_de_gestion!KO13 -> 1.559727612 | BY14: =Frais_de_gestion!LN13 -> 1.576915104 | BZ14: =Frais_de_gestion!MM13 -> 1.594782125 | CA14: =Frais_de_gestion!NL13 -> 1.613355541 | CB14: =Frais_de_gestion!OK13 -> 1.63266328 | CC14: =Frais_de_gestion!PJ13 -> 1.652734374 | CD14: =Frais_de_gestion!QI13 -> 1.673599003 | CE14: =Frais_de_gestion!RH13 -> 1.695288541 | CF14: =Frais_de_gestion!SG13 -> 1.717835602 | CG14: =Frais_de_gestion!TF13 -> 1.741274089
A15: Paule BAH | B15: ='Base de données cumulée'!Z14 -> 22599.76614 | C15: =SUM('Base de donnée'!AA14:AX14) -> 0 | D15: =SUM('Base de donnée'!AZ14:BW14) -> 0 | E15: =SUM('Base de donnée'!BY14:CV14) -> 0 | F15: =SUM('Base de donnée'!CX14:DV14) -> 0 | G15: =SUM('Base de donnée'!DW14:EU14) -> 0 | H15: =SUM('Base de donnée'!EV14:FS14) -> 0 | I15: =SUM('Base de donnée'!FV14:GR14) -> 0 | J15: =SUM('Base de donnée'!GT14:HR14) -> 0 | K15: =SUM('Base de donnée'!HS14:IQ14) -> 0 | L15: =SUM('Base de donnée'!IR14:JO14) -> 0 | M15: =SUM('Base de donnée'!JQ14:KN14) -> 0 | N15: =SUM('Base de donnée'!KP14:LN14) -> 0 | O15: =SUM('Base de donnée'!LO14:ML14) -> 0 | P15: =SUM('Base de donnée'!MN14:NL14) -> 0 | Q15: =SUM('Base de donnée'!NM14:OL14) -> 0 | R15: =SUM('Base de donnée'!OL14:PJ14) -> 0 | S15: =SUM('Base de donnée'!PK14:QI14) -> 0 | T15: =SUM('Base de donnée'!QJ14:RH14) -> 0 | U15: =SUM('Base de donnée'!RI14:SE14) -> 0 | V15: =SUM('Base de donnée'!SH14:TE14) -> 0 | W15: ='Base de données cumulée'!Y14 -> 22574.06036 | X15: ='Base de données cumulée'!AX14 -> 23261.00326 | Y15: ='Base de données cumulée'!BW14 -> 24486.81965 | Z15: ='Base de données cumulée'!CV14 -> 25762.99595 | AA15: ='Base de données cumulée'!DV14 -> 27121.8418 | AB15: ='Base de données cumulée'!EU14 -> 28517.08453 | AC15: ='Base de données cumulée'!FS14 -> 29960.42102 | AD15: ='Base de données cumulée'!GR14 -> 31528.44123 | AE15: ='Base de données cumulée'!HR14 -> 33233.39146 | AF15: ='Base de données cumulée'!IQ14 -> 35009.62551 | AG15: ='Base de données cumulée'!JO14 -> 36856.79742 | AH15: ='Base de données cumulée'!KN14 -> 38863.53868 | AI15: ='Base de données cumulée'!LN14 -> 41045.522 | AJ15: ='Base de données cumulée'!ML14 -> 43268.12608 | AK15: ='Base de données cumulée'!NL14 -> 45736.55877 | AL15: ='Base de données cumulée'!OL14 -> 49604.14561 | AM15: ='Base de données cumulée'!PJ14 -> 51043.4318 | AN15: ='Base de données cumulée'!QI14 -> 53952.67239 | AO15: ='Base de données cumulée'!RH14 -> 57046.98771 | AP15: ='Base de données cumulée'!SF14 -> 60264.88138 | AQ15: ='Base de données cumulée'!TE14 -> 63760.75525 | AR15: =Intérêt!AA14 -> 99.76614104 | AS15: =Intérêt!AZ14 -> 613.143729 | AT15: =Intérêt!BY14 -> 639.7589324 | AU15: =Intérêt!CX14 -> 664.5437567 | AV15: =Intérêt!DW14 -> 694.302087 | AW15: =Intérêt!EV14 -> 730.3195426 | AX15: =Intérêt!FU14 -> 776.7796737 | AY15: =Intérêt!GT14 -> 826.1954204 | AZ15: =Intérêt!HS14 -> 878.7548075 | BA15: =Intérêt!IR14 -> 934.6578215 | BB15: =Intérêt!JO14 -> 42.00335042 | BC15: =Intérêt!KP14 -> 1057.359097 | BD15: =Intérêt!LO14 -> 1124.624231 | BE15: =Intérêt!MN14 -> 1196.168516 | BF15: =Intérêt!NM14 -> 1272.264174 | BG15: =Intérêt!OL14 -> 1353.200746 | BH15: =Intérêt!PK14 -> 1439.286192 | BI15: =Intérêt!QJ14 -> 1530.848065 | BJ15: =Intérêt!RI14 -> 1628.234754 | BK15: =Intérêt!SH14 -> 1731.816811 | BL15: =Intérêt!TG14 -> 1841.988361 | BM15: =Frais_de_gestion!Z14 -> 133.9198948 | BN15: =Frais_de_gestion!AY14 -> 10.4791366 | BO15: =Frais_de_gestion!BX14 -> 11.03125767 | BP15: =Frais_de_gestion!CW14 -> 11.60600505 | BQ15: =Frais_de_gestion!DV14 -> 12.20482881 | BR15: =Frais_de_gestion!EU14 -> 12.83268804 | BS15: =Frais_de_gestion!FT14 -> 13.49697834 | BT15: =Frais_de_gestion!GS14 -> 14.20352825 | BU15: =Frais_de_gestion!HR14 -> 14.95502616 | BV15: =Frais_de_gestion!IQ14 -> 15.75433148 | BW15: =Frais_de_gestion!JP14 -> 16.60448555 | BX15: =Frais_de_gestion!KO14 -> 17.50872316 | BY15: =Frais_de_gestion!LN14 -> 18.4704849 | BZ15: =Frais_de_gestion!MM14 -> 19.49343024 | CA15: =Frais_de_gestion!NL14 -> 20.58145144 | CB15: =Frais_de_gestion!OK14 -> 21.73868839 | CC15: =Frais_de_gestion!PJ14 -> 22.96954431 | CD15: =Frais_de_gestion!QI14 -> 24.27870257 | CE15: =Frais_de_gestion!RH14 -> 25.67114447 | CF15: =Frais_de_gestion!SG14 -> 27.15216818 | CG15: =Frais_de_gestion!TF14 -> 28.72740895
... 18 more rows

Sheet Base de donnée
A1: Numero client | B1: 2018-01-01 | C1: 2018-01-15 | D1: 2018-02-01 | E1: 2018-02-15 | F1: 2018-03-01 | G1: 2018-03-15 | H1: 2018-04-01 | I1: 2018-04-15 | J1: 2018-05-01 | K1: 2018-05-15 | L1: 2018-06-01 | M1: 2018-06-15 | N1: 2018-07-01 | O1: 2018-07-15 | P1: 2018-08-01 | Q1: 2018-08-15 | R1: 2018-09-01 | S1: 2018-09-15 | T1: 2018-10-01 | U1: 2018-10-15 | V1: 2018-11-01 | W1: 2018-11-15 | X1: 2018-12-01 | Y1: 2018-12-15 | Z1: Total_versé_2018 | AA1: =B1+365 -> 2019-01-01 | AB1: 2019-01-15 | AC1: 2019-02-01 | AD1: 2019-02-15 | AE1: 2019-03-01 | AF1: 2019-03-15 | AG1: 2019-04-01 | AH1: 2019-04-15 | AI1: 2019-05-01 | AJ1: 2019-05-15 | AK1: 2019-06-01 | AL1: 2019-06-15 | AM1: 2019-07-01 | AN1: 2019-07-15 | AO1: 2019-08-01 | AP1: 2019-08-15 | AQ1: 2019-09-01 | AR1: 2019-09-15 | AS1: 2019-10-01 | AT1: 2019-10-15 | AU1: 2019-11-01 | AV1: 2019-11-15 | AW1: 2019-12-01 | AX1: 2019-12-15 | AY1: Total_versé_2019 | AZ1: =AA1+365 -> 2020-01-01 | BA1: =AB1+365 -> 2020-01-15 | BB1: =AC1+365 -> 2020-02-01 | BC1: =AD1+365 -> 2020-02-15 | BD1: =AE1+365 -> 2020-02-29 | BE1: =AF1+366 -> 2020-03-15 | BF1: 2020-04-01 | BG1: 2020-04-15 | BH1: 2020-05-01 | BI1: 2020-05-15 | BJ1: 2020-06-01 | BK1: 2020-06-15 | BL1: 2020-07-01 | BM1: 2020-07-15 | BN1: 2020-08-01 | BO1: 2020-08-15 | BP1: 2020-09-01 | BQ1: 2020-09-15 | BR1: 2020-10-01 | BS1: 2020-10-15 | BT1: 2020-11-01 | BU1: 2020-11-15 | BV1: 2020-12-01 | BW1: 2020-12-15 | BX1: Total_versé_2020 | BY1: =AZ1+366 -> 2021-01-01 | BZ1: =BA1+366 -> 2021-01-15 | CA1: =BB1+366 -> 2021-02-01 | CB1: =BC1+366 -> 2021-02-15 | CC1: =BD1+365 -> 2021-02-28 | CD1: 2021-03-15 | CE1: 2021-04-01 | CF1: 2021-04-15 | CG1: 2021-05-01 | CH1: 2021-05-15 | CI1: 2021-06-01 | CJ1: 2021-06-15 | CK1: 2021-07-01 | CL1: 2021-07-15 | CM1: 2021-08-01 | CN1: 2021-08-15 | CO1: 2021-09-01 | CP1: 2021-09-15 | CQ1: 2021-10-01 | CR1: 2021-10-15 | CS1: 2021-11-01 | CT1: 2021-11-15 | CU1: 2021-12-01 | CV1: 2021-12-15 | CW1: Total_versé_2021 | CX1: =BY1+365 -> 2022-01-01 | CY1: 2022-01-15 | CZ1: 2022-02-01 | DA1: 2022-02-15 | DB1: 2022-02-28 | DC1: 2022-03-15 | DD1: 2022-04-01 | DE1: 2022-04-15 | DF1: 2022-05-01 | DG1: 2022-05-15 | DH1: 2022-06-01 | DI1: 2022-06-15 | DJ1: 2022-07-01 | DK1: 2022-07-15 | DL1: 2022-08-01 | DM1: 2022-08-15 | DN1: 2022-09-01 | DO1: 2022-09-15 | DP1: 2022-10-01 | DQ1: 2022-10-15 | DR1: 2022-11-01 | DS1: 2022-11-15 | DT1: 2022-12-01 | DU1: 2022-12-15 | DV1: Total_versé_2022 | DW1: =CX1+365 -> 2023-01-01 | DX1: 2023-01-15 | DY1: 2023-02-01 | DZ1: 2023-02-15 | EA1: 2023-02-28 | EB1: 2023-03-15 | EC1: 2023-04-01 | ED1: 2023-04-15 | EE1: 2023-05-01 | EF1: 2023-05-15 | EG1: 2023-06-01 | EH1: 2023-06-15 | EI1: 2023-07-01 | EJ1: 2023-07-15 | EK1: 2023-08-01 | EL1: 2023-08-15 | EM1: 2023-09-01 | EN1: 2023-09-15 | EO1: 2023-10-01 | EP1: 2023-10-15 | EQ1: 2023-11-01 | ER1: 2023-11-15 | ES1: 2023-12-01 | ET1: 2023-12-15 | EU1: Total_versé_2023 | EV1: =DW1+365 -> 2024-01-01 | EW1: =DX1+365 -> 2024-01-15 | EX1: =DY1+365 -> 2024-02-01 | EY1: =DZ1+365 -> 2024-02-15 | EZ1: =EA1+366 -> 2024-02-29 | FA1: 2024-03-15 | FB1: 2024-04-01 | FC1: 2024-04-15 | FD1: 2024-05-01 | FE1: 2024-05-15 | FF1: 2024-06-01 | FG1: 2024-06-15 | FH1: 2024-07-01 | FI1: 2024-07-15 | FJ1: 2024-08-01 | FK1: 2024-08-15 | FL1: 2024-09-01 | FM1: 2024-09-15 | FN1: 2024-10-01 | FO1: 2024-10-15 | FP1: 2024-11-01 | FQ1: 2024-11-15 | FR1: 2024-12-01 | FS1: 2024-12-15 | FT1: Total_versé_2024 | FU1: =EV1+366 -> 2025-01-01 | FV1: =EW1+366 -> 2025-01-15 | FW1: =EX1+366 -> 2025-02-01 | FX1: =EY1+366 -> 2025-02-15 | FY1: =EZ1+365 -> 2025-02-28 | FZ1: 2025-03-15 | GA1: 2025-04-01 | GB1: 2025-04-15 | GC1: 2025-05-01 | GD1: 2025-05-15 | GE1: 2025-06-01 | GF1: 2025-06-15 | GG1: 2025-07-01 | GH1: 2025-07-15 | GI1: 2025-08-01 | GJ1: 2025-08-15 | GK1: 2025-09-01 | GL1: 2025-09-15 | GM1: 2025-10-01 | GN1: 2025-10-15 | GO1: 2025-11-01 | GP1: 2025-11-15 | GQ1: 2025-12-01 | GR1: 2025-12-15 | GS1: Total_versé_2025 | GT1: =FU1+365 -> 2026-01-01 | GU1: 2026-01-15 | GV1: 2026-02-01 | GW1: 2026-02-15 | GX1: 2026-02-28 | GY1: 2026-03-15 | GZ1: 2026-04-01 | HA1: 2026-04-15 | HB1: 2026-05-01 | HC1: 2026-05-15 | HD1: 2026-06-01 | HE1: 2026-06-15 | HF1: 2026-07-01 | HG1: 2026-07-15 | HH1: 2026-08-01 | HI1: 2026-08-15 | HJ1: 2026-09-01 | HK1: 2026-09-15 | HL1: 2026-10-01 | HM1: 2026-10-15 | HN1: 2026-11-01 | HO1: 2026-11-15 | HP1: 2026-12-01 | HQ1: 2026-12-15 | HR1: Total_versé_2026 | HS1: =GT1+365 -> 2027-01-01 | HT1: 2027-01-15 | HU1: 2027-02-01 | HV1: 2027-02-15 | HW1: 2027-02-28 | HX1: 2027-03-15 | HY1: 2027-04-01 | HZ1: 2027-04-15 | IA1: 2027-05-01 | IB1: 2027-05-15 | IC1: 2027-06-01 | ID1: 2027-06-15 | IE1: 2027-07-01 | IF1: 2027-07-15 | IG1: 2027-08-01 | IH1: 2027-08-15 | II1: 2027-09-01 | IJ1: 2027-09-15 | IK1: 2027-10-01 | IL1: 2027-10-15 | IM1: 2027-11-01 | IN1: 2027-11-15 | IO1: 2027-12-01 | IP1: 2027-12-15 | IQ1: Total_versé_2027 | IR1: =HS1+365 -> 2028-01-01 | IS1: =HT1+365 -> 2028-01-15 | IT1: =HU1+365 -> 2028-02-01 | IU1: =HV1+365 -> 2028-02-15 | IV1: =HW1+366 -> 2028-02-29 | IW1: 2028-03-15 | IX1: 2028-04-01 | IY1: 2028-04-15 | IZ1: 2028-05-01 | JA1: 2028-05-15 | JB1: 2028-06-01 | JC1: 2028-06-15 | JD1: 2028-07-01 | JE1: 2028-07-15 | JF1: 2028-08-01 | JG1: 2028-08-15 | JH1: 2028-09-01 | JI1: 2028-09-15 | JJ1: 2028-10-01 | JK1: 2028-10-15 | JL1: 2028-11-01 | JM1: 2028-11-15 | JN1: 2028-12-01 | JO1: 2028-12-15 | JP1: Total_versé_2028 | JQ1: =IR1+366 -> 2029-01-01 | JR1: =IS1+366 -> 2029-01-15 | JS1: =IT1+366 -> 2029-02-01 | JT1: =IU1+366 -> 2029-02-15 | JU1: =IV1+365 -> 2029-02-28 | JV1: 2029-03-15 | JW1: 2029-04-01 | JX1: 2029-04-15 | JY1: 2029-05-01 | JZ1: 2029-05-15 | KA1: 2029-06-01 | KB1: 2029-06-15 | KC1: 2029-07-01 | KD1: 2029-07-15 | KE1: 2029-08-01 | KF1: 2029-08-15 | KG1: 2029-09-01 | KH1: 2029-09-15 | KI1: 2029-10-01 | KJ1: 2029-10-15 | KK1: 2029-11-01 | KL1: 2029-11-15 | KM1: 2029-12-01 | KN1: 2029-12-15 | KO1: Total_versé_2029 | KP1: =JQ1+365 -> 2030-01-01 | KQ1: 2030-01-15 | KR1: 2030-02-01 | KS1: 2030-02-15 | KT1: 2030-02-28 | KU1: 2030-03-15 | KV1: 2030-04-01 | KW1: 2030-04-15 | KX1: 2030-05-01 | KY1: 2030-05-15 | KZ1: 2030-06-01 | LA1: 2030-06-15 | LB1: 2030-07-01 | LC1: 2030-07-15 | LD1: 2030-08-01 | LE1: 2030-08-15 | LF1: 2030-09-01 | LG1: 2030-09-15 | LH1: 2030-10-01 | LI1: 2030-10-15 | LJ1: 2030-11-01 | LK1: 2030-11-15 | LL1: 2030-12-01 | LM1: 2030-12-15 | LN1: Total_versé_2030 | LO1: =KP1+365 -> 2031-01-01 | LP1: 2031-01-15 | LQ1: 2031-02-01 | LR1: 2031-02-15 | LS1: 2031-02-28 | LT1: 2031-03-15 | LU1: 2031-04-01 | LV1: 2031-04-15 | LW1: 2031-05-01 | LX1: 2031-05-15 | LY1: 2031-06-01 | LZ1: 2031-06-15 | MA1: 2031-07-01 | MB1: 2031-07-15 | MC1: 2031-08-01 | MD1: 2031-08-15 | ME1: 2031-09-01 | MF1: 2031-09-15 | MG1: 2031-10-01 | MH1: 2031-10-15 | MI1: 2031-11-01 | MJ1: 2031-11-15 | MK1: 2031-12-01 | ML1: 2031-12-15 | MM1: Total_versé_2031 | MN1: =LO1+365 -> 2032-01-01 | MO1: =LP1+365 -> 2032-01-15 | MP1: =LQ1+365 -> 2032-02-01 | MQ1: =LR1+365 -> 2032-02-15 | MR1: =LS1+366 -> 2032-02-29 | MS1: 2032-03-15 | MT1: 2032-04-01 | MU1: 2032-04-15 | MV1: 2032-05-01 | MW1: 2032-05-15 | MX1: 2032-06-01 | MY1: 2032-06-15 | MZ1: 2032-07-01 | NA1: 2032-07-15 | NB1: 2032-08-01 | NC1: 2032-08-15 | ND1: 2032-09-01 | NE1: 2032-09-15 | NF1: 2032-10-01 | NG1: 2032-10-15 | NH1: 2032-11-01 | NI1: 2032-11-15 | NJ1: 2032-12-01 | NK1: 2032-12-15 | NL1: Total_versé_2032 | NM1: =MN1+366 -> 2033-01-01 | NN1: =MO1+366 -> 2033-01-15 | NO1: =MP1+366 -> 2033-02-01 | NP1: =MQ1+366 -> 2033-02-15 | NQ1: =MR1+365 -> 2033-02-28 | NR1: 2033-03-15 | NS1: 2033-04-01 | NT1: 2033-04-15 | NU1: 2033-05-01 | NV1: 2033-05-15 | NW1: 2033-06-01 | NX1: 2033-06-15 | NY1: 2033-07-01 | NZ1: 2033-07-15 | OA1: 2033-08-01 | OB1: 2033-08-15 | OC1: 2033-09-01 | OD1: 2033-09-15 | OE1: 2033-10-01 | OF1: 2033-10-15 | OG1: 2033-11-01 | OH1: 2033-11-15 | OI1: 2033-12-01 | OJ1: 2033-12-15 | OK1: Total_versé_2033 | OL1: =NM1+365 -> 2034-01-01 | OM1: 2034-01-15 | ON1: 2034-02-01 | OO1: 2034-02-15 | OP1: 2034-02-28 | OQ1: 2034-03-15 | OR1: 2034-04-01 | OS1: 2034-04-15 | OT1: 2034-05-01 | OU1: 2034-05-15 | OV1: 2034-06-01 | OW1: 2034-06-15 | OX1: 2034-07-01 | OY1: 2034-07-15 | OZ1: 2034-08-01 | PA1: 2034-08-15 | PB1: 2034-09-01 | PC1: 2034-09-15 | PD1: 2034-10-01 | PE1: 2034-10-15 | PF1: 2034-11-01 | PG1: 2034-11-15 | PH1: 2034-12-01 | PI1: 2034-12-15 | PJ1: Total_versé_2034 | PK1: =OL1+365 -> 2035-01-01 | PL1: 2035-01-15 | PM1: 2035-02-01 | PN1: 2035-02-15 | PO1: 2035-02-28 | PP1: 2035-03-15 | PQ1: 2035-04-01 | PR1: 2035-04-15 | PS1: 2035-05-01 | PT1: 2035-05-15 | PU1: 2035-06-01 | PV1: 2035-06-15 | PW1: 2035-07-01 | PX1: 2035-07-15 | PY1: 2035-08-01 | PZ1: 2035-08-15 | QA1: 2035-09-01 | QB1: 2035-09-15 | QC1: 2035-10-01 | QD1: 2035-10-15 | QE1: 2035-11-01 | QF1: 2035-11-15 | QG1: 2035-12-01 | QH1: 2035-12-15 | QI1: Total_versé_2035 | QJ1: =PK1+365 -> 2036-01-01 | QK1: =PL1+365 -> 2036-01-15 | QL1: =PM1+365 -> 2036-02-01 | QM1: =PN1+365 -> 2036-02-15 | QN1: =PO1+366 -> 2036-02-29 | QO1: 2036-03-15 | QP1: 2036-04-01 | QQ1: 2036-04-15 | QR1: 2036-05-01 | QS1: 2036-05-15 | QT1: 2036-06-01 | QU1: 2036-06-15 | QV1: 2036-07-01 | QW1: 2036-07-15 | QX1: 2036-08-01 | QY1: 2036-08-15 | QZ1: 2036-09-01 | RA1: 2036-09-15 | RB1: 2036-10-01 | RC1: 2036-10-15 | RD1: 2036-11-01 | RE1: 2036-11-15 | RF1: 2036-12-01 | RG1: 2036-12-15 | RH1: Total_versé_2036 | RI1: =QJ1+366 -> 2037-01-01 | RJ1: =QK1+366 -> 2037-01-15 | RK1: =QL1+366 -> 2037-02-01 | RL1: =QM1+366 -> 2037-02-15 | RM1: =QN1+365 -> 2037-02-28 | RN1: 2037-03-15 | RO1: 2037-04-01 | RP1: 2037-04-15 | RQ1: 2037-05-01 | RR1: 2037-05-15 | RS1: 2037-06-01 | RT1: 2037-06-15 | RU1: 2037-07-01 | RV1: 2037-07-15 | RW1: 2037-08-01 | RX1: 2037-08-15 | RY1: 2037-09-01 | RZ1: 2037-09-15 | SA1: 2037-10-01 | SB1: 2037-10-15 | SC1: 2037-11-01 | SD1: 2037-11-15 | SE1: 2037-12-01 | SF1: 2037-12-15 | SG1: Total_versé_2037 | SH1: =RI1+365 -> 2038-01-01 | SI1: 2038-01-15 | SJ1: 2038-02-01 | SK1: 2038-02-15 | SL1: 2038-02-28 | SM1: 2038-03-15 | SN1: 2038-04-01 | SO1: 2038-04-15 | SP1: 2038-05-01 | SQ1: 2038-05-15 | SR1: 2038-06-01 | SS1: 2038-06-15 | ST1: 2038-07-01 | SU1: 2038-07-15 | SV1: 2038-08-01 | SW1: 2038-08-15 | SX1: 2038-09-01 | SY1: 2038-09-15 | SZ1: 2038-10-01 | TA1: 2038-10-15 | TB1: 2038-11-01 | TC1: 2038-11-15 | TD1: 2038-12-01 | TE1: 2038-12-15 | TF1: Total_versé_2038
A2: Cynthia ABENHAÏM | B2: 2500 | C2: 2000 | D2: 6000 | E2: 6000
A3: Jean ABSCHEN | B3: 2500 | C3: 200
A4: Stéphane ADAMO | B4: 2500
A5: Marion AGAPOF | B5: 2500
A6: Olivier ALEMBERT | B6: 2500
A7: Henri AMELLAL | B7: 2500
A8: Marc AMELLAL | B8: 2500
A9: Viviane AMELLAL | B9: 2500
A10: Jean-Pierre ANGONIN | B10: 2500
A11: Marie-France AZOURA | B11: 2500 | G11: 5000
A12: Maryse AZRIA | B12: 2500
A13: Sylvie BACH | B13: 2500 | F13: 555
A14: Paule BAH | B14: 2500 | W14: 20000
A15: Janine BARNAUD | B15: 2500
... 18 more rows

Sheet Base de données cumulée
A1: Numero client | B1: 2018-01-01 | C1: 2018-01-15 | D1: 2018-02-01 | E1: 2018-02-15 | F1: 2018-03-01 | G1: 2018-03-15 | H1: 2018-04-01 | I1: 2018-04-15 | J1: 2018-05-01 | K1: 2018-05-15 | L1: 2018-06-01 | M1: 2018-06-15 | N1: 2018-07-01 | O1: 2018-07-15 | P1: 2018-08-01 | Q1: 2018-08-15 | R1: 2018-09-01 | S1: 2018-09-15 | T1: 2018-10-01 | U1: 2018-10-15 | V1: 2018-11-01 | W1: 2018-11-15 | X1: 2018-12-01 | Y1: 2018-12-15 | Z1: Total_versé_2018 | AA1: =B1+365 -> 2019-01-01 | AB1: 2019-01-15 | AC1: 2019-02-01 | AD1: 2019-02-15 | AE1: 2019-03-01 | AF1: 2019-03-15 | AG1: 2019-04-01 | AH1: 2019-04-15 | AI1: 2019-05-01 | AJ1: 2019-05-15 | AK1: 2019-06-01 | AL1: 2019-06-15 | AM1: 2019-07-01 | AN1: 2019-07-15 | AO1: 2019-08-01 | AP1: 2019-08-15 | AQ1: 2019-09-01 | AR1: 2019-09-15 | AS1: 2019-10-01 | AT1: 2019-10-15 | AU1: 2019-11-01 | AV1: 2019-11-15 | AW1: 2019-12-01 | AX1: 2019-12-15 | AY1: Total_versé_2019 | AZ1: =AA1+365 -> 2020-01-01 | BA1: =AB1+365 -> 2020-01-15 | BB1: =AC1+365 -> 2020-02-01 | BC1: =AD1+365 -> 2020-02-15 | BD1: =AE1+365 -> 2020-02-29 | BE1: =AF1+366 -> 2020-03-15 | BF1: 2020-04-01 | BG1: 2020-04-15 | BH1: 2020-05-01 | BI1: 2020-05-15 | BJ1: 2020-06-01 | BK1: 2020-06-15 | BL1: 2020-07-01 | BM1: 2020-07-15 | BN1: 2020-08-01 | BO1: 2020-08-15 | BP1: 2020-09-01 | BQ1: 2020-09-15 | BR1: 2020-10-01 | BS1: 2020-10-15 | BT1: 2020-11-01 | BU1: 2020-11-15 | BV1: 2020-12-01 | BW1: 2020-12-15 | BX1: Total_versé_2020 | BY1: =AZ1+366 -> 2021-01-01 | BZ1: =BA1+366 -> 2021-01-15 | CA1: =BB1+366 -> 2021-02-01 | CB1: =BC1+366 -> 2021-02-15 | CC1: =BD1+365 -> 2021-02-28 | CD1: 2021-03-15 | CE1: 2021-04-01 | CF1: 2021-04-15 | CG1: 2021-05-01 | CH1: 2021-05-15 | CI1: 2021-06-01 | CJ1: 2021-06-15 | CK1: 2021-07-01 | CL1: 2021-07-15 | CM1: 2021-08-01 | CN1: 2021-08-15 | CO1: 2021-09-01 | CP1: 2021-09-15 | CQ1: 2021-10-01 | CR1: 2021-10-15 | CS1: 2021-11-01 | CT1: 2021-11-15 | CU1: 2021-12-01 | CV1: 2021-12-15 | CW1: Total_versé_2021 | CX1: =BY1+365 -> 2022-01-01 | CY1: 2022-01-15 | CZ1: 2022-02-01 | DA1: 2022-02-15 | DB1: 2022-02-28 | DC1: 2022-03-15 | DD1: 2022-04-01 | DE1: 2022-04-15 | DF1: 2022-05-01 | DG1: 2022-05-15 | DH1: 2022-06-01 | DI1: 2022-06-15 | DJ1: 2022-07-01 | DK1: 2022-07-15 | DL1: 2022-08-01 | DM1: 2022-08-15 | DN1: 2022-09-01 | DO1: 2022-09-15 | DP1: 2022-10-01 | DQ1: 2022-10-15 | DR1: 2022-11-01 | DS1: 2022-11-15 | DT1: 2022-12-01 | DU1: 2022-12-15 | DV1: Total_versé_2022 | DW1: =CX1+365 -> 2023-01-01 | DX1: 2023-01-15 | DY1: 2023-02-01 | DZ1: 2023-02-15 | EA1: 2023-02-28 | EB1: 2023-03-15 | EC1: 2023-04-01 | ED1: 2023-04-15 | EE1: 2023-05-01 | EF1: 2023-05-15 | EG1: 2023-06-01 | EH1: 2023-06-15 | EI1: 2023-07-01 | EJ1: 2023-07-15 | EK1: 2023-08-01 | EL1: 2023-08-15 | EM1: 2023-09-01 | EN1: 2023-09-15 | EO1: 2023-10-01 | EP1: 2023-10-15 | EQ1: 2023-11-01 | ER1: 2023-11-15 | ES1: 2023-12-01 | ET1: 2023-12-15 | EU1: Total_versé_2023 | EV1: =DW1+365 -> 2024-01-01 | EW1: =DX1+365 -> 2024-01-15 | EX1: =DY1+365 -> 2024-02-01 | EY1: =DZ1+365 -> 2024-02-15 | EZ1: =EA1+366 -> 2024-02-29 | FA1: 2024-03-15 | FB1: 2024-04-01 | FC1: 2024-04-15 | FD1: 2024-05-01 | FE1: 2024-05-15 | FF1: 2024-06-01 | FG1: 2024-06-15 | FH1: 2024-07-01 | FI1: 2024-07-15 | FJ1: 2024-08-01 | FK1: 2024-08-15 | FL1: 2024-09-01 | FM1: 2024-09-15 | FN1: 2024-10-01 | FO1: 2024-10-15 | FP1: 2024-11-01 | FQ1: 2024-11-15 | FR1: 2024-12-01 | FS1: 2024-12-15 | FT1: Total_versé_2024 | FU1: =EV1+366 -> 2025-01-01 | FV1: =EW1+366 -> 2025-01-15 | FW1: =EX1+366 -> 2025-02-01 | FX1: =EY1+366 -> 2025-02-15 | FY1: =EZ1+365 -> 2025-02-28 | FZ1: 2025-03-15 | GA1: 2025-04-01 | GB1: 2025-04-15 | GC1: 2025-05-01 | GD1: 2025-05-15 | GE1: 2025-06-01 | GF1: 2025-06-15 | GG1: 2025-07-01 | GH1: 2025-07-15 | GI1: 2025-08-01 | GJ1: 2025-08-15 | GK1: 2025-09-01 | GL1: 2025-09-15 | GM1: 2025-10-01 | GN1: 2025-10-15 | GO1: 2025-11-01 | GP1: 2025-11-15 | GQ1: 2025-12-01 | GR1: 2025-12-15 | GS1: Total_versé_2025 | GT1: =FU1+365 -> 2026-01-01 | GU1: 2026-01-15 | GV1: 2026-02-01 | GW1: 2026-02-15 | GX1: 2026-02-28 | GY1: 2026-03-15 | GZ1: 2026-04-01 | HA1: 2026-04-15 | HB1: 2026-05-01 | HC1: 2026-05-15 | HD1: 2026-06-01 | HE1: 2026-06-15 | HF1: 2026-07-01 | HG1: 2026-07-15 | HH1: 2026-08-01 | HI1: 2026-08-15 | HJ1: 2026-09-01 | HK1: 2026-09-15 | HL1: 2026-10-01 | HM1: 2026-10-15 | HN1: 2026-11-01 | HO1: 2026-11-15 | HP1: 2026-12-01 | HQ1: 2026-12-15 | HR1: Total_versé_2026 | HS1: =GT1+365 -> 2027-01-01 | HT1: 2027-01-15 | HU1: 2027-02-01 | HV1: 2027-02-15 | HW1: 2027-02-28 | HX1: 2027-03-15 | HY1: 2027-04-01 | HZ1: 2027-04-15 | IA1: 2027-05-01 | IB1: 2027-05-15 | IC1: 2027-06-01 | ID1: 2027-06-15 | IE1: 2027-07-01 | IF1: 2027-07-15 | IG1: 2027-08-01 | IH1: 2027-08-15 | II1: 2027-09-01 | IJ1: 2027-09-15 | IK1: 2027-10-01 | IL1: 2027-10-15 | IM1: 2027-11-01 | IN1: 2027-11-15 | IO1: 2027-12-01 | IP1: 2027-12-15 | IQ1: Total_versé_2027 | IR1: =HS1+365 -> 2028-01-01 | IS1: =HT1+365 -> 2028-01-15 | IT1: =HU1+365 -> 2028-02-01 | IU1: =HV1+365 -> 2028-02-15 | IV1: =HW1+366 -> 2028-02-29 | IW1: 2028-03-15 | IX1: 2028-04-01 | IY1: 2028-04-15 | IZ1: 2028-05-01 | JA1: 2028-05-15 | JB1: 2028-06-01 | JC1: 2028-06-15 | JD1: 2028-07-01 | JE1: 2028-07-15 | JF1: 2028-08-01 | JG1: 2028-08-15 | JH1: 2028-09-01 | JI1: 2028-09-15 | JJ1: 2028-10-01 | JK1: 2028-10-15 | JL1: 2028-11-01 | JM1: 2028-11-15 | JN1: 2028-12-01 | JO1: 2028-12-15 | JP1: Total_versé_2028 | JQ1: =IR1+366 -> 2029-01-01 | JR1: =IS1+366 -> 2029-01-15 | JS1: =IT1+366 -> 2029-02-01 | JT1: =IU1+366 -> 2029-02-15 | JU1: =IV1+365 -> 2029-02-28 | JV1: 2029-03-15 | JW1: 2029-04-01 | JX1: 2029-04-15 | JY1: 2029-05-01 | JZ1: 2029-05-15 | KA1: 2029-06-01 | KB1: 2029-06-15 | KC1: 2029-07-01 | KD1: 2029-07-15 | KE1: 2029-08-01 | KF1: 2029-08-15 | KG1: 2029-09-01 | KH1: 2029-09-15 | KI1: 2029-10-01 | KJ1: 2029-10-15 | KK1: 2029-11-01 | KL1: 2029-11-15 | KM1: 2029-12-01 | KN1: 2029-12-15 | KO1: Total_versé_2029 | KP1: =JQ1+365 -> 2030-01-01 | KQ1: 2030-01-15 | KR1: 2030-02-01 | KS1: 2030-02-15 | KT1: 2030-02-28 | KU1: 2030-03-15 | KV1: 2030-04-01 | KW1: 2030-04-15 | KX1: 2030-05-01 | KY1: 2030-05-15 | KZ1: 2030-06-01 | LA1: 2030-06-15 | LB1: 2030-07-01 | LC1: 2030-07-15 | LD1: 2030-08-01 | LE1: 2030-08-15 | LF1: 2030-09-01 | LG1: 2030-09-15 | LH1: 2030-10-01 | LI1: 2030-10-15 | LJ1: 2030-11-01 | LK1: 2030-11-15 | LL1: 2030-12-01 | LM1: 2030-12-15 | LN1: Total_versé_2030 | LO1: =KP1+365 -> 2031-01-01 | LP1: 2031-01-15 | LQ1: 2031-02-01 | LR1: 2031-02-15 | LS1: 2031-02-28 | LT1: 2031-03-15 | LU1: 2031-04-01 | LV1: 2031-04-15 | LW1: 2031-05-01 | LX1: 2031-05-15 | LY1: 2031-06-01 | LZ1: 2031-06-15 | MA1: 2031-07-01 | MB1: 2031-07-15 | MC1: 2031-08-01 | MD1: 2031-08-15 | ME1: 2031-09-01 | MF1: 2031-09-15 | MG1: 2031-10-01 | MH1: 2031-10-15 | MI1: 2031-11-01 | MJ1: 2031-11-15 | MK1: 2031-12-01 | ML1: 2031-12-15 | MM1: Total_versé_2031 | MN1: =LO1+365 -> 2032-01-01 | MO1: =LP1+365 -> 2032-01-15 | MP1: =LQ1+365 -> 2032-02-01 | MQ1: =LR1+365 -> 2032-02-15 | MR1: =LS1+366 -> 2032-02-29 | MS1: 2032-03-15 | MT1: 2032-04-01 | MU1: 2032-04-15 | MV1: 2032-05-01 | MW1: 2032-05-15 | MX1: 2032-06-01 | MY1: 2032-06-15 | MZ1: 2032-07-01 | NA1: 2032-07-15 | NB1: 2032-08-01 | NC1: 2032-08-15 | ND1: 2032-09-01 | NE1: 2032-09-15 | NF1: 2032-10-01 | NG1: 2032-10-15 | NH1: 2032-11-01 | NI1: 2032-11-15 | NJ1: 2032-12-01 | NK1: 2032-12-15 | NL1: Total_versé_2032 | NM1: =MN1+366 -> 2033-01-01 | NN1: =MO1+366 -> 2033-01-15 | NO1: =MP1+366 -> 2033-02-01 | NP1: =MQ1+366 -> 2033-02-15 | NQ1: =MR1+365 -> 2033-02-28 | NR1: 2033-03-15 | NS1: 2033-04-01 | NT1: 2033-04-15 | NU1: 2033-05-01 | NV1: 2033-05-15 | NW1: 2033-06-01 | NX1: 2033-06-15 | NY1: 2033-07-01 | NZ1: 2033-07-15 | OA1: 2033-08-01 | OB1: 2033-08-15 | OC1: 2033-09-01 | OD1: 2033-09-15 | OE1: 2033-10-01 | OF1: 2033-10-15 | OG1: 2033-11-01 | OH1: 2033-11-15 | OI1: 2033-12-01 | OJ1: 2033-12-15 | OK1: Total_versé_2033 | OL1: =NM1+365 -> 2034-01-01 | OM1: 2034-01-15 | ON1: 2034-02-01 | OO1: 2034-02-15 | OP1: 2034-02-28 | OQ1: 2034-03-15 | OR1: 2034-04-01 | OS1: 2034-04-15 | OT1: 2034-05-01 | OU1: 2034-05-15 | OV1: 2034-06-01 | OW1: 2034-06-15 | OX1: 2034-07-01 | OY1: 2034-07-15 | OZ1: 2034-08-01 | PA1: 2034-08-15 | PB1: 2034-09-01 | PC1: 2034-09-15 | PD1: 2034-10-01 | PE1: 2034-10-15 | PF1: 2034-11-01 | PG1: 2034-11-15 | PH1: 2034-12-01 | PI1: 2034-12-15 | PJ1: Total_versé_2034 | PK1: =OL1+365 -> 2035-01-01 | PL1: 2035-01-15 | PM1: 2035-02-01 | PN1: 2035-02-15 | PO1: 2035-02-28 | PP1: 2035-03-15 | PQ1: 2035-04-01 | PR1: 2035-04-15 | PS1: 2035-05-01 | PT1: 2035-05-15 | PU1: 2035-06-01 | PV1: 2035-06-15 | PW1: 2035-07-01 | PX1: 2035-07-15 | PY1: 2035-08-01 | PZ1: 2035-08-15 | QA1: 2035-09-01 | QB1: 2035-09-15 | QC1: 2035-10-01 | QD1: 2035-10-15 | QE1: 2035-11-01 | QF1: 2035-11-15 | QG1: 2035-12-01 | QH1: 2035-12-15 | QI1: Total_versé_2035 | QJ1: =PK1+365 -> 2036-01-01 | QK1: =PL1+365 -> 2036-01-15 | QL1: =PM1+365 -> 2036-02-01 | QM1: =PN1+365 -> 2036-02-15 | QN1: =PO1+366 -> 2036-02-29 | QO1: 2036-03-15 | QP1: 2036-04-01 | QQ1: 2036-04-15 | QR1: 2036-05-01 | QS1: 2036-05-15 | QT1: 2036-06-01 | QU1: 2036-06-15 | QV1: 2036-07-01 | QW1: 2036-07-15 | QX1: 2036-08-01 | QY1: 2036-08-15 | QZ1: 2036-09-01 | RA1: 2036-09-15 | RB1: 2036-10-01 | RC1: 2036-10-15 | RD1: 2036-11-01 | RE1: 2036-11-15 | RF1: 2036-12-01 | RG1: 2036-12-15 | RH1: Total_versé_2036 | RI1: =QJ1+366 -> 2037-01-01 | RJ1: =QK1+366 -> 2037-01-15 | RK1: =QL1+366 -> 2037-02-01 | RL1: =QM1+366 -> 2037-02-15 | RM1: =QN1+365 -> 2037-02-28 | RN1: 2037-03-15 | RO1: 2037-04-01 | RP1: 2037-04-15 | RQ1: 2037-05-01 | RR1: 2037-05-15 | RS1: 2037-06-01 | RT1: 2037-06-15 | RU1: 2037-07-01 | RV1: 2037-07-15 | RW1: 2037-08-01 | RX1: 2037-08-15 | RY1: 2037-09-01 | RZ1: 2037-09-15 | SA1: 2037-10-01 | SB1: 2037-10-15 | SC1: 2037-11-01 | SD1: 2037-11-15 | SE1: 2037-12-01 | SF1: 2037-12-15 | SG1: Total_versé_2037 | SH1: =RI1+365 -> 2038-01-01 | SI1: 2038-01-15 | SJ1: 2038-02-01 | SK1: 2038-02-15 | SL1: 2038-02-28 | SM1: 2038-03-15 | SN1: 2038-04-01 | SO1: 2038-04-15 | SP1: 2038-05-01 | SQ1: 2038-05-15 | SR1: 2038-06-01 | SS1: 2038-06-15 | ST1: 2038-07-01 | SU1: 2038-07-15 | SV1: 2038-08-01 | SW1: 2038-08-15 | SX1: 2038-09-01 | SY1: 2038-09-15 | SZ1: 2038-10-01 | TA1: 2038-10-15 | TB1: 2038-11-01 | TC1: 2038-11-15 | TD1: 2038-12-01 | TE1: 2038-12-15 | TF1: Total_versé_2038
A2: Cynthia ABENHAÏM | B2: 12500 | C2: ='Base de données cumulée'!B2+'Base de donnée'!C2+Intérêt!C2 -> 14511.07321 | D2: ='Base de données cumulée'!C2+'Base de donnée'!D2+Intérêt!D2 -> 20525.0675 | E2: ='Base de données cumulée'!D2+'Base de donnée'!E2+Intérêt!E2 -> 26547.79712 | F2: ='Base de données cumulée'!E2+'Base de donnée'!F2+Intérêt!F2 -> 26579.27475 | G2: ='Base de données cumulée'!F2+'Base de donnée'!G2+Intérêt!G2 -> 26610.79811 | H2: ='Base de données cumulée'!G2+'Base de donnée'!H2+Intérêt!H2 -> 26642.36725 | I2: ='Base de données cumulée'!H2+'Base de donnée'!I2+Intérêt!I2 -> 26673.98225 | J2: ='Base de données cumulée'!I2+'Base de donnée'!J2+Intérêt!J2 -> 26705.64316 | K2: ='Base de données cumulée'!J2+'Base de donnée'!K2+Intérêt!K2 -> 26737.35007 | L2: ='Base de données cumulée'!K2+'Base de donnée'!L2+Intérêt!L2 -> 26769.10303 | M2: ='Base de données cumulée'!L2+'Base de donnée'!M2+Intérêt!M2 -> 26800.90211 | N2: ='Base de données cumulée'!M2+'Base de donnée'!N2+Intérêt!N2 -> 26832.74738 | O2: ='Base de données cumulée'!N2+'Base de donnée'!O2+Intérêt!O2 -> 26864.6389 | P2: ='Base de données cumulée'!O2+'Base de donnée'!P2+Intérêt!P2 -> 26896.57675 | Q2: ='Base de données cumulée'!P2+'Base de donnée'!Q2+Intérêt!Q2 -> 26928.56098 | R2: ='Base de données cumulée'!Q2+'Base de donnée'!R2+Intérêt!R2 -> 26960.59168 | S2: ='Base de données cumulée'!R2+'Base de donnée'!S2+Intérêt!S2 -> 26992.6689 | T2: ='Base de données cumulée'!S2+'Base de donnée'!T2+Intérêt!T2 -> 27024.79271 | U2: ='Base de données cumulée'!T2+'Base de donnée'!U2+Intérêt!U2 -> 27056.96318 | V2: ='Base de données cumulée'!U2+'Base de donnée'!V2+Intérêt!V2 -> 27089.18037 | W2: ='Base de données cumulée'!V2+'Base de donnée'!W2+Intérêt!W2 -> 27121.44437 | X2: ='Base de données cumulée'!W2+'Base de donnée'!X2+Intérêt!X2 -> 27153.75522 | Y2: ='Base de données cumulée'!X2+'Base de donnée'!Y2+Intérêt!Y2 -> 27186.11301 | Z2: ='Base de données cumulée'!Y2+'Base de donnée'!Z2+Intérêt!Z2 -> 27218.5178 | AA2: ='Base de données cumulée'!Y2+'Base de donnée'!AA2+Intérêt!AA2 -> 27904.63081 | AB2: ='Base de données cumulée'!AA2+'Base de donnée'!AB2+Intérêt!AB2 -> 27937.19559 | AC2: ='Base de données cumulée'!AB2+'Base de donnée'!AC2+Intérêt!AC2 -> 27969.80665 | AD2: ='Base de données cumulée'!AC2+'Base de donnée'!AD2+Intérêt!AD2 -> 28002.46404 | AE2: ='Base de données cumulée'!AD2+'Base de donnée'!AE2+Intérêt!AE2 -> 28035.16784 | AF2: ='Base de données cumulée'!AE2+'Base de donnée'!AF2+Intérêt!AF2 -> 28067.9181 | AG2: ='Base de données cumulée'!AF2+'Base de donnée'!AG2+Intérêt!AG2 -> 28100.71489 | AH2: ='Base de données cumulée'!AG2+'Base de donnée'!AH2+Intérêt!AH2 -> 28133.55828 | AI2: ='Base de données cumulée'!AH2+'Base de donnée'!AI2+Intérêt!AI2 -> 28166.44833 | AJ2: ='Base de données cumulée'!AI2+'Base de donnée'!AJ2+Intérêt!AJ2 -> 28199.38512 | AK2: ='Base de données cumulée'!AJ2+'Base de donnée'!AK2+Intérêt!AK2 -> 28232.36871 | AL2: ='Base de données cumulée'!AK2+'Base de donnée'!AL2+Intérêt!AL2 -> 28265.39915 | AM2: ='Base de données cumulée'!AL2+'Base de donnée'!AM2+Intérêt!AM2 -> 28298.47653 | AN2: ='Base de données cumulée'!AM2+'Base de donnée'!AN2+Intérêt!AN2 -> 28331.60091 | AO2: ='Base de données cumulée'!AN2+'Base de donnée'!AO2+Intérêt!AO2 -> 28364.77235 | AP2: ='Base de données cumulée'!AO2+'Base de donnée'!AP2+Intérêt!AP2 -> 28397.99092 | AQ2: ='Base de données cumulée'!AP2+'Base de donnée'!AQ2+Intérêt!AQ2 -> 28431.2567 | AR2: ='Base de données cumulée'!AQ2+'Base de donnée'!AR2+Intérêt!AR2 -> 28464.56973 | AS2: ='Base de données cumulée'!AR2+'Base de donnée'!AS2+Intérêt!AS2 -> 28497.9301 | AT2: ='Base de données cumulée'!AS2+'Base de donnée'!AT2+Intérêt!AT2 -> 28531.33787 | AU2: ='Base de données cumulée'!AT2+'Base de donnée'!AU2+Intérêt!AU2 -> 28564.7931 | AV2: ='Base de données cumulée'!AU2+'Base de donnée'!AV2+Intérêt!AV2 -> 28598.29587 | AW2: ='Base de données cumulée'!AV2+'Base de donnée'!AW2+Intérêt!AW2 -> 28631.84624 | AX2: ='Base de données cumulée'!AW2+'Base de donnée'!AX2+Intérêt!AX2 -> 28665.44428 | AY2: ='Base de données cumulée'!AX2+'Base de donnée'!AY2+Intérêt!AY2 -> 28699.09006 | AZ2: ='Base de données cumulée'!AX2+'Base de donnée'!AZ2+Intérêt!AZ2 -> 29459.90353 | BA2: ='Base de données cumulée'!AZ2+'Base de donnée'!BA2+Intérêt!BA2 -> 29493.92933 | BB2: ='Base de données cumulée'!BA2+'Base de donnée'!BB2+Intérêt!BB2 -> 29528.00261 | BC2: ='Base de données cumulée'!BB2+'Base de donnée'!BC2+Intérêt!BC2 -> 29562.12343 | BD2: ='Base de données cumulée'!BC2+'Base de donnée'!BD2+Intérêt!BD2 -> 29596.29187 | BE2: ='Base de données cumulée'!BD2+'Base de donnée'!BE2+Intérêt!BE2 -> 29630.50799 | BF2: ='Base de données cumulée'!BE2+'Base de donnée'!BF2+Intérêt!BF2 -> 29664.77185 | BG2: ='Base de données cumulée'!BF2+'Base de donnée'!BG2+Intérêt!BG2 -> 29699.08352 | BH2: ='Base de données cumulée'!BG2+'Base de donnée'!BH2+Intérêt!BH2 -> 29733.44308 | BI2: ='Base de données cumulée'!BH2+'Base de donnée'!BI2+Intérêt!BI2 -> 29767.85058 | BJ2: ='Base de données cumulée'!BI2+'Base de donnée'!BJ2+Intérêt!BJ2 -> 29802.30609 | BK2: ='Base de données cumulée'!BJ2+'Base de donnée'!BK2+Intérêt!BK2 -> 29836.80969 | BL2: ='Base de données cumulée'!BK2+'Base de donnée'!BL2+Intérêt!BL2 -> 29871.36143 | BM2: ='Base de données cumulée'!BL2+'Base de donnée'!BM2+Intérêt!BM2 -> 29905.96138 | BN2: ='Base de données cumulée'!BM2+'Base de donnée'!BN2+Intérêt!BN2 -> 29940.60961 | BO2: ='Base de données cumulée'!BN2+'Base de donnée'!BO2+Intérêt!BO2 -> 29975.3062 | BP2: ='Base de données cumulée'!BO2+'Base de donnée'!BP2+Intérêt!BP2 -> 30010.0512 | BQ2: ='Base de données cumulée'!BP2+'Base de donnée'!BQ2+Intérêt!BQ2 -> 30044.84468 | BR2: ='Base de données cumulée'!BQ2+'Base de donnée'!BR2+Intérêt!BR2 -> 30079.68672 | BS2: ='Base de données cumulée'!BR2+'Base de donnée'!BS2+Intérêt!BS2 -> 30114.57737 | BT2: ='Base de données cumulée'!BS2+'Base de donnée'!BT2+Intérêt!BT2 -> 30149.51671 | BU2: ='Base de données cumulée'!BT2+'Base de donnée'!BU2+Intérêt!BU2 -> 30184.50481 | BV2: ='Base de données cumulée'!BU2+'Base de donnée'!BV2+Intérêt!BV2 -> 30219.54173 | BW2: ='Base de données cumulée'!BV2+'Base de donnée'!BW2+Intérêt!BW2 -> 30254.62754 | BX2: ='Base de données cumulée'!BW2+'Base de donnée'!BX2+Intérêt!BX2 -> 30289.76231 | BY2: ='Base de données cumulée'!BW2+'Base de donnée'!BY2+Intérêt!BY2 -> 31084.48632 | BZ2: ='Base de données cumulée'!BY2+'Base de donnée'!BZ2+Intérêt!BZ2 -> 31119.88541 | CA2: ='Base de données cumulée'!BZ2+'Base de donnée'!CA2+Intérêt!CA2 -> 31155.33288 | CB2: ='Base de données cumulée'!CA2+'Base de donnée'!CB2+Intérêt!CB2 -> 31190.82879 | CC2: ='Base de données cumulée'!CB2+'Base de donnée'!CC2+Intérêt!CC2 -> 31226.37322 | CD2: ='Base de données cumulée'!CC2+'Base de donnée'!CD2+Intérêt!CD2 -> 31261.96622 | CE2: ='Base de données cumulée'!CD2+'Base de donnée'!CE2+Intérêt!CE2 -> 31297.60787 | CF2: ='Base de données cumulée'!CE2+'Base de donnée'!CF2+Intérêt!CF2 -> 31333.29822 | CG2: ='Base de données cumulée'!CF2+'Base de donnée'!CG2+Intérêt!CG2 -> 31369.03735 | CH2: ='Base de données cumulée'!CG2+'Base de donnée'!CH2+Intérêt!CH2 -> 31404.82533 | CI2: ='Base de données cumulée'!CH2+'Base de donnée'!CI2+Intérêt!CI2 -> 31440.66222 | CJ2: ='Base de données cumulée'!CI2+'Base de donnée'!CJ2+Intérêt!CJ2 -> 31476.54808 | CK2: ='Base de données cumulée'!CJ2+'Base de donnée'!CK2+Intérêt!CK2 -> 31512.48299 | CL2: ='Base de données cumulée'!CK2+'Base de donnée'!CL2+Intérêt!CL2 -> 31548.46701 | CM2: ='Base de données cumulée'!CL2+'Base de donnée'!CM2+Intérêt!CM2 -> 31584.5002 | CN2: ='Base de données cumulée'!CM2+'Base de donnée'!CN2+Intérêt!CN2 -> 31620.58264 | CO2: ='Base de données cumulée'!CN2+'Base de donnée'!CO2+Intérêt!CO2 -> 31656.7144 | CP2: ='Base de données cumulée'!CO2+'Base de donnée'!CP2+Intérêt!CP2 -> 31692.89553 | CQ2: ='Base de données cumulée'!CP2+'Base de donnée'!CQ2+Intérêt!CQ2 -> 31729.12612 | CR2: ='Base de données cumulée'!CQ2+'Base de donnée'!CR2+Intérêt!CR2 -> 31765.40621 | CS2: ='Base de données cumulée'!CR2+'Base de donnée'!CS2+Intérêt!CS2 -> 31801.73589 | CT2: ='Base de données cumulée'!CS2+'Base de donnée'!CT2+Intérêt!CT2 -> 31838.11522 | CU2: ='Base de données cumulée'!CT2+'Base de donnée'!CU2+Intérêt!CU2 -> 31874.54427 | CV2: ='Base de données cumulée'!CU2+'Base de donnée'!CV2+Intérêt!CV2 -> 31911.02311 | CW2: ='Base de données cumulée'!CV2+'Base de donnée'!CW2+Intérêt!CW2 -> 31947.5518 | CX2: ='Base de données cumulée'!CV2+'Base de donnée'!CX2+Intérêt!CX2 -> 32774.08858 | CY2: ='Base de données cumulée'!CX2+'Base de donnée'!CY2+Intérêt!CY2 -> 32811.114 | CZ2: ='Base de données cumulée'!CY2+'Base de donnée'!CZ2+Intérêt!CZ2 -> 32848.18925 | DA2: ='Base de données cumulée'!CZ2+'Base de donnée'!DA2+Intérêt!DA2 -> 32885.3144 | DB2: ='Base de données cumulée'!DA2+'Base de donnée'!DB2+Intérêt!DB2 -> 32922.48951 | DC2: ='Base de données cumulée'!DB2+'Base de donnée'!DC2+Intérêt!DC2 -> 32959.71465 | DD2: ='Base de données cumulée'!DC2+'Base de donnée'!DD2+Intérêt!DD2 -> 32996.98989 | DE2: ='Base de données cumulée'!DD2+'Base de donnée'!DE2+Intérêt!DE2 -> 33034.3153 | DF2: ='Base de données cumulée'!DE2+'Base de donnée'!DF2+Intérêt!DF2 -> 33071.69094 | DG2: ='Base de données cumulée'!DF2+'Base de donnée'!DG2+Intérêt!DG2 -> 33109.11688 | DH2: ='Base de données cumulée'!DG2+'Base de donnée'!DH2+Intérêt!DH2 -> 33146.5932 | DI2: ='Base de données cumulée'!DH2+'Base de donnée'!DI2+Intérêt!DI2 -> 33184.11994 | DJ2: ='Base de données cumulée'!DI2+'Base de donnée'!DJ2+Intérêt!DJ2 -> 33221.6972 | DK2: ='Base de données cumulée'!DJ2+'Base de donnée'!DK2+Intérêt!DK2 -> 33259.32502 | DL2: ='Base de données cumulée'!DK2+'Base de donnée'!DL2+Intérêt!DL2 -> 33297.00349 | DM2: ='Base de données cumulée'!DL2+'Base de donnée'!DM2+Intérêt!DM2 -> 33334.73266 | DN2: ='Base de données cumulée'!DM2+'Base de donnée'!DN2+Intérêt!DN2 -> 33372.51262 | DO2: ='Base de données cumulée'!DN2+'Base de donnée'!DO2+Intérêt!DO2 -> 33410.34342 | DP2: ='Base de données cumulée'!DO2+'Base de donnée'!DP2+Intérêt!DP2 -> 33448.22513 | DQ2: ='Base de données cumulée'!DP2+'Base de donnée'!DQ2+Intérêt!DQ2 -> 33486.15782 | DR2: ='Base de données cumulée'!DQ2+'Base de donnée'!DR2+Intérêt!DR2 -> 33524.14157 | DS2: ='Base de données cumulée'!DR2+'Base de donnée'!DS2+Intérêt!DS2 -> 33562.17643 | DT2: ='Base de données cumulée'!DS2+'Base de donnée'!DT2+Intérêt!DT2 -> 33600.26249 | DU2: ='Base de données cumulée'!DT2+'Base de donnée'!DU2+Intérêt!DU2 -> 33638.3998 | DV2: ='Base de données cumulée'!DU2+'Base de donnée'!DV2+Intérêt!DV2 -> 33676.58844 | DW2: ='Base de données cumulée'!DU2+'Base de donnée'!DW2+Intérêt!DW2 -> 34540.89965 | DX2: ='Base de données cumulée'!DW2+'Base de donnée'!DX2+Intérêt!DX2 -> 34580.3029 | DY2: ='Base de données cumulée'!DX2+'Base de donnée'!DY2+Intérêt!DY2 -> 34619.32693 | DZ2: ='Base de données cumulée'!DY2+'Base de donnée'!DZ2+Intérêt!DZ2 -> 34658.40299 | EA2: ='Base de données cumulée'!DZ2+'Base de donnée'!EA2+Intérêt!EA2 -> 34697.53116 | EB2: ='Base de données cumulée'!EA2+'Base de donnée'!EB2+Intérêt!EB2 -> 34736.71149 | EC2: ='Base de données cumulée'!EB2+'Base de donnée'!EC2+Intérêt!EC2 -> 34775.94406 | ED2: ='Base de données cumulée'!EC2+'Base de donnée'!ED2+Intérêt!ED2 -> 34815.22895 | EE2: ='Base de données cumulée'!ED2+'Base de donnée'!EE2+Intérêt!EE2 -> 34854.56621 | EF2: ='Base de données cumulée'!EE2+'Base de donnée'!EF2+Intérêt!EF2 -> 34893.95592 | EG2: ='Base de données cumulée'!EF2+'Base de donnée'!EG2+Intérêt!EG2 -> 34933.39816 | EH2: ='Base de données cumulée'!EG2+'Base de donnée'!EH2+Intérêt!EH2 -> 34972.89298 | EI2: ='Base de données cumulée'!EH2+'Base de donnée'!EI2+Intérêt!EI2 -> 35012.44046 | EJ2: ='Base de données cumulée'!EI2+'Base de donnée'!EJ2+Intérêt!EJ2 -> 35052.04067 | EK2: ='Base de données cumulée'!EJ2+'Base de donnée'!EK2+Intérêt!EK2 -> 35091.69369 | EL2: ='Base de données cumulée'!EK2+'Base de donnée'!EL2+Intérêt!EL2 -> 35131.39957 | EM2: ='Base de données cumulée'!EL2+'Base de donnée'!EM2+Intérêt!EM2 -> 35171.15839 | EN2: ='Base de données cumulée'!EM2+'Base de donnée'!EN2+Intérêt!EN2 -> 35210.97023 | EO2: ='Base de données cumulée'!EN2+'Base de donnée'!EO2+Intérêt!EO2 -> 35250.83515 | EP2: ='Base de données cumulée'!EO2+'Base de donnée'!EP2+Intérêt!EP2 -> 35290.75322 | EQ2: ='Base de données cumulée'!EP2+'Base de donnée'!EQ2+Intérêt!EQ2 -> 35330.72452 | ER2: ='Base de données cumulée'!EQ2+'Base de donnée'!ER2+Intérêt!ER2 -> 35370.74911 | ES2: ='Base de données cumulée'!ER2+'Base de donnée'!ES2+Intérêt!ES2 -> 35410.82707 | ET2: ='Base de données cumulée'!ES2+'Base de donnée'!ET2+Intérêt!ET2 -> 35450.95846 | EU2: ='Base de données cumulée'!ET2+'Base de donnée'!EU2+Intérêt!EU2 -> 35491.14336 | EV2: ='Base de données cumulée'!ET2+'Base de donnée'!EV2+Intérêt!EV2 -> 36401.20217 | EW2: ='Base de données cumulée'!EV2+'Base de donnée'!EW2+Intérêt!EW2 -> 36442.65406 | EX2: ='Base de données cumulée'!EW2+'Base de donnée'!EX2+Intérêt!EX2 -> 36484.16123 | EY2: ='Base de données cumulée'!EX2+'Base de donnée'!EY2+Intérêt!EY2 -> 36525.72374 | EZ2: ='Base de données cumulée'!EY2+'Base de donnée'!EZ2+Intérêt!EZ2 -> 36567.34166 | FA2: ='Base de données cumulée'!EZ2+'Base de donnée'!FA2+Intérêt!FA2 -> 36609.01507 | FB2: ='Base de données cumulée'!FA2+'Base de donnée'!FB2+Intérêt!FB2 -> 36650.74405 | FC2: ='Base de données cumulée'!FB2+'Base de donnée'!FC2+Intérêt!FC2 -> 36692.52867 | FD2: ='Base de données cumulée'!FC2+'Base de donnée'!FD2+Intérêt!FD2 -> 36734.369 | FE2: ='Base de données cumulée'!FD2+'Base de donnée'!FE2+Intérêt!FE2 -> 36776.26511 | FF2: ='Base de données cumulée'!FE2+'Base de donnée'!FF2+Intérêt!FF2 -> 36818.21709 | FG2: ='Base de données cumulée'!FF2+'Base de donnée'!FG2+Intérêt!FG2 -> 36860.22501 | FH2: ='Base de données cumulée'!FG2+'Base de donnée'!FH2+Intérêt!FH2 -> 36902.28893 | FI2: ='Base de données cumulée'!FH2+'Base de donnée'!FI2+Intérêt!FI2 -> 36944.40894 | FJ2: ='Base de données cumulée'!FI2+'Base de donnée'!FJ2+Intérêt!FJ2 -> 36986.58511 | FK2: ='Base de données cumulée'!FJ2+'Base de donnée'!FK2+Intérêt!FK2 -> 37028.81752 | FL2: ='Base de données cumulée'!FK2+'Base de donnée'!FL2+Intérêt!FL2 -> 37071.10623 | FM2: ='Base de données cumulée'!FL2+'Base de donnée'!FM2+Intérêt!FM2 -> 37113.45133 | FN2: ='Base de données cumulée'!FM2+'Base de donnée'!FN2+Intérêt!FN2 -> 37155.85289 | FO2: ='Base de données cumulée'!FN2+'Base de donnée'!FO2+Intérêt!FO2 -> 37198.31099 | FP2: ='Base de données cumulée'!FO2+'Base de donnée'!FP2+Intérêt!FP2 -> 37240.8257 | FQ2: ='Base de données cumulée'!FP2+'Base de donnée'!FQ2+Intérêt!FQ2 -> 37283.39709 | FR2: ='Base de données cumulée'!FQ2+'Base de donnée'!FR2+Intérêt!FR2 -> 37326.02524 | FS2: ='Base de données cumulée'!FR2+'Base de donnée'!FS2+Intérêt!FS2 -> 37368.71023 | FT2: ='Base de données cumulée'!FS2+'Base de donnée'!FT2+Intérêt!FT2 -> 37411.45214 | FU2: ='Base de données cumulée'!FS2+'Base de donnée'!FU2+Intérêt!FU2 -> 38378.9602 | FV2: ='Base de données cumulée'!FU2+'Base de donnée'!FV2+Intérêt!FV2 -> 38423.04911 | FW2: ='Base de données cumulée'!FV2+'Base de donnée'!FW2+Intérêt!FW2 -> 38467.1968 | FX2: ='Base de données cumulée'!FW2+'Base de donnée'!FX2+Intérêt!FX2 -> 38511.40335 | FY2: ='Base de données cumulée'!FX2+'Base de donnée'!FY2+Intérêt!FY2 -> 38555.66885 | FZ2: ='Base de données cumulée'!FY2+'Base de donnée'!FZ2+Intérêt!FZ2 -> 38599.99337 | GA2: ='Base de données cumulée'!FZ2+'Base de donnée'!GA2+Intérêt!GA2 -> 38644.37698 | GB2: ='Base de données cumulée'!GA2+'Base de donnée'!GB2+Intérêt!GB2 -> 38688.81978 | GC2: ='Base de données cumulée'!GB2+'Base de donnée'!GC2+Intérêt!GC2 -> 38733.32183 | GD2: ='Base de données cumulée'!GC2+'Base de donnée'!GD2+Intérêt!GD2 -> 38777.88322 | GE2: ='Base de données cumulée'!GD2+'Base de donnée'!GE2+Intérêt!GE2 -> 38822.50402 | GF2: ='Base de données cumulée'!GE2+'Base de donnée'!GF2+Intérêt!GF2 -> 38867.18432 | GG2: ='Base de données cumulée'!GF2+'Base de donnée'!GG2+Intérêt!GG2 -> 38911.92419 | GH2: ='Base de données cumulée'!GG2+'Base de donnée'!GH2+Intérêt!GH2 -> 38956.72371 | GI2: ='Base de données cumulée'!GH2+'Base de donnée'!GI2+Intérêt!GI2 -> 39001.58297 | GJ2: ='Base de données cumulée'!GI2+'Base de donnée'!GJ2+Intérêt!GJ2 -> 39046.50204 | GK2: ='Base de données cumulée'!GJ2+'Base de donnée'!GK2+Intérêt!GK2 -> 39091.481 | GL2: ='Base de données cumulée'!GK2+'Base de donnée'!GL2+Intérêt!GL2 -> 39136.51993 | GM2: ='Base de données cumulée'!GL2+'Base de donnée'!GM2+Intérêt!GM2 -> 39181.61891 | GN2: ='Base de données cumulée'!GM2+'Base de donnée'!GN2+Intérêt!GN2 -> 39226.77803 | GO2: ='Base de données cumulée'!GN2+'Base de donnée'!GO2+Intérêt!GO2 -> 39271.99736 | GP2: ='Base de données cumulée'!GO2+'Base de donnée'!GP2+Intérêt!GP2 -> 39317.27698 | GQ2: ='Base de données cumulée'!GP2+'Base de donnée'!GQ2+Intérêt!GQ2 -> 39362.61698 | GR2: ='Base de données cumulée'!GQ2+'Base de donnée'!GR2+Intérêt!GR2 -> 39408.01742 | GS2: ='Base de données cumulée'!GR2+'Base de donnée'!GS2+Intérêt!GS2 -> 39453.47841 | GT2: ='Base de données cumulée'!GR2+'Base de donnée'!GT2+Intérêt!GT2 -> 40482.53563 | GU2: ='Base de données cumulée'!GT2+'Base de donnée'!GU2+Intérêt!GU2 -> 40529.4293 | GV2: ='Base de données cumulée'!GU2+'Base de donnée'!GV2+Intérêt!GV2 -> 40576.3855 | GW2: ='Base de données cumulée'!GV2+'Base de donnée'!GW2+Intérêt!GW2 -> 40623.4043 | GX2: ='Base de données cumulée'!GW2+'Base de donnée'!GX2+Intérêt!GX2 -> 40670.4858 | GY2: ='Base de données cumulée'!GX2+'Base de donnée'!GY2+Intérêt!GY2 -> 40717.63007 | GZ2: ='Base de données cumulée'!GY2+'Base de donnée'!GZ2+Intérêt!GZ2 -> 40764.8372 | HA2: ='Base de données cumulée'!GZ2+'Base de donnée'!HA2+Intérêt!HA2 -> 40812.10728 | HB2: ='Base de données cumulée'!HA2+'Base de donnée'!HB2+Intérêt!HB2 -> 40859.44038 | HC2: ='Base de données cumulée'!HB2+'Base de donnée'!HC2+Intérêt!HC2 -> 40906.83659 | HD2: ='Base de données cumulée'!HC2+'Base de donnée'!HD2+Intérêt!HD2 -> 40954.296 | HE2: ='Base de données cumulée'!HD2+'Base de donnée'!HE2+Intérêt!HE2 -> 41001.81868 | HF2: ='Base de données cumulée'!HE2+'Base de donnée'!HF2+Intérêt!HF2 -> 41049.40473 | HG2: ='Base de données cumulée'!HF2+'Base de donnée'!HG2+Intérêt!HG2 -> 41097.05423 | HH2: ='Base de données cumulée'!HG2+'Base de donnée'!HH2+Intérêt!HH2 -> 41144.76726 | HI2: ='Base de données cumulée'!HH2+'Base de donnée'!HI2+Intérêt!HI2 -> 41192.54391 | HJ2: ='Base de données cumulée'!HI2+'Base de donnée'!HJ2+Intérêt!HJ2 -> 41240.38426 | HK2: ='Base de données cumulée'!HJ2+'Base de donnée'!HK2+Intérêt!HK2 -> 41288.2884 | HL2: ='Base de données cumulée'!HK2+'Base de donnée'!HL2+Intérêt!HL2 -> 41336.25641 | HM2: ='Base de données cumulée'!HL2+'Base de donnée'!HM2+Intérêt!HM2 -> 41384.28838 | HN2: ='Base de données cumulée'!HM2+'Base de donnée'!HN2+Intérêt!HN2 -> 41432.38438 | HO2: ='Base de données cumulée'!HN2+'Base de donnée'!HO2+Intérêt!HO2 -> 41480.54452 | HP2: ='Base de données cumulée'!HO2+'Base de donnée'!HP2+Intérêt!HP2 -> 41528.76887 | HQ2: ='Base de données cumulée'!HP2+'Base de donnée'!HQ2+Intérêt!HQ2 -> 41577.05752 | HR2: ='Base de données cumulée'!HQ2+'Base de donnée'!HR2+Intérêt!HR2 -> 41625.41056 | HS2: ='Base de données cumulée'!HQ2+'Base de donnée'!HS2+Intérêt!HS2 -> 42719.93246 | HT2: ='Base de données cumulée'!HS2+'Base de donnée'!HT2+Intérêt!HT2 -> 42769.80932 | HU2: ='Base de données cumulée'!HT2+'Base de donnée'!HU2+Intérêt!HU2 -> 42819.7527 | HV2: ='Base de données cumulée'!HU2+'Base de donnée'!HV2+Intérêt!HV2 -> 42869.76266 | HW2: ='Base de données cumulée'!HV2+'Base de donnée'!HW2+Intérêt!HW2 -> 42919.8393 | HX2: ='Base de données cumulée'!HW2+'Base de donnée'!HX2+Intérêt!HX2 -> 42969.98271 | HY2: ='Base de données cumulée'!HX2+'Base de donnée'!HY2+Intérêt!HY2 -> 43020.19298 | HZ2: ='Base de données cumulée'!HY2+'Base de donnée'!HZ2+Intérêt!HZ2 -> 43070.47019 | IA2: ='Base de données cumulée'!HZ2+'Base de donnée'!IA2+Intérêt!IA2 -> 43120.81445 | IB2: ='Base de données cumulée'!IA2+'Base de donnée'!IB2+Intérêt!IB2 -> 43171.22582 | IC2: ='Base de données cumulée'!IB2+'Base de donnée'!IC2+Intérêt!IC2 -> 43221.70442 | ID2: ='Base de données cumulée'!IC2+'Base de donnée'!ID2+Intérêt!ID2 -> 43272.25031 | IE2: ='Base de données cumulée'!ID2+'Base de donnée'!IE2+Intérêt!IE2 -> 43322.86361 | IF2: ='Base de données cumulée'!IE2+'Base de donnée'!IF2+Intérêt!IF2 -> 43373.54438 | IG2: ='Base de données cumulée'!IF2+'Base de donnée'!IG2+Intérêt!IG2 -> 43424.29273 | IH2: ='Base de données cumulée'!IG2+'Base de donnée'!IH2+Intérêt!IH2 -> 43475.10875 | II2: ='Base de données cumulée'!IH2+'Base de donnée'!II2+Intérêt!II2 -> 43525.99252 | IJ2: ='Base de données cumulée'!II2+'Base de donnée'!IJ2+Intérêt!IJ2 -> 43576.94413 | IK2: ='Base de données cumulée'!IJ2+'Base de donnée'!IK2+Intérêt!IK2 -> 43627.96368 | IL2: ='Base de données cumulée'!IK2+'Base de donnée'!IL2+Intérêt!IL2 -> 43679.05126 | IM2: ='Base de données cumulée'!IL2+'Base de donnée'!IM2+Intérêt!IM2 -> 43730.20695 | IN2: ='Base de données cumulée'!IM2+'Base de donnée'!IN2+Intérêt!IN2 -> 43781.43086 | IO2: ='Base de données cumulée'!IN2+'Base de donnée'!IO2+Intérêt!IO2 -> 43832.72305 | IP2: ='Base de données cumulée'!IO2+'Base de donnée'!IP2+Intérêt!IP2 -> 43884.08364 | IQ2: ='Base de données cumulée'!IP2+'Base de donnée'!IQ2+Intérêt!IQ2 -> 43935.51271 | IR2: ='Base de données cumulée'!IP2+'Base de donnée'!IR2+Intérêt!IR2 -> 45099.6639 | IS2: ='Base de données cumulée'!IR2+'Base de donnée'!IS2+Intérêt!IS2 -> 45152.71374 | IT2: ='Base de données cumulée'!IS2+'Base de donnée'!IT2+Intérêt!IT2 -> 45205.83432 | IU2: ='Base de données cumulée'!IT2+'Base de donnée'!IU2+Intérêt!IU2 -> 45259.02573 | IV2: ='Base de données cumulée'!IU2+'Base de donnée'!IV2+Intérêt!IV2 -> 45312.28805 | IW2: ='Base de données cumulée'!IV2+'Base de donnée'!IW2+Intérêt!IW2 -> 45365.62139 | IX2: ='Base de données cumulée'!IW2+'Base de donnée'!IX2+Intérêt!IX2 -> 45419.02585 | IY2: ='Base de données cumulée'!IX2+'Base de donnée'!IY2+Intérêt!IY2 -> 45472.50151 | IZ2: ='Base de données cumulée'!IY2+'Base de donnée'!IZ2+Intérêt!IZ2 -> 45526.04847 | JA2: ='Base de données cumulée'!IZ2+'Base de donnée'!JA2+Intérêt!JA2 -> 45579.66682 | JB2: ='Base de données cumulée'!JA2+'Base de donnée'!JB2+Intérêt!JB2 -> 45633.35667 | JC2: ='Base de données cumulée'!JB2+'Base de donnée'!JC2+Intérêt!JC2 -> 45687.1181 | JD2: ='Base de données cumulée'!JC2+'Base de donnée'!JD2+Intérêt!JD2 -> 45740.95122 | JE2: ='Base de données cumulée'!JD2+'Base de donnée'!JE2+Intérêt!JE2 -> 45794.85611 | JF2: ='Base de données cumulée'!JE2+'Base de donnée'!JF2+Intérêt!JF2 -> 45848.83288 | JG2: ='Base de données cumulée'!JF2+'Base de donnée'!JG2+Intérêt!JG2 -> 45902.88162 | JH2: ='Base de données cumulée'!JG2+'Base de donnée'!JH2+Intérêt!JH2 -> 45957.00242 | JI2: ='Base de données cumulée'!JH2+'Base de donnée'!JI2+Intérêt!JI2 -> 46011.19538 | JJ2: ='Base de données cumulée'!JI2+'Base de donnée'!JJ2+Intérêt!JJ2 -> 46065.4606 | JK2: ='Base de données cumulée'!JJ2+'Base de donnée'!JK2+Intérêt!JK2 -> 46119.79817 | JL2: ='Base de données cumulée'!JK2+'Base de donnée'!JL2+Intérêt!JL2 -> 46174.20819 | JM2: ='Base de données cumulée'!JL2+'Base de donnée'!JM2+Intérêt!JM2 -> 46228.69076 | JN2: ='Base de données cumulée'!JM2+'Base de donnée'!JN2+Intérêt!JN2 -> 46283.24597 | JO2: ='Base de données cumulée'!JN2+'Base de donnée'!JO2+Intérêt!JO2 -> 46337.87393 | JP2: ='Base de données cumulée'!JO2+'Base de donnée'!JP2+Intérêt!JP2 -> 46392.57472 | JQ2: ='Base de données cumulée'!JO2+'Base de donnée'!JQ2+Intérêt!JQ2 -> 47630.78474 | JR2: ='Base de données cumulée'!JQ2+'Base de donnée'!JR2+Intérêt!JR2 -> 47687.20941 | JS2: ='Base de données cumulée'!JR2+'Base de donnée'!JS2+Intérêt!JS2 -> 47743.70932 | JT2: ='Base de données cumulée'!JS2+'Base de donnée'!JT2+Intérêt!JT2 -> 47800.28455 | JU2: ='Base de données cumulée'!JT2+'Base de donnée'!JU2+Intérêt!JU2 -> 47856.93523 | JV2: ='Base de données cumulée'!JU2+'Base de donnée'!JV2+Intérêt!JV2 -> 47913.66143 | JW2: ='Base de données cumulée'!JV2+'Base de donnée'!JW2+Intérêt!JW2 -> 47970.46327 | JX2: ='Base de données cumulée'!JW2+'Base de donnée'!JX2+Intérêt!JX2 -> 48027.34085 | JY2: ='Base de données cumulée'!JX2+'Base de donnée'!JY2+Intérêt!JY2 -> 48084.29426 | JZ2: ='Base de données cumulée'!JY2+'Base de donnée'!JZ2+Intérêt!JZ2 -> 48141.32361 | KA2: ='Base de données cumulée'!JZ2+'Base de donnée'!KA2+Intérêt!KA2 -> 48198.429 | KB2: ='Base de données cumulée'!KA2+'Base de donnée'!KB2+Intérêt!KB2 -> 48255.61053 | KC2: ='Base de données cumulée'!KB2+'Base de donnée'!KC2+Intérêt!KC2 -> 48312.8683 | KD2: ='Base de données cumulée'!KC2+'Base de donnée'!KD2+Intérêt!KD2 -> 48370.20242 | KE2: ='Base de données cumulée'!KD2+'Base de donnée'!KE2+Intérêt!KE2 -> 48427.61298 | KF2: ='Base de données cumulée'!KE2+'Base de donnée'!KF2+Intérêt!KF2 -> 48485.10009 | KG2: ='Base de données cumulée'!KF2+'Base de donnée'!KG2+Intérêt!KG2 -> 48542.66385 | KH2: ='Base de données cumulée'!KG2+'Base de donnée'!KH2+Intérêt!KH2 -> 48600.30436 | KI2: ='Base de données cumulée'!KH2+'Base de donnée'!KI2+Intérêt!KI2 -> 48658.02172 | KJ2: ='Base de données cumulée'!KI2+'Base de donnée'!KJ2+Intérêt!KJ2 -> 48715.81604 | KK2: ='Base de données cumulée'!KJ2+'Base de donnée'!KK2+Intérêt!KK2 -> 48773.68742 | KL2: ='Base de données cumulée'!KK2+'Base de donnée'!KL2+Intérêt!KL2 -> 48831.63596 | KM2: ='Base de données cumulée'!KL2+'Base de donnée'!KM2+Intérêt!KM2 -> 48889.66177 | KN2: ='Base de données cumulée'!KM2+'Base de donnée'!KN2+Intérêt!KN2 -> 48947.76495 | KO2: ='Base de données cumulée'!KN2+'Base de donnée'!KO2+Intérêt!KO2 -> 49005.94559 | KP2: ='Base de données cumulée'!KN2+'Base de donnée'!KP2+Intérêt!KP2 -> 50322.92579 | KQ2: ='Base de données cumulée'!KP2+'Base de donnée'!KQ2+Intérêt!KQ2 -> 50382.93999 | KR2: ='Base de données cumulée'!KQ2+'Base de donnée'!KR2+Intérêt!KR2 -> 50443.0342 | KS2: ='Base de données cumulée'!KR2+'Base de donnée'!KS2+Intérêt!KS2 -> 50503.20853 | KT2: ='Base de données cumulée'!KS2+'Base de donnée'!KT2+Intérêt!KT2 -> 50563.4631 | KU2: ='Base de données cumulée'!KT2+'Base de donnée'!KU2+Intérêt!KU2 -> 50623.79801 | KV2: ='Base de données cumulée'!KU2+'Base de donnée'!KV2+Intérêt!KV2 -> 50684.21337 | KW2: ='Base de données cumulée'!KV2+'Base de donnée'!KW2+Intérêt!KW2 -> 50744.70928 | KX2: ='Base de données cumulée'!KW2+'Base de donnée'!KX2+Intérêt!KX2 -> 50805.28585 | KY2: ='Base de données cumulée'!KX2+'Base de donnée'!KY2+Intérêt!KY2 -> 50865.94319 | KZ2: ='Base de données cumulée'!KY2+'Base de donnée'!KZ2+Intérêt!KZ2 -> 50926.68141 | LA2: ='Base de données cumulée'!KZ2+'Base de donnée'!LA2+Intérêt!LA2 -> 50987.50061 | LB2: ='Base de données cumulée'!LA2+'Base de donnée'!LB2+Intérêt!LB2 -> 51048.4009 | LC2: ='Base de données cumulée'!LB2+'Base de donnée'!LC2+Intérêt!LC2 -> 51109.38239 | LD2: ='Base de données cumulée'!LC2+'Base de donnée'!LD2+Intérêt!LD2 -> 51170.44519 | LE2: ='Base de données cumulée'!LD2+'Base de donnée'!LE2+Intérêt!LE2 -> 51231.58941 | LF2: ='Base de données cumulée'!LE2+'Base de donnée'!LF2+Intérêt!LF2 -> 51292.81515 | LG2: ='Base de données cumulée'!LF2+'Base de donnée'!LG2+Intérêt!LG2 -> 51354.12253 | LH2: ='Base de données cumulée'!LG2+'Base de donnée'!LH2+Intérêt!LH2 -> 51415.51166 | LI2: ='Base de données cumulée'!LH2+'Base de donnée'!LI2+Intérêt!LI2 -> 51476.98263 | LJ2: ='Base de données cumulée'!LI2+'Base de donnée'!LJ2+Intérêt!LJ2 -> 51538.53556 | LK2: ='Base de données cumulée'!LJ2+'Base de donnée'!LK2+Intérêt!LK2 -> 51600.17057 | LL2: ='Base de données cumulée'!LK2+'Base de donnée'!LL2+Intérêt!LL2 -> 51661.88776 | LM2: ='Base de données cumulée'!LL2+'Base de donnée'!LM2+Intérêt!LM2 -> 51723.68723 | LN2: ='Base de données cumulée'!LM2+'Base de donnée'!LN2+Intérêt!LN2 -> 51785.56911 | LO2: ='Base de données cumulée'!LM2+'Base de donnée'!LO2+Intérêt!LO2 -> 53186.33054 | LP2: ='Base de données cumulée'!LO2+'Base de donnée'!LP2+Intérêt!LP2 -> 53250.16261 | LQ2: ='Base de données cumulée'!LP2+'Base de donnée'!LQ2+Intérêt!LQ2 -> 53314.07978 | LR2: ='Base de données cumulée'!LQ2+'Base de donnée'!LR2+Intérêt!LR2 -> 53378.08218 | LS2: ='Base de données cumulée'!LR2+'Base de donnée'!LS2+Intérêt!LS2 -> 53442.16992 | LT2: ='Base de données cumulée'!LS2+'Base de donnée'!LT2+Intérêt!LT2 -> 53506.3431 | LU2: ='Base de données cumulée'!LT2+'Base de donnée'!LU2+Intérêt!LU2 -> 53570.60185 | LV2: ='Base de données cumulée'!LU2+'Base de donnée'!LV2+Intérêt!LV2 -> 53634.94628 | LW2: ='Base de données cumulée'!LV2+'Base de donnée'!LW2+Intérêt!LW2 -> 53699.3765 | LX2: ='Base de données cumulée'!LW2+'Base de donnée'!LX2+Intérêt!LX2 -> 53763.89263 | LY2: ='Base de données cumulée'!LX2+'Base de donnée'!LY2+Intérêt!LY2 -> 53828.49477 | LZ2: ='Base de données cumulée'!LY2+'Base de donnée'!LZ2+Intérêt!LZ2 -> 53893.18306 | MA2: ='Base de données cumulée'!LZ2+'Base de donnée'!MA2+Intérêt!MA2 -> 53957.95759 | MB2: ='Base de données cumulée'!MA2+'Base de donnée'!MB2+Intérêt!MB2 -> 54022.8185 | MC2: ='Base de données cumulée'!MB2+'Base de donnée'!MC2+Intérêt!MC2 -> 54087.76588 | MD2: ='Base de données cumulée'!MC2+'Base de donnée'!MD2+Intérêt!MD2 -> 54152.79986 | ME2: ='Base de données cumulée'!MD2+'Base de donnée'!ME2+Intérêt!ME2 -> 54217.92055 | MF2: ='Base de données cumulée'!ME2+'Base de donnée'!MF2+Intérêt!MF2 -> 54283.12807 | MG2: ='Base de données cumulée'!MF2+'Base de donnée'!MG2+Intérêt!MG2 -> 54348.42253 | MH2: ='Base de données cumulée'!MG2+'Base de donnée'!MH2+Intérêt!MH2 -> 54413.80405 | MI2: ='Base de données cumulée'!MH2+'Base de donnée'!MI2+Intérêt!MI2 -> 54479.27275 | MJ2: ='Base de données cumulée'!MI2+'Base de donnée'!MJ2+Intérêt!MJ2 -> 54544.82874 | MK2: ='Base de données cumulée'!MJ2+'Base de donnée'!MK2+Intérêt!MK2 -> 54610.47214 | ML2: ='Base de données cumulée'!MK2+'Base de donnée'!ML2+Intérêt!ML2 -> 54676.20306 | MM2: ='Base de données cumulée'!ML2+'Base de donnée'!MM2+Intérêt!MM2 -> 54742.02162 | MN2: ='Base de données cumulée'!ML2+'Base de donnée'!MN2+Intérêt!MN2 -> 56231.89413 | MO2: ='Base de données cumulée'!MN2+'Base de donnée'!MO2+Intérêt!MO2 -> 56299.78695 | MP2: ='Base de données cumulée'!MO2+'Base de donnée'!MP2+Intérêt!MP2 -> 56367.77029 | MQ2: ='Base de données cumulée'!MP2+'Base de donnée'!MQ2+Intérêt!MQ2 -> 56435.84428 | MR2: ='Base de données cumulée'!MQ2+'Base de donnée'!MR2+Intérêt!MR2 -> 56504.00903 | MS2: ='Base de données cumulée'!MR2+'Base de donnée'!MS2+Intérêt!MS2 -> 56572.26466 | MT2: ='Base de données cumulée'!MS2+'Base de donnée'!MT2+Intérêt!MT2 -> 56640.61131 | MU2: ='Base de données cumulée'!MT2+'Base de donnée'!MU2+Intérêt!MU2 -> 56709.04908 | MV2: ='Base de données cumulée'!MU2+'Base de donnée'!MV2+Intérêt!MV2 -> 56777.57811 | MW2: ='Base de données cumulée'!MV2+'Base de donnée'!MW2+Intérêt!MW2 -> 56846.1985 | MX2: ='Base de données cumulée'!MW2+'Base de donnée'!MX2+Intérêt!MX2 -> 56914.91039 | MY2: ='Base de données cumulée'!MX2+'Base de donnée'!MY2+Intérêt!MY2 -> 56983.7139 | MZ2: ='Base de données cumulée'!MY2+'Base de donnée'!MZ2+Intérêt!MZ2 -> 57052.60914 | NA2: ='Base de données cumulée'!MZ2+'Base de donnée'!NA2+Intérêt!NA2 -> 57121.59624 | NB2: ='Base de données cumulée'!NA2+'Base de donnée'!NB2+Intérêt!NB2 -> 57190.67533 | NC2: ='Base de données cumulée'!NB2+'Base de donnée'!NC2+Intérêt!NC2 -> 57259.84652 | ND2: ='Base de données cumulée'!NC2+'Base de donnée'!ND2+Intérêt!ND2 -> 57329.10994 | NE2: ='Base de données cumulée'!ND2+'Base de donnée'!NE2+Intérêt!NE2 -> 57398.46572 | NF2: ='Base de données cumulée'!NE2+'Base de donnée'!NF2+Intérêt!NF2 -> 57467.91396 | NG2: ='Base de données cumulée'!NF2+'Base de donnée'!NG2+Intérêt!NG2 -> 57537.4548 | NH2: ='Base de données cumulée'!NG2+'Base de donnée'!NH2+Intérêt!NH2 -> 57607.08837 | NI2: ='Base de données cumulée'!NH2+'Base de donnée'!NI2+Intérêt!NI2 -> 57676.81478 | NJ2: ='Base de données cumulée'!NI2+'Base de donnée'!NJ2+Intérêt!NJ2 -> 57746.63416 | NK2: ='Base de données cumulée'!NJ2+'Base de donnée'!NK2+Intérêt!NK2 -> 57816.54663 | NL2: ='Base de données cumulée'!NK2+'Base de donnée'!NL2+Intérêt!NL2 -> 57886.55231 | NM2: ='Base de données cumulée'!NK2+'Base de donnée'!NM2+Intérêt!NM2 -> 59471.20481 | NN2: ='Base de données cumulée'!NM2+'Base de donnée'!NN2+Intérêt!NN2 -> 59543.41671 | NO2: ='Base de données cumulée'!NN2+'Base de donnée'!NO2+Intérêt!NO2 -> 59615.72489 | NP2: ='Base de données cumulée'!NO2+'Base de donnée'!NP2+Intérêt!NP2 -> 59688.12948 | NQ2: ='Base de données cumulée'!NP2+'Base de donnée'!NQ2+Intérêt!NQ2 -> 59760.63061 | NR2: ='Base de données cumulée'!NQ2+'Base de donnée'!NR2+Intérêt!NR2 -> 59833.22841 | NS2: ='Base de données cumulée'!NR2+'Base de donnée'!NS2+Intérêt!NS2 -> 59905.92301 | NT2: ='Base de données cumulée'!NS2+'Base de donnée'!NT2+Intérêt!NT2 -> 59978.71453 | NU2: ='Base de données cumulée'!NT2+'Base de donnée'!NU2+Intérêt!NU2 -> 60051.60311 | NV2: ='Base de données cumulée'!NU2+'Base de donnée'!NV2+Intérêt!NV2 -> 60124.58887 | NW2: ='Base de données cumulée'!NV2+'Base de donnée'!NW2+Intérêt!NW2 -> 60197.67194 | NX2: ='Base de données cumulée'!NW2+'Base de donnée'!NX2+Intérêt!NX2 -> 60270.85247 | NY2: ='Base de données cumulée'!NX2+'Base de donnée'!NY2+Intérêt!NY2 -> 60344.13056 | NZ2: ='Base de données cumulée'!NY2+'Base de donnée'!NZ2+Intérêt!NZ2 -> 60417.50636 | OA2: ='Base de données cumulée'!NZ2+'Base de donnée'!OA2+Intérêt!OA2 -> 60490.97999 | OB2: ='Base de données cumulée'!OA2+'Base de donnée'!OB2+Intérêt!OB2 -> 60564.55159 | OC2: ='Base de données cumulée'!OB2+'Base de donnée'!OC2+Intérêt!OC2 -> 60638.22129 | OD2: ='Base de données cumulée'!OC2+'Base de donnée'!OD2+Intérêt!OD2 -> 60711.98921 | OE2: ='Base de données cumulée'!OD2+'Base de donnée'!OE2+Intérêt!OE2 -> 60785.85548 | OF2: ='Base de données cumulée'!OE2+'Base de donnée'!OF2+Intérêt!OF2 -> 60859.82025 | OG2: ='Base de données cumulée'!OF2+'Base de donnée'!OG2+Intérêt!OG2 -> 60933.88363 | OH2: ='Base de données cumulée'!OG2+'Base de donnée'!OH2+Intérêt!OH2 -> 61008.04577 | OI2: ='Base de données cumulée'!OH2+'Base de donnée'!OI2+Intérêt!OI2 -> 61082.30679 | OJ2: ='Base de données cumulée'!OI2+'Base de donnée'!OJ2+Intérêt!OJ2 -> 61156.66682 | OK2: ='Base de données cumulée'!OJ2+'Base de donnée'!OK2+Intérêt!OK2 -> 61231.126 | OL2: ='Base de données cumulée'!OJ2+'Base de donnée'!OL2+Intérêt!OL2 -> 62916.58802 | OM2: ='Base de données cumulée'!OL2+'Base de donnée'!OM2+Intérêt!OM2 -> 62993.39376 | ON2: ='Base de données cumulée'!OM2+'Base de donnée'!ON2+Intérêt!ON2 -> 63070.30191 | OO2: ='Base de données cumulée'!ON2+'Base de donnée'!OO2+Intérêt!OO2 -> 63147.31261 | OP2: ='Base de données cumulée'!OO2+'Base de donnée'!OP2+Intérêt!OP2 -> 63224.42598 | OQ2: ='Base de données cumulée'!OP2+'Base de donnée'!OQ2+Intérêt!OQ2 -> 63301.64217 | OR2: ='Base de données cumulée'!OQ2+'Base de donnée'!OR2+Intérêt!OR2 -> 63378.96132 | OS2: ='Base de données cumulée'!OR2+'Base de donnée'!OS2+Intérêt!OS2 -> 63456.38356 | OT2: ='Base de données cumulée'!OS2+'Base de donnée'!OT2+Intérêt!OT2 -> 63533.90903 | OU2: ='Base de données cumulée'!OT2+'Base de donnée'!OU2+Intérêt!OU2 -> 63611.53787 | OV2: ='Base de données cumulée'!OU2+'Base de donnée'!OV2+Intérêt!OV2 -> 63689.27021 | OW2: ='Base de données cumulée'!OV2+'Base de donnée'!OW2+Intérêt!OW2 -> 63767.1062 | OX2: ='Base de données cumulée'!OW2+'Base de donnée'!OX2+Intérêt!OX2 -> 63845.04596 | OY2: ='Base de données cumulée'!OX2+'Base de donnée'!OY2+Intérêt!OY2 -> 63923.08965 | OZ2: ='Base de données cumulée'!OY2+'Base de donnée'!OZ2+Intérêt!OZ2 -> 64001.23739 | PA2: ='Base de données cumulée'!OZ2+'Base de donnée'!PA2+Intérêt!PA2 -> 64079.48933 | PB2: ='Base de données cumulée'!PA2+'Base de donnée'!PB2+Intérêt!PB2 -> 64157.84561 | PC2: ='Base de données cumulée'!PB2+'Base de donnée'!PC2+Intérêt!PC2 -> 64236.30636 | PD2: ='Base de données cumulée'!PC2+'Base de donnée'!PD2+Intérêt!PD2 -> 64314.87173 | PE2: ='Base de données cumulée'!PD2+'Base de donnée'!PE2+Intérêt!PE2 -> 64393.54185 | PF2: ='Base de données cumulée'!PE2+'Base de donnée'!PF2+Intérêt!PF2 -> 64472.31687 | PG2: ='Base de données cumulée'!PF2+'Base de donnée'!PG2+Intérêt!PG2 -> 64551.19691 | PH2: ='Base de données cumulée'!PG2+'Base de donnée'!PH2+Intérêt!PH2 -> 64630.18213 | PI2: ='Base de données cumulée'!PH2+'Base de donnée'!PI2+Intérêt!PI2 -> 64709.27267 | PJ2: ='Base de données cumulée'!PI2+'Base de donnée'!PJ2+Intérêt!PJ2 -> 64788.46866 | PK2: ='Base de données cumulée'!PI2+'Base de donnée'!PK2+Intérêt!PK2 -> 66581.15331 | PL2: ='Base de données cumulée'!PK2+'Base de donnée'!PL2+Intérêt!PL2 -> 66662.84514 | PM2: ='Base de données cumulée'!PL2+'Base de donnée'!PM2+Intérêt!PM2 -> 66744.64589 | PN2: ='Base de données cumulée'!PM2+'Base de donnée'!PN2+Intérêt!PN2 -> 66826.55571 | PO2: ='Base de données cumulée'!PN2+'Base de donnée'!PO2+Intérêt!PO2 -> 66908.57474 | PP2: ='Base de données cumulée'!PO2+'Base de donnée'!PP2+Intérêt!PP2 -> 66990.70313 | PQ2: ='Base de données cumulée'!PP2+'Base de donnée'!PQ2+Intérêt!PQ2 -> 67072.94103 | PR2: ='Base de données cumulée'!PQ2+'Base de donnée'!PR2+Intérêt!PR2 -> 67155.28858 | PS2: ='Base de données cumulée'!PR2+'Base de donnée'!PS2+Intérêt!PS2 -> 67237.74592 | PT2: ='Base de données cumulée'!PS2+'Base de donnée'!PT2+Intérêt!PT2 -> 67320.3132 | PU2: ='Base de données cumulée'!PT2+'Base de donnée'!PU2+Intérêt!PU2 -> 67402.99058 | PV2: ='Base de données cumulée'!PU2+'Base de donnée'!PV2+Intérêt!PV2 -> 67485.77819 | PW2: ='Base de données cumulée'!PV2+'Base de donnée'!PW2+Intérêt!PW2 -> 67568.67619 | PX2: ='Base de données cumulée'!PW2+'Base de donnée'!PX2+Intérêt!PX2 -> 67651.68472 | PY2: ='Base de données cumulée'!PX2+'Base de donnée'!PY2+Intérêt!PY2 -> 67734.80392 | PZ2: ='Base de données cumulée'!PY2+'Base de donnée'!PZ2+Intérêt!PZ2 -> 67818.03395 | QA2: ='Base de données cumulée'!PZ2+'Base de donnée'!QA2+Intérêt!QA2 -> 67901.37495 | QB2: ='Base de données cumulée'!QA2+'Base de donnée'!QB2+Intérêt!QB2 -> 67984.82708 | QC2: ='Base de données cumulée'!QB2+'Base de donnée'!QC2+Intérêt!QC2 -> 68068.39047 | QD2: ='Base de données cumulée'!QC2+'Base de donnée'!QD2+Intérêt!QD2 -> 68152.06529 | QE2: ='Base de données cumulée'!QD2+'Base de donnée'!QE2+Intérêt!QE2 -> 68235.85166 | QF2: ='Base de données cumulée'!QE2+'Base de donnée'!QF2+Intérêt!QF2 -> 68319.74976 | QG2: ='Base de données cumulée'!QF2+'Base de donnée'!QG2+Intérêt!QG2 -> 68403.75972 | QH2: ='Base de données cumulée'!QG2+'Base de donnée'!QH2+Intérêt!QH2 -> 68487.88169 | QI2: ='Base de données cumulée'!QH2+'Base de donnée'!QI2+Intérêt!QI2 -> 68572.11582 | QJ2: ='Base de données cumulée'!QH2+'Base de donnée'!QJ2+Intérêt!QJ2 -> 70478.8442 | QK2: ='Base de données cumulée'!QJ2+'Base de donnée'!QK2+Intérêt!QK2 -> 70565.73295 | QL2: ='Base de données cumulée'!QK2+'Base de donnée'!QL2+Intérêt!QL2 -> 70652.73755 | QM2: ='Base de données cumulée'!QL2+'Base de donnée'!QM2+Intérêt!QM2 -> 70739.85816 | QN2: ='Base de données cumulée'!QM2+'Base de donnée'!QN2+Intérêt!QN2 -> 70827.09493 | QO2: ='Base de données cumulée'!QN2+'Base de donnée'!QO2+Intérêt!QO2 -> 70914.44802 | QP2: ='Base de données cumulée'!QO2+'Base de donnée'!QP2+Intérêt!QP2 -> 71001.91757 | QQ2: ='Base de données cumulée'!QP2+'Base de donnée'!QQ2+Intérêt!QQ2 -> 71089.50375 | QR2: ='Base de données cumulée'!QQ2+'Base de donnée'!QR2+Intérêt!QR2 -> 71177.20672 | QS2: ='Base de données cumulée'!QR2+'Base de donnée'!QS2+Intérêt!QS2 -> 71265.02662 | QT2: ='Base de données cumulée'!QS2+'Base de donnée'!QT2+Intérêt!QT2 -> 71352.96361 | QU2: ='Base de données cumulée'!QT2+'Base de donnée'!QU2+Intérêt!QU2 -> 71441.01785 | QV2: ='Base de données cumulée'!QU2+'Base de donnée'!QV2+Intérêt!QV2 -> 71529.1895 | QW2: ='Base de données cumulée'!QV2+'Base de donnée'!QW2+Intérêt!QW2 -> 71617.47871 | QX2: ='Base de données cumulée'!QW2+'Base de donnée'!QX2+Intérêt!QX2 -> 71705.88564 | QY2: ='Base de données cumulée'!QX2+'Base de donnée'!QY2+Intérêt!QY2 -> 71794.41045 | QZ2: ='Base de données cumulée'!QY2+'Base de donnée'!QZ2+Intérêt!QZ2 -> 71883.05329 | RA2: ='Base de données cumulée'!QZ2+'Base de donnée'!RA2+Intérêt!RA2 -> 71971.81432 | RB2: ='Base de données cumulée'!RA2+'Base de donnée'!RB2+Intérêt!RB2 -> 72060.6937 | RC2: ='Base de données cumulée'!RB2+'Base de donnée'!RC2+Intérêt!RC2 -> 72149.69158 | RD2: ='Base de données cumulée'!RC2+'Base de donnée'!RD2+Intérêt!RD2 -> 72238.80813 | RE2: ='Base de données cumulée'!RD2+'Base de donnée'!RE2+Intérêt!RE2 -> 72328.0435 | RF2: ='Base de données cumulée'!RE2+'Base de donnée'!RF2+Intérêt!RF2 -> 72417.39784 | RG2: ='Base de données cumulée'!RF2+'Base de donnée'!RG2+Intérêt!RG2 -> 72506.87133 | RH2: ='Base de données cumulée'!RG2+'Base de donnée'!RH2+Intérêt!RH2 -> 72596.46412 | RI2: ='Base de données cumulée'!RG2+'Base de donnée'!RI2+Intérêt!RI2 -> 74624.49125 | RJ2: ='Base de données cumulée'!RI2+'Base de donnée'!RJ2+Intérêt!RJ2 -> 74716.90753 | RK2: ='Base de données cumulée'!RJ2+'Base de donnée'!RK2+Intérêt!RK2 -> 74809.44704 | RL2: ='Base de données cumulée'!RK2+'Base de donnée'!RL2+Intérêt!RL2 -> 74902.10992 | RM2: ='Base de données cumulée'!RL2+'Base de donnée'!RM2+Intérêt!RM2 -> 74994.89636 | RN2: ='Base de données cumulée'!RM2+'Base de donnée'!RN2+Intérêt!RN2 -> 75087.80651 | RO2: ='Base de données cumulée'!RN2+'Base de donnée'!RO2+Intérêt!RO2 -> 75180.84055 | RP2: ='Base de données cumulée'!RO2+'Base de donnée'!RP2+Intérêt!RP2 -> 75273.99863 | RQ2: ='Base de données cumulée'!RP2+'Base de donnée'!RQ2+Intérêt!RQ2 -> 75367.28092 | RR2: ='Base de données cumulée'!RQ2+'Base de donnée'!RR2+Intérêt!RR2 -> 75460.68758 | RS2: ='Base de données cumulée'!RR2+'Base de donnée'!RS2+Intérêt!RS2 -> 75554.21879 | RT2: ='Base de données cumulée'!RS2+'Base de donnée'!RT2+Intérêt!RT2 -> 75647.87471 | RU2: ='Base de données cumulée'!RT2+'Base de donnée'!RU2+Intérêt!RU2 -> 75741.6555 | RV2: ='Base de données cumulée'!RU2+'Base de donnée'!RV2+Intérêt!RV2 -> 75835.56133 | RW2: ='Base de données cumulée'!RV2+'Base de donnée'!RW2+Intérêt!RW2 -> 75929.59237 | RX2: ='Base de données cumulée'!RW2+'Base de donnée'!RX2+Intérêt!RX2 -> 76023.74879 | RY2: ='Base de données cumulée'!RX2+'Base de donnée'!RY2+Intérêt!RY2 -> 76118.03074 | RZ2: ='Base de données cumulée'!RY2+'Base de donnée'!RZ2+Intérêt!RZ2 -> 76212.43841 | SA2: ='Base de données cumulée'!RZ2+'Base de donnée'!SA2+Intérêt!SA2 -> 76306.97195 | SB2: ='Base de données cumulée'!SA2+'Base de donnée'!SB2+Intérêt!SB2 -> 76401.63154 | SC2: ='Base de données cumulée'!SB2+'Base de donnée'!SC2+Intérêt!SC2 -> 76496.41734 | SD2: ='Base de données cumulée'!SC2+'Base de donnée'!SD2+Intérêt!SD2 -> 76591.32952 | SE2: ='Base de données cumulée'!SD2+'Base de donnée'!SE2+Intérêt!SE2 -> 76686.36825 | SF2: ='Base de données cumulée'!SE2+'Base de donnée'!SF2+Intérêt!SF2 -> 76781.5337 | SG2: ='Base de données cumulée'!SF2+'Base de donnée'!SG2+Intérêt!SG2 -> 76876.82604 | SH2: ='Base de données cumulée'!SF2+'Base de donnée'!SH2+Intérêt!SH2 -> 79033.86849 | SI2: ='Base de données cumulée'!SH2+'Base de donnée'!SI2+Intérêt!SI2 -> 79132.16394 | SJ2: ='Base de données cumulée'!SI2+'Base de donnée'!SJ2+Intérêt!SJ2 -> 79230.59045 | SK2: ='Base de données cumulée'!SJ2+'Base de donnée'!SK2+Intérêt!SK2 -> 79329.14819 | SL2: ='Base de données cumulée'!SK2+'Base de donnée'!SL2+Intérêt!SL2 -> 79427.83735 | SM2: ='Base de données cumulée'!SL2+'Base de donnée'!SM2+Intérêt!SM2 -> 79526.65809 | SN2: ='Base de données cumulée'!SM2+'Base de donnée'!SN2+Intérêt!SN2 -> 79625.61059 | SO2: ='Base de données cumulée'!SN2+'Base de donnée'!SO2+Intérêt!SO2 -> 79724.69503 | SP2: ='Base de données cumulée'!SO2+'Base de donnée'!SP2+Intérêt!SP2 -> 79823.91158 | SQ2: ='Base de données cumulée'!SP2+'Base de donnée'!SQ2+Intérêt!SQ2 -> 79923.26042 | SR2: ='Base de données cumulée'!SQ2+'Base de donnée'!SR2+Intérêt!SR2 -> 80022.74173 | SS2: ='Base de données cumulée'!SR2+'Base de donnée'!SS2+Intérêt!SS2 -> 80122.35568 | ST2: ='Base de données cumulée'!SS2+'Base de donnée'!ST2+Intérêt!ST2 -> 80222.10244 | SU2: ='Base de données cumulée'!ST2+'Base de donnée'!SU2+Intérêt!SU2 -> 80321.98221 | SV2: ='Base de données cumulée'!SU2+'Base de donnée'!SV2+Intérêt!SV2 -> 80421.99514 | SW2: ='Base de données cumulée'!SV2+'Base de donnée'!SW2+Intérêt!SW2 -> 80522.14143 | SX2: ='Base de données cumulée'!SW2+'Base de donnée'!SX2+Intérêt!SX2 -> 80622.42124 | SY2: ='Base de données cumulée'!SX2+'Base de donnée'!SY2+Intérêt!SY2 -> 80722.83476 | SZ2: ='Base de données cumulée'!SY2+'Base de donnée'!SZ2+Intérêt!SZ2 -> 80823.38216 | TA2: ='Base de données cumulée'!SZ2+'Base de donnée'!TA2+Intérêt!TA2 -> 80924.06363 | TB2: ='Base de données cumulée'!TA2+'Base de donnée'!TB2+Intérêt!TB2 -> 81024.87934 | TC2: ='Base de données cumulée'!TB2+'Base de donnée'!TC2+Intérêt!TC2 -> 81125.82947 | TD2: ='Base de données cumulée'!TC2+'Base de donnée'!TD2+Intérêt!TD2 -> 81226.9142 | TE2: ='Base de données cumulée'!TD2+'Base de donnée'!TE2+Intérêt!TE2 -> 81328.13371 | TF2: ='Base de données cumulée'!TE2+'Base de donnée'!TF2+Intérêt!TF2 -> 81429.48818
A3: Jean ABSCHEN | B3: ='Base de donnée'!B3 -> 2500 | C3: ='Base de données cumulée'!B3+'Base de donnée'!C3+Intérêt!C3 -> 2701.079167 | D3: ='Base de données cumulée'!C3+'Base de donnée'!D3+Intérêt!D3 -> 2702.245133 | E3: ='Base de données cumulée'!D3+'Base de donnée'!E3+Intérêt!E3 -> 2703.411602 | F3: ='Base de données cumulée'!E3+'Base de donnée'!F3+Intérêt!F3 -> 2704.578574 | G3: ='Base de données cumulée'!F3+'Base de donnée'!G3+Intérêt!G3 -> 2705.746051 | H3: ='Base de données cumulée'!G3+'Base de donnée'!H3+Intérêt!H3 -> 2706.914031 | I3: ='Base de données cumulée'!H3+'Base de donnée'!I3+Intérêt!I3 -> 2708.082516 | J3: ='Base de données cumulée'!I3+'Base de donnée'!J3+Intérêt!J3 -> 2709.251505 | K3: ='Base de données cumulée'!J3+'Base de donnée'!K3+Intérêt!K3 -> 2710.420998 | L3: ='Base de données cumulée'!K3+'Base de donnée'!L3+Intérêt!L3 -> 2711.590997 | M3: ='Base de données cumulée'!L3+'Base de donnée'!M3+Intérêt!M3 -> 2712.7615 | N3: ='Base de données cumulée'!M3+'Base de donnée'!N3+Intérêt!N3 -> 2713.932509 | O3: ='Base de données cumulée'!N3+'Base de donnée'!O3+Intérêt!O3 -> 2715.104023 | P3: ='Base de données cumulée'!O3+'Base de donnée'!P3+Intérêt!P3 -> 2716.276043 | Q3: ='Base de données cumulée'!P3+'Base de donnée'!Q3+Intérêt!Q3 -> 2717.448569 | R3: ='Base de données cumulée'!Q3+'Base de donnée'!R3+Intérêt!R3 -> 2718.621601 | S3: ='Base de données cumulée'!R3+'Base de donnée'!S3+Intérêt!S3 -> 2719.795139 | T3: ='Base de données cumulée'!S3+'Base de donnée'!T3+Intérêt!T3 -> 2720.969184 | U3: ='Base de données cumulée'!T3+'Base de donnée'!U3+Intérêt!U3 -> 2722.143736 | V3: ='Base de données cumulée'!U3+'Base de donnée'!V3+Intérêt!V3 -> 2723.318794 | W3: ='Base de données cumulée'!V3+'Base de donnée'!W3+Intérêt!W3 -> 2724.49436 | X3: ='Base de données cumulée'!W3+'Base de donnée'!X3+Intérêt!X3 -> 2725.670434 | Y3: ='Base de données cumulée'!X3+'Base de donnée'!Y3+Intérêt!Y3 -> 2726.847015 | Z3: ='Base de données cumulée'!Y3+'Base de donnée'!Z3+Intérêt!Z3 -> 2728.024104 | AA3: ='Base de données cumulée'!Y3+'Base de donnée'!AA3+Intérêt!AA3 -> 2754.871118 | AB3: ='Base de données cumulée'!AA3+'Base de donnée'!AB3+Intérêt!AB3 -> 2755.324562 | AC3: ='Base de données cumulée'!AB3+'Base de donnée'!AC3+Intérêt!AC3 -> 2755.778424 | AD3: ='Base de données cumulée'!AC3+'Base de donnée'!AD3+Intérêt!AD3 -> 2756.232703 | AE3: ='Base de données cumulée'!AD3+'Base de donnée'!AE3+Intérêt!AE3 -> 2756.6874 | AF3: ='Base de données cumulée'!AE3+'Base de donnée'!AF3+Intérêt!AF3 -> 2757.142517 | AG3: ='Base de données cumulée'!AF3+'Base de donnée'!AG3+Intérêt!AG3 -> 2757.598052 | AH3: ='Base de données cumulée'!AG3+'Base de donnée'!AH3+Intérêt!AH3 -> 2758.054007 | AI3: ='Base de données cumulée'!AH3+'Base de donnée'!AI3+Intérêt!AI3 -> 2758.510382 | AJ3: ='Base de données cumulée'!AI3+'Base de donnée'!AJ3+Intérêt!AJ3 -> 2758.967177 | AK3: ='Base de données cumulée'!AJ3+'Base de donnée'!AK3+Intérêt!AK3 -> 2759.424392 | AL3: ='Base de données cumulée'!AK3+'Base de donnée'!AL3+Intérêt!AL3 -> 2759.882029 | AM3: ='Base de données cumulée'!AL3+'Base de donnée'!AM3+Intérêt!AM3 -> 2760.340087 | AN3: ='Base de données cumulée'!AM3+'Base de donnée'!AN3+Intérêt!AN3 -> 2760.798567 | AO3: ='Base de données cumulée'!AN3+'Base de donnée'!AO3+Intérêt!AO3 -> 2761.257469 | AP3: ='Base de données cumulée'!AO3+'Base de donnée'!AP3+Intérêt!AP3 -> 2761.716793 | AQ3: ='Base de données cumulée'!AP3+'Base de donnée'!AQ3+Intérêt!AQ3 -> 2762.176541 | AR3: ='Base de données cumulée'!AQ3+'Base de donnée'!AR3+Intérêt!AR3 -> 2762.636712 | AS3: ='Base de données cumulée'!AR3+'Base de donnée'!AS3+Intérêt!AS3 -> 2763.097307 | AT3: ='Base de données cumulée'!AS3+'Base de donnée'!AT3+Intérêt!AT3 -> 2763.558325 | AU3: ='Base de données cumulée'!AT3+'Base de donnée'!AU3+Intérêt!AU3 -> 2764.019769 | AV3: ='Base de données cumulée'!AU3+'Base de donnée'!AV3+Intérêt!AV3 -> 2764.481637 | AW3: ='Base de données cumulée'!AV3+'Base de donnée'!AW3+Intérêt!AW3 -> 2764.94393 | AX3: ='Base de données cumulée'!AW3+'Base de donnée'!AX3+Intérêt!AX3 -> 2765.40665 | AY3: ='Base de données cumulée'!AX3+'Base de donnée'!AY3+Intérêt!AY3 -> 2765.869795 | AZ3: ='Base de données cumulée'!AX3+'Base de donnée'!AZ3+Intérêt!AZ3 -> 2776.405326 | BA3: ='Base de données cumulée'!AZ3+'Base de donnée'!BA3+Intérêt!BA3 -> 2776.808032 | BB3: ='Base de données cumulée'!BA3+'Base de donnée'!BB3+Intérêt!BB3 -> 2777.211099 | BC3: ='Base de données cumulée'!BB3+'Base de donnée'!BC3+Intérêt!BC3 -> 2777.614527 | BD3: ='Base de données cumulée'!BC3+'Base de donnée'!BD3+Intérêt!BD3 -> 2778.018316 | BE3: ='Base de données cumulée'!BD3+'Base de donnée'!BE3+Intérêt!BE3 -> 2778.422466 | BF3: ='Base de données cumulée'!BE3+'Base de donnée'!BF3+Intérêt!BF3 -> 2778.826979 | BG3: ='Base de données cumulée'!BF3+'Base de donnée'!BG3+Intérêt!BG3 -> 2779.231854 | BH3: ='Base de données cumulée'!BG3+'Base de donnée'!BH3+Intérêt!BH3 -> 2779.637091 | BI3: ='Base de données cumulée'!BH3+'Base de donnée'!BI3+Intérêt!BI3 -> 2780.042691 | BJ3: ='Base de données cumulée'!BI3+'Base de donnée'!BJ3+Intérêt!BJ3 -> 2780.448654 | BK3: ='Base de données cumulée'!BJ3+'Base de donnée'!BK3+Intérêt!BK3 -> 2780.854981 | BL3: ='Base de données cumulée'!BK3+'Base de donnée'!BL3+Intérêt!BL3 -> 2781.261671 | BM3: ='Base de données cumulée'!BL3+'Base de donnée'!BM3+Intérêt!BM3 -> 2781.668726 | BN3: ='Base de données cumulée'!BM3+'Base de donnée'!BN3+Intérêt!BN3 -> 2782.076145 | BO3: ='Base de données cumulée'!BN3+'Base de donnée'!BO3+Intérêt!BO3 -> 2782.483929 | BP3: ='Base de données cumulée'!BO3+'Base de donnée'!BP3+Intérêt!BP3 -> 2782.892078 | BQ3: ='Base de données cumulée'!BP3+'Base de donnée'!BQ3+Intérêt!BQ3 -> 2783.300593 | BR3: ='Base de données cumulée'!BQ3+'Base de donnée'!BR3+Intérêt!BR3 -> 2783.709473 | BS3: ='Base de données cumulée'!BR3+'Base de donnée'!BS3+Intérêt!BS3 -> 2784.11872 | BT3: ='Base de données cumulée'!BS3+'Base de donnée'!BT3+Intérêt!BT3 -> 2784.528333 | BU3: ='Base de données cumulée'!BT3+'Base de donnée'!BU3+Intérêt!BU3 -> 2784.938313 | BV3: ='Base de données cumulée'!BU3+'Base de donnée'!BV3+Intérêt!BV3 -> 2785.34866 | BW3: ='Base de données cumulée'!BV3+'Base de donnée'!BW3+Intérêt!BW3 -> 2785.759374 | BX3: ='Base de données cumulée'!BW3+'Base de donnée'!BX3+Intérêt!BX3 -> 2786.170456 | BY3: ='Base de données cumulée'!BW3+'Base de donnée'!BY3+Intérêt!BY3 -> 2795.524504 | BZ3: ='Base de données cumulée'!BY3+'Base de donnée'!BZ3+Intérêt!BZ3 -> 2795.863958 | CA3: ='Base de données cumulée'!BZ3+'Base de donnée'!CA3+Intérêt!CA3 -> 2796.203707 | CB3: ='Base de données cumulée'!CA3+'Base de donnée'!CB3+Intérêt!CB3 -> 2796.54375 | CC3: ='Base de données cumulée'!CB3+'Base de donnée'!CC3+Intérêt!CC3 -> 2796.884088 | CD3: ='Base de données cumulée'!CC3+'Base de donnée'!CD3+Intérêt!CD3 -> 2797.224721 | CE3: ='Base de données cumulée'!CD3+'Base de donnée'!CE3+Intérêt!CE3 -> 2797.565649 | CF3: ='Base de données cumulée'!CE3+'Base de donnée'!CF3+Intérêt!CF3 -> 2797.906873 | CG3: ='Base de données cumulée'!CF3+'Base de donnée'!CG3+Intérêt!CG3 -> 2798.248392 | CH3: ='Base de données cumulée'!CG3+'Base de donnée'!CH3+Intérêt!CH3 -> 2798.590207 | CI3: ='Base de données cumulée'!CH3+'Base de donnée'!CI3+Intérêt!CI3 -> 2798.932319 | CJ3: ='Base de données cumulée'!CI3+'Base de donnée'!CJ3+Intérêt!CJ3 -> 2799.274727 | CK3: ='Base de données cumulée'!CJ3+'Base de donnée'!CK3+Intérêt!CK3 -> 2799.617431 | CL3: ='Base de données cumulée'!CK3+'Base de donnée'!CL3+Intérêt!CL3 -> 2799.960433 | CM3: ='Base de données cumulée'!CL3+'Base de donnée'!CM3+Intérêt!CM3 -> 2800.303732 | CN3: ='Base de données cumulée'!CM3+'Base de donnée'!CN3+Intérêt!CN3 -> 2800.647329 | CO3: ='Base de données cumulée'!CN3+'Base de donnée'!CO3+Intérêt!CO3 -> 2800.991223 | CP3: ='Base de données cumulée'!CO3+'Base de donnée'!CP3+Intérêt!CP3 -> 2801.335416 | CQ3: ='Base de données cumulée'!CP3+'Base de donnée'!CQ3+Intérêt!CQ3 -> 2801.679906 | CR3: ='Base de données cumulée'!CQ3+'Base de donnée'!CR3+Intérêt!CR3 -> 2802.024696 | CS3: ='Base de données cumulée'!CR3+'Base de donnée'!CS3+Intérêt!CS3 -> 2802.369784 | CT3: ='Base de données cumulée'!CS3+'Base de donnée'!CT3+Intérêt!CT3 -> 2802.715171 | CU3: ='Base de données cumulée'!CT3+'Base de donnée'!CU3+Intérêt!CU3 -> 2803.060857 | CV3: ='Base de données cumulée'!CU3+'Base de donnée'!CV3+Intérêt!CV3 -> 2803.406843 | CW3: ='Base de données cumulée'!CV3+'Base de donnée'!CW3+Intérêt!CW3 -> 2803.753129 | CX3: ='Base de données cumulée'!CV3+'Base de donnée'!CX3+Intérêt!CX3 -> 2811.635469 | CY3: ='Base de données cumulée'!CX3+'Base de donnée'!CY3+Intérêt!CY3 -> 2811.930311 | CZ3: ='Base de données cumulée'!CY3+'Base de donnée'!CZ3+Intérêt!CZ3 -> 2812.225402 | DA3: ='Base de données cumulée'!CZ3+'Base de donnée'!DA3+Intérêt!DA3 -> 2812.520742 | DB3: ='Base de données cumulée'!DA3+'Base de donnée'!DB3+Intérêt!DB3 -> 2812.816333 | DC3: ='Base de données cumulée'!DB3+'Base de donnée'!DC3+Intérêt!DC3 -> 2813.112173 | DD3: ='Base de données cumulée'!DC3+'Base de donnée'!DD3+Intérêt!DD3 -> 2813.408264 | DE3: ='Base de données cumulée'!DD3+'Base de donnée'!DE3+Intérêt!DE3 -> 2813.704605 | DF3: ='Base de données cumulée'!DE3+'Base de donnée'!DF3+Intérêt!DF3 -> 2814.001197 | DG3: ='Base de données cumulée'!DF3+'Base de donnée'!DG3+Intérêt!DG3 -> 2814.29804 | DH3: ='Base de données cumulée'!DG3+'Base de donnée'!DH3+Intérêt!DH3 -> 2814.595133 | DI3: ='Base de données cumulée'!DH3+'Base de donnée'!DI3+Intérêt!DI3 -> 2814.892478 | DJ3: ='Base de données cumulée'!DI3+'Base de donnée'!DJ3+Intérêt!DJ3 -> 2815.190075 | DK3: ='Base de données cumulée'!DJ3+'Base de donnée'!DK3+Intérêt!DK3 -> 2815.487923 | DL3: ='Base de données cumulée'!DK3+'Base de donnée'!DL3+Intérêt!DL3 -> 2815.786023 | DM3: ='Base de données cumulée'!DL3+'Base de donnée'!DM3+Intérêt!DM3 -> 2816.084376 | DN3: ='Base de données cumulée'!DM3+'Base de donnée'!DN3+Intérêt!DN3 -> 2816.382981 | DO3: ='Base de données cumulée'!DN3+'Base de donnée'!DO3+Intérêt!DO3 -> 2816.681838 | DP3: ='Base de données cumulée'!DO3+'Base de donnée'!DP3+Intérêt!DP3 -> 2816.980948 | DQ3: ='Base de données cumulée'!DP3+'Base de donnée'!DQ3+Intérêt!DQ3 -> 2817.280311 | DR3: ='Base de données cumulée'!DQ3+'Base de donnée'!DR3+Intérêt!DR3 -> 2817.579927 | DS3: ='Base de données cumulée'!DR3+'Base de donnée'!DS3+Intérêt!DS3 -> 2817.879797 | DT3: ='Base de données cumulée'!DS3+'Base de donnée'!DT3+Intérêt!DT3 -> 2818.17992 | DU3: ='Base de données cumulée'!DT3+'Base de donnée'!DU3+Intérêt!DU3 -> 2818.480297 | DV3: ='Base de données cumulée'!DU3+'Base de donnée'!DV3+Intérêt!DV3 -> 2818.780929 | DW3: ='Base de données cumulée'!DU3+'Base de donnée'!DW3+Intérêt!DW3 -> 2825.625757 | DX3: ='Base de données cumulée'!DW3+'Base de donnée'!DX3+Intérêt!DX3 -> 2825.932432 | DY3: ='Base de données cumulée'!DX3+'Base de donnée'!DY3+Intérêt!DY3 -> 2826.204042 | DZ3: ='Base de données cumulée'!DY3+'Base de donnée'!DZ3+Intérêt!DZ3 -> 2826.475879 | EA3: ='Base de données cumulée'!DZ3+'Base de donnée'!EA3+Intérêt!EA3 -> 2826.747942 | EB3: ='Base de données cumulée'!EA3+'Base de donnée'!EB3+Intérêt!EB3 -> 2827.020232 | EC3: ='Base de données cumulée'!EB3+'Base de donnée'!EC3+Intérêt!EC3 -> 2827.292749 | ED3: ='Base de données cumulée'!EC3+'Base de donnée'!ED3+Intérêt!ED3 -> 2827.565493 | EE3: ='Base de données cumulée'!ED3+'Base de donnée'!EE3+Intérêt!EE3 -> 2827.838464 | EF3: ='Base de données cumulée'!EE3+'Base de donnée'!EF3+Intérêt!EF3 -> 2828.111663 | EG3: ='Base de données cumulée'!EF3+'Base de donnée'!EG3+Intérêt!EG3 -> 2828.38509 | EH3: ='Base de données cumulée'!EG3+'Base de donnée'!EH3+Intérêt!EH3 -> 2828.658744 | EI3: ='Base de données cumulée'!EH3+'Base de donnée'!EI3+Intérêt!EI3 -> 2828.932626 | EJ3: ='Base de données cumulée'!EI3+'Base de donnée'!EJ3+Intérêt!EJ3 -> 2829.206737 | EK3: ='Base de données cumulée'!EJ3+'Base de donnée'!EK3+Intérêt!EK3 -> 2829.481076 | EL3: ='Base de données cumulée'!EK3+'Base de donnée'!EL3+Intérêt!EL3 -> 2829.755643 | EM3: ='Base de données cumulée'!EL3+'Base de donnée'!EM3+Intérêt!EM3 -> 2830.030439 | EN3: ='Base de données cumulée'!EM3+'Base de donnée'!EN3+Intérêt!EN3 -> 2830.305465 | EO3: ='Base de données cumulée'!EN3+'Base de donnée'!EO3+Intérêt!EO3 -> 2830.580719 | EP3: ='Base de données cumulée'!EO3+'Base de donnée'!EP3+Intérêt!EP3 -> 2830.856203 | EQ3: ='Base de données cumulée'!EP3+'Base de donnée'!EQ3+Intérêt!EQ3 -> 2831.131917 | ER3: ='Base de données cumulée'!EQ3+'Base de donnée'!ER3+Intérêt!ER3 -> 2831.40786 | ES3: ='Base de données cumulée'!ER3+'Base de donnée'!ES3+Intérêt!ES3 -> 2831.684033 | ET3: ='Base de données cumulée'!ES3+'Base de donnée'!ET3+Intérêt!ET3 -> 2831.960437 | EU3: ='Base de données cumulée'!ET3+'Base de donnée'!EU3+Intérêt!EU3 -> 2832.23707 | EV3: ='Base de données cumulée'!ET3+'Base de donnée'!EV3+Intérêt!EV3 -> 2838.57175 | EW3: ='Base de données cumulée'!EV3+'Base de donnée'!EW3+Intérêt!EW3 -> 2838.853893 | EX3: ='Base de données cumulée'!EW3+'Base de donnée'!EX3+Intérêt!EX3 -> 2839.136271 | EY3: ='Base de données cumulée'!EX3+'Base de donnée'!EY3+Intérêt!EY3 -> 2839.418885 | EZ3: ='Base de données cumulée'!EY3+'Base de donnée'!EZ3+Intérêt!EZ3 -> 2839.701734 | FA3: ='Base de données cumulée'!EZ3+'Base de donnée'!FA3+Intérêt!FA3 -> 2839.984819 | FB3: ='Base de données cumulée'!FA3+'Base de donnée'!FB3+Intérêt!FB3 -> 2840.26814 | FC3: ='Base de données cumulée'!FB3+'Base de donnée'!FC3+Intérêt!FC3 -> 2840.551696 | FD3: ='Base de données cumulée'!FC3+'Base de donnée'!FD3+Intérêt!FD3 -> 2840.835489 | FE3: ='Base de données cumulée'!FD3+'Base de donnée'!FE3+Intérêt!FE3 -> 2841.119519 | FF3: ='Base de données cumulée'!FE3+'Base de donnée'!FF3+Intérêt!FF3 -> 2841.403785 | FG3: ='Base de données cumulée'!FF3+'Base de donnée'!FG3+Intérêt!FG3 -> 2841.688288 | FH3: ='Base de données cumulée'!FG3+'Base de donnée'!FH3+Intérêt!FH3 -> 2841.973029 | FI3: ='Base de données cumulée'!FH3+'Base de donnée'!FI3+Intérêt!FI3 -> 2842.258006 | FJ3: ='Base de données cumulée'!FI3+'Base de donnée'!FJ3+Intérêt!FJ3 -> 2842.543221 | FK3: ='Base de données cumulée'!FJ3+'Base de donnée'!FK3+Intérêt!FK3 -> 2842.828674 | FL3: ='Base de données cumulée'!FK3+'Base de donnée'!FL3+Intérêt!FL3 -> 2843.114364 | FM3: ='Base de données cumulée'!FL3+'Base de donnée'!FM3+Intérêt!FM3 -> 2843.400293 | FN3: ='Base de données cumulée'!FM3+'Base de donnée'!FN3+Intérêt!FN3 -> 2843.68646 | FO3: ='Base de données cumulée'!FN3+'Base de donnée'!FO3+Intérêt!FO3 -> 2843.972865 | FP3: ='Base de données cumulée'!FO3+'Base de donnée'!FP3+Intérêt!FP3 -> 2844.259509 | FQ3: ='Base de données cumulée'!FP3+'Base de donnée'!FQ3+Intérêt!FQ3 -> 2844.546392 | FR3: ='Base de données cumulée'!FQ3+'Base de donnée'!FR3+Intérêt!FR3 -> 2844.833514 | FS3: ='Base de données cumulée'!FR3+'Base de donnée'!FS3+Intérêt!FS3 -> 2845.120876 | FT3: ='Base de données cumulée'!FS3+'Base de donnée'!FT3+Intérêt!FT3 -> 2845.408476 | FU3: ='Base de données cumulée'!FS3+'Base de donnée'!FU3+Intérêt!FU3 -> 2851.957602 | FV3: ='Base de données cumulée'!FU3+'Base de donnée'!FV3+Intérêt!FV3 -> 2852.2509 | FW3: ='Base de données cumulée'!FV3+'Base de donnée'!FW3+Intérêt!FW3 -> 2852.544442 | FX3: ='Base de données cumulée'!FW3+'Base de donnée'!FX3+Intérêt!FX3 -> 2852.838229 | FY3: ='Base de données cumulée'!FX3+'Base de donnée'!FY3+Intérêt!FY3 -> 2853.132261 | FZ3: ='Base de données cumulée'!FY3+'Base de donnée'!FZ3+Intérêt!FZ3 -> 2853.426538 | GA3: ='Base de données cumulée'!FZ3+'Base de donnée'!GA3+Intérêt!GA3 -> 2853.72106 | GB3: ='Base de données cumulée'!GA3+'Base de donnée'!GB3+Intérêt!GB3 -> 2854.015828 | GC3: ='Base de données cumulée'!GB3+'Base de donnée'!GC3+Intérêt!GC3 -> 2854.310841 | GD3: ='Base de données cumulée'!GC3+'Base de donnée'!GD3+Intérêt!GD3 -> 2854.6061 | GE3: ='Base de données cumulée'!GD3+'Base de donnée'!GE3+Intérêt!GE3 -> 2854.901605 | GF3: ='Base de données cumulée'!GE3+'Base de donnée'!GF3+Intérêt!GF3 -> 2855.197356 | GG3: ='Base de données cumulée'!GF3+'Base de donnée'!GG3+Intérêt!GG3 -> 2855.493354 | GH3: ='Base de données cumulée'!GG3+'Base de donnée'!GH3+Intérêt!GH3 -> 2855.789599 | GI3: ='Base de données cumulée'!GH3+'Base de donnée'!GI3+Intérêt!GI3 -> 2856.08609 | GJ3: ='Base de données cumulée'!GI3+'Base de donnée'!GJ3+Intérêt!GJ3 -> 2856.382828 | GK3: ='Base de données cumulée'!GJ3+'Base de donnée'!GK3+Intérêt!GK3 -> 2856.679814 | GL3: ='Base de données cumulée'!GK3+'Base de donnée'!GL3+Intérêt!GL3 -> 2856.977047 | GM3: ='Base de données cumulée'!GL3+'Base de donnée'!GM3+Intérêt!GM3 -> 2857.274528 | GN3: ='Base de données cumulée'!GM3+'Base de donnée'!GN3+Intérêt!GN3 -> 2857.572257 | GO3: ='Base de données cumulée'!GN3+'Base de donnée'!GO3+Intérêt!GO3 -> 2857.870234 | GP3: ='Base de données cumulée'!GO3+'Base de donnée'!GP3+Intérêt!GP3 -> 2858.168459 | GQ3: ='Base de données cumulée'!GP3+'Base de donnée'!GQ3+Intérêt!GQ3 -> 2858.466933 | GR3: ='Base de données cumulée'!GQ3+'Base de donnée'!GR3+Intérêt!GR3 -> 2858.765655 | GS3: ='Base de données cumulée'!GR3+'Base de donnée'!GS3+Intérêt!GS3 -> 2859.064626 | GT3: ='Base de données cumulée'!GR3+'Base de donnée'!GT3+Intérêt!GT3 -> 2865.87268 | GU3: ='Base de données cumulée'!GT3+'Base de donnée'!GU3+Intérêt!GU3 -> 2866.177574 | GV3: ='Base de données cumulée'!GU3+'Base de donnée'!GV3+Intérêt!GV3 -> 2866.482722 | GW3: ='Base de données cumulée'!GV3+'Base de donnée'!GW3+Intérêt!GW3 -> 2866.788124 | GX3: ='Base de données cumulée'!GW3+'Base de donnée'!GX3+Intérêt!GX3 -> 2867.093781 | GY3: ='Base de données cumulée'!GX3+'Base de donnée'!GY3+Intérêt!GY3 -> 2867.399692 | GZ3: ='Base de données cumulée'!GY3+'Base de donnée'!GZ3+Intérêt!GZ3 -> 2867.705858 | HA3: ='Base de données cumulée'!GZ3+'Base de donnée'!HA3+Intérêt!HA3 -> 2868.01228 | HB3: ='Base de données cumulée'!HA3+'Base de donnée'!HB3+Intérêt!HB3 -> 2868.318957 | HC3: ='Base de données cumulée'!HB3+'Base de donnée'!HC3+Intérêt!HC3 -> 2868.625889 | HD3: ='Base de données cumulée'!HC3+'Base de donnée'!HD3+Intérêt!HD3 -> 2868.933078 | HE3: ='Base de données cumulée'!HD3+'Base de donnée'!HE3+Intérêt!HE3 -> 2869.240522 | HF3: ='Base de données cumulée'!HE3+'Base de donnée'!HF3+Intérêt!HF3 -> 2869.548222 | HG3: ='Base de données cumulée'!HF3+'Base de donnée'!HG3+Intérêt!HG3 -> 2869.856179 | HH3: ='Base de données cumulée'!HG3+'Base de donnée'!HH3+Intérêt!HH3 -> 2870.164393 | HI3: ='Base de données cumulée'!HH3+'Base de donnée'!HI3+Intérêt!HI3 -> 2870.472863 | HJ3: ='Base de données cumulée'!HI3+'Base de donnée'!HJ3+Intérêt!HJ3 -> 2870.78159 | HK3: ='Base de données cumulée'!HJ3+'Base de donnée'!HK3+Intérêt!HK3 -> 2871.090575 | HL3: ='Base de données cumulée'!HK3+'Base de donnée'!HL3+Intérêt!HL3 -> 2871.399817 | HM3: ='Base de données cumulée'!HL3+'Base de donnée'!HM3+Intérêt!HM3 -> 2871.709317 | HN3: ='Base de données cumulée'!HM3+'Base de donnée'!HN3+Intérêt!HN3 -> 2872.019075 | HO3: ='Base de données cumulée'!HN3+'Base de donnée'!HO3+Intérêt!HO3 -> 2872.329091 | HP3: ='Base de données cumulée'!HO3+'Base de donnée'!HP3+Intérêt!HP3 -> 2872.639365 | HQ3: ='Base de données cumulée'!HP3+'Base de donnée'!HQ3+Intérêt!HQ3 -> 2872.949898 | HR3: ='Base de données cumulée'!HQ3+'Base de donnée'!HR3+Intérêt!HR3 -> 2873.260689 | HS3: ='Base de données cumulée'!HQ3+'Base de donnée'!HS3+Intérêt!HS3 -> 2880.337907 | HT3: ='Base de données cumulée'!HS3+'Base de donnée'!HT3+Intérêt!HT3 -> 2880.654856 | HU3: ='Base de données cumulée'!HT3+'Base de donnée'!HU3+Intérêt!HU3 -> 2880.972068 | HV3: ='Base de données cumulée'!HU3+'Base de donnée'!HV3+Intérêt!HV3 -> 2881.289545 | HW3: ='Base de données cumulée'!HV3+'Base de donnée'!HW3+Intérêt!HW3 -> 2881.607286 | HX3: ='Base de données cumulée'!HW3+'Base de donnée'!HX3+Intérêt!HX3 -> 2881.925292 | HY3: ='Base de données cumulée'!HX3+'Base de donnée'!HY3+Intérêt!HY3 -> 2882.243563 | HZ3: ='Base de données cumulée'!HY3+'Base de donnée'!HZ3+Intérêt!HZ3 -> 2882.562099 | IA3: ='Base de données cumulée'!HZ3+'Base de donnée'!IA3+Intérêt!IA3 -> 2882.880901 | IB3: ='Base de données cumulée'!IA3+'Base de donnée'!IB3+Intérêt!IB3 -> 2883.199969 | IC3: ='Base de données cumulée'!IB3+'Base de donnée'!IC3+Intérêt!IC3 -> 2883.519302 | ID3: ='Base de données cumulée'!IC3+'Base de donnée'!ID3+Intérêt!ID3 -> 2883.838901 | IE3: ='Base de données cumulée'!ID3+'Base de donnée'!IE3+Intérêt!IE3 -> 2884.158767 | IF3: ='Base de données cumulée'!IE3+'Base de donnée'!IF3+Intérêt!IF3 -> 2884.478899 | IG3: ='Base de données cumulée'!IF3+'Base de donnée'!IG3+Intérêt!IG3 -> 2884.799298 | IH3: ='Base de données cumulée'!IG3+'Base de donnée'!IH3+Intérêt!IH3 -> 2885.119965 | II3: ='Base de données cumulée'!IH3+'Base de donnée'!II3+Intérêt!II3 -> 2885.440898 | IJ3: ='Base de données cumulée'!II3+'Base de donnée'!IJ3+Intérêt!IJ3 -> 2885.762099 | IK3: ='Base de données cumulée'!IJ3+'Base de donnée'!IK3+Intérêt!IK3 -> 2886.083567 | IL3: ='Base de données cumulée'!IK3+'Base de donnée'!IL3+Intérêt!IL3 -> 2886.405303 | IM3: ='Base de données cumulée'!IL3+'Base de donnée'!IM3+Intérêt!IM3 -> 2886.727308 | IN3: ='Base de données cumulée'!IM3+'Base de donnée'!IN3+Intérêt!IN3 -> 2887.04958 | IO3: ='Base de données cumulée'!IN3+'Base de donnée'!IO3+Intérêt!IO3 -> 2887.372122 | IP3: ='Base de données cumulée'!IO3+'Base de donnée'!IP3+Intérêt!IP3 -> 2887.694932 | IQ3: ='Base de données cumulée'!IP3+'Base de donnée'!IQ3+Intérêt!IQ3 -> 2888.018011 | IR3: ='Base de données cumulée'!IP3+'Base de donnée'!IR3+Intérêt!IR3 -> 2895.375036 | IS3: ='Base de données cumulée'!IR3+'Base de donnée'!IS3+Intérêt!IS3 -> 2895.704515 | IT3: ='Base de données cumulée'!IS3+'Base de donnée'!IT3+Intérêt!IT3 -> 2896.034269 | IU3: ='Base de données cumulée'!IT3+'Base de donnée'!IU3+Intérêt!IU3 -> 2896.364297 | IV3: ='Base de données cumulée'!IU3+'Base de donnée'!IV3+Intérêt!IV3 -> 2896.694601 | IW3: ='Base de données cumulée'!IV3+'Base de donnée'!IW3+Intérêt!IW3 -> 2897.02518 | IX3: ='Base de données cumulée'!IW3+'Base de donnée'!IX3+Intérêt!IX3 -> 2897.356034 | IY3: ='Base de données cumulée'!IX3+'Base de donnée'!IY3+Intérêt!IY3 -> 2897.687164 | IZ3: ='Base de données cumulée'!IY3+'Base de donnée'!IZ3+Intérêt!IZ3 -> 2898.01857 | JA3: ='Base de données cumulée'!IZ3+'Base de donnée'!JA3+Intérêt!JA3 -> 2898.350252 | JB3: ='Base de données cumulée'!JA3+'Base de donnée'!JB3+Intérêt!JB3 -> 2898.682211 | JC3: ='Base de données cumulée'!JB3+'Base de donnée'!JC3+Intérêt!JC3 -> 2899.014446 | JD3: ='Base de données cumulée'!JC3+'Base de donnée'!JD3+Intérêt!JD3 -> 2899.346958 | JE3: ='Base de données cumulée'!JD3+'Base de donnée'!JE3+Intérêt!JE3 -> 2899.679747 | JF3: ='Base de données cumulée'!JE3+'Base de donnée'!JF3+Intérêt!JF3 -> 2900.012813 | JG3: ='Base de données cumulée'!JF3+'Base de donnée'!JG3+Intérêt!JG3 -> 2900.346157 | JH3: ='Base de données cumulée'!JG3+'Base de donnée'!JH3+Intérêt!JH3 -> 2900.679779 | JI3: ='Base de données cumulée'!JH3+'Base de donnée'!JI3+Intérêt!JI3 -> 2901.013679 | JJ3: ='Base de données cumulée'!JI3+'Base de donnée'!JJ3+Intérêt!JJ3 -> 2901.347857 | JK3: ='Base de données cumulée'!JJ3+'Base de donnée'!JK3+Intérêt!JK3 -> 2901.682314 | JL3: ='Base de données cumulée'!JK3+'Base de donnée'!JL3+Intérêt!JL3 -> 2902.017049 | JM3: ='Base de données cumulée'!JL3+'Base de donnée'!JM3+Intérêt!JM3 -> 2902.352063 | JN3: ='Base de données cumulée'!JM3+'Base de donnée'!JN3+Intérêt!JN3 -> 2902.687356 | JO3: ='Base de données cumulée'!JN3+'Base de donnée'!JO3+Intérêt!JO3 -> 2903.022929 | JP3: ='Base de données cumulée'!JO3+'Base de donnée'!JP3+Intérêt!JP3 -> 2903.358782 | JQ3: ='Base de données cumulée'!JO3+'Base de donnée'!JQ3+Intérêt!JQ3 -> 2911.006675 | JR3: ='Base de données cumulée'!JQ3+'Base de donnée'!JR3+Intérêt!JR3 -> 2911.349181 | JS3: ='Base de données cumulée'!JR3+'Base de donnée'!JS3+Intérêt!JS3 -> 2911.691972 | JT3: ='Base de données cumulée'!JS3+'Base de donnée'!JT3+Intérêt!JT3 -> 2912.035048 | JU3: ='Base de données cumulée'!JT3+'Base de donnée'!JU3+Intérêt!JU3 -> 2912.378411 | JV3: ='Base de données cumulée'!JU3+'Base de donnée'!JV3+Intérêt!JV3 -> 2912.72206 | JW3: ='Base de données cumulée'!JV3+'Base de donnée'!JW3+Intérêt!JW3 -> 2913.065995 | JX3: ='Base de données cumulée'!JW3+'Base de donnée'!JX3+Intérêt!JX3 -> 2913.410216 | JY3: ='Base de données cumulée'!JX3+'Base de donnée'!JY3+Intérêt!JY3 -> 2913.754725 | JZ3: ='Base de données cumulée'!JY3+'Base de donnée'!JZ3+Intérêt!JZ3 -> 2914.09952 | KA3: ='Base de données cumulée'!JZ3+'Base de donnée'!KA3+Intérêt!KA3 -> 2914.444603 | KB3: ='Base de données cumulée'!KA3+'Base de donnée'!KB3+Intérêt!KB3 -> 2914.789974 | KC3: ='Base de données cumulée'!KB3+'Base de donnée'!KC3+Intérêt!KC3 -> 2915.135632 | KD3: ='Base de données cumulée'!KC3+'Base de donnée'!KD3+Intérêt!KD3 -> 2915.481579 | KE3: ='Base de données cumulée'!KD3+'Base de donnée'!KE3+Intérêt!KE3 -> 2915.827813 | KF3: ='Base de données cumulée'!KE3+'Base de donnée'!KF3+Intérêt!KF3 -> 2916.174336 | KG3: ='Base de données cumulée'!KF3+'Base de donnée'!KG3+Intérêt!KG3 -> 2916.521148 | KH3: ='Base de données cumulée'!KG3+'Base de donnée'!KH3+Intérêt!KH3 -> 2916.868249 | KI3: ='Base de données cumulée'!KH3+'Base de donnée'!KI3+Intérêt!KI3 -> 2917.21564 | KJ3: ='Base de données cumulée'!KI3+'Base de donnée'!KJ3+Intérêt!KJ3 -> 2917.563319 | KK3: ='Base de données cumulée'!KJ3+'Base de donnée'!KK3+Intérêt!KK3 -> 2917.911289 | KL3: ='Base de données cumulée'!KK3+'Base de donnée'!KL3+Intérêt!KL3 -> 2918.259548 | KM3: ='Base de données cumulée'!KL3+'Base de donnée'!KM3+Intérêt!KM3 -> 2918.608098 | KN3: ='Base de données cumulée'!KM3+'Base de donnée'!KN3+Intérêt!KN3 -> 2918.956938 | KO3: ='Base de données cumulée'!KN3+'Base de donnée'!KO3+Intérêt!KO3 -> 2919.306069 | KP3: ='Base de données cumulée'!KN3+'Base de donnée'!KP3+Intérêt!KP3 -> 2927.256331 | KQ3: ='Base de données cumulée'!KP3+'Base de donnée'!KQ3+Intérêt!KQ3 -> 2927.612378 | KR3: ='Base de données cumulée'!KQ3+'Base de donnée'!KR3+Intérêt!KR3 -> 2927.968722 | KS3: ='Base de données cumulée'!KR3+'Base de donnée'!KS3+Intérêt!KS3 -> 2928.325362 | KT3: ='Base de données cumulée'!KS3+'Base de donnée'!KT3+Intérêt!KT3 -> 2928.6823 | KU3: ='Base de données cumulée'!KT3+'Base de donnée'!KU3+Intérêt!KU3 -> 2929.039535 | KV3: ='Base de données cumulée'!KU3+'Base de donnée'!KV3+Intérêt!KV3 -> 2929.397068 | KW3: ='Base de données cumulée'!KV3+'Base de donnée'!KW3+Intérêt!KW3 -> 2929.754899 | KX3: ='Base de données cumulée'!KW3+'Base de donnée'!KX3+Intérêt!KX3 -> 2930.113028 | KY3: ='Base de données cumulée'!KX3+'Base de donnée'!KY3+Intérêt!KY3 -> 2930.471456 | KZ3: ='Base de données cumulée'!KY3+'Base de donnée'!KZ3+Intérêt!KZ3 -> 2930.830182 | LA3: ='Base de données cumulée'!KZ3+'Base de donnée'!LA3+Intérêt!LA3 -> 2931.189207 | LB3: ='Base de données cumulée'!LA3+'Base de donnée'!LB3+Intérêt!LB3 -> 2931.548531 | LC3: ='Base de données cumulée'!LB3+'Base de donnée'!LC3+Intérêt!LC3 -> 2931.908155 | LD3: ='Base de données cumulée'!LC3+'Base de donnée'!LD3+Intérêt!LD3 -> 2932.268079 | LE3: ='Base de données cumulée'!LD3+'Base de donnée'!LE3+Intérêt!LE3 -> 2932.628302 | LF3: ='Base de données cumulée'!LE3+'Base de donnée'!LF3+Intérêt!LF3 -> 2932.988826 | LG3: ='Base de données cumulée'!LF3+'Base de donnée'!LG3+Intérêt!LG3 -> 2933.34965 | LH3: ='Base de données cumulée'!LG3+'Base de donnée'!LH3+Intérêt!LH3 -> 2933.710774 | LI3: ='Base de données cumulée'!LH3+'Base de donnée'!LI3+Intérêt!LI3 -> 2934.0722 | LJ3: ='Base de données cumulée'!LI3+'Base de donnée'!LJ3+Intérêt!LJ3 -> 2934.433927 | LK3: ='Base de données cumulée'!LJ3+'Base de donnée'!LK3+Intérêt!LK3 -> 2934.795955 | LL3: ='Base de données cumulée'!LK3+'Base de donnée'!LL3+Intérêt!LL3 -> 2935.158285 | LM3: ='Base de données cumulée'!LL3+'Base de donnée'!LM3+Intérêt!LM3 -> 2935.520917 | LN3: ='Base de données cumulée'!LM3+'Base de donnée'!LN3+Intérêt!LN3 -> 2935.883851 | LO3: ='Base de données cumulée'!LM3+'Base de donnée'!LO3+Intérêt!LO3 -> 2944.148437 | LP3: ='Base de données cumulée'!LO3+'Base de donnée'!LP3+Intérêt!LP3 -> 2944.518561 | LQ3: ='Base de données cumulée'!LP3+'Base de donnée'!LQ3+Intérêt!LQ3 -> 2944.888993 | LR3: ='Base de données cumulée'!LQ3+'Base de donnée'!LR3+Intérêt!LR3 -> 2945.259734 | LS3: ='Base de données cumulée'!LR3+'Base de donnée'!LS3+Intérêt!LS3 -> 2945.630784 | LT3: ='Base de données cumulée'!LS3+'Base de donnée'!LT3+Intérêt!LT3 -> 2946.002143 | LU3: ='Base de données cumulée'!LT3+'Base de donnée'!LU3+Intérêt!LU3 -> 2946.373811 | LV3: ='Base de données cumulée'!LU3+'Base de donnée'!LV3+Intérêt!LV3 -> 2946.745789 | LW3: ='Base de données cumulée'!LV3+'Base de donnée'!LW3+Intérêt!LW3 -> 2947.118077 | LX3: ='Base de données cumulée'!LW3+'Base de donnée'!LX3+Intérêt!LX3 -> 2947.490676 | LY3: ='Base de données cumulée'!LX3+'Base de donnée'!LY3+Intérêt!LY3 -> 2947.863585 | LZ3: ='Base de données cumulée'!LY3+'Base de donnée'!LZ3+Intérêt!LZ3 -> 2948.236804 | MA3: ='Base de données cumulée'!LZ3+'Base de donnée'!MA3+Intérêt!MA3 -> 2948.610335 | MB3: ='Base de données cumulée'!MA3+'Base de donnée'!MB3+Intérêt!MB3 -> 2948.984177 | MC3: ='Base de données cumulée'!MB3+'Base de donnée'!MC3+Intérêt!MC3 -> 2949.35833 | MD3: ='Base de données cumulée'!MC3+'Base de donnée'!MD3+Intérêt!MD3 -> 2949.732796 | ME3: ='Base de données cumulée'!MD3+'Base de donnée'!ME3+Intérêt!ME3 -> 2950.107573 | MF3: ='Base de données cumulée'!ME3+'Base de donnée'!MF3+Intérêt!MF3 -> 2950.482663 | MG3: ='Base de données cumulée'!MF3+'Base de donnée'!MG3+Intérêt!MG3 -> 2950.858065 | MH3: ='Base de données cumulée'!MG3+'Base de donnée'!MH3+Intérêt!MH3 -> 2951.23378 | MI3: ='Base de données cumulée'!MH3+'Base de donnée'!MI3+Intérêt!MI3 -> 2951.609808 | MJ3: ='Base de données cumulée'!MI3+'Base de donnée'!MJ3+Intérêt!MJ3 -> 2951.98615 | MK3: ='Base de données cumulée'!MJ3+'Base de donnée'!MK3+Intérêt!MK3 -> 2952.362805 | ML3: ='Base de données cumulée'!MK3+'Base de donnée'!ML3+Intérêt!ML3 -> 2952.739774 | MM3: ='Base de données cumulée'!ML3+'Base de donnée'!MM3+Intérêt!MM3 -> 2953.117057 | MN3: ='Base de données cumulée'!ML3+'Base de donnée'!MN3+Intérêt!MN3 -> 2961.708393 | MO3: ='Base de données cumulée'!MN3+'Base de donnée'!MO3+Intérêt!MO3 -> 2962.09315 | MP3: ='Base de données cumulée'!MO3+'Base de donnée'!MP3+Intérêt!MP3 -> 2962.478228 | MQ3: ='Base de données cumulée'!MP3+'Base de donnée'!MQ3+Intérêt!MQ3 -> 2962.863627 | MR3: ='Base de données cumulée'!MQ3+'Base de donnée'!MR3+Intérêt!MR3 -> 2963.249346 | MS3: ='Base de données cumulée'!MR3+'Base de donnée'!MS3+Intérêt!MS3 -> 2963.635387 | MT3: ='Base de données cumulée'!MS3+'Base de donnée'!MT3+Intérêt!MT3 -> 2964.02175 | MU3: ='Base de données cumulée'!MT3+'Base de donnée'!MU3+Intérêt!MU3 -> 2964.408435 | MV3: ='Base de données cumulée'!MU3+'Base de donnée'!MV3+Intérêt!MV3 -> 2964.795442 | MW3: ='Base de données cumulée'!MV3+'Base de donnée'!MW3+Intérêt!MW3 -> 2965.182772 | MX3: ='Base de données cumulée'!MW3+'Base de donnée'!MX3+Intérêt!MX3 -> 2965.570424 | MY3: ='Base de données cumulée'!MX3+'Base de donnée'!MY3+Intérêt!MY3 -> 2965.958399 | MZ3: ='Base de données cumulée'!MY3+'Base de donnée'!MZ3+Intérêt!MZ3 -> 2966.346698 | NA3: ='Base de données cumulée'!MZ3+'Base de donnée'!NA3+Intérêt!NA3 -> 2966.73532 | NB3: ='Base de données cumulée'!NA3+'Base de donnée'!NB3+Intérêt!NB3 -> 2967.124266 | NC3: ='Base de données cumulée'!NB3+'Base de donnée'!NC3+Intérêt!NC3 -> 2967.513536 | ND3: ='Base de données cumulée'!NC3+'Base de donnée'!ND3+Intérêt!ND3 -> 2967.903131 | NE3: ='Base de données cumulée'!ND3+'Base de donnée'!NE3+Intérêt!NE3 -> 2968.29305 | NF3: ='Base de données cumulée'!NE3+'Base de donnée'!NF3+Intérêt!NF3 -> 2968.683295 | NG3: ='Base de données cumulée'!NF3+'Base de donnée'!NG3+Intérêt!NG3 -> 2969.073864 | NH3: ='Base de données cumulée'!NG3+'Base de donnée'!NH3+Intérêt!NH3 -> 2969.464759 | NI3: ='Base de données cumulée'!NH3+'Base de donnée'!NI3+Intérêt!NI3 -> 2969.855979 | NJ3: ='Base de données cumulée'!NI3+'Base de donnée'!NJ3+Intérêt!NJ3 -> 2970.247526 | NK3: ='Base de données cumulée'!NJ3+'Base de donnée'!NK3+Intérêt!NK3 -> 2970.639399 | NL3: ='Base de données cumulée'!NK3+'Base de donnée'!NL3+Intérêt!NL3 -> 2971.031599 | NM3: ='Base de données cumulée'!NK3+'Base de donnée'!NM3+Intérêt!NM3 -> 2979.962604 | NN3: ='Base de données cumulée'!NM3+'Base de donnée'!NN3+Intérêt!NN3 -> 2980.362573 | NO3: ='Base de données cumulée'!NN3+'Base de donnée'!NO3+Intérêt!NO3 -> 2980.762875 | NP3: ='Base de données cumulée'!NO3+'Base de donnée'!NP3+Intérêt!NP3 -> 2981.163511 | NQ3: ='Base de données cumulée'!NP3+'Base de donnée'!NQ3+Intérêt!NQ3 -> 2981.56448 | NR3: ='Base de données cumulée'!NQ3+'Base de donnée'!NR3+Intérêt!NR3 -> 2981.965784 | NS3: ='Base de données cumulée'!NR3+'Base de donnée'!NS3+Intérêt!NS3 -> 2982.367422 | NT3: ='Base de données cumulée'!NS3+'Base de donnée'!NT3+Intérêt!NT3 -> 2982.769395 | NU3: ='Base de données cumulée'!NT3+'Base de donnée'!NU3+Intérêt!NU3 -> 2983.171703 | NV3: ='Base de données cumulée'!NU3+'Base de donnée'!NV3+Intérêt!NV3 -> 2983.574346 | NW3: ='Base de données cumulée'!NV3+'Base de donnée'!NW3+Intérêt!NW3 -> 2983.977325 | NX3: ='Base de données cumulée'!NW3+'Base de donnée'!NX3+Intérêt!NX3 -> 2984.380639 | NY3: ='Base de données cumulée'!NX3+'Base de donnée'!NY3+Intérêt!NY3 -> 2984.78429 | NZ3: ='Base de données cumulée'!NY3+'Base de donnée'!NZ3+Intérêt!NZ3 -> 2985.188277 | OA3: ='Base de données cumulée'!NZ3+'Base de donnée'!OA3+Intérêt!OA3 -> 2985.5926 | OB3: ='Base de données cumulée'!OA3+'Base de donnée'!OB3+Intérêt!OB3 -> 2985.997261 | OC3: ='Base de données cumulée'!OB3+'Base de donnée'!OC3+Intérêt!OC3 -> 2986.402258 | OD3: ='Base de données cumulée'!OC3+'Base de donnée'!OD3+Intérêt!OD3 -> 2986.807594 | OE3: ='Base de données cumulée'!OD3+'Base de donnée'!OE3+Intérêt!OE3 -> 2987.213267 | OF3: ='Base de données cumulée'!OE3+'Base de donnée'!OF3+Intérêt!OF3 -> 2987.619278 | OG3: ='Base de données cumulée'!OF3+'Base de donnée'!OG3+Intérêt!OG3 -> 2988.025627 | OH3: ='Base de données cumulée'!OG3+'Base de donnée'!OH3+Intérêt!OH3 -> 2988.432315 | OI3: ='Base de données cumulée'!OH3+'Base de donnée'!OI3+Intérêt!OI3 -> 2988.839342 | OJ3: ='Base de données cumulée'!OI3+'Base de donnée'!OJ3+Intérêt!OJ3 -> 2989.246708 | OK3: ='Base de données cumulée'!OJ3+'Base de donnée'!OK3+Intérêt!OK3 -> 2989.654414 | OL3: ='Base de données cumulée'!OJ3+'Base de donnée'!OL3+Intérêt!OL3 -> 2998.938518 | OM3: ='Base de données cumulée'!OL3+'Base de donnée'!OM3+Intérêt!OM3 -> 2999.3543 | ON3: ='Base de données cumulée'!OM3+'Base de donnée'!ON3+Intérêt!ON3 -> 2999.770428 | OO3: ='Base de données cumulée'!ON3+'Base de donnée'!OO3+Intérêt!OO3 -> 3000.186904 | OP3: ='Base de données cumulée'!OO3+'Base de donnée'!OP3+Intérêt!OP3 -> 3000.603726 | OQ3: ='Base de données cumulée'!OP3+'Base de donnée'!OQ3+Intérêt!OQ3 -> 3001.020896 | OR3: ='Base de données cumulée'!OQ3+'Base de donnée'!OR3+Intérêt!OR3 -> 3001.438413 | OS3: ='Base de données cumulée'!OR3+'Base de donnée'!OS3+Intérêt!OS3 -> 3001.856279 | OT3: ='Base de données cumulée'!OS3+'Base de donnée'!OT3+Intérêt!OT3 -> 3002.274492 | OU3: ='Base de données cumulée'!OT3+'Base de donnée'!OU3+Intérêt!OU3 -> 3002.693054 | OV3: ='Base de données cumulée'!OU3+'Base de donnée'!OV3+Intérêt!OV3 -> 3003.111965 | OW3: ='Base de données cumulée'!OV3+'Base de donnée'!OW3+Intérêt!OW3 -> 3003.531225 | OX3: ='Base de données cumulée'!OW3+'Base de donnée'!OX3+Intérêt!OX3 -> 3003.950835 | OY3: ='Base de données cumulée'!OX3+'Base de donnée'!OY3+Intérêt!OY3 -> 3004.370794 | OZ3: ='Base de données cumulée'!OY3+'Base de donnée'!OZ3+Intérêt!OZ3 -> 3004.791103 | PA3: ='Base de données cumulée'!OZ3+'Base de donnée'!PA3+Intérêt!PA3 -> 3005.211762 | PB3: ='Base de données cumulée'!PA3+'Base de donnée'!PB3+Intérêt!PB3 -> 3005.632772 | PC3: ='Base de données cumulée'!PB3+'Base de donnée'!PC3+Intérêt!PC3 -> 3006.054132 | PD3: ='Base de données cumulée'!PC3+'Base de donnée'!PD3+Intérêt!PD3 -> 3006.475844 | PE3: ='Base de données cumulée'!PD3+'Base de donnée'!PE3+Intérêt!PE3 -> 3006.897907 | PF3: ='Base de données cumulée'!PE3+'Base de donnée'!PF3+Intérêt!PF3 -> 3007.320322 | PG3: ='Base de données cumulée'!PF3+'Base de donnée'!PG3+Intérêt!PG3 -> 3007.743089 | PH3: ='Base de données cumulée'!PG3+'Base de donnée'!PH3+Intérêt!PH3 -> 3008.166208 | PI3: ='Base de données cumulée'!PH3+'Base de donnée'!PI3+Intérêt!PI3 -> 3008.58968 | PJ3: ='Base de données cumulée'!PI3+'Base de donnée'!PJ3+Intérêt!PJ3 -> 3009.013505 | PK3: ='Base de données cumulée'!PI3+'Base de donnée'!PK3+Intérêt!PK3 -> 3018.664667 | PL3: ='Base de données cumulée'!PK3+'Base de donnée'!PL3+Intérêt!PL3 -> 3019.096888 | PM3: ='Base de données cumulée'!PL3+'Base de donnée'!PM3+Intérêt!PM3 -> 3019.529469 | PN3: ='Base de données cumulée'!PM3+'Base de donnée'!PN3+Intérêt!PN3 -> 3019.96241 | PO3: ='Base de données cumulée'!PN3+'Base de donnée'!PO3+Intérêt!PO3 -> 3020.395712 | PP3: ='Base de données cumulée'!PO3+'Base de donnée'!PP3+Intérêt!PP3 -> 3020.829375 | PQ3: ='Base de données cumulée'!PP3+'Base de donnée'!PQ3+Intérêt!PQ3 -> 3021.263399 | PR3: ='Base de données cumulée'!PQ3+'Base de donnée'!PR3+Intérêt!PR3 -> 3021.697786 | PS3: ='Base de données cumulée'!PR3+'Base de donnée'!PS3+Intérêt!PS3 -> 3022.132534 | PT3: ='Base de données cumulée'!PS3+'Base de donnée'!PT3+Intérêt!PT3 -> 3022.567644 | PU3: ='Base de données cumulée'!PT3+'Base de donnée'!PU3+Intérêt!PU3 -> 3023.003117 | PV3: ='Base de données cumulée'!PU3+'Base de donnée'!PV3+Intérêt!PV3 -> 3023.438953 | PW3: ='Base de données cumulée'!PV3+'Base de donnée'!PW3+Intérêt!PW3 -> 3023.875152 | PX3: ='Base de données cumulée'!PW3+'Base de donnée'!PX3+Intérêt!PX3 -> 3024.311715 | PY3: ='Base de données cumulée'!PX3+'Base de donnée'!PY3+Intérêt!PY3 -> 3024.748641 | PZ3: ='Base de données cumulée'!PY3+'Base de donnée'!PZ3+Intérêt!PZ3 -> 3025.185932 | QA3: ='Base de données cumulée'!PZ3+'Base de donnée'!QA3+Intérêt!QA3 -> 3025.623587 | QB3: ='Base de données cumulée'!QA3+'Base de donnée'!QB3+Intérêt!QB3 -> 3026.061607 | QC3: ='Base de données cumulée'!QB3+'Base de donnée'!QC3+Intérêt!QC3 -> 3026.499991 | QD3: ='Base de données cumulée'!QC3+'Base de donnée'!QD3+Intérêt!QD3 -> 3026.938741 | QE3: ='Base de données cumulée'!QD3+'Base de donnée'!QE3+Intérêt!QE3 -> 3027.377857 | QF3: ='Base de données cumulée'!QE3+'Base de donnée'!QF3+Intérêt!QF3 -> 3027.817338 | QG3: ='Base de données cumulée'!QF3+'Base de donnée'!QG3+Intérêt!QG3 -> 3028.257186 | QH3: ='Base de données cumulée'!QG3+'Base de donnée'!QH3+Intérêt!QH3 -> 3028.6974 | QI3: ='Base de données cumulée'!QH3+'Base de donnée'!QI3+Intérêt!QI3 -> 3029.137982 | QJ3: ='Base de données cumulée'!QH3+'Base de donnée'!QJ3+Intérêt!QJ3 -> 3039.170715 | QK3: ='Base de données cumulée'!QJ3+'Base de donnée'!QK3+Intérêt!QK3 -> 3039.620024 | QL3: ='Base de données cumulée'!QK3+'Base de donnée'!QL3+Intérêt!QL3 -> 3040.069707 | QM3: ='Base de données cumulée'!QL3+'Base de donnée'!QM3+Intérêt!QM3 -> 3040.519765 | QN3: ='Base de données cumulée'!QM3+'Base de donnée'!QN3+Intérêt!QN3 -> 3040.970198 | QO3: ='Base de données cumulée'!QN3+'Base de donnée'!QO3+Intérêt!QO3 -> 3041.421007 | QP3: ='Base de données cumulée'!QO3+'Base de donnée'!QP3+Intérêt!QP3 -> 3041.872191 | QQ3: ='Base de données cumulée'!QP3+'Base de donnée'!QQ3+Intérêt!QQ3 -> 3042.323751 | QR3: ='Base de données cumulée'!QQ3+'Base de donnée'!QR3+Intérêt!QR3 -> 3042.775688 | QS3: ='Base de données cumulée'!QR3+'Base de donnée'!QS3+Intérêt!QS3 -> 3043.228001 | QT3: ='Base de données cumulée'!QS3+'Base de donnée'!QT3+Intérêt!QT3 -> 3043.680691 | QU3: ='Base de données cumulée'!QT3+'Base de donnée'!QU3+Intérêt!QU3 -> 3044.133758 | QV3: ='Base de données cumulée'!QU3+'Base de donnée'!QV3+Intérêt!QV3 -> 3044.587203 | QW3: ='Base de données cumulée'!QV3+'Base de donnée'!QW3+Intérêt!QW3 -> 3045.041025 | QX3: ='Base de données cumulée'!QW3+'Base de donnée'!QX3+Intérêt!QX3 -> 3045.495226 | QY3: ='Base de données cumulée'!QX3+'Base de donnée'!QY3+Intérêt!QY3 -> 3045.949806 | QZ3: ='Base de données cumulée'!QY3+'Base de donnée'!QZ3+Intérêt!QZ3 -> 3046.404764 | RA3: ='Base de données cumulée'!QZ3+'Base de donnée'!RA3+Intérêt!RA3 -> 3046.860101 | RB3: ='Base de données cumulée'!RA3+'Base de donnée'!RB3+Intérêt!RB3 -> 3047.315818 | RC3: ='Base de données cumulée'!RB3+'Base de donnée'!RC3+Intérêt!RC3 -> 3047.771914 | RD3: ='Base de données cumulée'!RC3+'Base de donnée'!RD3+Intérêt!RD3 -> 3048.228391 | RE3: ='Base de données cumulée'!RD3+'Base de donnée'!RE3+Intérêt!RE3 -> 3048.685248 | RF3: ='Base de données cumulée'!RE3+'Base de donnée'!RF3+Intérêt!RF3 -> 3049.142486 | RG3: ='Base de données cumulée'!RF3+'Base de donnée'!RG3+Intérêt!RG3 -> 3049.600104 | RH3: ='Base de données cumulée'!RG3+'Base de donnée'!RH3+Intérêt!RH3 -> 3050.058104 | RI3: ='Base de données cumulée'!RG3+'Base de donnée'!RI3+Intérêt!RI3 -> 3060.487494 | RJ3: ='Base de données cumulée'!RI3+'Base de donnée'!RJ3+Intérêt!RJ3 -> 3060.954567 | RK3: ='Base de données cumulée'!RJ3+'Base de donnée'!RK3+Intérêt!RK3 -> 3061.422029 | RL3: ='Base de données cumulée'!RK3+'Base de donnée'!RL3+Intérêt!RL3 -> 3061.889881 | RM3: ='Base de données cumulée'!RL3+'Base de donnée'!RM3+Intérêt!RM3 -> 3062.358122 | RN3: ='Base de données cumulée'!RM3+'Base de donnée'!RN3+Intérêt!RN3 -> 3062.826754 | RO3: ='Base de données cumulée'!RN3+'Base de donnée'!RO3+Intérêt!RO3 -> 3063.295776 | RP3: ='Base de données cumulée'!RO3+'Base de donnée'!RP3+Intérêt!RP3 -> 3063.765189 | RQ3: ='Base de données cumulée'!RP3+'Base de donnée'!RQ3+Intérêt!RQ3 -> 3064.234994 | RR3: ='Base de données cumulée'!RQ3+'Base de donnée'!RR3+Intérêt!RR3 -> 3064.70519 | RS3: ='Base de données cumulée'!RR3+'Base de donnée'!RS3+Intérêt!RS3 -> 3065.175777 | RT3: ='Base de données cumulée'!RS3+'Base de donnée'!RT3+Intérêt!RT3 -> 3065.646757 | RU3: ='Base de données cumulée'!RT3+'Base de donnée'!RU3+Intérêt!RU3 -> 3066.118129 | RV3: ='Base de données cumulée'!RU3+'Base de donnée'!RV3+Intérêt!RV3 -> 3066.589894 | RW3: ='Base de données cumulée'!RV3+'Base de donnée'!RW3+Intérêt!RW3 -> 3067.062053 | RX3: ='Base de données cumulée'!RW3+'Base de donnée'!RX3+Intérêt!RX3 -> 3067.534604 | RY3: ='Base de données cumulée'!RX3+'Base de donnée'!RY3+Intérêt!RY3 -> 3068.00755 | RZ3: ='Base de données cumulée'!RY3+'Base de donnée'!RZ3+Intérêt!RZ3 -> 3068.48089 | SA3: ='Base de données cumulée'!RZ3+'Base de donnée'!SA3+Intérêt!SA3 -> 3068.954624 | SB3: ='Base de données cumulée'!SA3+'Base de donnée'!SB3+Intérêt!SB3 -> 3069.428752 | SC3: ='Base de données cumulée'!SB3+'Base de donnée'!SC3+Intérêt!SC3 -> 3069.903276 | SD3: ='Base de données cumulée'!SC3+'Base de donnée'!SD3+Intérêt!SD3 -> 3070.378196 | SE3: ='Base de données cumulée'!SD3+'Base de donnée'!SE3+Intérêt!SE3 -> 3070.853511 | SF3: ='Base de données cumulée'!SE3+'Base de donnée'!SF3+Intérêt!SF3 -> 3071.329222 | SG3: ='Base de données cumulée'!SF3+'Base de donnée'!SG3+Intérêt!SG3 -> 3071.80533 | SH3: ='Base de données cumulée'!SF3+'Base de donnée'!SH3+Intérêt!SH3 -> 3082.647058 | SI3: ='Base de données cumulée'!SH3+'Base de donnée'!SI3+Intérêt!SI3 -> 3083.132598 | SJ3: ='Base de données cumulée'!SI3+'Base de donnée'!SJ3+Intérêt!SJ3 -> 3083.618541 | SK3: ='Base de données cumulée'!SJ3+'Base de donnée'!SK3+Intérêt!SK3 -> 3084.10489 | SL3: ='Base de données cumulée'!SK3+'Base de donnée'!SL3+Intérêt!SL3 -> 3084.591644 | SM3: ='Base de données cumulée'!SL3+'Base de donnée'!SM3+Intérêt!SM3 -> 3085.078804 | SN3: ='Base de données cumulée'!SM3+'Base de donnée'!SN3+Intérêt!SN3 -> 3085.56637 | SO3: ='Base de données cumulée'!SN3+'Base de donnée'!SO3+Intérêt!SO3 -> 3086.054342 | SP3: ='Base de données cumulée'!SO3+'Base de donnée'!SP3+Intérêt!SP3 -> 3086.54272 | SQ3: ='Base de données cumulée'!SP3+'Base de donnée'!SQ3+Intérêt!SQ3 -> 3087.031506 | SR3: ='Base de données cumulée'!SQ3+'Base de donnée'!SR3+Intérêt!SR3 -> 3087.520699 | SS3: ='Base de données cumulée'!SR3+'Base de donnée'!SS3+Intérêt!SS3 -> 3088.010299 | ST3: ='Base de données cumulée'!SS3+'Base de donnée'!ST3+Intérêt!ST3 -> 3088.500308 | SU3: ='Base de données cumulée'!ST3+'Base de donnée'!SU3+Intérêt!SU3 -> 3088.990725 | SV3: ='Base de données cumulée'!SU3+'Base de donnée'!SV3+Intérêt!SV3 -> 3089.48155 | SW3: ='Base de données cumulée'!SV3+'Base de donnée'!SW3+Intérêt!SW3 -> 3089.972785 | SX3: ='Base de données cumulée'!SW3+'Base de donnée'!SX3+Intérêt!SX3 -> 3090.464429 | SY3: ='Base de données cumulée'!SX3+'Base de donnée'!SY3+Intérêt!SY3 -> 3090.956483 | SZ3: ='Base de données cumulée'!SY3+'Base de donnée'!SZ3+Intérêt!SZ3 -> 3091.448946 | TA3: ='Base de données cumulée'!SZ3+'Base de donnée'!TA3+Intérêt!TA3 -> 3091.941821 | TB3: ='Base de données cumulée'!TA3+'Base de donnée'!TB3+Intérêt!TB3 -> 3092.435105 | TC3: ='Base de données cumulée'!TB3+'Base de donnée'!TC3+Intérêt!TC3 -> 3092.928801 | TD3: ='Base de données cumulée'!TC3+'Base de donnée'!TD3+Intérêt!TD3 -> 3093.422909 | TE3: ='Base de données cumulée'!TD3+'Base de donnée'!TE3+Intérêt!TE3 -> 3093.917428 | TF3: ='Base de données cumulée'!TE3+'Base de donnée'!TF3+Intérêt!TF3 -> 3094.412359
A4: Stéphane ADAMO | B4: ='Base de donnée'!B4 -> 2500 | C4: ='Base de données cumulée'!B4+'Base de donnée'!C4+Intérêt!C4 -> 2501.079167 | D4: ='Base de données cumulée'!C4+'Base de donnée'!D4+Intérêt!D4 -> 2502.158799 | E4: ='Base de données cumulée'!D4+'Base de donnée'!E4+Intérêt!E4 -> 2503.238898 | F4: ='Base de données cumulée'!E4+'Base de donnée'!F4+Intérêt!F4 -> 2504.319463 | G4: ='Base de données cumulée'!F4+'Base de donnée'!G4+Intérêt!G4 -> 2505.400494 | H4: ='Base de données cumulée'!G4+'Base de donnée'!H4+Intérêt!H4 -> 2506.481992 | I4: ='Base de données cumulée'!H4+'Base de donnée'!I4+Intérêt!I4 -> 2507.563956 | J4: ='Base de données cumulée'!I4+'Base de donnée'!J4+Intérêt!J4 -> 2508.646388 | K4: ='Base de données cumulée'!J4+'Base de donnée'!K4+Intérêt!K4 -> 2509.729287 | L4: ='Base de données cumulée'!K4+'Base de donnée'!L4+Intérêt!L4 -> 2510.812654 | M4: ='Base de données cumulée'!L4+'Base de donnée'!M4+Intérêt!M4 -> 2511.896488 | N4: ='Base de données cumulée'!M4+'Base de donnée'!N4+Intérêt!N4 -> 2512.98079 | O4: ='Base de données cumulée'!N4+'Base de donnée'!O4+Intérêt!O4 -> 2514.06556 | P4: ='Base de données cumulée'!O4+'Base de donnée'!P4+Intérêt!P4 -> 2515.150798 | Q4: ='Base de données cumulée'!P4+'Base de donnée'!Q4+Intérêt!Q4 -> 2516.236505 | R4: ='Base de données cumulée'!Q4+'Base de donnée'!R4+Intérêt!R4 -> 2517.32268 | S4: ='Base de données cumulée'!R4+'Base de donnée'!S4+Intérêt!S4 -> 2518.409325 | T4: ='Base de données cumulée'!S4+'Base de donnée'!T4+Intérêt!T4 -> 2519.496438 | U4: ='Base de données cumulée'!T4+'Base de donnée'!U4+Intérêt!U4 -> 2520.584021 | V4: ='Base de données cumulée'!U4+'Base de donnée'!V4+Intérêt!V4 -> 2521.672073 | W4: ='Base de données cumulée'!V4+'Base de donnée'!W4+Intérêt!W4 -> 2522.760594 | X4: ='Base de données cumulée'!W4+'Base de donnée'!X4+Intérêt!X4 -> 2523.849586 | Y4: ='Base de données cumulée'!X4+'Base de donnée'!Y4+Intérêt!Y4 -> 2524.939048 | Z4: ='Base de données cumulée'!Y4+'Base de donnée'!Z4+Intérêt!Z4 -> 2526.02898 | AA4: ='Base de données cumulée'!Y4+'Base de donnée'!AA4+Intérêt!AA4 -> 2550.968028 | AB4: ='Base de données cumulée'!AA4+'Base de donnée'!AB4+Intérêt!AB4 -> 2551.233711 | AC4: ='Base de données cumulée'!AB4+'Base de donnée'!AC4+Intérêt!AC4 -> 2551.499638 | AD4: ='Base de données cumulée'!AC4+'Base de donnée'!AD4+Intérêt!AD4 -> 2551.765811 | AE4: ='Base de données cumulée'!AD4+'Base de donnée'!AE4+Intérêt!AE4 -> 2552.032229 | AF4: ='Base de données cumulée'!AE4+'Base de donnée'!AF4+Intérêt!AF4 -> 2552.298892 | AG4: ='Base de données cumulée'!AF4+'Base de donnée'!AG4+Intérêt!AG4 -> 2552.5658 | AH4: ='Base de données cumulée'!AG4+'Base de donnée'!AH4+Intérêt!AH4 -> 2552.832955 | AI4: ='Base de données cumulée'!AH4+'Base de donnée'!AI4+Intérêt!AI4 -> 2553.100355 | AJ4: ='Base de données cumulée'!AI4+'Base de donnée'!AJ4+Intérêt!AJ4 -> 2553.368002 | AK4: ='Base de données cumulée'!AJ4+'Base de donnée'!AK4+Intérêt!AK4 -> 2553.635895 | AL4: ='Base de données cumulée'!AK4+'Base de donnée'!AL4+Intérêt!AL4 -> 2553.904034 | AM4: ='Base de données cumulée'!AL4+'Base de donnée'!AM4+Intérêt!AM4 -> 2554.172421 | AN4: ='Base de données cumulée'!AM4+'Base de donnée'!AN4+Intérêt!AN4 -> 2554.441055 | AO4: ='Base de données cumulée'!AN4+'Base de donnée'!AO4+Intérêt!AO4 -> 2554.709936 | AP4: ='Base de données cumulée'!AO4+'Base de donnée'!AP4+Intérêt!AP4 -> 2554.979065 | AQ4: ='Base de données cumulée'!AP4+'Base de donnée'!AQ4+Intérêt!AQ4 -> 2555.248441 | AR4: ='Base de données cumulée'!AQ4+'Base de donnée'!AR4+Intérêt!AR4 -> 2555.518066 | AS4: ='Base de données cumulée'!AR4+'Base de donnée'!AS4+Intérêt!AS4 -> 2555.787939 | AT4: ='Base de données cumulée'!AS4+'Base de donnée'!AT4+Intérêt!AT4 -> 2556.05806 | AU4: ='Base de données cumulée'!AT4+'Base de donnée'!AU4+Intérêt!AU4 -> 2556.32843 | AV4: ='Base de données cumulée'!AU4+'Base de donnée'!AV4+Intérêt!AV4 -> 2556.599049 | AW4: ='Base de données cumulée'!AV4+'Base de donnée'!AW4+Intérêt!AW4 -> 2556.869918 | AX4: ='Base de données cumulée'!AW4+'Base de donnée'!AX4+Intérêt!AX4 -> 2557.141035 | AY4: ='Base de données cumulée'!AX4+'Base de donnée'!AY4+Intérêt!AY4 -> 2557.412403 | AZ4: ='Base de données cumulée'!AX4+'Base de donnée'!AZ4+Intérêt!AZ4 -> 2563.58541 | BA4: ='Base de données cumulée'!AZ4+'Base de donnée'!BA4+Intérêt!BA4 -> 2563.797554 | BB4: ='Base de données cumulée'!BA4+'Base de donnée'!BB4+Intérêt!BB4 -> 2564.009888 | BC4: ='Base de données cumulée'!BB4+'Base de donnée'!BC4+Intérêt!BC4 -> 2564.222412 | BD4: ='Base de données cumulée'!BC4+'Base de donnée'!BD4+Intérêt!BD4 -> 2564.435126 | BE4: ='Base de données cumulée'!BD4+'Base de donnée'!BE4+Intérêt!BE4 -> 2564.64803 | BF4: ='Base de données cumulée'!BE4+'Base de donnée'!BF4+Intérêt!BF4 -> 2564.861126 | BG4: ='Base de données cumulée'!BF4+'Base de donnée'!BG4+Intérêt!BG4 -> 2565.074412 | BH4: ='Base de données cumulée'!BG4+'Base de donnée'!BH4+Intérêt!BH4 -> 2565.287889 | BI4: ='Base de données cumulée'!BH4+'Base de donnée'!BI4+Intérêt!BI4 -> 2565.501557 | BJ4: ='Base de données cumulée'!BI4+'Base de donnée'!BJ4+Intérêt!BJ4 -> 2565.715416 | BK4: ='Base de données cumulée'!BJ4+'Base de donnée'!BK4+Intérêt!BK4 -> 2565.929467 | BL4: ='Base de données cumulée'!BK4+'Base de donnée'!BL4+Intérêt!BL4 -> 2566.14371 | BM4: ='Base de données cumulée'!BL4+'Base de donnée'!BM4+Intérêt!BM4 -> 2566.358145 | BN4: ='Base de données cumulée'!BM4+'Base de donnée'!BN4+Intérêt!BN4 -> 2566.572771 | BO4: ='Base de données cumulée'!BN4+'Base de donnée'!BO4+Intérêt!BO4 -> 2566.78759 | BP4: ='Base de données cumulée'!BO4+'Base de donnée'!BP4+Intérêt!BP4 -> 2567.002601 | BQ4: ='Base de données cumulée'!BP4+'Base de donnée'!BQ4+Intérêt!BQ4 -> 2567.217804 | BR4: ='Base de données cumulée'!BQ4+'Base de donnée'!BR4+Intérêt!BR4 -> 2567.433201 | BS4: ='Base de données cumulée'!BR4+'Base de donnée'!BS4+Intérêt!BS4 -> 2567.64879 | BT4: ='Base de données cumulée'!BS4+'Base de donnée'!BT4+Intérêt!BT4 -> 2567.864572 | BU4: ='Base de données cumulée'!BT4+'Base de donnée'!BU4+Intérêt!BU4 -> 2568.080547 | BV4: ='Base de données cumulée'!BU4+'Base de donnée'!BV4+Intérêt!BV4 -> 2568.296716 | BW4: ='Base de données cumulée'!BV4+'Base de donnée'!BW4+Intérêt!BW4 -> 2568.513079 | BX4: ='Base de données cumulée'!BW4+'Base de donnée'!BX4+Intérêt!BX4 -> 2568.729635 | BY4: ='Base de données cumulée'!BW4+'Base de donnée'!BY4+Intérêt!BY4 -> 2573.657303 | BZ4: ='Base de données cumulée'!BY4+'Base de donnée'!BZ4+Intérêt!BZ4 -> 2573.804473 | CA4: ='Base de données cumulée'!BZ4+'Base de donnée'!CA4+Intérêt!CA4 -> 2573.95177 | CB4: ='Base de données cumulée'!CA4+'Base de donnée'!CB4+Intérêt!CB4 -> 2574.099195 | CC4: ='Base de données cumulée'!CB4+'Base de donnée'!CC4+Intérêt!CC4 -> 2574.246747 | CD4: ='Base de données cumulée'!CC4+'Base de donnée'!CD4+Intérêt!CD4 -> 2574.394428 | CE4: ='Base de données cumulée'!CD4+'Base de donnée'!CE4+Intérêt!CE4 -> 2574.542236 | CF4: ='Base de données cumulée'!CE4+'Base de donnée'!CF4+Intérêt!CF4 -> 2574.690173 | CG4: ='Base de données cumulée'!CF4+'Base de donnée'!CG4+Intérêt!CG4 -> 2574.838238 | CH4: ='Base de données cumulée'!CG4+'Base de donnée'!CH4+Intérêt!CH4 -> 2574.986431 | CI4: ='Base de données cumulée'!CH4+'Base de donnée'!CI4+Intérêt!CI4 -> 2575.134753 | CJ4: ='Base de données cumulée'!CI4+'Base de donnée'!CJ4+Intérêt!CJ4 -> 2575.283203 | CK4: ='Base de données cumulée'!CJ4+'Base de donnée'!CK4+Intérêt!CK4 -> 2575.431782 | CL4: ='Base de données cumulée'!CK4+'Base de donnée'!CL4+Intérêt!CL4 -> 2575.580489 | CM4: ='Base de données cumulée'!CL4+'Base de donnée'!CM4+Intérêt!CM4 -> 2575.729325 | CN4: ='Base de données cumulée'!CM4+'Base de donnée'!CN4+Intérêt!CN4 -> 2575.878291 | CO4: ='Base de données cumulée'!CN4+'Base de donnée'!CO4+Intérêt!CO4 -> 2576.027385 | CP4: ='Base de données cumulée'!CO4+'Base de donnée'!CP4+Intérêt!CP4 -> 2576.176609 | CQ4: ='Base de données cumulée'!CP4+'Base de donnée'!CQ4+Intérêt!CQ4 -> 2576.325962 | CR4: ='Base de données cumulée'!CQ4+'Base de donnée'!CR4+Intérêt!CR4 -> 2576.475445 | CS4: ='Base de données cumulée'!CR4+'Base de donnée'!CS4+Intérêt!CS4 -> 2576.625057 | CT4: ='Base de données cumulée'!CS4+'Base de donnée'!CT4+Intérêt!CT4 -> 2576.774798 | CU4: ='Base de données cumulée'!CT4+'Base de donnée'!CU4+Intérêt!CU4 -> 2576.92467 | CV4: ='Base de données cumulée'!CU4+'Base de donnée'!CV4+Intérêt!CV4 -> 2577.074671 | CW4: ='Base de données cumulée'!CV4+'Base de donnée'!CW4+Intérêt!CW4 -> 2577.224803 | CX4: ='Base de données cumulée'!CV4+'Base de donnée'!CX4+Intérêt!CX4 -> 2580.642171 | CY4: ='Base de données cumulée'!CX4+'Base de donnée'!CY4+Intérêt!CY4 -> 2580.741631 | CZ4: ='Base de données cumulée'!CY4+'Base de donnée'!CZ4+Intérêt!CZ4 -> 2580.841175 | DA4: ='Base de données cumulée'!CZ4+'Base de donnée'!DA4+Intérêt!DA4 -> 2580.940803 | DB4: ='Base de données cumulée'!DA4+'Base de donnée'!DB4+Intérêt!DB4 -> 2581.040515 | DC4: ='Base de données cumulée'!DB4+'Base de donnée'!DC4+Intérêt!DC4 -> 2581.140312 | DD4: ='Base de données cumulée'!DC4+'Base de donnée'!DD4+Intérêt!DD4 -> 2581.240193 | DE4: ='Base de données cumulée'!DD4+'Base de donnée'!DE4+Intérêt!DE4 -> 2581.340159 | DF4: ='Base de données cumulée'!DE4+'Base de donnée'!DF4+Intérêt!DF4 -> 2581.440209 | DG4: ='Base de données cumulée'!DF4+'Base de donnée'!DG4+Intérêt!DG4 -> 2581.540344 | DH4: ='Base de données cumulée'!DG4+'Base de donnée'!DH4+Intérêt!DH4 -> 2581.640564 | DI4: ='Base de données cumulée'!DH4+'Base de donnée'!DI4+Intérêt!DI4 -> 2581.740868 | DJ4: ='Base de données cumulée'!DI4+'Base de donnée'!DJ4+Intérêt!DJ4 -> 2581.841257 | DK4: ='Base de données cumulée'!DJ4+'Base de donnée'!DK4+Intérêt!DK4 -> 2581.941731 | DL4: ='Base de données cumulée'!DK4+'Base de donnée'!DL4+Intérêt!DL4 -> 2582.04229 | DM4: ='Base de données cumulée'!DL4+'Base de donnée'!DM4+Intérêt!DM4 -> 2582.142934 | DN4: ='Base de données cumulée'!DM4+'Base de donnée'!DN4+Intérêt!DN4 -> 2582.243664 | DO4: ='Base de données cumulée'!DN4+'Base de donnée'!DO4+Intérêt!DO4 -> 2582.344478 | DP4: ='Base de données cumulée'!DO4+'Base de donnée'!DP4+Intérêt!DP4 -> 2582.445378 | DQ4: ='Base de données cumulée'!DP4+'Base de donnée'!DQ4+Intérêt!DQ4 -> 2582.546363 | DR4: ='Base de données cumulée'!DQ4+'Base de donnée'!DR4+Intérêt!DR4 -> 2582.647433 | DS4: ='Base de données cumulée'!DR4+'Base de donnée'!DS4+Intérêt!DS4 -> 2582.748589 | DT4: ='Base de données cumulée'!DS4+'Base de donnée'!DT4+Intérêt!DT4 -> 2582.849831 | DU4: ='Base de données cumulée'!DT4+'Base de donnée'!DU4+Intérêt!DU4 -> 2582.951158 | DV4: ='Base de données cumulée'!DU4+'Base de donnée'!DV4+Intérêt!DV4 -> 2583.052571 | DW4: ='Base de données cumulée'!DU4+'Base de donnée'!DW4+Intérêt!DW4 -> 2585.361557 | DX4: ='Base de données cumulée'!DW4+'Base de donnée'!DX4+Intérêt!DX4 -> 2585.432692 | DY4: ='Base de données cumulée'!DX4+'Base de donnée'!DY4+Intérêt!DY4 -> 2585.503886 | DZ4: ='Base de données cumulée'!DY4+'Base de donnée'!DZ4+Intérêt!DZ4 -> 2585.575139 | EA4: ='Base de données cumulée'!DZ4+'Base de donnée'!EA4+Intérêt!EA4 -> 2585.646452 | EB4: ='Base de données cumulée'!EA4+'Base de donnée'!EB4+Intérêt!EB4 -> 2585.717824 | EC4: ='Base de données cumulée'!EB4+'Base de donnée'!EC4+Intérêt!EC4 -> 2585.789255 | ED4: ='Base de données cumulée'!EC4+'Base de donnée'!ED4+Intérêt!ED4 -> 2585.860746 | EE4: ='Base de données cumulée'!ED4+'Base de donnée'!EE4+Intérêt!EE4 -> 2585.932297 | EF4: ='Base de données cumulée'!EE4+'Base de donnée'!EF4+Intérêt!EF4 -> 2586.003907 | EG4: ='Base de données cumulée'!EF4+'Base de donnée'!EG4+Intérêt!EG4 -> 2586.075577 | EH4: ='Base de données cumulée'!EG4+'Base de donnée'!EH4+Intérêt!EH4 -> 2586.147307 | EI4: ='Base de données cumulée'!EH4+'Base de donnée'!EI4+Intérêt!EI4 -> 2586.219096 | EJ4: ='Base de données cumulée'!EI4+'Base de donnée'!EJ4+Intérêt!EJ4 -> 2586.290946 | EK4: ='Base de données cumulée'!EJ4+'Base de donnée'!EK4+Intérêt!EK4 -> 2586.362855 | EL4: ='Base de données cumulée'!EK4+'Base de donnée'!EL4+Intérêt!EL4 -> 2586.434824 | EM4: ='Base de données cumulée'!EL4+'Base de donnée'!EM4+Intérêt!EM4 -> 2586.506853 | EN4: ='Base de données cumulée'!EM4+'Base de donnée'!EN4+Intérêt!EN4 -> 2586.578942 | EO4: ='Base de données cumulée'!EN4+'Base de donnée'!EO4+Intérêt!EO4 -> 2586.651091 | EP4: ='Base de données cumulée'!EO4+'Base de donnée'!EP4+Intérêt!EP4 -> 2586.7233 | EQ4: ='Base de données cumulée'!EP4+'Base de donnée'!EQ4+Intérêt!EQ4 -> 2586.79557 | ER4: ='Base de données cumulée'!EQ4+'Base de donnée'!ER4+Intérêt!ER4 -> 2586.867899 | ES4: ='Base de données cumulée'!ER4+'Base de donnée'!ES4+Intérêt!ES4 -> 2586.940289 | ET4: ='Base de données cumulée'!ES4+'Base de donnée'!ET4+Intérêt!ET4 -> 2587.012739 | EU4: ='Base de données cumulée'!ET4+'Base de donnée'!EU4+Intérêt!EU4 -> 2587.08525 | EV4: ='Base de données cumulée'!ET4+'Base de donnée'!EV4+Intérêt!EV4 -> 2588.736432 | EW4: ='Base de données cumulée'!EV4+'Base de donnée'!EW4+Intérêt!EW4 -> 2588.810379 | EX4: ='Base de données cumulée'!EW4+'Base de donnée'!EX4+Intérêt!EX4 -> 2588.884388 | EY4: ='Base de données cumulée'!EX4+'Base de donnée'!EY4+Intérêt!EY4 -> 2588.958458 | EZ4: ='Base de données cumulée'!EY4+'Base de donnée'!EZ4+Intérêt!EZ4 -> 2589.03259 | FA4: ='Base de données cumulée'!EZ4+'Base de donnée'!FA4+Intérêt!FA4 -> 2589.106784 | FB4: ='Base de données cumulée'!FA4+'Base de donnée'!FB4+Intérêt!FB4 -> 2589.181039 | FC4: ='Base de données cumulée'!FB4+'Base de donnée'!FC4+Intérêt!FC4 -> 2589.255357 | FD4: ='Base de données cumulée'!FC4+'Base de donnée'!FD4+Intérêt!FD4 -> 2589.329736 | FE4: ='Base de données cumulée'!FD4+'Base de donnée'!FE4+Intérêt!FE4 -> 2589.404178 | FF4: ='Base de données cumulée'!FE4+'Base de donnée'!FF4+Intérêt!FF4 -> 2589.478681 | FG4: ='Base de données cumulée'!FF4+'Base de donnée'!FG4+Intérêt!FG4 -> 2589.553247 | FH4: ='Base de données cumulée'!FG4+'Base de donnée'!FH4+Intérêt!FH4 -> 2589.627875 | FI4: ='Base de données cumulée'!FH4+'Base de donnée'!FI4+Intérêt!FI4 -> 2589.702564 | FJ4: ='Base de données cumulée'!FI4+'Base de donnée'!FJ4+Intérêt!FJ4 -> 2589.777317 | FK4: ='Base de données cumulée'!FJ4+'Base de donnée'!FK4+Intérêt!FK4 -> 2589.852131 | FL4: ='Base de données cumulée'!FK4+'Base de donnée'!FL4+Intérêt!FL4 -> 2589.927008 | FM4: ='Base de données cumulée'!FL4+'Base de donnée'!FM4+Intérêt!FM4 -> 2590.001947 | FN4: ='Base de données cumulée'!FM4+'Base de donnée'!FN4+Intérêt!FN4 -> 2590.076949 | FO4: ='Base de données cumulée'!FN4+'Base de donnée'!FO4+Intérêt!FO4 -> 2590.152013 | FP4: ='Base de données cumulée'!FO4+'Base de donnée'!FP4+Intérêt!FP4 -> 2590.227139 | FQ4: ='Base de données cumulée'!FP4+'Base de donnée'!FQ4+Intérêt!FQ4 -> 2590.302329 | FR4: ='Base de données cumulée'!FQ4+'Base de donnée'!FR4+Intérêt!FR4 -> 2590.377581 | FS4: ='Base de données cumulée'!FR4+'Base de donnée'!FS4+Intérêt!FS4 -> 2590.452895 | FT4: ='Base de données cumulée'!FS4+'Base de donnée'!FT4+Intérêt!FT4 -> 2590.528273 | FU4: ='Base de données cumulée'!FS4+'Base de donnée'!FU4+Intérêt!FU4 -> 2592.244736 | FV4: ='Base de données cumulée'!FU4+'Base de donnée'!FV4+Intérêt!FV4 -> 2592.321607 | FW4: ='Base de données cumulée'!FV4+'Base de donnée'!FW4+Intérêt!FW4 -> 2592.398541 | FX4: ='Base de données cumulée'!FW4+'Base de donnée'!FX4+Intérêt!FX4 -> 2592.47554 | FY4: ='Base de données cumulée'!FX4+'Base de donnée'!FY4+Intérêt!FY4 -> 2592.552603 | FZ4: ='Base de données cumulée'!FY4+'Base de donnée'!FZ4+Intérêt!FZ4 -> 2592.62973 | GA4: ='Base de données cumulée'!FZ4+'Base de donnée'!GA4+Intérêt!GA4 -> 2592.706922 | GB4: ='Base de données cumulée'!GA4+'Base de donnée'!GB4+Intérêt!GB4 -> 2592.784178 | GC4: ='Base de données cumulée'!GB4+'Base de donnée'!GC4+Intérêt!GC4 -> 2592.861498 | GD4: ='Base de données cumulée'!GC4+'Base de donnée'!GD4+Intérêt!GD4 -> 2592.938882 | GE4: ='Base de données cumulée'!GD4+'Base de donnée'!GE4+Intérêt!GE4 -> 2593.016331 | GF4: ='Base de données cumulée'!GE4+'Base de donnée'!GF4+Intérêt!GF4 -> 2593.093845 | GG4: ='Base de données cumulée'!GF4+'Base de donnée'!GG4+Intérêt!GG4 -> 2593.171423 | GH4: ='Base de données cumulée'!GG4+'Base de donnée'!GH4+Intérêt!GH4 -> 2593.249066 | GI4: ='Base de données cumulée'!GH4+'Base de donnée'!GI4+Intérêt!GI4 -> 2593.326774 | GJ4: ='Base de données cumulée'!GI4+'Base de donnée'!GJ4+Intérêt!GJ4 -> 2593.404546 | GK4: ='Base de données cumulée'!GJ4+'Base de donnée'!GK4+Intérêt!GK4 -> 2593.482383 | GL4: ='Base de données cumulée'!GK4+'Base de donnée'!GL4+Intérêt!GL4 -> 2593.560285 | GM4: ='Base de données cumulée'!GL4+'Base de donnée'!GM4+Intérêt!GM4 -> 2593.638252 | GN4: ='Base de données cumulée'!GM4+'Base de donnée'!GN4+Intérêt!GN4 -> 2593.716284 | GO4: ='Base de données cumulée'!GN4+'Base de donnée'!GO4+Intérêt!GO4 -> 2593.794381 | GP4: ='Base de données cumulée'!GO4+'Base de donnée'!GP4+Intérêt!GP4 -> 2593.872543 | GQ4: ='Base de données cumulée'!GP4+'Base de donnée'!GQ4+Intérêt!GQ4 -> 2593.95077 | GR4: ='Base de données cumulée'!GQ4+'Base de donnée'!GR4+Intérêt!GR4 -> 2594.029062 | GS4: ='Base de données cumulée'!GR4+'Base de donnée'!GS4+Intérêt!GS4 -> 2594.10742 | GT4: ='Base de données cumulée'!GR4+'Base de donnée'!GT4+Intérêt!GT4 -> 2595.891746 | GU4: ='Base de données cumulée'!GT4+'Base de donnée'!GU4+Intérêt!GU4 -> 2595.971655 | GV4: ='Base de données cumulée'!GU4+'Base de donnée'!GV4+Intérêt!GV4 -> 2596.051632 | GW4: ='Base de données cumulée'!GV4+'Base de donnée'!GW4+Intérêt!GW4 -> 2596.131675 | GX4: ='Base de données cumulée'!GW4+'Base de donnée'!GX4+Intérêt!GX4 -> 2596.211784 | GY4: ='Base de données cumulée'!GX4+'Base de donnée'!GY4+Intérêt!GY4 -> 2596.291961 | GZ4: ='Base de données cumulée'!GY4+'Base de donnée'!GZ4+Intérêt!GZ4 -> 2596.372204 | HA4: ='Base de données cumulée'!GZ4+'Base de donnée'!HA4+Intérêt!HA4 -> 2596.452514 | HB4: ='Base de données cumulée'!HA4+'Base de donnée'!HB4+Intérêt!HB4 -> 2596.532892 | HC4: ='Base de données cumulée'!HB4+'Base de donnée'!HC4+Intérêt!HC4 -> 2596.613336 | HD4: ='Base de données cumulée'!HC4+'Base de donnée'!HD4+Intérêt!HD4 -> 2596.693847 | HE4: ='Base de données cumulée'!HD4+'Base de donnée'!HE4+Intérêt!HE4 -> 2596.774425 | HF4: ='Base de données cumulée'!HE4+'Base de donnée'!HF4+Intérêt!HF4 -> 2596.85507 | HG4: ='Base de données cumulée'!HF4+'Base de donnée'!HG4+Intérêt!HG4 -> 2596.935783 | HH4: ='Base de données cumulée'!HG4+'Base de donnée'!HH4+Intérêt!HH4 -> 2597.016563 | HI4: ='Base de données cumulée'!HH4+'Base de donnée'!HI4+Intérêt!HI4 -> 2597.09741 | HJ4: ='Base de données cumulée'!HI4+'Base de donnée'!HJ4+Intérêt!HJ4 -> 2597.178324 | HK4: ='Base de données cumulée'!HJ4+'Base de donnée'!HK4+Intérêt!HK4 -> 2597.259306 | HL4: ='Base de données cumulée'!HK4+'Base de donnée'!HL4+Intérêt!HL4 -> 2597.340356 | HM4: ='Base de données cumulée'!HL4+'Base de donnée'!HM4+Intérêt!HM4 -> 2597.421473 | HN4: ='Base de données cumulée'!HM4+'Base de donnée'!HN4+Intérêt!HN4 -> 2597.502657 | HO4: ='Base de données cumulée'!HN4+'Base de donnée'!HO4+Intérêt!HO4 -> 2597.583909 | HP4: ='Base de données cumulée'!HO4+'Base de donnée'!HP4+Intérêt!HP4 -> 2597.665229 | HQ4: ='Base de données cumulée'!HP4+'Base de donnée'!HQ4+Intérêt!HQ4 -> 2597.746617 | HR4: ='Base de données cumulée'!HQ4+'Base de donnée'!HR4+Intérêt!HR4 -> 2597.828073 | HS4: ='Base de données cumulée'!HQ4+'Base de donnée'!HS4+Intérêt!HS4 -> 2599.682944 | HT4: ='Base de données cumulée'!HS4+'Base de donnée'!HT4+Intérêt!HT4 -> 2599.766013 | HU4: ='Base de données cumulée'!HT4+'Base de donnée'!HU4+Intérêt!HU4 -> 2599.849151 | HV4: ='Base de données cumulée'!HU4+'Base de donnée'!HV4+Intérêt!HV4 -> 2599.932359 | HW4: ='Base de données cumulée'!HV4+'Base de donnée'!HW4+Intérêt!HW4 -> 2600.015636 | HX4: ='Base de données cumulée'!HW4+'Base de donnée'!HX4+Intérêt!HX4 -> 2600.098982 | HY4: ='Base de données cumulée'!HX4+'Base de donnée'!HY4+Intérêt!HY4 -> 2600.182398 | HZ4: ='Base de données cumulée'!HY4+'Base de donnée'!HZ4+Intérêt!HZ4 -> 2600.265884 | IA4: ='Base de données cumulée'!HZ4+'Base de donnée'!IA4+Intérêt!IA4 -> 2600.349438 | IB4: ='Base de données cumulée'!IA4+'Base de donnée'!IB4+Intérêt!IB4 -> 2600.433063 | IC4: ='Base de données cumulée'!IB4+'Base de donnée'!IC4+Intérêt!IC4 -> 2600.516757 | ID4: ='Base de données cumulée'!IC4+'Base de donnée'!ID4+Intérêt!ID4 -> 2600.600521 | IE4: ='Base de données cumulée'!ID4+'Base de donnée'!IE4+Intérêt!IE4 -> 2600.684355 | IF4: ='Base de données cumulée'!IE4+'Base de donnée'!IF4+Intérêt!IF4 -> 2600.768259 | IG4: ='Base de données cumulée'!IF4+'Base de donnée'!IG4+Intérêt!IG4 -> 2600.852232 | IH4: ='Base de données cumulée'!IG4+'Base de donnée'!IH4+Intérêt!IH4 -> 2600.936276 | II4: ='Base de données cumulée'!IH4+'Base de donnée'!II4+Intérêt!II4 -> 2601.020389 | IJ4: ='Base de données cumulée'!II4+'Base de donnée'!IJ4+Intérêt!IJ4 -> 2601.104573 | IK4: ='Base de données cumulée'!IJ4+'Base de donnée'!IK4+Intérêt!IK4 -> 2601.188827 | IL4: ='Base de données cumulée'!IK4+'Base de donnée'!IL4+Intérêt!IL4 -> 2601.273151 | IM4: ='Base de données cumulée'!IL4+'Base de donnée'!IM4+Intérêt!IM4 -> 2601.357545 | IN4: ='Base de données cumulée'!IM4+'Base de donnée'!IN4+Intérêt!IN4 -> 2601.44201 | IO4: ='Base de données cumulée'!IN4+'Base de donnée'!IO4+Intérêt!IO4 -> 2601.526545 | IP4: ='Base de données cumulée'!IO4+'Base de donnée'!IP4+Intérêt!IP4 -> 2601.61115 | IQ4: ='Base de données cumulée'!IP4+'Base de donnée'!IQ4+Intérêt!IQ4 -> 2601.695826 | IR4: ='Base de données cumulée'!IP4+'Base de donnée'!IR4+Intérêt!IR4 -> 2603.624032 | IS4: ='Base de données cumulée'!IR4+'Base de donnée'!IS4+Intérêt!IS4 -> 2603.710386 | IT4: ='Base de données cumulée'!IS4+'Base de donnée'!IT4+Intérêt!IT4 -> 2603.796811 | IU4: ='Base de données cumulée'!IT4+'Base de donnée'!IU4+Intérêt!IU4 -> 2603.883308 | IV4: ='Base de données cumulée'!IU4+'Base de donnée'!IV4+Intérêt!IV4 -> 2603.969878 | IW4: ='Base de données cumulée'!IV4+'Base de donnée'!IW4+Intérêt!IW4 -> 2604.056519 | IX4: ='Base de données cumulée'!IW4+'Base de donnée'!IX4+Intérêt!IX4 -> 2604.143233 | IY4: ='Base de données cumulée'!IX4+'Base de donnée'!IY4+Intérêt!IY4 -> 2604.230019 | IZ4: ='Base de données cumulée'!IY4+'Base de donnée'!IZ4+Intérêt!IZ4 -> 2604.316877 | JA4: ='Base de données cumulée'!IZ4+'Base de donnée'!JA4+Intérêt!JA4 -> 2604.403808 | JB4: ='Base de données cumulée'!JA4+'Base de donnée'!JB4+Intérêt!JB4 -> 2604.490811 | JC4: ='Base de données cumulée'!JB4+'Base de donnée'!JC4+Intérêt!JC4 -> 2604.577887 | JD4: ='Base de données cumulée'!JC4+'Base de donnée'!JD4+Intérêt!JD4 -> 2604.665035 | JE4: ='Base de données cumulée'!JD4+'Base de donnée'!JE4+Intérêt!JE4 -> 2604.752256 | JF4: ='Base de données cumulée'!JE4+'Base de donnée'!JF4+Intérêt!JF4 -> 2604.83955 | JG4: ='Base de données cumulée'!JF4+'Base de donnée'!JG4+Intérêt!JG4 -> 2604.926916 | JH4: ='Base de données cumulée'!JG4+'Base de donnée'!JH4+Intérêt!JH4 -> 2605.014355 | JI4: ='Base de données cumulée'!JH4+'Base de donnée'!JI4+Intérêt!JI4 -> 2605.101867 | JJ4: ='Base de données cumulée'!JI4+'Base de donnée'!JJ4+Intérêt!JJ4 -> 2605.189452 | JK4: ='Base de données cumulée'!JJ4+'Base de donnée'!JK4+Intérêt!JK4 -> 2605.27711 | JL4: ='Base de données cumulée'!JK4+'Base de donnée'!JL4+Intérêt!JL4 -> 2605.364841 | JM4: ='Base de données cumulée'!JL4+'Base de donnée'!JM4+Intérêt!JM4 -> 2605.452645 | JN4: ='Base de données cumulée'!JM4+'Base de donnée'!JN4+Intérêt!JN4 -> 2605.540522 | JO4: ='Base de données cumulée'!JN4+'Base de donnée'!JO4+Intérêt!JO4 -> 2605.628472 | JP4: ='Base de données cumulée'!JO4+'Base de donnée'!JP4+Intérêt!JP4 -> 2605.716496 | JQ4: ='Base de données cumulée'!JO4+'Base de donnée'!JQ4+Intérêt!JQ4 -> 2607.720936 | JR4: ='Base de données cumulée'!JQ4+'Base de donnée'!JR4+Intérêt!JR4 -> 2607.810704 | JS4: ='Base de données cumulée'!JR4+'Base de donnée'!JS4+Intérêt!JS4 -> 2607.900546 | JT4: ='Base de données cumulée'!JS4+'Base de donnée'!JT4+Intérêt!JT4 -> 2607.990463 | JU4: ='Base de données cumulée'!JT4+'Base de donnée'!JU4+Intérêt!JU4 -> 2608.080455 | JV4: ='Base de données cumulée'!JU4+'Base de donnée'!JV4+Intérêt!JV4 -> 2608.170522 | JW4: ='Base de données cumulée'!JV4+'Base de donnée'!JW4+Intérêt!JW4 -> 2608.260664 | JX4: ='Base de données cumulée'!JW4+'Base de donnée'!JX4+Intérêt!JX4 -> 2608.350881 | JY4: ='Base de données cumulée'!JX4+'Base de donnée'!JY4+Intérêt!JY4 -> 2608.441174 | JZ4: ='Base de données cumulée'!JY4+'Base de donnée'!JZ4+Intérêt!JZ4 -> 2608.531541 | KA4: ='Base de données cumulée'!JZ4+'Base de donnée'!KA4+Intérêt!KA4 -> 2608.621984 | KB4: ='Base de données cumulée'!KA4+'Base de donnée'!KB4+Intérêt!KB4 -> 2608.712503 | KC4: ='Base de données cumulée'!KB4+'Base de donnée'!KC4+Intérêt!KC4 -> 2608.803096 | KD4: ='Base de données cumulée'!KC4+'Base de donnée'!KD4+Intérêt!KD4 -> 2608.893766 | KE4: ='Base de données cumulée'!KD4+'Base de donnée'!KE4+Intérêt!KE4 -> 2608.98451 | KF4: ='Base de données cumulée'!KE4+'Base de donnée'!KF4+Intérêt!KF4 -> 2609.075331 | KG4: ='Base de données cumulée'!KF4+'Base de donnée'!KG4+Intérêt!KG4 -> 2609.166227 | KH4: ='Base de données cumulée'!KG4+'Base de donnée'!KH4+Intérêt!KH4 -> 2609.257199 | KI4: ='Base de données cumulée'!KH4+'Base de donnée'!KI4+Intérêt!KI4 -> 2609.348246 | KJ4: ='Base de données cumulée'!KI4+'Base de donnée'!KJ4+Intérêt!KJ4 -> 2609.43937 | KK4: ='Base de données cumulée'!KJ4+'Base de donnée'!KK4+Intérêt!KK4 -> 2609.530569 | KL4: ='Base de données cumulée'!KK4+'Base de donnée'!KL4+Intérêt!KL4 -> 2609.621845 | KM4: ='Base de données cumulée'!KL4+'Base de donnée'!KM4+Intérêt!KM4 -> 2609.713197 | KN4: ='Base de données cumulée'!KM4+'Base de donnée'!KN4+Intérêt!KN4 -> 2609.804624 | KO4: ='Base de données cumulée'!KN4+'Base de donnée'!KO4+Intérêt!KO4 -> 2609.896128 | KP4: ='Base de données cumulée'!KN4+'Base de donnée'!KP4+Intérêt!KP4 -> 2611.979816 | KQ4: ='Base de données cumulée'!KP4+'Base de donnée'!KQ4+Intérêt!KQ4 -> 2612.073133 | KR4: ='Base de données cumulée'!KQ4+'Base de donnée'!KR4+Intérêt!KR4 -> 2612.166527 | KS4: ='Base de données cumulée'!KR4+'Base de donnée'!KS4+Intérêt!KS4 -> 2612.259999 | KT4: ='Base de données cumulée'!KS4+'Base de donnée'!KT4+Intérêt!KT4 -> 2612.353549 | KU4: ='Base de données cumulée'!KT4+'Base de donnée'!KU4+Intérêt!KU4 -> 2612.447177 | KV4: ='Base de données cumulée'!KU4+'Base de donnée'!KV4+Intérêt!KV4 -> 2612.540883 | KW4: ='Base de données cumulée'!KV4+'Base de donnée'!KW4+Intérêt!KW4 -> 2612.634667 | KX4: ='Base de données cumulée'!KW4+'Base de donnée'!KX4+Intérêt!KX4 -> 2612.728529 | KY4: ='Base de données cumulée'!KX4+'Base de donnée'!KY4+Intérêt!KY4 -> 2612.82247 | KZ4: ='Base de données cumulée'!KY4+'Base de donnée'!KZ4+Intérêt!KZ4 -> 2612.916488 | LA4: ='Base de données cumulée'!KZ4+'Base de donnée'!LA4+Intérêt!LA4 -> 2613.010585 | LB4: ='Base de données cumulée'!LA4+'Base de donnée'!LB4+Intérêt!LB4 -> 2613.104761 | LC4: ='Base de données cumulée'!LB4+'Base de donnée'!LC4+Intérêt!LC4 -> 2613.199015 | LD4: ='Base de données cumulée'!LC4+'Base de donnée'!LD4+Intérêt!LD4 -> 2613.293347 | LE4: ='Base de données cumulée'!LD4+'Base de donnée'!LE4+Intérêt!LE4 -> 2613.387759 | LF4: ='Base de données cumulée'!LE4+'Base de donnée'!LF4+Intérêt!LF4 -> 2613.482248 | LG4: ='Base de données cumulée'!LF4+'Base de donnée'!LG4+Intérêt!LG4 -> 2613.576817 | LH4: ='Base de données cumulée'!LG4+'Base de donnée'!LH4+Intérêt!LH4 -> 2613.671464 | LI4: ='Base de données cumulée'!LH4+'Base de donnée'!LI4+Intérêt!LI4 -> 2613.76619 | LJ4: ='Base de données cumulée'!LI4+'Base de donnée'!LJ4+Intérêt!LJ4 -> 2613.860996 | LK4: ='Base de données cumulée'!LJ4+'Base de donnée'!LK4+Intérêt!LK4 -> 2613.95588 | LL4: ='Base de données cumulée'!LK4+'Base de donnée'!LL4+Intérêt!LL4 -> 2614.050843 | LM4: ='Base de données cumulée'!LL4+'Base de donnée'!LM4+Intérêt!LM4 -> 2614.145885 | LN4: ='Base de données cumulée'!LM4+'Base de donnée'!LN4+Intérêt!LN4 -> 2614.241007 | LO4: ='Base de données cumulée'!LM4+'Base de donnée'!LO4+Intérêt!LO4 -> 2616.407076 | LP4: ='Base de données cumulée'!LO4+'Base de donnée'!LP4+Intérêt!LP4 -> 2616.504082 | LQ4: ='Base de données cumulée'!LP4+'Base de donnée'!LQ4+Intérêt!LQ4 -> 2616.601169 | LR4: ='Base de données cumulée'!LQ4+'Base de donnée'!LR4+Intérêt!LR4 -> 2616.698337 | LS4: ='Base de données cumulée'!LR4+'Base de donnée'!LS4+Intérêt!LS4 -> 2616.795585 | LT4: ='Base de données cumulée'!LS4+'Base de donnée'!LT4+Intérêt!LT4 -> 2616.892915 | LU4: ='Base de données cumulée'!LT4+'Base de donnée'!LU4+Intérêt!LU4 -> 2616.990326 | LV4: ='Base de données cumulée'!LU4+'Base de donnée'!LV4+Intérêt!LV4 -> 2617.087818 | LW4: ='Base de données cumulée'!LV4+'Base de donnée'!LW4+Intérêt!LW4 -> 2617.185391 | LX4: ='Base de données cumulée'!LW4+'Base de donnée'!LX4+Intérêt!LX4 -> 2617.283045 | LY4: ='Base de données cumulée'!LX4+'Base de donnée'!LY4+Intérêt!LY4 -> 2617.380781 | LZ4: ='Base de données cumulée'!LY4+'Base de donnée'!LZ4+Intérêt!LZ4 -> 2617.478598 | MA4: ='Base de données cumulée'!LZ4+'Base de donnée'!MA4+Intérêt!MA4 -> 2617.576497 | MB4: ='Base de données cumulée'!MA4+'Base de donnée'!MB4+Intérêt!MB4 -> 2617.674478 | MC4: ='Base de données cumulée'!MB4+'Base de donnée'!MC4+Intérêt!MC4 -> 2617.77254 | MD4: ='Base de données cumulée'!MC4+'Base de donnée'!MD4+Intérêt!MD4 -> 2617.870683 | ME4: ='Base de données cumulée'!MD4+'Base de donnée'!ME4+Intérêt!ME4 -> 2617.968909 | MF4: ='Base de données cumulée'!ME4+'Base de donnée'!MF4+Intérêt!MF4 -> 2618.067216 | MG4: ='Base de données cumulée'!MF4+'Base de donnée'!MG4+Intérêt!MG4 -> 2618.165606 | MH4: ='Base de données cumulée'!MG4+'Base de donnée'!MH4+Intérêt!MH4 -> 2618.264077 | MI4: ='Base de données cumulée'!MH4+'Base de donnée'!MI4+Intérêt!MI4 -> 2618.362631 | MJ4: ='Base de données cumulée'!MI4+'Base de donnée'!MJ4+Intérêt!MJ4 -> 2618.461266 | MK4: ='Base de données cumulée'!MJ4+'Base de donnée'!MK4+Intérêt!MK4 -> 2618.559984 | ML4: ='Base de données cumulée'!MK4+'Base de donnée'!ML4+Intérêt!ML4 -> 2618.658784 | MM4: ='Base de données cumulée'!ML4+'Base de donnée'!MM4+Intérêt!MM4 -> 2618.757666 | MN4: ='Base de données cumulée'!ML4+'Base de donnée'!MN4+Intérêt!MN4 -> 2621.009374 | MO4: ='Base de données cumulée'!MN4+'Base de donnée'!MO4+Intérêt!MO4 -> 2621.110215 | MP4: ='Base de données cumulée'!MO4+'Base de donnée'!MP4+Intérêt!MP4 -> 2621.21114 | MQ4: ='Base de données cumulée'!MP4+'Base de donnée'!MQ4+Intérêt!MQ4 -> 2621.312149 | MR4: ='Base de données cumulée'!MQ4+'Base de donnée'!MR4+Intérêt!MR4 -> 2621.413243 | MS4: ='Base de données cumulée'!MR4+'Base de donnée'!MS4+Intérêt!MS4 -> 2621.51442 | MT4: ='Base de données cumulée'!MS4+'Base de donnée'!MT4+Intérêt!MT4 -> 2621.615682 | MU4: ='Base de données cumulée'!MT4+'Base de donnée'!MU4+Intérêt!MU4 -> 2621.717029 | MV4: ='Base de données cumulée'!MU4+'Base de donnée'!MV4+Intérêt!MV4 -> 2621.81846 | MW4: ='Base de données cumulée'!MV4+'Base de donnée'!MW4+Intérêt!MW4 -> 2621.919975 | MX4: ='Base de données cumulée'!MW4+'Base de donnée'!MX4+Intérêt!MX4 -> 2622.021575 | MY4: ='Base de données cumulée'!MX4+'Base de donnée'!MY4+Intérêt!MY4 -> 2622.12326 | MZ4: ='Base de données cumulée'!MY4+'Base de donnée'!MZ4+Intérêt!MZ4 -> 2622.225029 | NA4: ='Base de données cumulée'!MZ4+'Base de donnée'!NA4+Intérêt!NA4 -> 2622.326883 | NB4: ='Base de données cumulée'!NA4+'Base de donnée'!NB4+Intérêt!NB4 -> 2622.428822 | NC4: ='Base de données cumulée'!NB4+'Base de donnée'!NC4+Intérêt!NC4 -> 2622.530846 | ND4: ='Base de données cumulée'!NC4+'Base de donnée'!ND4+Intérêt!ND4 -> 2622.632955 | NE4: ='Base de données cumulée'!ND4+'Base de donnée'!NE4+Intérêt!NE4 -> 2622.735149 | NF4: ='Base de données cumulée'!NE4+'Base de donnée'!NF4+Intérêt!NF4 -> 2622.837429 | NG4: ='Base de données cumulée'!NF4+'Base de donnée'!NG4+Intérêt!NG4 -> 2622.939793 | NH4: ='Base de données cumulée'!NG4+'Base de donnée'!NH4+Intérêt!NH4 -> 2623.042243 | NI4: ='Base de données cumulée'!NH4+'Base de donnée'!NI4+Intérêt!NI4 -> 2623.144778 | NJ4: ='Base de données cumulée'!NI4+'Base de donnée'!NJ4+Intérêt!NJ4 -> 2623.247399 | NK4: ='Base de données cumulée'!NJ4+'Base de donnée'!NK4+Intérêt!NK4 -> 2623.350105 | NL4: ='Base de données cumulée'!NK4+'Base de donnée'!NL4+Intérêt!NL4 -> 2623.452897 | NM4: ='Base de données cumulée'!NK4+'Base de donnée'!NM4+Intérêt!NM4 -> 2625.793628 | NN4: ='Base de données cumulée'!NM4+'Base de donnée'!NN4+Intérêt!NN4 -> 2625.898456 | NO4: ='Base de données cumulée'!NN4+'Base de donnée'!NO4+Intérêt!NO4 -> 2626.003372 | NP4: ='Base de données cumulée'!NO4+'Base de donnée'!NP4+Intérêt!NP4 -> 2626.108375 | NQ4: ='Base de données cumulée'!NP4+'Base de donnée'!NQ4+Intérêt!NQ4 -> 2626.213465 | NR4: ='Base de données cumulée'!NQ4+'Base de donnée'!NR4+Intérêt!NR4 -> 2626.318643 | NS4: ='Base de données cumulée'!NR4+'Base de donnée'!NS4+Intérêt!NS4 -> 2626.423908 | NT4: ='Base de données cumulée'!NS4+'Base de donnée'!NT4+Intérêt!NT4 -> 2626.529262 | NU4: ='Base de données cumulée'!NT4+'Base de donnée'!NU4+Intérêt!NU4 -> 2626.634703 | NV4: ='Base de données cumulée'!NU4+'Base de donnée'!NV4+Intérêt!NV4 -> 2626.740232 | NW4: ='Base de données cumulée'!NV4+'Base de donnée'!NW4+Intérêt!NW4 -> 2626.845848 | NX4: ='Base de données cumulée'!NW4+'Base de donnée'!NX4+Intérêt!NX4 -> 2626.951553 | NY4: ='Base de données cumulée'!NX4+'Base de donnée'!NY4+Intérêt!NY4 -> 2627.057346 | NZ4: ='Base de données cumulée'!NY4+'Base de donnée'!NZ4+Intérêt!NZ4 -> 2627.163227 | OA4: ='Base de données cumulée'!NZ4+'Base de donnée'!OA4+Intérêt!OA4 -> 2627.269197 | OB4: ='Base de données cumulée'!OA4+'Base de donnée'!OB4+Intérêt!OB4 -> 2627.375254 | OC4: ='Base de données cumulée'!OB4+'Base de donnée'!OC4+Intérêt!OC4 -> 2627.481401 | OD4: ='Base de données cumulée'!OC4+'Base de donnée'!OD4+Intérêt!OD4 -> 2627.587635 | OE4: ='Base de données cumulée'!OD4+'Base de donnée'!OE4+Intérêt!OE4 -> 2627.693958 | OF4: ='Base de données cumulée'!OE4+'Base de donnée'!OF4+Intérêt!OF4 -> 2627.80037 | OG4: ='Base de données cumulée'!OF4+'Base de donnée'!OG4+Intérêt!OG4 -> 2627.90687 | OH4: ='Base de données cumulée'!OG4+'Base de donnée'!OH4+Intérêt!OH4 -> 2628.013459 | OI4: ='Base de données cumulée'!OH4+'Base de donnée'!OI4+Intérêt!OI4 -> 2628.120137 | OJ4: ='Base de données cumulée'!OI4+'Base de donnée'!OJ4+Intérêt!OJ4 -> 2628.226904 | OK4: ='Base de données cumulée'!OJ4+'Base de donnée'!OK4+Intérêt!OK4 -> 2628.333759 | OL4: ='Base de données cumulée'!OJ4+'Base de donnée'!OL4+Intérêt!OL4 -> 2630.767035 | OM4: ='Base de données cumulée'!OL4+'Base de donnée'!OM4+Intérêt!OM4 -> 2630.876007 | ON4: ='Base de données cumulée'!OM4+'Base de donnée'!ON4+Intérêt!ON4 -> 2630.985071 | OO4: ='Base de données cumulée'!ON4+'Base de donnée'!OO4+Intérêt!OO4 -> 2631.094225 | OP4: ='Base de données cumulée'!OO4+'Base de donnée'!OP4+Intérêt!OP4 -> 2631.20347 | OQ4: ='Base de données cumulée'!OP4+'Base de donnée'!OQ4+Intérêt!OQ4 -> 2631.312806 | OR4: ='Base de données cumulée'!OQ4+'Base de donnée'!OR4+Intérêt!OR4 -> 2631.422234 | OS4: ='Base de données cumulée'!OR4+'Base de donnée'!OS4+Intérêt!OS4 -> 2631.531752 | OT4: ='Base de données cumulée'!OS4+'Base de donnée'!OT4+Intérêt!OT4 -> 2631.641362 | OU4: ='Base de données cumulée'!OT4+'Base de donnée'!OU4+Intérêt!OU4 -> 2631.751063 | OV4: ='Base de données cumulée'!OU4+'Base de donnée'!OV4+Intérêt!OV4 -> 2631.860856 | OW4: ='Base de données cumulée'!OV4+'Base de donnée'!OW4+Intérêt!OW4 -> 2631.97074 | OX4: ='Base de données cumulée'!OW4+'Base de donnée'!OX4+Intérêt!OX4 -> 2632.080715 | OY4: ='Base de données cumulée'!OX4+'Base de donnée'!OY4+Intérêt!OY4 -> 2632.190782 | OZ4: ='Base de données cumulée'!OY4+'Base de donnée'!OZ4+Intérêt!OZ4 -> 2632.300941 | PA4: ='Base de données cumulée'!OZ4+'Base de donnée'!PA4+Intérêt!PA4 -> 2632.411192 | PB4: ='Base de données cumulée'!PA4+'Base de donnée'!PB4+Intérêt!PB4 -> 2632.521535 | PC4: ='Base de données cumulée'!PB4+'Base de donnée'!PC4+Intérêt!PC4 -> 2632.63197 | PD4: ='Base de données cumulée'!PC4+'Base de donnée'!PD4+Intérêt!PD4 -> 2632.742496 | PE4: ='Base de données cumulée'!PD4+'Base de donnée'!PE4+Intérêt!PE4 -> 2632.853115 | PF4: ='Base de données cumulée'!PE4+'Base de donnée'!PF4+Intérêt!PF4 -> 2632.963826 | PG4: ='Base de données cumulée'!PF4+'Base de donnée'!PG4+Intérêt!PG4 -> 2633.074629 | PH4: ='Base de données cumulée'!PG4+'Base de donnée'!PH4+Intérêt!PH4 -> 2633.185525 | PI4: ='Base de données cumulée'!PH4+'Base de donnée'!PI4+Intérêt!PI4 -> 2633.296512 | PJ4: ='Base de données cumulée'!PI4+'Base de donnée'!PJ4+Intérêt!PJ4 -> 2633.407593 | PK4: ='Base de données cumulée'!PI4+'Base de donnée'!PK4+Intérêt!PK4 -> 2635.937071 | PL4: ='Base de données cumulée'!PK4+'Base de donnée'!PL4+Intérêt!PL4 -> 2636.050352 | PM4: ='Base de données cumulée'!PL4+'Base de donnée'!PM4+Intérêt!PM4 -> 2636.163727 | PN4: ='Base de données cumulée'!PM4+'Base de donnée'!PN4+Intérêt!PN4 -> 2636.277197 | PO4: ='Base de données cumulée'!PN4+'Base de donnée'!PO4+Intérêt!PO4 -> 2636.390761 | PP4: ='Base de données cumulée'!PO4+'Base de donnée'!PP4+Intérêt!PP4 -> 2636.50442 | PQ4: ='Base de données cumulée'!PP4+'Base de donnée'!PQ4+Intérêt!PQ4 -> 2636.618174 | PR4: ='Base de données cumulée'!PQ4+'Base de donnée'!PR4+Intérêt!PR4 -> 2636.732022 | PS4: ='Base de données cumulée'!PR4+'Base de donnée'!PS4+Intérêt!PS4 -> 2636.845965 | PT4: ='Base de données cumulée'!PS4+'Base de donnée'!PT4+Intérêt!PT4 -> 2636.960004 | PU4: ='Base de données cumulée'!PT4+'Base de donnée'!PU4+Intérêt!PU4 -> 2637.074137 | PV4: ='Base de données cumulée'!PU4+'Base de donnée'!PV4+Intérêt!PV4 -> 2637.188366 | PW4: ='Base de données cumulée'!PV4+'Base de donnée'!PW4+Intérêt!PW4 -> 2637.302689 | PX4: ='Base de données cumulée'!PW4+'Base de donnée'!PX4+Intérêt!PX4 -> 2637.417108 | PY4: ='Base de données cumulée'!PX4+'Base de donnée'!PY4+Intérêt!PY4 -> 2637.531622 | PZ4: ='Base de données cumulée'!PY4+'Base de donnée'!PZ4+Intérêt!PZ4 -> 2637.646232 | QA4: ='Base de données cumulée'!PZ4+'Base de donnée'!QA4+Intérêt!QA4 -> 2637.760937 | QB4: ='Base de données cumulée'!QA4+'Base de donnée'!QB4+Intérêt!QB4 -> 2637.875738 | QC4: ='Base de données cumulée'!QB4+'Base de donnée'!QC4+Intérêt!QC4 -> 2637.990634 | QD4: ='Base de données cumulée'!QC4+'Base de donnée'!QD4+Intérêt!QD4 -> 2638.105627 | QE4: ='Base de données cumulée'!QD4+'Base de donnée'!QE4+Intérêt!QE4 -> 2638.220715 | QF4: ='Base de données cumulée'!QE4+'Base de donnée'!QF4+Intérêt!QF4 -> 2638.335899 | QG4: ='Base de données cumulée'!QF4+'Base de donnée'!QG4+Intérêt!QG4 -> 2638.451179 | QH4: ='Base de données cumulée'!QG4+'Base de donnée'!QH4+Intérêt!QH4 -> 2638.566555 | QI4: ='Base de données cumulée'!QH4+'Base de donnée'!QI4+Intérêt!QI4 -> 2638.682027 | QJ4: ='Base de données cumulée'!QH4+'Base de donnée'!QJ4+Intérêt!QJ4 -> 2641.31151 | QK4: ='Base de données cumulée'!QJ4+'Base de donnée'!QK4+Intérêt!QK4 -> 2641.42927 | QL4: ='Base de données cumulée'!QK4+'Base de donnée'!QL4+Intérêt!QL4 -> 2641.547128 | QM4: ='Base de données cumulée'!QL4+'Base de donnée'!QM4+Intérêt!QM4 -> 2641.665084 | QN4: ='Base de données cumulée'!QM4+'Base de donnée'!QN4+Intérêt!QN4 -> 2641.783138 | QO4: ='Base de données cumulée'!QN4+'Base de donnée'!QO4+Intérêt!QO4 -> 2641.901291 | QP4: ='Base de données cumulée'!QO4+'Base de donnée'!QP4+Intérêt!QP4 -> 2642.019542 | QQ4: ='Base de données cumulée'!QP4+'Base de donnée'!QQ4+Intérêt!QQ4 -> 2642.137891 | QR4: ='Base de données cumulée'!QQ4+'Base de donnée'!QR4+Intérêt!QR4 -> 2642.256339 | QS4: ='Base de données cumulée'!QR4+'Base de donnée'!QS4+Intérêt!QS4 -> 2642.374886 | QT4: ='Base de données cumulée'!QS4+'Base de donnée'!QT4+Intérêt!QT4 -> 2642.493532 | QU4: ='Base de données cumulée'!QT4+'Base de donnée'!QU4+Intérêt!QU4 -> 2642.612277 | QV4: ='Base de données cumulée'!QU4+'Base de donnée'!QV4+Intérêt!QV4 -> 2642.73112 | QW4: ='Base de données cumulée'!QV4+'Base de donnée'!QW4+Intérêt!QW4 -> 2642.850063 | QX4: ='Base de données cumulée'!QW4+'Base de donnée'!QX4+Intérêt!QX4 -> 2642.969105 | QY4: ='Base de données cumulée'!QX4+'Base de donnée'!QY4+Intérêt!QY4 -> 2643.088246 | QZ4: ='Base de données cumulée'!QY4+'Base de donnée'!QZ4+Intérêt!QZ4 -> 2643.207486 | RA4: ='Base de données cumulée'!QZ4+'Base de donnée'!RA4+Intérêt!RA4 -> 2643.326825 | RB4: ='Base de données cumulée'!RA4+'Base de donnée'!RB4+Intérêt!RB4 -> 2643.446264 | RC4: ='Base de données cumulée'!RB4+'Base de donnée'!RC4+Intérêt!RC4 -> 2643.565803 | RD4: ='Base de données cumulée'!RC4+'Base de donnée'!RD4+Intérêt!RD4 -> 2643.685441 | RE4: ='Base de données cumulée'!RD4+'Base de donnée'!RE4+Intérêt!RE4 -> 2643.805179 | RF4: ='Base de données cumulée'!RE4+'Base de donnée'!RF4+Intérêt!RF4 -> 2643.925017 | RG4: ='Base de données cumulée'!RF4+'Base de donnée'!RG4+Intérêt!RG4 -> 2644.044954 | RH4: ='Base de données cumulée'!RG4+'Base de donnée'!RH4+Intérêt!RH4 -> 2644.164992 | RI4: ='Base de données cumulée'!RG4+'Base de donnée'!RI4+Intérêt!RI4 -> 2646.898435 | RJ4: ='Base de données cumulée'!RI4+'Base de donnée'!RJ4+Intérêt!RJ4 -> 2647.020851 | RK4: ='Base de données cumulée'!RJ4+'Base de donnée'!RK4+Intérêt!RK4 -> 2647.143368 | RL4: ='Base de données cumulée'!RK4+'Base de donnée'!RL4+Intérêt!RL4 -> 2647.265988 | RM4: ='Base de données cumulée'!RL4+'Base de donnée'!RM4+Intérêt!RM4 -> 2647.388709 | RN4: ='Base de données cumulée'!RM4+'Base de donnée'!RN4+Intérêt!RN4 -> 2647.511533 | RO4: ='Base de données cumulée'!RN4+'Base de donnée'!RO4+Intérêt!RO4 -> 2647.634459 | RP4: ='Base de données cumulée'!RO4+'Base de donnée'!RP4+Intérêt!RP4 -> 2647.757488 | RQ4: ='Base de données cumulée'!RP4+'Base de donnée'!RQ4+Intérêt!RQ4 -> 2647.880619 | RR4: ='Base de données cumulée'!RQ4+'Base de donnée'!RR4+Intérêt!RR4 -> 2648.003853 | RS4: ='Base de données cumulée'!RR4+'Base de donnée'!RS4+Intérêt!RS4 -> 2648.12719 | RT4: ='Base de données cumulée'!RS4+'Base de donnée'!RT4+Intérêt!RT4 -> 2648.250629 | RU4: ='Base de données cumulée'!RT4+'Base de donnée'!RU4+Intérêt!RU4 -> 2648.374171 | RV4: ='Base de données cumulée'!RU4+'Base de donnée'!RV4+Intérêt!RV4 -> 2648.497816 | RW4: ='Base de données cumulée'!RV4+'Base de donnée'!RW4+Intérêt!RW4 -> 2648.621565 | RX4: ='Base de données cumulée'!RW4+'Base de donnée'!RX4+Intérêt!RX4 -> 2648.745416 | RY4: ='Base de données cumulée'!RX4+'Base de donnée'!RY4+Intérêt!RY4 -> 2648.86937 | RZ4: ='Base de données cumulée'!RY4+'Base de donnée'!RZ4+Intérêt!RZ4 -> 2648.993428 | SA4: ='Base de données cumulée'!RZ4+'Base de donnée'!SA4+Intérêt!SA4 -> 2649.117589 | SB4: ='Base de données cumulée'!SA4+'Base de donnée'!SB4+Intérêt!SB4 -> 2649.241854 | SC4: ='Base de données cumulée'!SB4+'Base de donnée'!SC4+Intérêt!SC4 -> 2649.366222 | SD4: ='Base de données cumulée'!SC4+'Base de donnée'!SD4+Intérêt!SD4 -> 2649.490694 | SE4: ='Base de données cumulée'!SD4+'Base de donnée'!SE4+Intérêt!SE4 -> 2649.61527 | SF4: ='Base de données cumulée'!SE4+'Base de donnée'!SF4+Intérêt!SF4 -> 2649.739949 | SG4: ='Base de données cumulée'!SF4+'Base de donnée'!SG4+Intérêt!SG4 -> 2649.864732 | SH4: ='Base de données cumulée'!SF4+'Base de donnée'!SH4+Intérêt!SH4 -> 2652.706246 | SI4: ='Base de données cumulée'!SH4+'Base de donnée'!SI4+Intérêt!SI4 -> 2652.833501 | SJ4: ='Base de données cumulée'!SI4+'Base de donnée'!SJ4+Intérêt!SJ4 -> 2652.960863 | SK4: ='Base de données cumulée'!SJ4+'Base de donnée'!SK4+Intérêt!SK4 -> 2653.08833 | SL4: ='Base de données cumulée'!SK4+'Base de donnée'!SL4+Intérêt!SL4 -> 2653.215904 | SM4: ='Base de données cumulée'!SL4+'Base de donnée'!SM4+Intérêt!SM4 -> 2653.343584 | SN4: ='Base de données cumulée'!SM4+'Base de donnée'!SN4+Intérêt!SN4 -> 2653.47137 | SO4: ='Base de données cumulée'!SN4+'Base de donnée'!SO4+Intérêt!SO4 -> 2653.599263 | SP4: ='Base de données cumulée'!SO4+'Base de donnée'!SP4+Intérêt!SP4 -> 2653.727262 | SQ4: ='Base de données cumulée'!SP4+'Base de donnée'!SQ4+Intérêt!SQ4 -> 2653.855368 | SR4: ='Base de données cumulée'!SQ4+'Base de donnée'!SR4+Intérêt!SR4 -> 2653.983581 | SS4: ='Base de données cumulée'!SR4+'Base de donnée'!SS4+Intérêt!SS4 -> 2654.111901 | ST4: ='Base de données cumulée'!SS4+'Base de donnée'!ST4+Intérêt!ST4 -> 2654.240327 | SU4: ='Base de données cumulée'!ST4+'Base de donnée'!SU4+Intérêt!SU4 -> 2654.368861 | SV4: ='Base de données cumulée'!SU4+'Base de donnée'!SV4+Intérêt!SV4 -> 2654.497501 | SW4: ='Base de données cumulée'!SV4+'Base de donnée'!SW4+Intérêt!SW4 -> 2654.626249 | SX4: ='Base de données cumulée'!SW4+'Base de donnée'!SX4+Intérêt!SX4 -> 2654.755105 | SY4: ='Base de données cumulée'!SX4+'Base de donnée'!SY4+Intérêt!SY4 -> 2654.884067 | SZ4: ='Base de données cumulée'!SY4+'Base de donnée'!SZ4+Intérêt!SZ4 -> 2655.013137 | TA4: ='Base de données cumulée'!SZ4+'Base de donnée'!TA4+Intérêt!TA4 -> 2655.142315 | TB4: ='Base de données cumulée'!TA4+'Base de donnée'!TB4+Intérêt!TB4 -> 2655.2716 | TC4: ='Base de données cumulée'!TB4+'Base de donnée'!TC4+Intérêt!TC4 -> 2655.400993 | TD4: ='Base de données cumulée'!TC4+'Base de donnée'!TD4+Intérêt!TD4 -> 2655.530494 | TE4: ='Base de données cumulée'!TD4+'Base de donnée'!TE4+Intérêt!TE4 -> 2655.660103 | TF4: ='Base de données cumulée'!TE4+'Base de donnée'!TF4+Intérêt!TF4 -> 2655.789819
A5: Marion AGAPOF | B5: ='Base de donnée'!B5 -> 2500 | C5: ='Base de données cumulée'!B5+'Base de donnée'!C5+Intérêt!C5 -> 2501.079167 | D5: ='Base de données cumulée'!C5+'Base de donnée'!D5+Intérêt!D5 -> 2502.158799 | E5: ='Base de données cumulée'!D5+'Base de donnée'!E5+Intérêt!E5 -> 2503.238898 | F5: ='Base de données cumulée'!E5+'Base de donnée'!F5+Intérêt!F5 -> 2504.319463 | G5: ='Base de données cumulée'!F5+'Base de donnée'!G5+Intérêt!G5 -> 2505.400494 | H5: ='Base de données cumulée'!G5+'Base de donnée'!H5+Intérêt!H5 -> 2506.481992 | I5: ='Base de données cumulée'!H5+'Base de donnée'!I5+Intérêt!I5 -> 2507.563956 | J5: ='Base de données cumulée'!I5+'Base de donnée'!J5+Intérêt!J5 -> 2508.646388 | K5: ='Base de données cumulée'!J5+'Base de donnée'!K5+Intérêt!K5 -> 2509.729287 | L5: ='Base de données cumulée'!K5+'Base de donnée'!L5+Intérêt!L5 -> 2510.812654 | M5: ='Base de données cumulée'!L5+'Base de donnée'!M5+Intérêt!M5 -> 2511.896488 | N5: ='Base de données cumulée'!M5+'Base de donnée'!N5+Intérêt!N5 -> 2512.98079 | O5: ='Base de données cumulée'!N5+'Base de donnée'!O5+Intérêt!O5 -> 2514.06556 | P5: ='Base de données cumulée'!O5+'Base de donnée'!P5+Intérêt!P5 -> 2515.150798 | Q5: ='Base de données cumulée'!P5+'Base de donnée'!Q5+Intérêt!Q5 -> 2516.236505 | R5: ='Base de données cumulée'!Q5+'Base de donnée'!R5+Intérêt!R5 -> 2517.32268 | S5: ='Base de données cumulée'!R5+'Base de donnée'!S5+Intérêt!S5 -> 2518.409325 | T5: ='Base de données cumulée'!S5+'Base de donnée'!T5+Intérêt!T5 -> 2519.496438 | U5: ='Base de données cumulée'!T5+'Base de donnée'!U5+Intérêt!U5 -> 2520.584021 | V5: ='Base de données cumulée'!U5+'Base de donnée'!V5+Intérêt!V5 -> 2521.672073 | W5: ='Base de données cumulée'!V5+'Base de donnée'!W5+Intérêt!W5 -> 2522.760594 | X5: ='Base de données cumulée'!W5+'Base de donnée'!X5+Intérêt!X5 -> 2523.849586 | Y5: ='Base de données cumulée'!X5+'Base de donnée'!Y5+Intérêt!Y5 -> 2524.939048 | Z5: ='Base de données cumulée'!Y5+'Base de donnée'!Z5+Intérêt!Z5 -> 2526.02898 | AA5: ='Base de données cumulée'!Y5+'Base de donnée'!AA5+Intérêt!AA5 -> 2550.968028 | AB5: ='Base de données cumulée'!AA5+'Base de donnée'!AB5+Intérêt!AB5 -> 2551.233711 | AC5: ='Base de données cumulée'!AB5+'Base de donnée'!AC5+Intérêt!AC5 -> 2551.499638 | AD5: ='Base de données cumulée'!AC5+'Base de donnée'!AD5+Intérêt!AD5 -> 2551.765811 | AE5: ='Base de données cumulée'!AD5+'Base de donnée'!AE5+Intérêt!AE5 -> 2552.032229 | AF5: ='Base de données cumulée'!AE5+'Base de donnée'!AF5+Intérêt!AF5 -> 2552.298892 | AG5: ='Base de données cumulée'!AF5+'Base de donnée'!AG5+Intérêt!AG5 -> 2552.5658 | AH5: ='Base de données cumulée'!AG5+'Base de donnée'!AH5+Intérêt!AH5 -> 2552.832955 | AI5: ='Base de données cumulée'!AH5+'Base de donnée'!AI5+Intérêt!AI5 -> 2553.100355 | AJ5: ='Base de données cumulée'!AI5+'Base de donnée'!AJ5+Intérêt!AJ5 -> 2553.368002 | AK5: ='Base de données cumulée'!AJ5+'Base de donnée'!AK5+Intérêt!AK5 -> 2553.635895 | AL5: ='Base de données cumulée'!AK5+'Base de donnée'!AL5+Intérêt!AL5 -> 2553.904034 | AM5: ='Base de données cumulée'!AL5+'Base de donnée'!AM5+Intérêt!AM5 -> 2554.172421 | AN5: ='Base de données cumulée'!AM5+'Base de donnée'!AN5+Intérêt!AN5 -> 2554.441055 | AO5: ='Base de données cumulée'!AN5+'Base de donnée'!AO5+Intérêt!AO5 -> 2554.709936 | AP5: ='Base de données cumulée'!AO5+'Base de donnée'!AP5+Intérêt!AP5 -> 2554.979065 | AQ5: ='Base de données cumulée'!AP5+'Base de donnée'!AQ5+Intérêt!AQ5 -> 2555.248441 | AR5: ='Base de données cumulée'!AQ5+'Base de donnée'!AR5+Intérêt!AR5 -> 2555.518066 | AS5: ='Base de données cumulée'!AR5+'Base de donnée'!AS5+Intérêt!AS5 -> 2555.787939 | AT5: ='Base de données cumulée'!AS5+'Base de donnée'!AT5+Intérêt!AT5 -> 2556.05806 | AU5: ='Base de données cumulée'!AT5+'Base de donnée'!AU5+Intérêt!AU5 -> 2556.32843 | AV5: ='Base de données cumulée'!AU5+'Base de donnée'!AV5+Intérêt!AV5 -> 2556.599049 | AW5: ='Base de données cumulée'!AV5+'Base de donnée'!AW5+Intérêt!AW5 -> 2556.869918 | AX5: ='Base de données cumulée'!AW5+'Base de donnée'!AX5+Intérêt!AX5 -> 2557.141035 | AY5: ='Base de données cumulée'!AX5+'Base de donnée'!AY5+Intérêt!AY5 -> 2557.412403 | AZ5: ='Base de données cumulée'!AX5+'Base de donnée'!AZ5+Intérêt!AZ5 -> 2563.58541 | BA5: ='Base de données cumulée'!AZ5+'Base de donnée'!BA5+Intérêt!BA5 -> 2563.797554 | BB5: ='Base de données cumulée'!BA5+'Base de donnée'!BB5+Intérêt!BB5 -> 2564.009888 | BC5: ='Base de données cumulée'!BB5+'Base de donnée'!BC5+Intérêt!BC5 -> 2564.222412 | BD5: ='Base de données cumulée'!BC5+'Base de donnée'!BD5+Intérêt!BD5 -> 2564.435126 | BE5: ='Base de données cumulée'!BD5+'Base de donnée'!BE5+Intérêt!BE5 -> 2564.64803 | BF5: ='Base de données cumulée'!BE5+'Base de donnée'!BF5+Intérêt!BF5 -> 2564.861126 | BG5: ='Base de données cumulée'!BF5+'Base de donnée'!BG5+Intérêt!BG5 -> 2565.074412 | BH5: ='Base de données cumulée'!BG5+'Base de donnée'!BH5+Intérêt!BH5 -> 2565.287889 | BI5: ='Base de données cumulée'!BH5+'Base de donnée'!BI5+Intérêt!BI5 -> 2565.501557 | BJ5: ='Base de données cumulée'!BI5+'Base de donnée'!BJ5+Intérêt!BJ5 -> 2565.715416 | BK5: ='Base de données cumulée'!BJ5+'Base de donnée'!BK5+Intérêt!BK5 -> 2565.929467 | BL5: ='Base de données cumulée'!BK5+'Base de donnée'!BL5+Intérêt!BL5 -> 2566.14371 | BM5: ='Base de données cumulée'!BL5+'Base de donnée'!BM5+Intérêt!BM5 -> 2566.358145 | BN5: ='Base de données cumulée'!BM5+'Base de donnée'!BN5+Intérêt!BN5 -> 2566.572771 | BO5: ='Base de données cumulée'!BN5+'Base de donnée'!BO5+Intérêt!BO5 -> 2566.78759 | BP5: ='Base de données cumulée'!BO5+'Base de donnée'!BP5+Intérêt!BP5 -> 2567.002601 | BQ5: ='Base de données cumulée'!BP5+'Base de donnée'!BQ5+Intérêt!BQ5 -> 2567.217804 | BR5: ='Base de données cumulée'!BQ5+'Base de donnée'!BR5+Intérêt!BR5 -> 2567.433201 | BS5: ='Base de données cumulée'!BR5+'Base de donnée'!BS5+Intérêt!BS5 -> 2567.64879 | BT5: ='Base de données cumulée'!BS5+'Base de donnée'!BT5+Intérêt!BT5 -> 2567.864572 | BU5: ='Base de données cumulée'!BT5+'Base de donnée'!BU5+Intérêt!BU5 -> 2568.080547 | BV5: ='Base de données cumulée'!BU5+'Base de donnée'!BV5+Intérêt!BV5 -> 2568.296716 | BW5: ='Base de données cumulée'!BV5+'Base de donnée'!BW5+Intérêt!BW5 -> 2568.513079 | BX5: ='Base de données cumulée'!BW5+'Base de donnée'!BX5+Intérêt!BX5 -> 2568.729635 | BY5: ='Base de données cumulée'!BW5+'Base de donnée'!BY5+Intérêt!BY5 -> 2573.657303 | BZ5: ='Base de données cumulée'!BY5+'Base de donnée'!BZ5+Intérêt!BZ5 -> 2573.804473 | CA5: ='Base de données cumulée'!BZ5+'Base de donnée'!CA5+Intérêt!CA5 -> 2573.95177 | CB5: ='Base de données cumulée'!CA5+'Base de donnée'!CB5+Intérêt!CB5 -> 2574.099195 | CC5: ='Base de données cumulée'!CB5+'Base de donnée'!CC5+Intérêt!CC5 -> 2574.246747 | CD5: ='Base de données cumulée'!CC5+'Base de donnée'!CD5+Intérêt!CD5 -> 2574.394428 | CE5: ='Base de données cumulée'!CD5+'Base de donnée'!CE5+Intérêt!CE5 -> 2574.542236 | CF5: ='Base de données cumulée'!CE5+'Base de donnée'!CF5+Intérêt!CF5 -> 2574.690173 | CG5: ='Base de données cumulée'!CF5+'Base de donnée'!CG5+Intérêt!CG5 -> 2574.838238 | CH5: ='Base de données cumulée'!CG5+'Base de donnée'!CH5+Intérêt!CH5 -> 2574.986431 | CI5: ='Base de données cumulée'!CH5+'Base de donnée'!CI5+Intérêt!CI5 -> 2575.134753 | CJ5: ='Base de données cumulée'!CI5+'Base de donnée'!CJ5+Intérêt!CJ5 -> 2575.283203 | CK5: ='Base de données cumulée'!CJ5+'Base de donnée'!CK5+Intérêt!CK5 -> 2575.431782 | CL5: ='Base de données cumulée'!CK5+'Base de donnée'!CL5+Intérêt!CL5 -> 2575.580489 | CM5: ='Base de données cumulée'!CL5+'Base de donnée'!CM5+Intérêt!CM5 -> 2575.729325 | CN5: ='Base de données cumulée'!CM5+'Base de donnée'!CN5+Intérêt!CN5 -> 2575.878291 | CO5: ='Base de données cumulée'!CN5+'Base de donnée'!CO5+Intérêt!CO5 -> 2576.027385 | CP5: ='Base de données cumulée'!CO5+'Base de donnée'!CP5+Intérêt!CP5 -> 2576.176609 | CQ5: ='Base de données cumulée'!CP5+'Base de donnée'!CQ5+Intérêt!CQ5 -> 2576.325962 | CR5: ='Base de données cumulée'!CQ5+'Base de donnée'!CR5+Intérêt!CR5 -> 2576.475445 | CS5: ='Base de données cumulée'!CR5+'Base de donnée'!CS5+Intérêt!CS5 -> 2576.625057 | CT5: ='Base de données cumulée'!CS5+'Base de donnée'!CT5+Intérêt!CT5 -> 2576.774798 | CU5: ='Base de données cumulée'!CT5+'Base de donnée'!CU5+Intérêt!CU5 -> 2576.92467 | CV5: ='Base de données cumulée'!CU5+'Base de donnée'!CV5+Intérêt!CV5 -> 2577.074671 | CW5: ='Base de données cumulée'!CV5+'Base de donnée'!CW5+Intérêt!CW5 -> 2577.224803 | CX5: ='Base de données cumulée'!CV5+'Base de donnée'!CX5+Intérêt!CX5 -> 2580.642171 | CY5: ='Base de données cumulée'!CX5+'Base de donnée'!CY5+Intérêt!CY5 -> 2580.741631 | CZ5: ='Base de données cumulée'!CY5+'Base de donnée'!CZ5+Intérêt!CZ5 -> 2580.841175 | DA5: ='Base de données cumulée'!CZ5+'Base de donnée'!DA5+Intérêt!DA5 -> 2580.940803 | DB5: ='Base de données cumulée'!DA5+'Base de donnée'!DB5+Intérêt!DB5 -> 2581.040515 | DC5: ='Base de données cumulée'!DB5+'Base de donnée'!DC5+Intérêt!DC5 -> 2581.140312 | DD5: ='Base de données cumulée'!DC5+'Base de donnée'!DD5+Intérêt!DD5 -> 2581.240193 | DE5: ='Base de données cumulée'!DD5+'Base de donnée'!DE5+Intérêt!DE5 -> 2581.340159 | DF5: ='Base de données cumulée'!DE5+'Base de donnée'!DF5+Intérêt!DF5 -> 2581.440209 | DG5: ='Base de données cumulée'!DF5+'Base de donnée'!DG5+Intérêt!DG5 -> 2581.540344 | DH5: ='Base de données cumulée'!DG5+'Base de donnée'!DH5+Intérêt!DH5 -> 2581.640564 | DI5: ='Base de données cumulée'!DH5+'Base de donnée'!DI5+Intérêt!DI5 -> 2581.740868 | DJ5: ='Base de données cumulée'!DI5+'Base de donnée'!DJ5+Intérêt!DJ5 -> 2581.841257 | DK5: ='Base de données cumulée'!DJ5+'Base de donnée'!DK5+Intérêt!DK5 -> 2581.941731 | DL5: ='Base de données cumulée'!DK5+'Base de donnée'!DL5+Intérêt!DL5 -> 2582.04229 | DM5: ='Base de données cumulée'!DL5+'Base de donnée'!DM5+Intérêt!DM5 -> 2582.142934 | DN5: ='Base de données cumulée'!DM5+'Base de donnée'!DN5+Intérêt!DN5 -> 2582.243664 | DO5: ='Base de données cumulée'!DN5+'Base de donnée'!DO5+Intérêt!DO5 -> 2582.344478 | DP5: ='Base de données cumulée'!DO5+'Base de donnée'!DP5+Intérêt!DP5 -> 2582.445378 | DQ5: ='Base de données cumulée'!DP5+'Base de donnée'!DQ5+Intérêt!DQ5 -> 2582.546363 | DR5: ='Base de données cumulée'!DQ5+'Base de donnée'!DR5+Intérêt!DR5 -> 2582.647433 | DS5: ='Base de données cumulée'!DR5+'Base de donnée'!DS5+Intérêt!DS5 -> 2582.748589 | DT5: ='Base de données cumulée'!DS5+'Base de donnée'!DT5+Intérêt!DT5 -> 2582.849831 | DU5: ='Base de données cumulée'!DT5+'Base de donnée'!DU5+Intérêt!DU5 -> 2582.951158 | DV5: ='Base de données cumulée'!DU5+'Base de donnée'!DV5+Intérêt!DV5 -> 2583.052571 | DW5: ='Base de données cumulée'!DU5+'Base de donnée'!DW5+Intérêt!DW5 -> 2585.361557 | DX5: ='Base de données cumulée'!DW5+'Base de donnée'!DX5+Intérêt!DX5 -> 2585.432692 | DY5: ='Base de données cumulée'!DX5+'Base de donnée'!DY5+Intérêt!DY5 -> 2585.503886 | DZ5: ='Base de données cumulée'!DY5+'Base de donnée'!DZ5+Intérêt!DZ5 -> 2585.575139 | EA5: ='Base de données cumulée'!DZ5+'Base de donnée'!EA5+Intérêt!EA5 -> 2585.646452 | EB5: ='Base de données cumulée'!EA5+'Base de donnée'!EB5+Intérêt!EB5 -> 2585.717824 | EC5: ='Base de données cumulée'!EB5+'Base de donnée'!EC5+Intérêt!EC5 -> 2585.789255 | ED5: ='Base de données cumulée'!EC5+'Base de donnée'!ED5+Intérêt!ED5 -> 2585.860746 | EE5: ='Base de données cumulée'!ED5+'Base de donnée'!EE5+Intérêt!EE5 -> 2585.932297 | EF5: ='Base de données cumulée'!EE5+'Base de donnée'!EF5+Intérêt!EF5 -> 2586.003907 | EG5: ='Base de données cumulée'!EF5+'Base de donnée'!EG5+Intérêt!EG5 -> 2586.075577 | EH5: ='Base de données cumulée'!EG5+'Base de donnée'!EH5+Intérêt!EH5 -> 2586.147307 | EI5: ='Base de données cumulée'!EH5+'Base de donnée'!EI5+Intérêt!EI5 -> 2586.219096 | EJ5: ='Base de données cumulée'!EI5+'Base de donnée'!EJ5+Intérêt!EJ5 -> 2586.290946 | EK5: ='Base de données cumulée'!EJ5+'Base de donnée'!EK5+Intérêt!EK5 -> 2586.362855 | EL5: ='Base de données cumulée'!EK5+'Base de donnée'!EL5+Intérêt!EL5 -> 2586.434824 | EM5: ='Base de données cumulée'!EL5+'Base de donnée'!EM5+Intérêt!EM5 -> 2586.506853 | EN5: ='Base de données cumulée'!EM5+'Base de donnée'!EN5+Intérêt!EN5 -> 2586.578942 | EO5: ='Base de données cumulée'!EN5+'Base de donnée'!EO5+Intérêt!EO5 -> 2586.651091 | EP5: ='Base de données cumulée'!EO5+'Base de donnée'!EP5+Intérêt!EP5 -> 2586.7233 | EQ5: ='Base de données cumulée'!EP5+'Base de donnée'!EQ5+Intérêt!EQ5 -> 2586.79557 | ER5: ='Base de données cumulée'!EQ5+'Base de donnée'!ER5+Intérêt!ER5 -> 2586.867899 | ES5: ='Base de données cumulée'!ER5+'Base de donnée'!ES5+Intérêt!ES5 -> 2586.940289 | ET5: ='Base de données cumulée'!ES5+'Base de donnée'!ET5+Intérêt!ET5 -> 2587.012739 | EU5: ='Base de données cumulée'!ET5+'Base de donnée'!EU5+Intérêt!EU5 -> 2587.08525 | EV5: ='Base de données cumulée'!ET5+'Base de donnée'!EV5+Intérêt!EV5 -> 2588.736432 | EW5: ='Base de données cumulée'!EV5+'Base de donnée'!EW5+Intérêt!EW5 -> 2588.810379 | EX5: ='Base de données cumulée'!EW5+'Base de donnée'!EX5+Intérêt!EX5 -> 2588.884388 | EY5: ='Base de données cumulée'!EX5+'Base de donnée'!EY5+Intérêt!EY5 -> 2588.958458 | EZ5: ='Base de données cumulée'!EY5+'Base de donnée'!EZ5+Intérêt!EZ5 -> 2589.03259 | FA5: ='Base de données cumulée'!EZ5+'Base de donnée'!FA5+Intérêt!FA5 -> 2589.106784 | FB5: ='Base de données cumulée'!FA5+'Base de donnée'!FB5+Intérêt!FB5 -> 2589.181039 | FC5: ='Base de données cumulée'!FB5+'Base de donnée'!FC5+Intérêt!FC5 -> 2589.255357 | FD5: ='Base de données cumulée'!FC5+'Base de donnée'!FD5+Intérêt!FD5 -> 2589.329736 | FE5: ='Base de données cumulée'!FD5+'Base de donnée'!FE5+Intérêt!FE5 -> 2589.404178 | FF5: ='Base de données cumulée'!FE5+'Base de donnée'!FF5+Intérêt!FF5 -> 2589.478681 | FG5: ='Base de données cumulée'!FF5+'Base de donnée'!FG5+Intérêt!FG5 -> 2589.553247 | FH5: ='Base de données cumulée'!FG5+'Base de donnée'!FH5+Intérêt!FH5 -> 2589.627875 | FI5: ='Base de données cumulée'!FH5+'Base de donnée'!FI5+Intérêt!FI5 -> 2589.702564 | FJ5: ='Base de données cumulée'!FI5+'Base de donnée'!FJ5+Intérêt!FJ5 -> 2589.777317 | FK5: ='Base de données cumulée'!FJ5+'Base de donnée'!FK5+Intérêt!FK5 -> 2589.852131 | FL5: ='Base de données cumulée'!FK5+'Base de donnée'!FL5+Intérêt!FL5 -> 2589.927008 | FM5: ='Base de données cumulée'!FL5+'Base de donnée'!FM5+Intérêt!FM5 -> 2590.001947 | FN5: ='Base de données cumulée'!FM5+'Base de donnée'!FN5+Intérêt!FN5 -> 2590.076949 | FO5: ='Base de données cumulée'!FN5+'Base de donnée'!FO5+Intérêt!FO5 -> 2590.152013 | FP5: ='Base de données cumulée'!FO5+'Base de donnée'!FP5+Intérêt!FP5 -> 2590.227139 | FQ5: ='Base de données cumulée'!FP5+'Base de donnée'!FQ5+Intérêt!FQ5 -> 2590.302329 | FR5: ='Base de données cumulée'!FQ5+'Base de donnée'!FR5+Intérêt!FR5 -> 2590.377581 | FS5: ='Base de données cumulée'!FR5+'Base de donnée'!FS5+Intérêt!FS5 -> 2590.452895 | FT5: ='Base de données cumulée'!FS5+'Base de donnée'!FT5+Intérêt!FT5 -> 2590.528273 | FU5: ='Base de données cumulée'!FS5+'Base de donnée'!FU5+Intérêt!FU5 -> 2592.244736 | FV5: ='Base de données cumulée'!FU5+'Base de donnée'!FV5+Intérêt!FV5 -> 2592.321607 | FW5: ='Base de données cumulée'!FV5+'Base de donnée'!FW5+Intérêt!FW5 -> 2592.398541 | FX5: ='Base de données cumulée'!FW5+'Base de donnée'!FX5+Intérêt!FX5 -> 2592.47554 | FY5: ='Base de données cumulée'!FX5+'Base de donnée'!FY5+Intérêt!FY5 -> 2592.552603 | FZ5: ='Base de données cumulée'!FY5+'Base de donnée'!FZ5+Intérêt!FZ5 -> 2592.62973 | GA5: ='Base de données cumulée'!FZ5+'Base de donnée'!GA5+Intérêt!GA5 -> 2592.706922 | GB5: ='Base de données cumulée'!GA5+'Base de donnée'!GB5+Intérêt!GB5 -> 2592.784178 | GC5: ='Base de données cumulée'!GB5+'Base de donnée'!GC5+Intérêt!GC5 -> 2592.861498 | GD5: ='Base de données cumulée'!GC5+'Base de donnée'!GD5+Intérêt!GD5 -> 2592.938882 | GE5: ='Base de données cumulée'!GD5+'Base de donnée'!GE5+Intérêt!GE5 -> 2593.016331 | GF5: ='Base de données cumulée'!GE5+'Base de donnée'!GF5+Intérêt!GF5 -> 2593.093845 | GG5: ='Base de données cumulée'!GF5+'Base de donnée'!GG5+Intérêt!GG5 -> 2593.171423 | GH5: ='Base de données cumulée'!GG5+'Base de donnée'!GH5+Intérêt!GH5 -> 2593.249066 | GI5: ='Base de données cumulée'!GH5+'Base de donnée'!GI5+Intérêt!GI5 -> 2593.326774 | GJ5: ='Base de données cumulée'!GI5+'Base de donnée'!GJ5+Intérêt!GJ5 -> 2593.404546 | GK5: ='Base de données cumulée'!GJ5+'Base de donnée'!GK5+Intérêt!GK5 -> 2593.482383 | GL5: ='Base de données cumulée'!GK5+'Base de donnée'!GL5+Intérêt!GL5 -> 2593.560285 | GM5: ='Base de données cumulée'!GL5+'Base de donnée'!GM5+Intérêt!GM5 -> 2593.638252 | GN5: ='Base de données cumulée'!GM5+'Base de donnée'!GN5+Intérêt!GN5 -> 2593.716284 | GO5: ='Base de données cumulée'!GN5+'Base de donnée'!GO5+Intérêt!GO5 -> 2593.794381 | GP5: ='Base de données cumulée'!GO5+'Base de donnée'!GP5+Intérêt!GP5 -> 2593.872543 | GQ5: ='Base de données cumulée'!GP5+'Base de donnée'!GQ5+Intérêt!GQ5 -> 2593.95077 | GR5: ='Base de données cumulée'!GQ5+'Base de donnée'!GR5+Intérêt!GR5 -> 2594.029062 | GS5: ='Base de données cumulée'!GR5+'Base de donnée'!GS5+Intérêt!GS5 -> 2594.10742 | GT5: ='Base de données cumulée'!GR5+'Base de donnée'!GT5+Intérêt!GT5 -> 2595.891746 | GU5: ='Base de données cumulée'!GT5+'Base de donnée'!GU5+Intérêt!GU5 -> 2595.971655 | GV5: ='Base de données cumulée'!GU5+'Base de donnée'!GV5+Intérêt!GV5 -> 2596.051632 | GW5: ='Base de données cumulée'!GV5+'Base de donnée'!GW5+Intérêt!GW5 -> 2596.131675 | GX5: ='Base de données cumulée'!GW5+'Base de donnée'!GX5+Intérêt!GX5 -> 2596.211784 | GY5: ='Base de données cumulée'!GX5+'Base de donnée'!GY5+Intérêt!GY5 -> 2596.291961 | GZ5: ='Base de données cumulée'!GY5+'Base de donnée'!GZ5+Intérêt!GZ5 -> 2596.372204 | HA5: ='Base de données cumulée'!GZ5+'Base de donnée'!HA5+Intérêt!HA5 -> 2596.452514 | HB5: ='Base de données cumulée'!HA5+'Base de donnée'!HB5+Intérêt!HB5 -> 2596.532892 | HC5: ='Base de données cumulée'!HB5+'Base de donnée'!HC5+Intérêt!HC5 -> 2596.613336 | HD5: ='Base de données cumulée'!HC5+'Base de donnée'!HD5+Intérêt!HD5 -> 2596.693847 | HE5: ='Base de données cumulée'!HD5+'Base de donnée'!HE5+Intérêt!HE5 -> 2596.774425 | HF5: ='Base de données cumulée'!HE5+'Base de donnée'!HF5+Intérêt!HF5 -> 2596.85507 | HG5: ='Base de données cumulée'!HF5+'Base de donnée'!HG5+Intérêt!HG5 -> 2596.935783 | HH5: ='Base de données cumulée'!HG5+'Base de donnée'!HH5+Intérêt!HH5 -> 2597.016563 | HI5: ='Base de données cumulée'!HH5+'Base de donnée'!HI5+Intérêt!HI5 -> 2597.09741 | HJ5: ='Base de données cumulée'!HI5+'Base de donnée'!HJ5+Intérêt!HJ5 -> 2597.178324 | HK5: ='Base de données cumulée'!HJ5+'Base de donnée'!HK5+Intérêt!HK5 -> 2597.259306 | HL5: ='Base de données cumulée'!HK5+'Base de donnée'!HL5+Intérêt!HL5 -> 2597.340356 | HM5: ='Base de données cumulée'!HL5+'Base de donnée'!HM5+Intérêt!HM5 -> 2597.421473 | HN5: ='Base de données cumulée'!HM5+'Base de donnée'!HN5+Intérêt!HN5 -> 2597.502657 | HO5: ='Base de données cumulée'!HN5+'Base de donnée'!HO5+Intérêt!HO5 -> 2597.583909 | HP5: ='Base de données cumulée'!HO5+'Base de donnée'!HP5+Intérêt!HP5 -> 2597.665229 | HQ5: ='Base de données cumulée'!HP5+'Base de donnée'!HQ5+Intérêt!HQ5 -> 2597.746617 | HR5: ='Base de données cumulée'!HQ5+'Base de donnée'!HR5+Intérêt!HR5 -> 2597.828073 | HS5: ='Base de données cumulée'!HQ5+'Base de donnée'!HS5+Intérêt!HS5 -> 2599.682944 | HT5: ='Base de données cumulée'!HS5+'Base de donnée'!HT5+Intérêt!HT5 -> 2599.766013 | HU5: ='Base de données cumulée'!HT5+'Base de donnée'!HU5+Intérêt!HU5 -> 2599.849151 | HV5: ='Base de données cumulée'!HU5+'Base de donnée'!HV5+Intérêt!HV5 -> 2599.932359 | HW5: ='Base de données cumulée'!HV5+'Base de donnée'!HW5+Intérêt!HW5 -> 2600.015636 | HX5: ='Base de données cumulée'!HW5+'Base de donnée'!HX5+Intérêt!HX5 -> 2600.098982 | HY5: ='Base de données cumulée'!HX5+'Base de donnée'!HY5+Intérêt!HY5 -> 2600.182398 | HZ5: ='Base de données cumulée'!HY5+'Base de donnée'!HZ5+Intérêt!HZ5 -> 2600.265884 | IA5: ='Base de données cumulée'!HZ5+'Base de donnée'!IA5+Intérêt!IA5 -> 2600.349438 | IB5: ='Base de données cumulée'!IA5+'Base de donnée'!IB5+Intérêt!IB5 -> 2600.433063 | IC5: ='Base de données cumulée'!IB5+'Base de donnée'!IC5+Intérêt!IC5 -> 2600.516757 | ID5: ='Base de données cumulée'!IC5+'Base de donnée'!ID5+Intérêt!ID5 -> 2600.600521 | IE5: ='Base de données cumulée'!ID5+'Base de donnée'!IE5+Intérêt!IE5 -> 2600.684355 | IF5: ='Base de données cumulée'!IE5+'Base de donnée'!IF5+Intérêt!IF5 -> 2600.768259 | IG5: ='Base de données cumulée'!IF5+'Base de donnée'!IG5+Intérêt!IG5 -> 2600.852232 | IH5: ='Base de données cumulée'!IG5+'Base de donnée'!IH5+Intérêt!IH5 -> 2600.936276 | II5: ='Base de données cumulée'!IH5+'Base de donnée'!II5+Intérêt!II5 -> 2601.020389 | IJ5: ='Base de données cumulée'!II5+'Base de donnée'!IJ5+Intérêt!IJ5 -> 2601.104573 | IK5: ='Base de données cumulée'!IJ5+'Base de donnée'!IK5+Intérêt!IK5 -> 2601.188827 | IL5: ='Base de données cumulée'!IK5+'Base de donnée'!IL5+Intérêt!IL5 -> 2601.273151 | IM5: ='Base de données cumulée'!IL5+'Base de donnée'!IM5+Intérêt!IM5 -> 2601.357545 | IN5: ='Base de données cumulée'!IM5+'Base de donnée'!IN5+Intérêt!IN5 -> 2601.44201 | IO5: ='Base de données cumulée'!IN5+'Base de donnée'!IO5+Intérêt!IO5 -> 2601.526545 | IP5: ='Base de données cumulée'!IO5+'Base de donnée'!IP5+Intérêt!IP5 -> 2601.61115 | IQ5: ='Base de données cumulée'!IP5+'Base de donnée'!IQ5+Intérêt!IQ5 -> 2601.695826 | IR5: ='Base de données cumulée'!IP5+'Base de donnée'!IR5+Intérêt!IR5 -> 2603.624032 | IS5: ='Base de données cumulée'!IR5+'Base de donnée'!IS5+Intérêt!IS5 -> 2603.710386 | IT5: ='Base de données cumulée'!IS5+'Base de donnée'!IT5+Intérêt!IT5 -> 2603.796811 | IU5: ='Base de données cumulée'!IT5+'Base de donnée'!IU5+Intérêt!IU5 -> 2603.883308 | IV5: ='Base de données cumulée'!IU5+'Base de donnée'!IV5+Intérêt!IV5 -> 2603.969878 | IW5: ='Base de données cumulée'!IV5+'Base de donnée'!IW5+Intérêt!IW5 -> 2604.056519 | IX5: ='Base de données cumulée'!IW5+'Base de donnée'!IX5+Intérêt!IX5 -> 2604.143233 | IY5: ='Base de données cumulée'!IX5+'Base de donnée'!IY5+Intérêt!IY5 -> 2604.230019 | IZ5: ='Base de données cumulée'!IY5+'Base de donnée'!IZ5+Intérêt!IZ5 -> 2604.316877 | JA5: ='Base de données cumulée'!IZ5+'Base de donnée'!JA5+Intérêt!JA5 -> 2604.403808 | JB5: ='Base de données cumulée'!JA5+'Base de donnée'!JB5+Intérêt!JB5 -> 2604.490811 | JC5: ='Base de données cumulée'!JB5+'Base de donnée'!JC5+Intérêt!JC5 -> 2604.577887 | JD5: ='Base de données cumulée'!JC5+'Base de donnée'!JD5+Intérêt!JD5 -> 2604.665035 | JE5: ='Base de données cumulée'!JD5+'Base de donnée'!JE5+Intérêt!JE5 -> 2604.752256 | JF5: ='Base de données cumulée'!JE5+'Base de donnée'!JF5+Intérêt!JF5 -> 2604.83955 | JG5: ='Base de données cumulée'!JF5+'Base de donnée'!JG5+Intérêt!JG5 -> 2604.926916 | JH5: ='Base de données cumulée'!JG5+'Base de donnée'!JH5+Intérêt!JH5 -> 2605.014355 | JI5: ='Base de données cumulée'!JH5+'Base de donnée'!JI5+Intérêt!JI5 -> 2605.101867 | JJ5: ='Base de données cumulée'!JI5+'Base de donnée'!JJ5+Intérêt!JJ5 -> 2605.189452 | JK5: ='Base de données cumulée'!JJ5+'Base de donnée'!JK5+Intérêt!JK5 -> 2605.27711 | JL5: ='Base de données cumulée'!JK5+'Base de donnée'!JL5+Intérêt!JL5 -> 2605.364841 | JM5: ='Base de données cumulée'!JL5+'Base de donnée'!JM5+Intérêt!JM5 -> 2605.452645 | JN5: ='Base de données cumulée'!JM5+'Base de donnée'!JN5+Intérêt!JN5 -> 2605.540522 | JO5: ='Base de données cumulée'!JN5+'Base de donnée'!JO5+Intérêt!JO5 -> 2605.628472 | JP5: ='Base de données cumulée'!JO5+'Base de donnée'!JP5+Intérêt!JP5 -> 2605.716496 | JQ5: ='Base de données cumulée'!JO5+'Base de donnée'!JQ5+Intérêt!JQ5 -> 2607.720936 | JR5: ='Base de données cumulée'!JQ5+'Base de donnée'!JR5+Intérêt!JR5 -> 2607.810704 | JS5: ='Base de données cumulée'!JR5+'Base de donnée'!JS5+Intérêt!JS5 -> 2607.900546 | JT5: ='Base de données cumulée'!JS5+'Base de donnée'!JT5+Intérêt!JT5 -> 2607.990463 | JU5: ='Base de données cumulée'!JT5+'Base de donnée'!JU5+Intérêt!JU5 -> 2608.080455 | JV5: ='Base de données cumulée'!JU5+'Base de donnée'!JV5+Intérêt!JV5 -> 2608.170522 | JW5: ='Base de données cumulée'!JV5+'Base de donnée'!JW5+Intérêt!JW5 -> 2608.260664 | JX5: ='Base de données cumulée'!JW5+'Base de donnée'!JX5+Intérêt!JX5 -> 2608.350881 | JY5: ='Base de données cumulée'!JX5+'Base de donnée'!JY5+Intérêt!JY5 -> 2608.441174 | JZ5: ='Base de données cumulée'!JY5+'Base de donnée'!JZ5+Intérêt!JZ5 -> 2608.531541 | KA5: ='Base de données cumulée'!JZ5+'Base de donnée'!KA5+Intérêt!KA5 -> 2608.621984 | KB5: ='Base de données cumulée'!KA5+'Base de donnée'!KB5+Intérêt!KB5 -> 2608.712503 | KC5: ='Base de données cumulée'!KB5+'Base de donnée'!KC5+Intérêt!KC5 -> 2608.803096 | KD5: ='Base de données cumulée'!KC5+'Base de donnée'!KD5+Intérêt!KD5 -> 2608.893766 | KE5: ='Base de données cumulée'!KD5+'Base de donnée'!KE5+Intérêt!KE5 -> 2608.98451 | KF5: ='Base de données cumulée'!KE5+'Base de donnée'!KF5+Intérêt!KF5 -> 2609.075331 | KG5: ='Base de données cumulée'!KF5+'Base de donnée'!KG5+Intérêt!KG5 -> 2609.166227 | KH5: ='Base de données cumulée'!KG5+'Base de donnée'!KH5+Intérêt!KH5 -> 2609.257199 | KI5: ='Base de données cumulée'!KH5+'Base de donnée'!KI5+Intérêt!KI5 -> 2609.348246 | KJ5: ='Base de données cumulée'!KI5+'Base de donnée'!KJ5+Intérêt!KJ5 -> 2609.43937 | KK5: ='Base de données cumulée'!KJ5+'Base de donnée'!KK5+Intérêt!KK5 -> 2609.530569 | KL5: ='Base de données cumulée'!KK5+'Base de donnée'!KL5+Intérêt!KL5 -> 2609.621845 | KM5: ='Base de données cumulée'!KL5+'Base de donnée'!KM5+Intérêt!KM5 -> 2609.713197 | KN5: ='Base de données cumulée'!KM5+'Base de donnée'!KN5+Intérêt!KN5 -> 2609.804624 | KO5: ='Base de données cumulée'!KN5+'Base de donnée'!KO5+Intérêt!KO5 -> 2609.896128 | KP5: ='Base de données cumulée'!KN5+'Base de donnée'!KP5+Intérêt!KP5 -> 2611.979816 | KQ5: ='Base de données cumulée'!KP5+'Base de donnée'!KQ5+Intérêt!KQ5 -> 2612.073133 | KR5: ='Base de données cumulée'!KQ5+'Base de donnée'!KR5+Intérêt!KR5 -> 2612.166527 | KS5: ='Base de données cumulée'!KR5+'Base de donnée'!KS5+Intérêt!KS5 -> 2612.259999 | KT5: ='Base de données cumulée'!KS5+'Base de donnée'!KT5+Intérêt!KT5 -> 2612.353549 | KU5: ='Base de données cumulée'!KT5+'Base de donnée'!KU5+Intérêt!KU5 -> 2612.447177 | KV5: ='Base de données cumulée'!KU5+'Base de donnée'!KV5+Intérêt!KV5 -> 2612.540883 | KW5: ='Base de données cumulée'!KV5+'Base de donnée'!KW5+Intérêt!KW5 -> 2612.634667 | KX5: ='Base de données cumulée'!KW5+'Base de donnée'!KX5+Intérêt!KX5 -> 2612.728529 | KY5: ='Base de données cumulée'!KX5+'Base de donnée'!KY5+Intérêt!KY5 -> 2612.82247 | KZ5: ='Base de données cumulée'!KY5+'Base de donnée'!KZ5+Intérêt!KZ5 -> 2612.916488 | LA5: ='Base de données cumulée'!KZ5+'Base de donnée'!LA5+Intérêt!LA5 -> 2613.010585 | LB5: ='Base de données cumulée'!LA5+'Base de donnée'!LB5+Intérêt!LB5 -> 2613.104761 | LC5: ='Base de données cumulée'!LB5+'Base de donnée'!LC5+Intérêt!LC5 -> 2613.199015 | LD5: ='Base de données cumulée'!LC5+'Base de donnée'!LD5+Intérêt!LD5 -> 2613.293347 | LE5: ='Base de données cumulée'!LD5+'Base de donnée'!LE5+Intérêt!LE5 -> 2613.387759 | LF5: ='Base de données cumulée'!LE5+'Base de donnée'!LF5+Intérêt!LF5 -> 2613.482248 | LG5: ='Base de données cumulée'!LF5+'Base de donnée'!LG5+Intérêt!LG5 -> 2613.576817 | LH5: ='Base de données cumulée'!LG5+'Base de donnée'!LH5+Intérêt!LH5 -> 2613.671464 | LI5: ='Base de données cumulée'!LH5+'Base de donnée'!LI5+Intérêt!LI5 -> 2613.76619 | LJ5: ='Base de données cumulée'!LI5+'Base de donnée'!LJ5+Intérêt!LJ5 -> 2613.860996 | LK5: ='Base de données cumulée'!LJ5+'Base de donnée'!LK5+Intérêt!LK5 -> 2613.95588 | LL5: ='Base de données cumulée'!LK5+'Base de donnée'!LL5+Intérêt!LL5 -> 2614.050843 | LM5: ='Base de données cumulée'!LL5+'Base de donnée'!LM5+Intérêt!LM5 -> 2614.145885 | LN5: ='Base de données cumulée'!LM5+'Base de donnée'!LN5+Intérêt!LN5 -> 2614.241007 | LO5: ='Base de données cumulée'!LM5+'Base de donnée'!LO5+Intérêt!LO5 -> 2616.407076 | LP5: ='Base de données cumulée'!LO5+'Base de donnée'!LP5+Intérêt!LP5 -> 2616.504082 | LQ5: ='Base de données cumulée'!LP5+'Base de donnée'!LQ5+Intérêt!LQ5 -> 2616.601169 | LR5: ='Base de données cumulée'!LQ5+'Base de donnée'!LR5+Intérêt!LR5 -> 2616.698337 | LS5: ='Base de données cumulée'!LR5+'Base de donnée'!LS5+Intérêt!LS5 -> 2616.795585 | LT5: ='Base de données cumulée'!LS5+'Base de donnée'!LT5+Intérêt!LT5 -> 2616.892915 | LU5: ='Base de données cumulée'!LT5+'Base de donnée'!LU5+Intérêt!LU5 -> 2616.990326 | LV5: ='Base de données cumulée'!LU5+'Base de donnée'!LV5+Intérêt!LV5 -> 2617.087818 | LW5: ='Base de données cumulée'!LV5+'Base de donnée'!LW5+Intérêt!LW5 -> 2617.185391 | LX5: ='Base de données cumulée'!LW5+'Base de donnée'!LX5+Intérêt!LX5 -> 2617.283045 | LY5: ='Base de données cumulée'!LX5+'Base de donnée'!LY5+Intérêt!LY5 -> 2617.380781 | LZ5: ='Base de données cumulée'!LY5+'Base de donnée'!LZ5+Intérêt!LZ5 -> 2617.478598 | MA5: ='Base de données cumulée'!LZ5+'Base de donnée'!MA5+Intérêt!MA5 -> 2617.576497 | MB5: ='Base de données cumulée'!MA5+'Base de donnée'!MB5+Intérêt!MB5 -> 2617.674478 | MC5: ='Base de données cumulée'!MB5+'Base de donnée'!MC5+Intérêt!MC5 -> 2617.77254 | MD5: ='Base de données cumulée'!MC5+'Base de donnée'!MD5+Intérêt!MD5 -> 2617.870683 | ME5: ='Base de données cumulée'!MD5+'Base de donnée'!ME5+Intérêt!ME5 -> 2617.968909 | MF5: ='Base de données cumulée'!ME5+'Base de donnée'!MF5+Intérêt!MF5 -> 2618.067216 | MG5: ='Base de données cumulée'!MF5+'Base de donnée'!MG5+Intérêt!MG5 -> 2618.165606 | MH5: ='Base de données cumulée'!MG5+'Base de donnée'!MH5+Intérêt!MH5 -> 2618.264077 | MI5: ='Base de données cumulée'!MH5+'Base de donnée'!MI5+Intérêt!MI5 -> 2618.362631 | MJ5: ='Base de données cumulée'!MI5+'Base de donnée'!MJ5+Intérêt!MJ5 -> 2618.461266 | MK5: ='Base de données cumulée'!MJ5+'Base de donnée'!MK5+Intérêt!MK5 -> 2618.559984 | ML5: ='Base de données cumulée'!MK5+'Base de donnée'!ML5+Intérêt!ML5 -> 2618.658784 | MM5: ='Base de données cumulée'!ML5+'Base de donnée'!MM5+Intérêt!MM5 -> 2618.757666 | MN5: ='Base de données cumulée'!ML5+'Base de donnée'!MN5+Intérêt!MN5 -> 2621.009374 | MO5: ='Base de données cumulée'!MN5+'Base de donnée'!MO5+Intérêt!MO5 -> 2621.110215 | MP5: ='Base de données cumulée'!MO5+'Base de donnée'!MP5+Intérêt!MP5 -> 2621.21114 | MQ5: ='Base de données cumulée'!MP5+'Base de donnée'!MQ5+Intérêt!MQ5 -> 2621.312149 | MR5: ='Base de données cumulée'!MQ5+'Base de donnée'!MR5+Intérêt!MR5 -> 2621.413243 | MS5: ='Base de données cumulée'!MR5+'Base de donnée'!MS5+Intérêt!MS5 -> 2621.51442 | MT5: ='Base de données cumulée'!MS5+'Base de donnée'!MT5+Intérêt!MT5 -> 2621.615682 | MU5: ='Base de données cumulée'!MT5+'Base de donnée'!MU5+Intérêt!MU5 -> 2621.717029 | MV5: ='Base de données cumulée'!MU5+'Base de donnée'!MV5+Intérêt!MV5 -> 2621.81846 | MW5: ='Base de données cumulée'!MV5+'Base de donnée'!MW5+Intérêt!MW5 -> 2621.919975 | MX5: ='Base de données cumulée'!MW5+'Base de donnée'!MX5+Intérêt!MX5 -> 2622.021575 | MY5: ='Base de données cumulée'!MX5+'Base de donnée'!MY5+Intérêt!MY5 -> 2622.12326 | MZ5: ='Base de données cumulée'!MY5+'Base de donnée'!MZ5+Intérêt!MZ5 -> 2622.225029 | NA5: ='Base de données cumulée'!MZ5+'Base de donnée'!NA5+Intérêt!NA5 -> 2622.326883 | NB5: ='Base de données cumulée'!NA5+'Base de donnée'!NB5+Intérêt!NB5 -> 2622.428822 | NC5: ='Base de données cumulée'!NB5+'Base de donnée'!NC5+Intérêt!NC5 -> 2622.530846 | ND5: ='Base de données cumulée'!NC5+'Base de donnée'!ND5+Intérêt!ND5 -> 2622.632955 | NE5: ='Base de données cumulée'!ND5+'Base de donnée'!NE5+Intérêt!NE5 -> 2622.735149 | NF5: ='Base de données cumulée'!NE5+'Base de donnée'!NF5+Intérêt!NF5 -> 2622.837429 | NG5: ='Base de données cumulée'!NF5+'Base de donnée'!NG5+Intérêt!NG5 -> 2622.939793 | NH5: ='Base de données cumulée'!NG5+'Base de donnée'!NH5+Intérêt!NH5 -> 2623.042243 | NI5: ='Base de données cumulée'!NH5+'Base de donnée'!NI5+Intérêt!NI5 -> 2623.144778 | NJ5: ='Base de données cumulée'!NI5+'Base de donnée'!NJ5+Intérêt!NJ5 -> 2623.247399 | NK5: ='Base de données cumulée'!NJ5+'Base de donnée'!NK5+Intérêt!NK5 -> 2623.350105 | NL5: ='Base de données cumulée'!NK5+'Base de donnée'!NL5+Intérêt!NL5 -> 2623.452897 | NM5: ='Base de données cumulée'!NK5+'Base de donnée'!NM5+Intérêt!NM5 -> 2625.793628 | NN5: ='Base de données cumulée'!NM5+'Base de donnée'!NN5+Intérêt!NN5 -> 2625.898456 | NO5: ='Base de données cumulée'!NN5+'Base de donnée'!NO5+Intérêt!NO5 -> 2626.003372 | NP5: ='Base de données cumulée'!NO5+'Base de donnée'!NP5+Intérêt!NP5 -> 2626.108375 | NQ5: ='Base de données cumulée'!NP5+'Base de donnée'!NQ5+Intérêt!NQ5 -> 2626.213465 | NR5: ='Base de données cumulée'!NQ5+'Base de donnée'!NR5+Intérêt!NR5 -> 2626.318643 | NS5: ='Base de données cumulée'!NR5+'Base de donnée'!NS5+Intérêt!NS5 -> 2626.423908 | NT5: ='Base de données cumulée'!NS5+'Base de donnée'!NT5+Intérêt!NT5 -> 2626.529262 | NU5: ='Base de données cumulée'!NT5+'Base de donnée'!NU5+Intérêt!NU5 -> 2626.634703 | NV5: ='Base de données cumulée'!NU5+'Base de donnée'!NV5+Intérêt!NV5 -> 2626.740232 | NW5: ='Base de données cumulée'!NV5+'Base de donnée'!NW5+Intérêt!NW5 -> 2626.845848 | NX5: ='Base de données cumulée'!NW5+'Base de donnée'!NX5+Intérêt!NX5 -> 2626.951553 | NY5: ='Base de données cumulée'!NX5+'Base de donnée'!NY5+Intérêt!NY5 -> 2627.057346 | NZ5: ='Base de données cumulée'!NY5+'Base de donnée'!NZ5+Intérêt!NZ5 -> 2627.163227 | OA5: ='Base de données cumulée'!NZ5+'Base de donnée'!OA5+Intérêt!OA5 -> 2627.269197 | OB5: ='Base de données cumulée'!OA5+'Base de donnée'!OB5+Intérêt!OB5 -> 2627.375254 | OC5: ='Base de données cumulée'!OB5+'Base de donnée'!OC5+Intérêt!OC5 -> 2627.481401 | OD5: ='Base de données cumulée'!OC5+'Base de donnée'!OD5+Intérêt!OD5 -> 2627.587635 | OE5: ='Base de données cumulée'!OD5+'Base de donnée'!OE5+Intérêt!OE5 -> 2627.693958 | OF5: ='Base de données cumulée'!OE5+'Base de donnée'!OF5+Intérêt!OF5 -> 2627.80037 | OG5: ='Base de données cumulée'!OF5+'Base de donnée'!OG5+Intérêt!OG5 -> 2627.90687 | OH5: ='Base de données cumulée'!OG5+'Base de donnée'!OH5+Intérêt!OH5 -> 2628.013459 | OI5: ='Base de données cumulée'!OH5+'Base de donnée'!OI5+Intérêt!OI5 -> 2628.120137 | OJ5: ='Base de données cumulée'!OI5+'Base de donnée'!OJ5+Intérêt!OJ5 -> 2628.226904 | OK5: ='Base de données cumulée'!OJ5+'Base de donnée'!OK5+Intérêt!OK5 -> 2628.333759 | OL5: ='Base de données cumulée'!OJ5+'Base de donnée'!OL5+Intérêt!OL5 -> 2630.767035 | OM5: ='Base de données cumulée'!OL5+'Base de donnée'!OM5+Intérêt!OM5 -> 2630.876007 | ON5: ='Base de données cumulée'!OM5+'Base de donnée'!ON5+Intérêt!ON5 -> 2630.985071 | OO5: ='Base de données cumulée'!ON5+'Base de donnée'!OO5+Intérêt!OO5 -> 2631.094225 | OP5: ='Base de données cumulée'!OO5+'Base de donnée'!OP5+Intérêt!OP5 -> 2631.20347 | OQ5: ='Base de données cumulée'!OP5+'Base de donnée'!OQ5+Intérêt!OQ5 -> 2631.312806 | OR5: ='Base de données cumulée'!OQ5+'Base de donnée'!OR5+Intérêt!OR5 -> 2631.422234 | OS5: ='Base de données cumulée'!OR5+'Base de donnée'!OS5+Intérêt!OS5 -> 2631.531752 | OT5: ='Base de données cumulée'!OS5+'Base de donnée'!OT5+Intérêt!OT5 -> 2631.641362 | OU5: ='Base de données cumulée'!OT5+'Base de donnée'!OU5+Intérêt!OU5 -> 2631.751063 | OV5: ='Base de données cumulée'!OU5+'Base de donnée'!OV5+Intérêt!OV5 -> 2631.860856 | OW5: ='Base de données cumulée'!OV5+'Base de donnée'!OW5+Intérêt!OW5 -> 2631.97074 | OX5: ='Base de données cumulée'!OW5+'Base de donnée'!OX5+Intérêt!OX5 -> 2632.080715 | OY5: ='Base de données cumulée'!OX5+'Base de donnée'!OY5+Intérêt!OY5 -> 2632.190782 | OZ5: ='Base de données cumulée'!OY5+'Base de donnée'!OZ5+Intérêt!OZ5 -> 2632.300941 | PA5: ='Base de données cumulée'!OZ5+'Base de donnée'!PA5+Intérêt!PA5 -> 2632.411192 | PB5: ='Base de données cumulée'!PA5+'Base de donnée'!PB5+Intérêt!PB5 -> 2632.521535 | PC5: ='Base de données cumulée'!PB5+'Base de donnée'!PC5+Intérêt!PC5 -> 2632.63197 | PD5: ='Base de données cumulée'!PC5+'Base de donnée'!PD5+Intérêt!PD5 -> 2632.742496 | PE5: ='Base de données cumulée'!PD5+'Base de donnée'!PE5+Intérêt!PE5 -> 2632.853115 | PF5: ='Base de données cumulée'!PE5+'Base de donnée'!PF5+Intérêt!PF5 -> 2632.963826 | PG5: ='Base de données cumulée'!PF5+'Base de donnée'!PG5+Intérêt!PG5 -> 2633.074629 | PH5: ='Base de données cumulée'!PG5+'Base de donnée'!PH5+Intérêt!PH5 -> 2633.185525 | PI5: ='Base de données cumulée'!PH5+'Base de donnée'!PI5+Intérêt!PI5 -> 2633.296512 | PJ5: ='Base de données cumulée'!PI5+'Base de donnée'!PJ5+Intérêt!PJ5 -> 2633.407593 | PK5: ='Base de données cumulée'!PI5+'Base de donnée'!PK5+Intérêt!PK5 -> 2635.937071 | PL5: ='Base de données cumulée'!PK5+'Base de donnée'!PL5+Intérêt!PL5 -> 2636.050352 | PM5: ='Base de données cumulée'!PL5+'Base de donnée'!PM5+Intérêt!PM5 -> 2636.163727 | PN5: ='Base de données cumulée'!PM5+'Base de donnée'!PN5+Intérêt!PN5 -> 2636.277197 | PO5: ='Base de données cumulée'!PN5+'Base de donnée'!PO5+Intérêt!PO5 -> 2636.390761 | PP5: ='Base de données cumulée'!PO5+'Base de donnée'!PP5+Intérêt!PP5 -> 2636.50442 | PQ5: ='Base de données cumulée'!PP5+'Base de donnée'!PQ5+Intérêt!PQ5 -> 2636.618174 | PR5: ='Base de données cumulée'!PQ5+'Base de donnée'!PR5+Intérêt!PR5 -> 2636.732022 | PS5: ='Base de données cumulée'!PR5+'Base de donnée'!PS5+Intérêt!PS5 -> 2636.845965 | PT5: ='Base de données cumulée'!PS5+'Base de donnée'!PT5+Intérêt!PT5 -> 2636.960004 | PU5: ='Base de données cumulée'!PT5+'Base de donnée'!PU5+Intérêt!PU5 -> 2637.074137 | PV5: ='Base de données cumulée'!PU5+'Base de donnée'!PV5+Intérêt!PV5 -> 2637.188366 | PW5: ='Base de données cumulée'!PV5+'Base de donnée'!PW5+Intérêt!PW5 -> 2637.302689 | PX5: ='Base de données cumulée'!PW5+'Base de donnée'!PX5+Intérêt!PX5 -> 2637.417108 | PY5: ='Base de données cumulée'!PX5+'Base de donnée'!PY5+Intérêt!PY5 -> 2637.531622 | PZ5: ='Base de données cumulée'!PY5+'Base de donnée'!PZ5+Intérêt!PZ5 -> 2637.646232 | QA5: ='Base de données cumulée'!PZ5+'Base de donnée'!QA5+Intérêt!QA5 -> 2637.760937 | QB5: ='Base de données cumulée'!QA5+'Base de donnée'!QB5+Intérêt!QB5 -> 2637.875738 | QC5: ='Base de données cumulée'!QB5+'Base de donnée'!QC5+Intérêt!QC5 -> 2637.990634 | QD5: ='Base de données cumulée'!QC5+'Base de donnée'!QD5+Intérêt!QD5 -> 2638.105627 | QE5: ='Base de données cumulée'!QD5+'Base de donnée'!QE5+Intérêt!QE5 -> 2638.220715 | QF5: ='Base de données cumulée'!QE5+'Base de donnée'!QF5+Intérêt!QF5 -> 2638.335899 | QG5: ='Base de données cumulée'!QF5+'Base de donnée'!QG5+Intérêt!QG5 -> 2638.451179 | QH5: ='Base de données cumulée'!QG5+'Base de donnée'!QH5+Intérêt!QH5 -> 2638.566555 | QI5: ='Base de données cumulée'!QH5+'Base de donnée'!QI5+Intérêt!QI5 -> 2638.682027 | QJ5: ='Base de données cumulée'!QH5+'Base de donnée'!QJ5+Intérêt!QJ5 -> 2641.31151 | QK5: ='Base de données cumulée'!QJ5+'Base de donnée'!QK5+Intérêt!QK5 -> 2641.42927 | QL5: ='Base de données cumulée'!QK5+'Base de donnée'!QL5+Intérêt!QL5 -> 2641.547128 | QM5: ='Base de données cumulée'!QL5+'Base de donnée'!QM5+Intérêt!QM5 -> 2641.665084 | QN5: ='Base de données cumulée'!QM5+'Base de donnée'!QN5+Intérêt!QN5 -> 2641.783138 | QO5: ='Base de données cumulée'!QN5+'Base de donnée'!QO5+Intérêt!QO5 -> 2641.901291 | QP5: ='Base de données cumulée'!QO5+'Base de donnée'!QP5+Intérêt!QP5 -> 2642.019542 | QQ5: ='Base de données cumulée'!QP5+'Base de donnée'!QQ5+Intérêt!QQ5 -> 2642.137891 | QR5: ='Base de données cumulée'!QQ5+'Base de donnée'!QR5+Intérêt!QR5 -> 2642.256339 | QS5: ='Base de données cumulée'!QR5+'Base de donnée'!QS5+Intérêt!QS5 -> 2642.374886 | QT5: ='Base de données cumulée'!QS5+'Base de donnée'!QT5+Intérêt!QT5 -> 2642.493532 | QU5: ='Base de données cumulée'!QT5+'Base de donnée'!QU5+Intérêt!QU5 -> 2642.612277 | QV5: ='Base de données cumulée'!QU5+'Base de donnée'!QV5+Intérêt!QV5 -> 2642.73112 | QW5: ='Base de données cumulée'!QV5+'Base de donnée'!QW5+Intérêt!QW5 -> 2642.850063 | QX5: ='Base de données cumulée'!QW5+'Base de donnée'!QX5+Intérêt!QX5 -> 2642.969105 | QY5: ='Base de données cumulée'!QX5+'Base de donnée'!QY5+Intérêt!QY5 -> 2643.088246 | QZ5: ='Base de données cumulée'!QY5+'Base de donnée'!QZ5+Intérêt!QZ5 -> 2643.207486 | RA5: ='Base de données cumulée'!QZ5+'Base de donnée'!RA5+Intérêt!RA5 -> 2643.326825 | RB5: ='Base de données cumulée'!RA5+'Base de donnée'!RB5+Intérêt!RB5 -> 2643.446264 | RC5: ='Base de données cumulée'!RB5+'Base de donnée'!RC5+Intérêt!RC5 -> 2643.565803 | RD5: ='Base de données cumulée'!RC5+'Base de donnée'!RD5+Intérêt!RD5 -> 2643.685441 | RE5: ='Base de données cumulée'!RD5+'Base de donnée'!RE5+Intérêt!RE5 -> 2643.805179 | RF5: ='Base de données cumulée'!RE5+'Base de donnée'!RF5+Intérêt!RF5 -> 2643.925017 | RG5: ='Base de données cumulée'!RF5+'Base de donnée'!RG5+Intérêt!RG5 -> 2644.044954 | RH5: ='Base de données cumulée'!RG5+'Base de donnée'!RH5+Intérêt!RH5 -> 2644.164992 | RI5: ='Base de données cumulée'!RG5+'Base de donnée'!RI5+Intérêt!RI5 -> 2646.898435 | RJ5: ='Base de données cumulée'!RI5+'Base de donnée'!RJ5+Intérêt!RJ5 -> 2647.020851 | RK5: ='Base de données cumulée'!RJ5+'Base de donnée'!RK5+Intérêt!RK5 -> 2647.143368 | RL5: ='Base de données cumulée'!RK5+'Base de donnée'!RL5+Intérêt!RL5 -> 2647.265988 | RM5: ='Base de données cumulée'!RL5+'Base de donnée'!RM5+Intérêt!RM5 -> 2647.388709 | RN5: ='Base de données cumulée'!RM5+'Base de donnée'!RN5+Intérêt!RN5 -> 2647.511533 | RO5: ='Base de données cumulée'!RN5+'Base de donnée'!RO5+Intérêt!RO5 -> 2647.634459 | RP5: ='Base de données cumulée'!RO5+'Base de donnée'!RP5+Intérêt!RP5 -> 2647.757488 | RQ5: ='Base de données cumulée'!RP5+'Base de donnée'!RQ5+Intérêt!RQ5 -> 2647.880619 | RR5: ='Base de données cumulée'!RQ5+'Base de donnée'!RR5+Intérêt!RR5 -> 2648.003853 | RS5: ='Base de données cumulée'!RR5+'Base de donnée'!RS5+Intérêt!RS5 -> 2648.12719 | RT5: ='Base de données cumulée'!RS5+'Base de donnée'!RT5+Intérêt!RT5 -> 2648.250629 | RU5: ='Base de données cumulée'!RT5+'Base de donnée'!RU5+Intérêt!RU5 -> 2648.374171 | RV5: ='Base de données cumulée'!RU5+'Base de donnée'!RV5+Intérêt!RV5 -> 2648.497816 | RW5: ='Base de données cumulée'!RV5+'Base de donnée'!RW5+Intérêt!RW5 -> 2648.621565 | RX5: ='Base de données cumulée'!RW5+'Base de donnée'!RX5+Intérêt!RX5 -> 2648.745416 | RY5: ='Base de données cumulée'!RX5+'Base de donnée'!RY5+Intérêt!RY5 -> 2648.86937 | RZ5: ='Base de données cumulée'!RY5+'Base de donnée'!RZ5+Intérêt!RZ5 -> 2648.993428 | SA5: ='Base de données cumulée'!RZ5+'Base de donnée'!SA5+Intérêt!SA5 -> 2649.117589 | SB5: ='Base de données cumulée'!SA5+'Base de donnée'!SB5+Intérêt!SB5 -> 2649.241854 | SC5: ='Base de données cumulée'!SB5+'Base de donnée'!SC5+Intérêt!SC5 -> 2649.366222 | SD5: ='Base de données cumulée'!SC5+'Base de donnée'!SD5+Intérêt!SD5 -> 2649.490694 | SE5: ='Base de données cumulée'!SD5+'Base de donnée'!SE5+Intérêt!SE5 -> 2649.61527 | SF5: ='Base de données cumulée'!SE5+'Base de donnée'!SF5+Intérêt!SF5 -> 2649.739949 | SG5: ='Base de données cumulée'!SF5+'Base de donnée'!SG5+Intérêt!SG5 -> 2649.864732 | SH5: ='Base de données cumulée'!SF5+'Base de donnée'!SH5+Intérêt!SH5 -> 2652.706246 | SI5: ='Base de données cumulée'!SH5+'Base de donnée'!SI5+Intérêt!SI5 -> 2652.833501 | SJ5: ='Base de données cumulée'!SI5+'Base de donnée'!SJ5+Intérêt!SJ5 -> 2652.960863 | SK5: ='Base de données cumulée'!SJ5+'Base de donnée'!SK5+Intérêt!SK5 -> 2653.08833 | SL5: ='Base de données cumulée'!SK5+'Base de donnée'!SL5+Intérêt!SL5 -> 2653.215904 | SM5: ='Base de données cumulée'!SL5+'Base de donnée'!SM5+Intérêt!SM5 -> 2653.343584 | SN5: ='Base de données cumulée'!SM5+'Base de donnée'!SN5+Intérêt!SN5 -> 2653.47137 | SO5: ='Base de données cumulée'!SN5+'Base de donnée'!SO5+Intérêt!SO5 -> 2653.599263 | SP5: ='Base de données cumulée'!SO5+'Base de donnée'!SP5+Intérêt!SP5 -> 2653.727262 | SQ5: ='Base de données cumulée'!SP5+'Base de donnée'!SQ5+Intérêt!SQ5 -> 2653.855368 | SR5: ='Base de données cumulée'!SQ5+'Base de donnée'!SR5+Intérêt!SR5 -> 2653.983581 | SS5: ='Base de données cumulée'!SR5+'Base de donnée'!SS5+Intérêt!SS5 -> 2654.111901 | ST5: ='Base de données cumulée'!SS5+'Base de donnée'!ST5+Intérêt!ST5 -> 2654.240327 | SU5: ='Base de données cumulée'!ST5+'Base de donnée'!SU5+Intérêt!SU5 -> 2654.368861 | SV5: ='Base de données cumulée'!SU5+'Base de donnée'!SV5+Intérêt!SV5 -> 2654.497501 | SW5: ='Base de données cumulée'!SV5+'Base de donnée'!SW5+Intérêt!SW5 -> 2654.626249 | SX5: ='Base de données cumulée'!SW5+'Base de donnée'!SX5+Intérêt!SX5 -> 2654.755105 | SY5: ='Base de données cumulée'!SX5+'Base de donnée'!SY5+Intérêt!SY5 -> 2654.884067 | SZ5: ='Base de données cumulée'!SY5+'Base de donnée'!SZ5+Intérêt!SZ5 -> 2655.013137 | TA5: ='Base de données cumulée'!SZ5+'Base de donnée'!TA5+Intérêt!TA5 -> 2655.142315 | TB5: ='Base de données cumulée'!TA5+'Base de donnée'!TB5+Intérêt!TB5 -> 2655.2716 | TC5: ='Base de données cumulée'!TB5+'Base de donnée'!TC5+Intérêt!TC5 -> 2655.400993 | TD5: ='Base de données cumulée'!TC5+'Base de donnée'!TD5+Intérêt!TD5 -> 2655.530494 | TE5: ='Base de données cumulée'!TD5+'Base de donnée'!TE5+Intérêt!TE5 -> 2655.660103 | TF5: ='Base de données cumulée'!TE5+'Base de donnée'!TF5+Intérêt!TF5 -> 2655.789819
A6: Olivier ALEMBERT | B6: ='Base de donnée'!B6 -> 2500 | C6: ='Base de données cumulée'!B6+'Base de donnée'!C6+Intérêt!C6 -> 2501.079167 | D6: ='Base de données cumulée'!C6+'Base de donnée'!D6+Intérêt!D6 -> 2502.158799 | E6: ='Base de données cumulée'!D6+'Base de donnée'!E6+Intérêt!E6 -> 2503.238898 | F6: ='Base de données cumulée'!E6+'Base de donnée'!F6+Intérêt!F6 -> 2504.319463 | G6: ='Base de données cumulée'!F6+'Base de donnée'!G6+Intérêt!G6 -> 2505.400494 | H6: ='Base de données cumulée'!G6+'Base de donnée'!H6+Intérêt!H6 -> 2506.481992 | I6: ='Base de données cumulée'!H6+'Base de donnée'!I6+Intérêt!I6 -> 2507.563956 | J6: ='Base de données cumulée'!I6+'Base de donnée'!J6+Intérêt!J6 -> 2508.646388 | K6: ='Base de données cumulée'!J6+'Base de donnée'!K6+Intérêt!K6 -> 2509.729287 | L6: ='Base de données cumulée'!K6+'Base de donnée'!L6+Intérêt!L6 -> 2510.812654 | M6: ='Base de données cumulée'!L6+'Base de donnée'!M6+Intérêt!M6 -> 2511.896488 | N6: ='Base de données cumulée'!M6+'Base de donnée'!N6+Intérêt!N6 -> 2512.98079 | O6: ='Base de données cumulée'!N6+'Base de donnée'!O6+Intérêt!O6 -> 2514.06556 | P6: ='Base de données cumulée'!O6+'Base de donnée'!P6+Intérêt!P6 -> 2515.150798 | Q6: ='Base de données cumulée'!P6+'Base de donnée'!Q6+Intérêt!Q6 -> 2516.236505 | R6: ='Base de données cumulée'!Q6+'Base de donnée'!R6+Intérêt!R6 -> 2517.32268 | S6: ='Base de données cumulée'!R6+'Base de donnée'!S6+Intérêt!S6 -> 2518.409325 | T6: ='Base de données cumulée'!S6+'Base de donnée'!T6+Intérêt!T6 -> 2519.496438 | U6: ='Base de données cumulée'!T6+'Base de donnée'!U6+Intérêt!U6 -> 2520.584021 | V6: ='Base de données cumulée'!U6+'Base de donnée'!V6+Intérêt!V6 -> 2521.672073 | W6: ='Base de données cumulée'!V6+'Base de donnée'!W6+Intérêt!W6 -> 2522.760594 | X6: ='Base de données cumulée'!W6+'Base de donnée'!X6+Intérêt!X6 -> 2523.849586 | Y6: ='Base de données cumulée'!X6+'Base de donnée'!Y6+Intérêt!Y6 -> 2524.939048 | Z6: ='Base de données cumulée'!Y6+'Base de donnée'!Z6+Intérêt!Z6 -> 2526.02898 | AA6: ='Base de données cumulée'!Y6+'Base de donnée'!AA6+Intérêt!AA6 -> 2550.968028 | AB6: ='Base de données cumulée'!AA6+'Base de donnée'!AB6+Intérêt!AB6 -> 2551.233711 | AC6: ='Base de données cumulée'!AB6+'Base de donnée'!AC6+Intérêt!AC6 -> 2551.499638 | AD6: ='Base de données cumulée'!AC6+'Base de donnée'!AD6+Intérêt!AD6 -> 2551.765811 | AE6: ='Base de données cumulée'!AD6+'Base de donnée'!AE6+Intérêt!AE6 -> 2552.032229 | AF6: ='Base de données cumulée'!AE6+'Base de donnée'!AF6+Intérêt!AF6 -> 2552.298892 | AG6: ='Base de données cumulée'!AF6+'Base de donnée'!AG6+Intérêt!AG6 -> 2552.5658 | AH6: ='Base de données cumulée'!AG6+'Base de donnée'!AH6+Intérêt!AH6 -> 2552.832955 | AI6: ='Base de données cumulée'!AH6+'Base de donnée'!AI6+Intérêt!AI6 -> 2553.100355 | AJ6: ='Base de données cumulée'!AI6+'Base de donnée'!AJ6+Intérêt!AJ6 -> 2553.368002 | AK6: ='Base de données cumulée'!AJ6+'Base de donnée'!AK6+Intérêt!AK6 -> 2553.635895 | AL6: ='Base de données cumulée'!AK6+'Base de donnée'!AL6+Intérêt!AL6 -> 2553.904034 | AM6: ='Base de données cumulée'!AL6+'Base de donnée'!AM6+Intérêt!AM6 -> 2554.172421 | AN6: ='Base de données cumulée'!AM6+'Base de donnée'!AN6+Intérêt!AN6 -> 2554.441055 | AO6: ='Base de données cumulée'!AN6+'Base de donnée'!AO6+Intérêt!AO6 -> 2554.709936 | AP6: ='Base de données cumulée'!AO6+'Base de donnée'!AP6+Intérêt!AP6 -> 2554.979065 | AQ6: ='Base de données cumulée'!AP6+'Base de donnée'!AQ6+Intérêt!AQ6 -> 2555.248441 | AR6: ='Base de données cumulée'!AQ6+'Base de donnée'!AR6+Intérêt!AR6 -> 2555.518066 | AS6: ='Base de données cumulée'!AR6+'Base de donnée'!AS6+Intérêt!AS6 -> 2555.787939 | AT6: ='Base de données cumulée'!AS6+'Base de donnée'!AT6+Intérêt!AT6 -> 2556.05806 | AU6: ='Base de données cumulée'!AT6+'Base de donnée'!AU6+Intérêt!AU6 -> 2556.32843 | AV6: ='Base de données cumulée'!AU6+'Base de donnée'!AV6+Intérêt!AV6 -> 2556.599049 | AW6: ='Base de données cumulée'!AV6+'Base de donnée'!AW6+Intérêt!AW6 -> 2556.869918 | AX6: ='Base de données cumulée'!AW6+'Base de donnée'!AX6+Intérêt!AX6 -> 2557.141035 | AY6: ='Base de données cumulée'!AX6+'Base de donnée'!AY6+Intérêt!AY6 -> 2557.412403 | AZ6: ='Base de données cumulée'!AX6+'Base de donnée'!AZ6+Intérêt!AZ6 -> 2563.58541 | BA6: ='Base de données cumulée'!AZ6+'Base de donnée'!BA6+Intérêt!BA6 -> 2563.797554 | BB6: ='Base de données cumulée'!BA6+'Base de donnée'!BB6+Intérêt!BB6 -> 2564.009888 | BC6: ='Base de données cumulée'!BB6+'Base de donnée'!BC6+Intérêt!BC6 -> 2564.222412 | BD6: ='Base de données cumulée'!BC6+'Base de donnée'!BD6+Intérêt!BD6 -> 2564.435126 | BE6: ='Base de données cumulée'!BD6+'Base de donnée'!BE6+Intérêt!BE6 -> 2564.64803 | BF6: ='Base de données cumulée'!BE6+'Base de donnée'!BF6+Intérêt!BF6 -> 2564.861126 | BG6: ='Base de données cumulée'!BF6+'Base de donnée'!BG6+Intérêt!BG6 -> 2565.074412 | BH6: ='Base de données cumulée'!BG6+'Base de donnée'!BH6+Intérêt!BH6 -> 2565.287889 | BI6: ='Base de données cumulée'!BH6+'Base de donnée'!BI6+Intérêt!BI6 -> 2565.501557 | BJ6: ='Base de données cumulée'!BI6+'Base de donnée'!BJ6+Intérêt!BJ6 -> 2565.715416 | BK6: ='Base de données cumulée'!BJ6+'Base de donnée'!BK6+Intérêt!BK6 -> 2565.929467 | BL6: ='Base de données cumulée'!BK6+'Base de donnée'!BL6+Intérêt!BL6 -> 2566.14371 | BM6: ='Base de données cumulée'!BL6+'Base de donnée'!BM6+Intérêt!BM6 -> 2566.358145 | BN6: ='Base de données cumulée'!BM6+'Base de donnée'!BN6+Intérêt!BN6 -> 2566.572771 | BO6: ='Base de données cumulée'!BN6+'Base de donnée'!BO6+Intérêt!BO6 -> 2566.78759 | BP6: ='Base de données cumulée'!BO6+'Base de donnée'!BP6+Intérêt!BP6 -> 2567.002601 | BQ6: ='Base de données cumulée'!BP6+'Base de donnée'!BQ6+Intérêt!BQ6 -> 2567.217804 | BR6: ='Base de données cumulée'!BQ6+'Base de donnée'!BR6+Intérêt!BR6 -> 2567.433201 | BS6: ='Base de données cumulée'!BR6+'Base de donnée'!BS6+Intérêt!BS6 -> 2567.64879 | BT6: ='Base de données cumulée'!BS6+'Base de donnée'!BT6+Intérêt!BT6 -> 2567.864572 | BU6: ='Base de données cumulée'!BT6+'Base de donnée'!BU6+Intérêt!BU6 -> 2568.080547 | BV6: ='Base de données cumulée'!BU6+'Base de donnée'!BV6+Intérêt!BV6 -> 2568.296716 | BW6: ='Base de données cumulée'!BV6+'Base de donnée'!BW6+Intérêt!BW6 -> 2568.513079 | BX6: ='Base de données cumulée'!BW6+'Base de donnée'!BX6+Intérêt!BX6 -> 2568.729635 | BY6: ='Base de données cumulée'!BW6+'Base de donnée'!BY6+Intérêt!BY6 -> 2573.657303 | BZ6: ='Base de données cumulée'!BY6+'Base de donnée'!BZ6+Intérêt!BZ6 -> 2573.804473 | CA6: ='Base de données cumulée'!BZ6+'Base de donnée'!CA6+Intérêt!CA6 -> 2573.95177 | CB6: ='Base de données cumulée'!CA6+'Base de donnée'!CB6+Intérêt!CB6 -> 2574.099195 | CC6: ='Base de données cumulée'!CB6+'Base de donnée'!CC6+Intérêt!CC6 -> 2574.246747 | CD6: ='Base de données cumulée'!CC6+'Base de donnée'!CD6+Intérêt!CD6 -> 2574.394428 | CE6: ='Base de données cumulée'!CD6+'Base de donnée'!CE6+Intérêt!CE6 -> 2574.542236 | CF6: ='Base de données cumulée'!CE6+'Base de donnée'!CF6+Intérêt!CF6 -> 2574.690173 | CG6: ='Base de données cumulée'!CF6+'Base de donnée'!CG6+Intérêt!CG6 -> 2574.838238 | CH6: ='Base de données cumulée'!CG6+'Base de donnée'!CH6+Intérêt!CH6 -> 2574.986431 | CI6: ='Base de données cumulée'!CH6+'Base de donnée'!CI6+Intérêt!CI6 -> 2575.134753 | CJ6: ='Base de données cumulée'!CI6+'Base de donnée'!CJ6+Intérêt!CJ6 -> 2575.283203 | CK6: ='Base de données cumulée'!CJ6+'Base de donnée'!CK6+Intérêt!CK6 -> 2575.431782 | CL6: ='Base de données cumulée'!CK6+'Base de donnée'!CL6+Intérêt!CL6 -> 2575.580489 | CM6: ='Base de données cumulée'!CL6+'Base de donnée'!CM6+Intérêt!CM6 -> 2575.729325 | CN6: ='Base de données cumulée'!CM6+'Base de donnée'!CN6+Intérêt!CN6 -> 2575.878291 | CO6: ='Base de données cumulée'!CN6+'Base de donnée'!CO6+Intérêt!CO6 -> 2576.027385 | CP6: ='Base de données cumulée'!CO6+'Base de donnée'!CP6+Intérêt!CP6 -> 2576.176609 | CQ6: ='Base de données cumulée'!CP6+'Base de donnée'!CQ6+Intérêt!CQ6 -> 2576.325962 | CR6: ='Base de données cumulée'!CQ6+'Base de donnée'!CR6+Intérêt!CR6 -> 2576.475445 | CS6: ='Base de données cumulée'!CR6+'Base de donnée'!CS6+Intérêt!CS6 -> 2576.625057 | CT6: ='Base de données cumulée'!CS6+'Base de donnée'!CT6+Intérêt!CT6 -> 2576.774798 | CU6: ='Base de données cumulée'!CT6+'Base de donnée'!CU6+Intérêt!CU6 -> 2576.92467 | CV6: ='Base de données cumulée'!CU6+'Base de donnée'!CV6+Intérêt!CV6 -> 2577.074671 | CW6: ='Base de données cumulée'!CV6+'Base de donnée'!CW6+Intérêt!CW6 -> 2577.224803 | CX6: ='Base de données cumulée'!CV6+'Base de donnée'!CX6+Intérêt!CX6 -> 2580.642171 | CY6: ='Base de données cumulée'!CX6+'Base de donnée'!CY6+Intérêt!CY6 -> 2580.741631 | CZ6: ='Base de données cumulée'!CY6+'Base de donnée'!CZ6+Intérêt!CZ6 -> 2580.841175 | DA6: ='Base de données cumulée'!CZ6+'Base de donnée'!DA6+Intérêt!DA6 -> 2580.940803 | DB6: ='Base de données cumulée'!DA6+'Base de donnée'!DB6+Intérêt!DB6 -> 2581.040515 | DC6: ='Base de données cumulée'!DB6+'Base de donnée'!DC6+Intérêt!DC6 -> 2581.140312 | DD6: ='Base de données cumulée'!DC6+'Base de donnée'!DD6+Intérêt!DD6 -> 2581.240193 | DE6: ='Base de données cumulée'!DD6+'Base de donnée'!DE6+Intérêt!DE6 -> 2581.340159 | DF6: ='Base de données cumulée'!DE6+'Base de donnée'!DF6+Intérêt!DF6 -> 2581.440209 | DG6: ='Base de données cumulée'!DF6+'Base de donnée'!DG6+Intérêt!DG6 -> 2581.540344 | DH6: ='Base de données cumulée'!DG6+'Base de donnée'!DH6+Intérêt!DH6 -> 2581.640564 | DI6: ='Base de données cumulée'!DH6+'Base de donnée'!DI6+Intérêt!DI6 -> 2581.740868 | DJ6: ='Base de données cumulée'!DI6+'Base de donnée'!DJ6+Intérêt!DJ6 -> 2581.841257 | DK6: ='Base de données cumulée'!DJ6+'Base de donnée'!DK6+Intérêt!DK6 -> 2581.941731 | DL6: ='Base de données cumulée'!DK6+'Base de donnée'!DL6+Intérêt!DL6 -> 2582.04229 | DM6: ='Base de données cumulée'!DL6+'Base de donnée'!DM6+Intérêt!DM6 -> 2582.142934 | DN6: ='Base de données cumulée'!DM6+'Base de donnée'!DN6+Intérêt!DN6 -> 2582.243664 | DO6: ='Base de données cumulée'!DN6+'Base de donnée'!DO6+Intérêt!DO6 -> 2582.344478 | DP6: ='Base de données cumulée'!DO6+'Base de donnée'!DP6+Intérêt!DP6 -> 2582.445378 | DQ6: ='Base de données cumulée'!DP6+'Base de donnée'!DQ6+Intérêt!DQ6 -> 2582.546363 | DR6: ='Base de données cumulée'!DQ6+'Base de donnée'!DR6+Intérêt!DR6 -> 2582.647433 | DS6: ='Base de données cumulée'!DR6+'Base de donnée'!DS6+Intérêt!DS6 -> 2582.748589 | DT6: ='Base de données cumulée'!DS6+'Base de donnée'!DT6+Intérêt!DT6 -> 2582.849831 | DU6: ='Base de données cumulée'!DT6+'Base de donnée'!DU6+Intérêt!DU6 -> 2582.951158 | DV6: ='Base de données cumulée'!DU6+'Base de donnée'!DV6+Intérêt!DV6 -> 2583.052571 | DW6: ='Base de données cumulée'!DU6+'Base de donnée'!DW6+Intérêt!DW6 -> 2585.361557 | DX6: ='Base de données cumulée'!DW6+'Base de donnée'!DX6+Intérêt!DX6 -> 2585.432692 | DY6: ='Base de données cumulée'!DX6+'Base de donnée'!DY6+Intérêt!DY6 -> 2585.503886 | DZ6: ='Base de données cumulée'!DY6+'Base de donnée'!DZ6+Intérêt!DZ6 -> 2585.575139 | EA6: ='Base de données cumulée'!DZ6+'Base de donnée'!EA6+Intérêt!EA6 -> 2585.646452 | EB6: ='Base de données cumulée'!EA6+'Base de donnée'!EB6+Intérêt!EB6 -> 2585.717824 | EC6: ='Base de données cumulée'!EB6+'Base de donnée'!EC6+Intérêt!EC6 -> 2585.789255 | ED6: ='Base de données cumulée'!EC6+'Base de donnée'!ED6+Intérêt!ED6 -> 2585.860746 | EE6: ='Base de données cumulée'!ED6+'Base de donnée'!EE6+Intérêt!EE6 -> 2585.932297 | EF6: ='Base de données cumulée'!EE6+'Base de donnée'!EF6+Intérêt!EF6 -> 2586.003907 | EG6: ='Base de données cumulée'!EF6+'Base de donnée'!EG6+Intérêt!EG6 -> 2586.075577 | EH6: ='Base de données cumulée'!EG6+'Base de donnée'!EH6+Intérêt!EH6 -> 2586.147307 | EI6: ='Base de données cumulée'!EH6+'Base de donnée'!EI6+Intérêt!EI6 -> 2586.219096 | EJ6: ='Base de données cumulée'!EI6+'Base de donnée'!EJ6+Intérêt!EJ6 -> 2586.290946 | EK6: ='Base de données cumulée'!EJ6+'Base de donnée'!EK6+Intérêt!EK6 -> 2586.362855 | EL6: ='Base de données cumulée'!EK6+'Base de donnée'!EL6+Intérêt!EL6 -> 2586.434824 | EM6: ='Base de données cumulée'!EL6+'Base de donnée'!EM6+Intérêt!EM6 -> 2586.506853 | EN6: ='Base de données cumulée'!EM6+'Base de donnée'!EN6+Intérêt!EN6 -> 2586.578942 | EO6: ='Base de données cumulée'!EN6+'Base de donnée'!EO6+Intérêt!EO6 -> 2586.651091 | EP6: ='Base de données cumulée'!EO6+'Base de donnée'!EP6+Intérêt!EP6 -> 2586.7233 | EQ6: ='Base de données cumulée'!EP6+'Base de donnée'!EQ6+Intérêt!EQ6 -> 2586.79557 | ER6: ='Base de données cumulée'!EQ6+'Base de donnée'!ER6+Intérêt!ER6 -> 2586.867899 | ES6: ='Base de données cumulée'!ER6+'Base de donnée'!ES6+Intérêt!ES6 -> 2586.940289 | ET6: ='Base de données cumulée'!ES6+'Base de donnée'!ET6+Intérêt!ET6 -> 2587.012739 | EU6: ='Base de données cumulée'!ET6+'Base de donnée'!EU6+Intérêt!EU6 -> 2587.08525 | EV6: ='Base de données cumulée'!ET6+'Base de donnée'!EV6+Intérêt!EV6 -> 2588.736432 | EW6: ='Base de données cumulée'!EV6+'Base de donnée'!EW6+Intérêt!EW6 -> 2588.810379 | EX6: ='Base de données cumulée'!EW6+'Base de donnée'!EX6+Intérêt!EX6 -> 2588.884388 | EY6: ='Base de données cumulée'!EX6+'Base de donnée'!EY6+Intérêt!EY6 -> 2588.958458 | EZ6: ='Base de données cumulée'!EY6+'Base de donnée'!EZ6+Intérêt!EZ6 -> 2589.03259 | FA6: ='Base de données cumulée'!EZ6+'Base de donnée'!FA6+Intérêt!FA6 -> 2589.106784 | FB6: ='Base de données cumulée'!FA6+'Base de donnée'!FB6+Intérêt!FB6 -> 2589.181039 | FC6: ='Base de données cumulée'!FB6+'Base de donnée'!FC6+Intérêt!FC6 -> 2589.255357 | FD6: ='Base de données cumulée'!FC6+'Base de donnée'!FD6+Intérêt!FD6 -> 2589.329736 | FE6: ='Base de données cumulée'!FD6+'Base de donnée'!FE6+Intérêt!FE6 -> 2589.404178 | FF6: ='Base de données cumulée'!FE6+'Base de donnée'!FF6+Intérêt!FF6 -> 2589.478681 | FG6: ='Base de données cumulée'!FF6+'Base de donnée'!FG6+Intérêt!FG6 -> 2589.553247 | FH6: ='Base de données cumulée'!FG6+'Base de donnée'!FH6+Intérêt!FH6 -> 2589.627875 | FI6: ='Base de données cumulée'!FH6+'Base de donnée'!FI6+Intérêt!FI6 -> 2589.702564 | FJ6: ='Base de données cumulée'!FI6+'Base de donnée'!FJ6+Intérêt!FJ6 -> 2589.777317 | FK6: ='Base de données cumulée'!FJ6+'Base de donnée'!FK6+Intérêt!FK6 -> 2589.852131 | FL6: ='Base de données cumulée'!FK6+'Base de donnée'!FL6+Intérêt!FL6 -> 2589.927008 | FM6: ='Base de données cumulée'!FL6+'Base de donnée'!FM6+Intérêt!FM6 -> 2590.001947 | FN6: ='Base de données cumulée'!FM6+'Base de donnée'!FN6+Intérêt!FN6 -> 2590.076949 | FO6: ='Base de données cumulée'!FN6+'Base de donnée'!FO6+Intérêt!FO6 -> 2590.152013 | FP6: ='Base de données cumulée'!FO6+'Base de donnée'!FP6+Intérêt!FP6 -> 2590.227139 | FQ6: ='Base de données cumulée'!FP6+'Base de donnée'!FQ6+Intérêt!FQ6 -> 2590.302329 | FR6: ='Base de données cumulée'!FQ6+'Base de donnée'!FR6+Intérêt!FR6 -> 2590.377581 | FS6: ='Base de données cumulée'!FR6+'Base de donnée'!FS6+Intérêt!FS6 -> 2590.452895 | FT6: ='Base de données cumulée'!FS6+'Base de donnée'!FT6+Intérêt!FT6 -> 2590.528273 | FU6: ='Base de données cumulée'!FS6+'Base de donnée'!FU6+Intérêt!FU6 -> 2592.244736 | FV6: ='Base de données cumulée'!FU6+'Base de donnée'!FV6+Intérêt!FV6 -> 2592.321607 | FW6: ='Base de données cumulée'!FV6+'Base de donnée'!FW6+Intérêt!FW6 -> 2592.398541 | FX6: ='Base de données cumulée'!FW6+'Base de donnée'!FX6+Intérêt!FX6 -> 2592.47554 | FY6: ='Base de données cumulée'!FX6+'Base de donnée'!FY6+Intérêt!FY6 -> 2592.552603 | FZ6: ='Base de données cumulée'!FY6+'Base de donnée'!FZ6+Intérêt!FZ6 -> 2592.62973 | GA6: ='Base de données cumulée'!FZ6+'Base de donnée'!GA6+Intérêt!GA6 -> 2592.706922 | GB6: ='Base de données cumulée'!GA6+'Base de donnée'!GB6+Intérêt!GB6 -> 2592.784178 | GC6: ='Base de données cumulée'!GB6+'Base de donnée'!GC6+Intérêt!GC6 -> 2592.861498 | GD6: ='Base de données cumulée'!GC6+'Base de donnée'!GD6+Intérêt!GD6 -> 2592.938882 | GE6: ='Base de données cumulée'!GD6+'Base de donnée'!GE6+Intérêt!GE6 -> 2593.016331 | GF6: ='Base de données cumulée'!GE6+'Base de donnée'!GF6+Intérêt!GF6 -> 2593.093845 | GG6: ='Base de données cumulée'!GF6+'Base de donnée'!GG6+Intérêt!GG6 -> 2593.171423 | GH6: ='Base de données cumulée'!GG6+'Base de donnée'!GH6+Intérêt!GH6 -> 2593.249066 | GI6: ='Base de données cumulée'!GH6+'Base de donnée'!GI6+Intérêt!GI6 -> 2593.326774 | GJ6: ='Base de données cumulée'!GI6+'Base de donnée'!GJ6+Intérêt!GJ6 -> 2593.404546 | GK6: ='Base de données cumulée'!GJ6+'Base de donnée'!GK6+Intérêt!GK6 -> 2593.482383 | GL6: ='Base de données cumulée'!GK6+'Base de donnée'!GL6+Intérêt!GL6 -> 2593.560285 | GM6: ='Base de données cumulée'!GL6+'Base de donnée'!GM6+Intérêt!GM6 -> 2593.638252 | GN6: ='Base de données cumulée'!GM6+'Base de donnée'!GN6+Intérêt!GN6 -> 2593.716284 | GO6: ='Base de données cumulée'!GN6+'Base de donnée'!GO6+Intérêt!GO6 -> 2593.794381 | GP6: ='Base de données cumulée'!GO6+'Base de donnée'!GP6+Intérêt!GP6 -> 2593.872543 | GQ6: ='Base de données cumulée'!GP6+'Base de donnée'!GQ6+Intérêt!GQ6 -> 2593.95077 | GR6: ='Base de données cumulée'!GQ6+'Base de donnée'!GR6+Intérêt!GR6 -> 2594.029062 | GS6: ='Base de données cumulée'!GR6+'Base de donnée'!GS6+Intérêt!GS6 -> 2594.10742 | GT6: ='Base de données cumulée'!GR6+'Base de donnée'!GT6+Intérêt!GT6 -> 2595.891746 | GU6: ='Base de données cumulée'!GT6+'Base de donnée'!GU6+Intérêt!GU6 -> 2595.971655 | GV6: ='Base de données cumulée'!GU6+'Base de donnée'!GV6+Intérêt!GV6 -> 2596.051632 | GW6: ='Base de données cumulée'!GV6+'Base de donnée'!GW6+Intérêt!GW6 -> 2596.131675 | GX6: ='Base de données cumulée'!GW6+'Base de donnée'!GX6+Intérêt!GX6 -> 2596.211784 | GY6: ='Base de données cumulée'!GX6+'Base de donnée'!GY6+Intérêt!GY6 -> 2596.291961 | GZ6: ='Base de données cumulée'!GY6+'Base de donnée'!GZ6+Intérêt!GZ6 -> 2596.372204 | HA6: ='Base de données cumulée'!GZ6+'Base de donnée'!HA6+Intérêt!HA6 -> 2596.452514 | HB6: ='Base de données cumulée'!HA6+'Base de donnée'!HB6+Intérêt!HB6 -> 2596.532892 | HC6: ='Base de données cumulée'!HB6+'Base de donnée'!HC6+Intérêt!HC6 -> 2596.613336 | HD6: ='Base de données cumulée'!HC6+'Base de donnée'!HD6+Intérêt!HD6 -> 2596.693847 | HE6: ='Base de données cumulée'!HD6+'Base de donnée'!HE6+Intérêt!HE6 -> 2596.774425 | HF6: ='Base de données cumulée'!HE6+'Base de donnée'!HF6+Intérêt!HF6 -> 2596.85507 | HG6: ='Base de données cumulée'!HF6+'Base de donnée'!HG6+Intérêt!HG6 -> 2596.935783 | HH6: ='Base de données cumulée'!HG6+'Base de donnée'!HH6+Intérêt!HH6 -> 2597.016563 | HI6: ='Base de données cumulée'!HH6+'Base de donnée'!HI6+Intérêt!HI6 -> 2597.09741 | HJ6: ='Base de données cumulée'!HI6+'Base de donnée'!HJ6+Intérêt!HJ6 -> 2597.178324 | HK6: ='Base de données cumulée'!HJ6+'Base de donnée'!HK6+Intérêt!HK6 -> 2597.259306 | HL6: ='Base de données cumulée'!HK6+'Base de donnée'!HL6+Intérêt!HL6 -> 2597.340356 | HM6: ='Base de données cumulée'!HL6+'Base de donnée'!HM6+Intérêt!HM6 -> 2597.421473 | HN6: ='Base de données cumulée'!HM6+'Base de donnée'!HN6+Intérêt!HN6 -> 2597.502657 | HO6: ='Base de données cumulée'!HN6+'Base de donnée'!HO6+Intérêt!HO6 -> 2597.583909 | HP6: ='Base de données cumulée'!HO6+'Base de donnée'!HP6+Intérêt!HP6 -> 2597.665229 | HQ6: ='Base de données cumulée'!HP6+'Base de donnée'!HQ6+Intérêt!HQ6 -> 2597.746617 | HR6: ='Base de données cumulée'!HQ6+'Base de donnée'!HR6+Intérêt!HR6 -> 2597.828073 | HS6: ='Base de données cumulée'!HQ6+'Base de donnée'!HS6+Intérêt!HS6 -> 2599.682944 | HT6: ='Base de données cumulée'!HS6+'Base de donnée'!HT6+Intérêt!HT6 -> 2599.766013 | HU6: ='Base de données cumulée'!HT6+'Base de donnée'!HU6+Intérêt!HU6 -> 2599.849151 | HV6: ='Base de données cumulée'!HU6+'Base de donnée'!HV6+Intérêt!HV6 -> 2599.932359 | HW6: ='Base de données cumulée'!HV6+'Base de donnée'!HW6+Intérêt!HW6 -> 2600.015636 | HX6: ='Base de données cumulée'!HW6+'Base de donnée'!HX6+Intérêt!HX6 -> 2600.098982 | HY6: ='Base de données cumulée'!HX6+'Base de donnée'!HY6+Intérêt!HY6 -> 2600.182398 | HZ6: ='Base de données cumulée'!HY6+'Base de donnée'!HZ6+Intérêt!HZ6 -> 2600.265884 | IA6: ='Base de données cumulée'!HZ6+'Base de donnée'!IA6+Intérêt!IA6 -> 2600.349438 | IB6: ='Base de données cumulée'!IA6+'Base de donnée'!IB6+Intérêt!IB6 -> 2600.433063 | IC6: ='Base de données cumulée'!IB6+'Base de donnée'!IC6+Intérêt!IC6 -> 2600.516757 | ID6: ='Base de données cumulée'!IC6+'Base de donnée'!ID6+Intérêt!ID6 -> 2600.600521 | IE6: ='Base de données cumulée'!ID6+'Base de donnée'!IE6+Intérêt!IE6 -> 2600.684355 | IF6: ='Base de données cumulée'!IE6+'Base de donnée'!IF6+Intérêt!IF6 -> 2600.768259 | IG6: ='Base de données cumulée'!IF6+'Base de donnée'!IG6+Intérêt!IG6 -> 2600.852232 | IH6: ='Base de données cumulée'!IG6+'Base de donnée'!IH6+Intérêt!IH6 -> 2600.936276 | II6: ='Base de données cumulée'!IH6+'Base de donnée'!II6+Intérêt!II6 -> 2601.020389 | IJ6: ='Base de données cumulée'!II6+'Base de donnée'!IJ6+Intérêt!IJ6 -> 2601.104573 | IK6: ='Base de données cumulée'!IJ6+'Base de donnée'!IK6+Intérêt!IK6 -> 2601.188827 | IL6: ='Base de données cumulée'!IK6+'Base de donnée'!IL6+Intérêt!IL6 -> 2601.273151 | IM6: ='Base de données cumulée'!IL6+'Base de donnée'!IM6+Intérêt!IM6 -> 2601.357545 | IN6: ='Base de données cumulée'!IM6+'Base de donnée'!IN6+Intérêt!IN6 -> 2601.44201 | IO6: ='Base de données cumulée'!IN6+'Base de donnée'!IO6+Intérêt!IO6 -> 2601.526545 | IP6: ='Base de données cumulée'!IO6+'Base de donnée'!IP6+Intérêt!IP6 -> 2601.61115 | IQ6: ='Base de données cumulée'!IP6+'Base de donnée'!IQ6+Intérêt!IQ6 -> 2601.695826 | IR6: ='Base de données cumulée'!IP6+'Base de donnée'!IR6+Intérêt!IR6 -> 2603.624032 | IS6: ='Base de données cumulée'!IR6+'Base de donnée'!IS6+Intérêt!IS6 -> 2603.710386 | IT6: ='Base de données cumulée'!IS6+'Base de donnée'!IT6+Intérêt!IT6 -> 2603.796811 | IU6: ='Base de données cumulée'!IT6+'Base de donnée'!IU6+Intérêt!IU6 -> 2603.883308 | IV6: ='Base de données cumulée'!IU6+'Base de donnée'!IV6+Intérêt!IV6 -> 2603.969878 | IW6: ='Base de données cumulée'!IV6+'Base de donnée'!IW6+Intérêt!IW6 -> 2604.056519 | IX6: ='Base de données cumulée'!IW6+'Base de donnée'!IX6+Intérêt!IX6 -> 2604.143233 | IY6: ='Base de données cumulée'!IX6+'Base de donnée'!IY6+Intérêt!IY6 -> 2604.230019 | IZ6: ='Base de données cumulée'!IY6+'Base de donnée'!IZ6+Intérêt!IZ6 -> 2604.316877 | JA6: ='Base de données cumulée'!IZ6+'Base de donnée'!JA6+Intérêt!JA6 -> 2604.403808 | JB6: ='Base de données cumulée'!JA6+'Base de donnée'!JB6+Intérêt!JB6 -> 2604.490811 | JC6: ='Base de données cumulée'!JB6+'Base de donnée'!JC6+Intérêt!JC6 -> 2604.577887 | JD6: ='Base de données cumulée'!JC6+'Base de donnée'!JD6+Intérêt!JD6 -> 2604.665035 | JE6: ='Base de données cumulée'!JD6+'Base de donnée'!JE6+Intérêt!JE6 -> 2604.752256 | JF6: ='Base de données cumulée'!JE6+'Base de donnée'!JF6+Intérêt!JF6 -> 2604.83955 | JG6: ='Base de données cumulée'!JF6+'Base de donnée'!JG6+Intérêt!JG6 -> 2604.926916 | JH6: ='Base de données cumulée'!JG6+'Base de donnée'!JH6+Intérêt!JH6 -> 2605.014355 | JI6: ='Base de données cumulée'!JH6+'Base de donnée'!JI6+Intérêt!JI6 -> 2605.101867 | JJ6: ='Base de données cumulée'!JI6+'Base de donnée'!JJ6+Intérêt!JJ6 -> 2605.189452 | JK6: ='Base de données cumulée'!JJ6+'Base de donnée'!JK6+Intérêt!JK6 -> 2605.27711 | JL6: ='Base de données cumulée'!JK6+'Base de donnée'!JL6+Intérêt!JL6 -> 2605.364841 | JM6: ='Base de données cumulée'!JL6+'Base de donnée'!JM6+Intérêt!JM6 -> 2605.452645 | JN6: ='Base de données cumulée'!JM6+'Base de donnée'!JN6+Intérêt!JN6 -> 2605.540522 | JO6: ='Base de données cumulée'!JN6+'Base de donnée'!JO6+Intérêt!JO6 -> 2605.628472 | JP6: ='Base de données cumulée'!JO6+'Base de donnée'!JP6+Intérêt!JP6 -> 2605.716496 | JQ6: ='Base de données cumulée'!JO6+'Base de donnée'!JQ6+Intérêt!JQ6 -> 2607.720936 | JR6: ='Base de données cumulée'!JQ6+'Base de donnée'!JR6+Intérêt!JR6 -> 2607.810704 | JS6: ='Base de données cumulée'!JR6+'Base de donnée'!JS6+Intérêt!JS6 -> 2607.900546 | JT6: ='Base de données cumulée'!JS6+'Base de donnée'!JT6+Intérêt!JT6 -> 2607.990463 | JU6: ='Base de données cumulée'!JT6+'Base de donnée'!JU6+Intérêt!JU6 -> 2608.080455 | JV6: ='Base de données cumulée'!JU6+'Base de donnée'!JV6+Intérêt!JV6 -> 2608.170522 | JW6: ='Base de données cumulée'!JV6+'Base de donnée'!JW6+Intérêt!JW6 -> 2608.260664 | JX6: ='Base de données cumulée'!JW6+'Base de donnée'!JX6+Intérêt!JX6 -> 2608.350881 | JY6: ='Base de données cumulée'!JX6+'Base de donnée'!JY6+Intérêt!JY6 -> 2608.441174 | JZ6: ='Base de données cumulée'!JY6+'Base de donnée'!JZ6+Intérêt!JZ6 -> 2608.531541 | KA6: ='Base de données cumulée'!JZ6+'Base de donnée'!KA6+Intérêt!KA6 -> 2608.621984 | KB6: ='Base de données cumulée'!KA6+'Base de donnée'!KB6+Intérêt!KB6 -> 2608.712503 | KC6: ='Base de données cumulée'!KB6+'Base de donnée'!KC6+Intérêt!KC6 -> 2608.803096 | KD6: ='Base de données cumulée'!KC6+'Base de donnée'!KD6+Intérêt!KD6 -> 2608.893766 | KE6: ='Base de données cumulée'!KD6+'Base de donnée'!KE6+Intérêt!KE6 -> 2608.98451 | KF6: ='Base de données cumulée'!KE6+'Base de donnée'!KF6+Intérêt!KF6 -> 2609.075331 | KG6: ='Base de données cumulée'!KF6+'Base de donnée'!KG6+Intérêt!KG6 -> 2609.166227 | KH6: ='Base de données cumulée'!KG6+'Base de donnée'!KH6+Intérêt!KH6 -> 2609.257199 | KI6: ='Base de données cumulée'!KH6+'Base de donnée'!KI6+Intérêt!KI6 -> 2609.348246 | KJ6: ='Base de données cumulée'!KI6+'Base de donnée'!KJ6+Intérêt!KJ6 -> 2609.43937 | KK6: ='Base de données cumulée'!KJ6+'Base de donnée'!KK6+Intérêt!KK6 -> 2609.530569 | KL6: ='Base de données cumulée'!KK6+'Base de donnée'!KL6+Intérêt!KL6 -> 2609.621845 | KM6: ='Base de données cumulée'!KL6+'Base de donnée'!KM6+Intérêt!KM6 -> 2609.713197 | KN6: ='Base de données cumulée'!KM6+'Base de donnée'!KN6+Intérêt!KN6 -> 2609.804624 | KO6: ='Base de données cumulée'!KN6+'Base de donnée'!KO6+Intérêt!KO6 -> 2609.896128 | KP6: ='Base de données cumulée'!KN6+'Base de donnée'!KP6+Intérêt!KP6 -> 2611.979816 | KQ6: ='Base de données cumulée'!KP6+'Base de donnée'!KQ6+Intérêt!KQ6 -> 2612.073133 | KR6: ='Base de données cumulée'!KQ6+'Base de donnée'!KR6+Intérêt!KR6 -> 2612.166527 | KS6: ='Base de données cumulée'!KR6+'Base de donnée'!KS6+Intérêt!KS6 -> 2612.259999 | KT6: ='Base de données cumulée'!KS6+'Base de donnée'!KT6+Intérêt!KT6 -> 2612.353549 | KU6: ='Base de données cumulée'!KT6+'Base de donnée'!KU6+Intérêt!KU6 -> 2612.447177 | KV6: ='Base de données cumulée'!KU6+'Base de donnée'!KV6+Intérêt!KV6 -> 2612.540883 | KW6: ='Base de données cumulée'!KV6+'Base de donnée'!KW6+Intérêt!KW6 -> 2612.634667 | KX6: ='Base de données cumulée'!KW6+'Base de donnée'!KX6+Intérêt!KX6 -> 2612.728529 | KY6: ='Base de données cumulée'!KX6+'Base de donnée'!KY6+Intérêt!KY6 -> 2612.82247 | KZ6: ='Base de données cumulée'!KY6+'Base de donnée'!KZ6+Intérêt!KZ6 -> 2612.916488 | LA6: ='Base de données cumulée'!KZ6+'Base de donnée'!LA6+Intérêt!LA6 -> 2613.010585 | LB6: ='Base de données cumulée'!LA6+'Base de donnée'!LB6+Intérêt!LB6 -> 2613.104761 | LC6: ='Base de données cumulée'!LB6+'Base de donnée'!LC6+Intérêt!LC6 -> 2613.199015 | LD6: ='Base de données cumulée'!LC6+'Base de donnée'!LD6+Intérêt!LD6 -> 2613.293347 | LE6: ='Base de données cumulée'!LD6+'Base de donnée'!LE6+Intérêt!LE6 -> 2613.387759 | LF6: ='Base de données cumulée'!LE6+'Base de donnée'!LF6+Intérêt!LF6 -> 2613.482248 | LG6: ='Base de données cumulée'!LF6+'Base de donnée'!LG6+Intérêt!LG6 -> 2613.576817 | LH6: ='Base de données cumulée'!LG6+'Base de donnée'!LH6+Intérêt!LH6 -> 2613.671464 | LI6: ='Base de données cumulée'!LH6+'Base de donnée'!LI6+Intérêt!LI6 -> 2613.76619 | LJ6: ='Base de données cumulée'!LI6+'Base de donnée'!LJ6+Intérêt!LJ6 -> 2613.860996 | LK6: ='Base de données cumulée'!LJ6+'Base de donnée'!LK6+Intérêt!LK6 -> 2613.95588 | LL6: ='Base de données cumulée'!LK6+'Base de donnée'!LL6+Intérêt!LL6 -> 2614.050843 | LM6: ='Base de données cumulée'!LL6+'Base de donnée'!LM6+Intérêt!LM6 -> 2614.145885 | LN6: ='Base de données cumulée'!LM6+'Base de donnée'!LN6+Intérêt!LN6 -> 2614.241007 | LO6: ='Base de données cumulée'!LM6+'Base de donnée'!LO6+Intérêt!LO6 -> 2616.407076 | LP6: ='Base de données cumulée'!LO6+'Base de donnée'!LP6+Intérêt!LP6 -> 2616.504082 | LQ6: ='Base de données cumulée'!LP6+'Base de donnée'!LQ6+Intérêt!LQ6 -> 2616.601169 | LR6: ='Base de données cumulée'!LQ6+'Base de donnée'!LR6+Intérêt!LR6 -> 2616.698337 | LS6: ='Base de données cumulée'!LR6+'Base de donnée'!LS6+Intérêt!LS6 -> 2616.795585 | LT6: ='Base de données cumulée'!LS6+'Base de donnée'!LT6+Intérêt!LT6 -> 2616.892915 | LU6: ='Base de données cumulée'!LT6+'Base de donnée'!LU6+Intérêt!LU6 -> 2616.990326 | LV6: ='Base de données cumulée'!LU6+'Base de donnée'!LV6+Intérêt!LV6 -> 2617.087818 | LW6: ='Base de données cumulée'!LV6+'Base de donnée'!LW6+Intérêt!LW6 -> 2617.185391 | LX6: ='Base de données cumulée'!LW6+'Base de donnée'!LX6+Intérêt!LX6 -> 2617.283045 | LY6: ='Base de données cumulée'!LX6+'Base de donnée'!LY6+Intérêt!LY6 -> 2617.380781 | LZ6: ='Base de données cumulée'!LY6+'Base de donnée'!LZ6+Intérêt!LZ6 -> 2617.478598 | MA6: ='Base de données cumulée'!LZ6+'Base de donnée'!MA6+Intérêt!MA6 -> 2617.576497 | MB6: ='Base de données cumulée'!MA6+'Base de donnée'!MB6+Intérêt!MB6 -> 2617.674478 | MC6: ='Base de données cumulée'!MB6+'Base de donnée'!MC6+Intérêt!MC6 -> 2617.77254 | MD6: ='Base de données cumulée'!MC6+'Base de donnée'!MD6+Intérêt!MD6 -> 2617.870683 | ME6: ='Base de données cumulée'!MD6+'Base de donnée'!ME6+Intérêt!ME6 -> 2617.968909 | MF6: ='Base de données cumulée'!ME6+'Base de donnée'!MF6+Intérêt!MF6 -> 2618.067216 | MG6: ='Base de données cumulée'!MF6+'Base de donnée'!MG6+Intérêt!MG6 -> 2618.165606 | MH6: ='Base de données cumulée'!MG6+'Base de donnée'!MH6+Intérêt!MH6 -> 2618.264077 | MI6: ='Base de données cumulée'!MH6+'Base de donnée'!MI6+Intérêt!MI6 -> 2618.362631 | MJ6: ='Base de données cumulée'!MI6+'Base de donnée'!MJ6+Intérêt!MJ6 -> 2618.461266 | MK6: ='Base de données cumulée'!MJ6+'Base de donnée'!MK6+Intérêt!MK6 -> 2618.559984 | ML6: ='Base de données cumulée'!MK6+'Base de donnée'!ML6+Intérêt!ML6 -> 2618.658784 | MM6: ='Base de données cumulée'!ML6+'Base de donnée'!MM6+Intérêt!MM6 -> 2618.757666 | MN6: ='Base de données cumulée'!ML6+'Base de donnée'!MN6+Intérêt!MN6 -> 2621.009374 | MO6: ='Base de données cumulée'!MN6+'Base de donnée'!MO6+Intérêt!MO6 -> 2621.110215 | MP6: ='Base de données cumulée'!MO6+'Base de donnée'!MP6+Intérêt!MP6 -> 2621.21114 | MQ6: ='Base de données cumulée'!MP6+'Base de donnée'!MQ6+Intérêt!MQ6 -> 2621.312149 | MR6: ='Base de données cumulée'!MQ6+'Base de donnée'!MR6+Intérêt!MR6 -> 2621.413243 | MS6: ='Base de données cumulée'!MR6+'Base de donnée'!MS6+Intérêt!MS6 -> 2621.51442 | MT6: ='Base de données cumulée'!MS6+'Base de donnée'!MT6+Intérêt!MT6 -> 2621.615682 | MU6: ='Base de données cumulée'!MT6+'Base de donnée'!MU6+Intérêt!MU6 -> 2621.717029 | MV6: ='Base de données cumulée'!MU6+'Base de donnée'!MV6+Intérêt!MV6 -> 2621.81846 | MW6: ='Base de données cumulée'!MV6+'Base de donnée'!MW6+Intérêt!MW6 -> 2621.919975 | MX6: ='Base de données cumulée'!MW6+'Base de donnée'!MX6+Intérêt!MX6 -> 2622.021575 | MY6: ='Base de données cumulée'!MX6+'Base de donnée'!MY6+Intérêt!MY6 -> 2622.12326 | MZ6: ='Base de données cumulée'!MY6+'Base de donnée'!MZ6+Intérêt!MZ6 -> 2622.225029 | NA6: ='Base de données cumulée'!MZ6+'Base de donnée'!NA6+Intérêt!NA6 -> 2622.326883 | NB6: ='Base de données cumulée'!NA6+'Base de donnée'!NB6+Intérêt!NB6 -> 2622.428822 | NC6: ='Base de données cumulée'!NB6+'Base de donnée'!NC6+Intérêt!NC6 -> 2622.530846 | ND6: ='Base de données cumulée'!NC6+'Base de donnée'!ND6+Intérêt!ND6 -> 2622.632955 | NE6: ='Base de données cumulée'!ND6+'Base de donnée'!NE6+Intérêt!NE6 -> 2622.735149 | NF6: ='Base de données cumulée'!NE6+'Base de donnée'!NF6+Intérêt!NF6 -> 2622.837429 | NG6: ='Base de données cumulée'!NF6+'Base de donnée'!NG6+Intérêt!NG6 -> 2622.939793 | NH6: ='Base de données cumulée'!NG6+'Base de donnée'!NH6+Intérêt!NH6 -> 2623.042243 | NI6: ='Base de données cumulée'!NH6+'Base de donnée'!NI6+Intérêt!NI6 -> 2623.144778 | NJ6: ='Base de données cumulée'!NI6+'Base de donnée'!NJ6+Intérêt!NJ6 -> 2623.247399 | NK6: ='Base de données cumulée'!NJ6+'Base de donnée'!NK6+Intérêt!NK6 -> 2623.350105 | NL6: ='Base de données cumulée'!NK6+'Base de donnée'!NL6+Intérêt!NL6 -> 2623.452897 | NM6: ='Base de données cumulée'!NK6+'Base de donnée'!NM6+Intérêt!NM6 -> 2625.793628 | NN6: ='Base de données cumulée'!NM6+'Base de donnée'!NN6+Intérêt!NN6 -> 2625.898456 | NO6: ='Base de données cumulée'!NN6+'Base de donnée'!NO6+Intérêt!NO6 -> 2626.003372 | NP6: ='Base de données cumulée'!NO6+'Base de donnée'!NP6+Intérêt!NP6 -> 2626.108375 | NQ6: ='Base de données cumulée'!NP6+'Base de donnée'!NQ6+Intérêt!NQ6 -> 2626.213465 | NR6: ='Base de données cumulée'!NQ6+'Base de donnée'!NR6+Intérêt!NR6 -> 2626.318643 | NS6: ='Base de données cumulée'!NR6+'Base de donnée'!NS6+Intérêt!NS6 -> 2626.423908 | NT6: ='Base de données cumulée'!NS6+'Base de donnée'!NT6+Intérêt!NT6 -> 2626.529262 | NU6: ='Base de données cumulée'!NT6+'Base de donnée'!NU6+Intérêt!NU6 -> 2626.634703 | NV6: ='Base de données cumulée'!NU6+'Base de donnée'!NV6+Intérêt!NV6 -> 2626.740232 | NW6: ='Base de données cumulée'!NV6+'Base de donnée'!NW6+Intérêt!NW6 -> 2626.845848 | NX6: ='Base de données cumulée'!NW6+'Base de donnée'!NX6+Intérêt!NX6 -> 2626.951553 | NY6: ='Base de données cumulée'!NX6+'Base de donnée'!NY6+Intérêt!NY6 -> 2627.057346 | NZ6: ='Base de données cumulée'!NY6+'Base de donnée'!NZ6+Intérêt!NZ6 -> 2627.163227 | OA6: ='Base de données cumulée'!NZ6+'Base de donnée'!OA6+Intérêt!OA6 -> 2627.269197 | OB6: ='Base de données cumulée'!OA6+'Base de donnée'!OB6+Intérêt!OB6 -> 2627.375254 | OC6: ='Base de données cumulée'!OB6+'Base de donnée'!OC6+Intérêt!OC6 -> 2627.481401 | OD6: ='Base de données cumulée'!OC6+'Base de donnée'!OD6+Intérêt!OD6 -> 2627.587635 | OE6: ='Base de données cumulée'!OD6+'Base de donnée'!OE6+Intérêt!OE6 -> 2627.693958 | OF6: ='Base de données cumulée'!OE6+'Base de donnée'!OF6+Intérêt!OF6 -> 2627.80037 | OG6: ='Base de données cumulée'!OF6+'Base de donnée'!OG6+Intérêt!OG6 -> 2627.90687 | OH6: ='Base de données cumulée'!OG6+'Base de donnée'!OH6+Intérêt!OH6 -> 2628.013459 | OI6: ='Base de données cumulée'!OH6+'Base de donnée'!OI6+Intérêt!OI6 -> 2628.120137 | OJ6: ='Base de données cumulée'!OI6+'Base de donnée'!OJ6+Intérêt!OJ6 -> 2628.226904 | OK6: ='Base de données cumulée'!OJ6+'Base de donnée'!OK6+Intérêt!OK6 -> 2628.333759 | OL6: ='Base de données cumulée'!OJ6+'Base de donnée'!OL6+Intérêt!OL6 -> 2630.767035 | OM6: ='Base de données cumulée'!OL6+'Base de donnée'!OM6+Intérêt!OM6 -> 2630.876007 | ON6: ='Base de données cumulée'!OM6+'Base de donnée'!ON6+Intérêt!ON6 -> 2630.985071 | OO6: ='Base de données cumulée'!ON6+'Base de donnée'!OO6+Intérêt!OO6 -> 2631.094225 | OP6: ='Base de données cumulée'!OO6+'Base de donnée'!OP6+Intérêt!OP6 -> 2631.20347 | OQ6: ='Base de données cumulée'!OP6+'Base de donnée'!OQ6+Intérêt!OQ6 -> 2631.312806 | OR6: ='Base de données cumulée'!OQ6+'Base de donnée'!OR6+Intérêt!OR6 -> 2631.422234 | OS6: ='Base de données cumulée'!OR6+'Base de donnée'!OS6+Intérêt!OS6 -> 2631.531752 | OT6: ='Base de données cumulée'!OS6+'Base de donnée'!OT6+Intérêt!OT6 -> 2631.641362 | OU6: ='Base de données cumulée'!OT6+'Base de donnée'!OU6+Intérêt!OU6 -> 2631.751063 | OV6: ='Base de données cumulée'!OU6+'Base de donnée'!OV6+Intérêt!OV6 -> 2631.860856 | OW6: ='Base de données cumulée'!OV6+'Base de donnée'!OW6+Intérêt!OW6 -> 2631.97074 | OX6: ='Base de données cumulée'!OW6+'Base de donnée'!OX6+Intérêt!OX6 -> 2632.080715 | OY6: ='Base de données cumulée'!OX6+'Base de donnée'!OY6+Intérêt!OY6 -> 2632.190782 | OZ6: ='Base de données cumulée'!OY6+'Base de donnée'!OZ6+Intérêt!OZ6 -> 2632.300941 | PA6: ='Base de données cumulée'!OZ6+'Base de donnée'!PA6+Intérêt!PA6 -> 2632.411192 | PB6: ='Base de données cumulée'!PA6+'Base de donnée'!PB6+Intérêt!PB6 -> 2632.521535 | PC6: ='Base de données cumulée'!PB6+'Base de donnée'!PC6+Intérêt!PC6 -> 2632.63197 | PD6: ='Base de données cumulée'!PC6+'Base de donnée'!PD6+Intérêt!PD6 -> 2632.742496 | PE6: ='Base de données cumulée'!PD6+'Base de donnée'!PE6+Intérêt!PE6 -> 2632.853115 | PF6: ='Base de données cumulée'!PE6+'Base de donnée'!PF6+Intérêt!PF6 -> 2632.963826 | PG6: ='Base de données cumulée'!PF6+'Base de donnée'!PG6+Intérêt!PG6 -> 2633.074629 | PH6: ='Base de données cumulée'!PG6+'Base de donnée'!PH6+Intérêt!PH6 -> 2633.185525 | PI6: ='Base de données cumulée'!PH6+'Base de donnée'!PI6+Intérêt!PI6 -> 2633.296512 | PJ6: ='Base de données cumulée'!PI6+'Base de donnée'!PJ6+Intérêt!PJ6 -> 2633.407593 | PK6: ='Base de données cumulée'!PI6+'Base de donnée'!PK6+Intérêt!PK6 -> 2635.937071 | PL6: ='Base de données cumulée'!PK6+'Base de donnée'!PL6+Intérêt!PL6 -> 2636.050352 | PM6: ='Base de données cumulée'!PL6+'Base de donnée'!PM6+Intérêt!PM6 -> 2636.163727 | PN6: ='Base de données cumulée'!PM6+'Base de donnée'!PN6+Intérêt!PN6 -> 2636.277197 | PO6: ='Base de données cumulée'!PN6+'Base de donnée'!PO6+Intérêt!PO6 -> 2636.390761 | PP6: ='Base de données cumulée'!PO6+'Base de donnée'!PP6+Intérêt!PP6 -> 2636.50442 | PQ6: ='Base de données cumulée'!PP6+'Base de donnée'!PQ6+Intérêt!PQ6 -> 2636.618174 | PR6: ='Base de données cumulée'!PQ6+'Base de donnée'!PR6+Intérêt!PR6 -> 2636.732022 | PS6: ='Base de données cumulée'!PR6+'Base de donnée'!PS6+Intérêt!PS6 -> 2636.845965 | PT6: ='Base de données cumulée'!PS6+'Base de donnée'!PT6+Intérêt!PT6 -> 2636.960004 | PU6: ='Base de données cumulée'!PT6+'Base de donnée'!PU6+Intérêt!PU6 -> 2637.074137 | PV6: ='Base de données cumulée'!PU6+'Base de donnée'!PV6+Intérêt!PV6 -> 2637.188366 | PW6: ='Base de données cumulée'!PV6+'Base de donnée'!PW6+Intérêt!PW6 -> 2637.302689 | PX6: ='Base de données cumulée'!PW6+'Base de donnée'!PX6+Intérêt!PX6 -> 2637.417108 | PY6: ='Base de données cumulée'!PX6+'Base de donnée'!PY6+Intérêt!PY6 -> 2637.531622 | PZ6: ='Base de données cumulée'!PY6+'Base de donnée'!PZ6+Intérêt!PZ6 -> 2637.646232 | QA6: ='Base de données cumulée'!PZ6+'Base de donnée'!QA6+Intérêt!QA6 -> 2637.760937 | QB6: ='Base de données cumulée'!QA6+'Base de donnée'!QB6+Intérêt!QB6 -> 2637.875738 | QC6: ='Base de données cumulée'!QB6+'Base de donnée'!QC6+Intérêt!QC6 -> 2637.990634 | QD6: ='Base de données cumulée'!QC6+'Base de donnée'!QD6+Intérêt!QD6 -> 2638.105627 | QE6: ='Base de données cumulée'!QD6+'Base de donnée'!QE6+Intérêt!QE6 -> 2638.220715 | QF6: ='Base de données cumulée'!QE6+'Base de donnée'!QF6+Intérêt!QF6 -> 2638.335899 | QG6: ='Base de données cumulée'!QF6+'Base de donnée'!QG6+Intérêt!QG6 -> 2638.451179 | QH6: ='Base de données cumulée'!QG6+'Base de donnée'!QH6+Intérêt!QH6 -> 2638.566555 | QI6: ='Base de données cumulée'!QH6+'Base de donnée'!QI6+Intérêt!QI6 -> 2638.682027 | QJ6: ='Base de données cumulée'!QH6+'Base de donnée'!QJ6+Intérêt!QJ6 -> 2641.31151 | QK6: ='Base de données cumulée'!QJ6+'Base de donnée'!QK6+Intérêt!QK6 -> 2641.42927 | QL6: ='Base de données cumulée'!QK6+'Base de donnée'!QL6+Intérêt!QL6 -> 2641.547128 | QM6: ='Base de données cumulée'!QL6+'Base de donnée'!QM6+Intérêt!QM6 -> 2641.665084 | QN6: ='Base de données cumulée'!QM6+'Base de donnée'!QN6+Intérêt!QN6 -> 2641.783138 | QO6: ='Base de données cumulée'!QN6+'Base de donnée'!QO6+Intérêt!QO6 -> 2641.901291 | QP6: ='Base de données cumulée'!QO6+'Base de donnée'!QP6+Intérêt!QP6 -> 2642.019542 | QQ6: ='Base de données cumulée'!QP6+'Base de donnée'!QQ6+Intérêt!QQ6 -> 2642.137891 | QR6: ='Base de données cumulée'!QQ6+'Base de donnée'!QR6+Intérêt!QR6 -> 2642.256339 | QS6: ='Base de données cumulée'!QR6+'Base de donnée'!QS6+Intérêt!QS6 -> 2642.374886 | QT6: ='Base de données cumulée'!QS6+'Base de donnée'!QT6+Intérêt!QT6 -> 2642.493532 | QU6: ='Base de données cumulée'!QT6+'Base de donnée'!QU6+Intérêt!QU6 -> 2642.612277 | QV6: ='Base de données cumulée'!QU6+'Base de donnée'!QV6+Intérêt!QV6 -> 2642.73112 | QW6: ='Base de données cumulée'!QV6+'Base de donnée'!QW6+Intérêt!QW6 -> 2642.850063 | QX6: ='Base de données cumulée'!QW6+'Base de donnée'!QX6+Intérêt!QX6 -> 2642.969105 | QY6: ='Base de données cumulée'!QX6+'Base de donnée'!QY6+Intérêt!QY6 -> 2643.088246 | QZ6: ='Base de données cumulée'!QY6+'Base de donnée'!QZ6+Intérêt!QZ6 -> 2643.207486 | RA6: ='Base de données cumulée'!QZ6+'Base de donnée'!RA6+Intérêt!RA6 -> 2643.326825 | RB6: ='Base de données cumulée'!RA6+'Base de donnée'!RB6+Intérêt!RB6 -> 2643.446264 | RC6: ='Base de données cumulée'!RB6+'Base de donnée'!RC6+Intérêt!RC6 -> 2643.565803 | RD6: ='Base de données cumulée'!RC6+'Base de donnée'!RD6+Intérêt!RD6 -> 2643.685441 | RE6: ='Base de données cumulée'!RD6+'Base de donnée'!RE6+Intérêt!RE6 -> 2643.805179 | RF6: ='Base de données cumulée'!RE6+'Base de donnée'!RF6+Intérêt!RF6 -> 2643.925017 | RG6: ='Base de données cumulée'!RF6+'Base de donnée'!RG6+Intérêt!RG6 -> 2644.044954 | RH6: ='Base de données cumulée'!RG6+'Base de donnée'!RH6+Intérêt!RH6 -> 2644.164992 | RI6: ='Base de données cumulée'!RG6+'Base de donnée'!RI6+Intérêt!RI6 -> 2646.898435 | RJ6: ='Base de données cumulée'!RI6+'Base de donnée'!RJ6+Intérêt!RJ6 -> 2647.020851 | RK6: ='Base de données cumulée'!RJ6+'Base de donnée'!RK6+Intérêt!RK6 -> 2647.143368 | RL6: ='Base de données cumulée'!RK6+'Base de donnée'!RL6+Intérêt!RL6 -> 2647.265988 | RM6: ='Base de données cumulée'!RL6+'Base de donnée'!RM6+Intérêt!RM6 -> 2647.388709 | RN6: ='Base de données cumulée'!RM6+'Base de donnée'!RN6+Intérêt!RN6 -> 2647.511533 | RO6: ='Base de données cumulée'!RN6+'Base de donnée'!RO6+Intérêt!RO6 -> 2647.634459 | RP6: ='Base de données cumulée'!RO6+'Base de donnée'!RP6+Intérêt!RP6 -> 2647.757488 | RQ6: ='Base de données cumulée'!RP6+'Base de donnée'!RQ6+Intérêt!RQ6 -> 2647.880619 | RR6: ='Base de données cumulée'!RQ6+'Base de donnée'!RR6+Intérêt!RR6 -> 2648.003853 | RS6: ='Base de données cumulée'!RR6+'Base de donnée'!RS6+Intérêt!RS6 -> 2648.12719 | RT6: ='Base de données cumulée'!RS6+'Base de donnée'!RT6+Intérêt!RT6 -> 2648.250629 | RU6: ='Base de données cumulée'!RT6+'Base de donnée'!RU6+Intérêt!RU6 -> 2648.374171 | RV6: ='Base de données cumulée'!RU6+'Base de donnée'!RV6+Intérêt!RV6 -> 2648.497816 | RW6: ='Base de données cumulée'!RV6+'Base de donnée'!RW6+Intérêt!RW6 -> 2648.621565 | RX6: ='Base de données cumulée'!RW6+'Base de donnée'!RX6+Intérêt!RX6 -> 2648.745416 | RY6: ='Base de données cumulée'!RX6+'Base de donnée'!RY6+Intérêt!RY6 -> 2648.86937 | RZ6: ='Base de données cumulée'!RY6+'Base de donnée'!RZ6+Intérêt!RZ6 -> 2648.993428 | SA6: ='Base de données cumulée'!RZ6+'Base de donnée'!SA6+Intérêt!SA6 -> 2649.117589 | SB6: ='Base de données cumulée'!SA6+'Base de donnée'!SB6+Intérêt!SB6 -> 2649.241854 | SC6: ='Base de données cumulée'!SB6+'Base de donnée'!SC6+Intérêt!SC6 -> 2649.366222 | SD6: ='Base de données cumulée'!SC6+'Base de donnée'!SD6+Intérêt!SD6 -> 2649.490694 | SE6: ='Base de données cumulée'!SD6+'Base de donnée'!SE6+Intérêt!SE6 -> 2649.61527 | SF6: ='Base de données cumulée'!SE6+'Base de donnée'!SF6+Intérêt!SF6 -> 2649.739949 | SG6: ='Base de données cumulée'!SF6+'Base de donnée'!SG6+Intérêt!SG6 -> 2649.864732 | SH6: ='Base de données cumulée'!SF6+'Base de donnée'!SH6+Intérêt!SH6 -> 2652.706246 | SI6: ='Base de données cumulée'!SH6+'Base de donnée'!SI6+Intérêt!SI6 -> 2652.833501 | SJ6: ='Base de données cumulée'!SI6+'Base de donnée'!SJ6+Intérêt!SJ6 -> 2652.960863 | SK6: ='Base de données cumulée'!SJ6+'Base de donnée'!SK6+Intérêt!SK6 -> 2653.08833 | SL6: ='Base de données cumulée'!SK6+'Base de donnée'!SL6+Intérêt!SL6 -> 2653.215904 | SM6: ='Base de données cumulée'!SL6+'Base de donnée'!SM6+Intérêt!SM6 -> 2653.343584 | SN6: ='Base de données cumulée'!SM6+'Base de donnée'!SN6+Intérêt!SN6 -> 2653.47137 | SO6: ='Base de données cumulée'!SN6+'Base de donnée'!SO6+Intérêt!SO6 -> 2653.599263 | SP6: ='Base de données cumulée'!SO6+'Base de donnée'!SP6+Intérêt!SP6 -> 2653.727262 | SQ6: ='Base de données cumulée'!SP6+'Base de donnée'!SQ6+Intérêt!SQ6 -> 2653.855368 | SR6: ='Base de données cumulée'!SQ6+'Base de donnée'!SR6+Intérêt!SR6 -> 2653.983581 | SS6: ='Base de données cumulée'!SR6+'Base de donnée'!SS6+Intérêt!SS6 -> 2654.111901 | ST6: ='Base de données cumulée'!SS6+'Base de donnée'!ST6+Intérêt!ST6 -> 2654.240327 | SU6: ='Base de données cumulée'!ST6+'Base de donnée'!SU6+Intérêt!SU6 -> 2654.368861 | SV6: ='Base de données cumulée'!SU6+'Base de donnée'!SV6+Intérêt!SV6 -> 2654.497501 | SW6: ='Base de données cumulée'!SV6+'Base de donnée'!SW6+Intérêt!SW6 -> 2654.626249 | SX6: ='Base de données cumulée'!SW6+'Base de donnée'!SX6+Intérêt!SX6 -> 2654.755105 | SY6: ='Base de données cumulée'!SX6+'Base de donnée'!SY6+Intérêt!SY6 -> 2654.884067 | SZ6: ='Base de données cumulée'!SY6+'Base de donnée'!SZ6+Intérêt!SZ6 -> 2655.013137 | TA6: ='Base de données cumulée'!SZ6+'Base de donnée'!TA6+Intérêt!TA6 -> 2655.142315 | TB6: ='Base de données cumulée'!TA6+'Base de donnée'!TB6+Intérêt!TB6 -> 2655.2716 | TC6: ='Base de données cumulée'!TB6+'Base de donnée'!TC6+Intérêt!TC6 -> 2655.400993 | TD6: ='Base de données cumulée'!TC6+'Base de donnée'!TD6+Intérêt!TD6 -> 2655.530494 | TE6: ='Base de données cumulée'!TD6+'Base de donnée'!TE6+Intérêt!TE6 -> 2655.660103 | TF6: ='Base de données cumulée'!TE6+'Base de donnée'!TF6+Intérêt!TF6 -> 2655.789819
